Workbook

Sheet START
A1: =muni -> LIM351 Blouberg

Sheet Instructions
D2: 2020
X4: Yes
X5: No
W7: Type of Entities Range: | X7: Parent Municipality
X8: Consolidated Information
W10: Date linked | X10: 7
W11: Date | X11: =VLOOKUP(X10,W39:X55,2) -> M07 January | Y11: 2013-08-01
W19: MTREF Range: | X19: 2008
X20: 2009
X21: 2010
X22: 2011
X23: 2012
X24: 2013
X25: 2014
X26: 2015
X27: 2016
X28: 2017
X29: 2018
X30: 2019
X31: 2020
X32: 2021
X33: 2022
W34: MTREF Linked:
W35: MTREF: | X35: 14
X36: =INDEX(X19:X33,X35,1) -> 2021
W37: Fin Year:
X38: =MTREF&"/"&RIGHT(MTREF,2)+1 -> 2021/22
V39: Date/type of report | W39: 1 | X39: M01 July
W40: 2 | X40: M02 August
W41: 3 | X41: M03 September
W42: 4 | X42: M04 October
W43: 5 | X43: M05 November
W44: 6 | X44: M06 December
W45: 7 | X45: M07 January
W46: 8 | X46: M08 February
W47: 9 | X47: M09 March
W48: 10 | X48: M10 April
W49: 11 | X49: M11 May
W50: 12 | X50: M12 June
W51: 13 | X51: Q1 First Quarter
W52: 14 | X52: Q2 Second Quarter
W53: 15 | X53: Q3 Third Quarter
W54: 16 | X54: Q4 Fourth Quarter
W55: 17 | X55: Mid-Year Assessment

Sheet Template names (hidden)
A1: Common sheet headings
A2: Head1 | B2: =HLOOKUP(MTREF,Headings,2) -> 2020/21 | C2: Prior year -1
A3: Head2 | B3: =HLOOKUP(MTREF,Headings,5) -> Budget Year 2021/22 | C3: Year of approved budget
A4: Head2A | B4: =HLOOKUP(MTREF,Headings,4) -> 2021/22 | C4: Approved budget year
A5: Head3 | B5: =HLOOKUP(MTREF,Headings,3) -> 2021/22 Medium Term Revenue & Expenditure Framework | C5: MTREF header name
A6: Head5 | B6: Audited Outcome
A7: Head5A | B7: Outcome
A8: Head5B | B8: Pre-audit outcome
A9: Head6 | B9: Original Budget
A10: Head7 | B10: Adjusted Budget
A11: Head8 | B11: Full Year Forecast
A12: Head9 | B12: =HLOOKUP(MTREF,Headings,5) -> Budget Year 2021/22 | C12: 1st year of MTREF | D12: Year1
A13: Head10 | B13: =HLOOKUP(MTREF,Headings,6) -> Budget Year +1 2022/23 | C13: 2nd year of MTREF | D13: Year2
A14: Head11 | B14: =HLOOKUP(MTREF,Headings,7) -> Budget Year +2 2023/24 | C14: 3rd year of MTREF | D14: Year3
A15: Head12 | B15: Forecast 2010/11 | D15: Year4
A16: Head13 | B16: Forecast 2011/12 | D16: Year5
A17: Head14 | B17: Forecast 2012/13 | D17: Year6
A18: Head15 | B18: Forecast 2013/14 | D18: Year7
A19: Head16 | B19: Forecast 2014/15 | D19: Year8
A20: Head17 | B20: Forecast 2015/16 | D20: Year9
A21: Head18 | B21: Forecast 2016/17 | D21: Year10
A22: Head19 | B22: Forecast 2017/18 | D22: Year11
A23: Head20 | B23: Forecast 2018/19 | D23: Year12
A24: Head21 | B24: Forecast 2019/20 | D24: Year13
A25: Head22 | B25: Forecast 2020/21 | D25: Year14
A26: Head23 | B26: Forecast 2021/22 | D26: Year15
A27: Head24 | B27: Description | D27: Desc
A28: Head25 | B28: Schedule of funding diligence | D28: fdil
A29: Head26 | B29: Vote Description | D29: VDesc
A30: Head27 | B30: Ref
A31: Head27a | B31: References
A32: Head28 | B32: Surplus/ (Deficit) for the year | D32: Result
A33: Head29 | B33: Annual target 2007/08
A34: Head30 | B34: Revised target 2007/08
A35: Head31 | B35: Quarter ended 30 September
A36: Head32 | B36: Quarter ended 31 December
A37: Head33 | B37: Quarter ended 31 March
A38: Head34 | B38: Quarter ended 30 June
A39: Head35 | B39: Variance explanation
A40: Head36 | B40: YTD Actual 31 Dec
A41: Head37 | B41: YTD Budget 31 Dec
A42: Head38 | B42: Monthly actual
A43: Head39 | B43: YearTD actual
A44: Head40 | B44: YearTD budget
A45: Head41 | B45: YTD variance
A46: Head42 | B46: Surplus/ (Deficit) for the yr/period
A47: Head43 | B47: =Head3&" Summary" -> 2021/22 Medium Term Revenue & Expenditure Framework Summary
A48: Head44 | B48: 1996 Census
A49: Head45 | B49: 2001 Census
A50: Head46 | B50: - Adjustments Budget - Month YYYY
A51: Head47 | B51: Previous target year to complete
A52: Head48 | B52: Present value
A53: Head49 | B53: Virement
A54: Head50 | B54: Other Adjusts.
A55: Head51 | B55: Accum. Funds
A56: Head52 | B56: Multi-year capital
A57: Head53 | B57: Unfore. Unavoid.
A58: Head54 | B58: Prior Adjusted
A59: Head55 | B59: Nat. or Prov. Govt
A60: Head56 | B60: Total Adjusts.
A61: Head57 | B61: =date -> M07 January
A62: Head58 | B62: Parent muni.
A63: Head59 | B63: Downward adjusts
A64: Head60 | B64: Month | C64: Report header part name | D64: =date -> M07 January
A65: SFPerf1 | B65: Budgeted Financial Performance
A66: SFPerf2 | B66: Forecast Financial Performance
A67: SFPos1 | B67: Budgeted Financial Position
A68: SFPos2 | B68: Forecast Financial Position
A69: Cash1 | B69: Budget Cash Flow
A70: Cash2 | B70: Forecast Cash Flow
A71: RandM | B71: Expenditure includes repairs & maintenance of R'000
A72: Standard nomenclature
A73: Muni | B73: ='Lookup and lists'!B27 -> LIM351 Blouberg
A74: Municipal Entities | B74: 2 | C74: Type of report: | D74: 1
A75: =IF((MuniEntities=1)*(MuniType=2),"YES","NO") -> NO | B75: Does this municipality have entities (consolidated budget and entity budgets required)? YES/NO
A76: s71 (Monthly Mayor report) schedules and charts
A77: S71sum | B77: =IF(Consolques="YES",E77,F77) -> Table C1 Monthly Budget Statement Summary | D77: Table C1 | E77: =D77&"Consolidated Monthly Budget Statement Summary" -> Table C1 Consolidated Monthly Budget Statement Summary | F77: =D77&"Monthly Budget Statement Summary" -> Table C1 Monthly Budget Statement Summary
A78: S71C | B78: Table C3 Monthly Budget Statement - Financial Performance (revenue and expenditure by municipal vote) | D78: Table C3 | E78: =D78&"Consolidated Monthly Budget Statement - Financial Performance (revenue and expenditure by municipal vote) " -> Table C3 Consolidated Monthly Budget Statement - Financial Performance (revenue and expenditure by municipal vote) | F78: =D78&"Monthly Budget Statement - Financial Performance (revenue and expenditure by municipal vote)" -> Table C3 Monthly Budget Statement - Financial Performance (revenue and expenditure by municipal vote)
A79: S71A | B79: =IF(Consolques="YES",E79,F79) -> Table C2 Monthly Budget Statement - Financial Performance (functional classification) | D79: Table C2 | E79: =D79&"Consolidated Monthly Budget Statement - Financial Performance (functional classification) " -> Table C2 Consolidated Monthly Budget Statement - Financial Performance (functional classification) | F79: =D79&"Monthly Budget Statement - Financial Performance (functional classification)" -> Table C2 Monthly Budget Statement - Financial Performance (functional classification)
A80: S71B | B80: =IF(Consolques="YES",E80,F80) -> Table C4 Monthly Budget Statement - Financial Performance (revenue and expenditure) | D80: Table C4 | E80: =D80&"Consolidated Monthly Budget Statement - Financial Performance (revenue and expenditure) " -> Table C4 Consolidated Monthly Budget Statement - Financial Performance (revenue and expenditure) | F80: =D80&"Monthly Budget Statement - Financial Performance (revenue and expenditure)" -> Table C4 Monthly Budget Statement - Financial Performance (revenue and expenditure)
A81: S71D | B81: =IF(Consolques="YES",E81,F81) -> Table C5 Monthly Budget Statement - Capital Expenditure (municipal vote, functional classification and funding) | D81: Table C5 | E81: =D81&"Consolidated Monthly Budget Statement - Capital Expenditure (municipal vote, functional classification and funding " -> Table C5 Consolidated Monthly Budget Statement - Capital Expenditure (municipal vote, functional classification and funding | F81: =D81&"Monthly Budget Statement - Capital Expenditure (municipal vote, functional classification and funding)" -> Table C5 Monthly Budget Statement - Capital Expenditure (municipal vote, functional classification and funding)
A82: S71E | B82: Table C6 Monthly Budget Statement - Financial Position | D82: Table C6 | E82: =D82&"Consolidated Monthly Budget Statement - Financial Position " -> Table C6 Consolidated Monthly Budget Statement - Financial Position | F82: =D82&"Monthly Budget Statement - Financial Position" -> Table C6 Monthly Budget Statement - Financial Position
A83: S71F | B83: Table C7 Monthly Budget Statement - Cash Flow | D83: Table C7 | E83: =D83&"Consolidated Monthly Budget Statement - Cash Flow " -> Table C7 Consolidated Monthly Budget Statement - Cash Flow | F83: =D83&"Monthly Budget Statement - Cash Flow " -> Table C7 Monthly Budget Statement - Cash Flow
A84: S71G | B84: =D84&"Material variance explanations " -> Supporting Table SC1 Material variance explanations | D84: Supporting Table SC1
A85: S71H | B85: =D85&"Monthly Budget Statement - performance indicators " -> Supporting Table SC2 Monthly Budget Statement - performance indicators | D85: Supporting Table SC2
A86: S71I | B86: =D86&"Monthly Budget Statement - aged debtors" -> Supporting Table SC3 Monthly Budget Statement - aged debtors | D86: Supporting Table SC3
A87: S71J | B87: =D87&"Monthly Budget Statement - aged creditors " -> Supporting Table SC4 Monthly Budget Statement - aged creditors | D87: Supporting Table SC4
A88: S71K | B88: =D88&"Monthly Budget Statement - investment portfolio " -> Supporting Table SC5 Monthly Budget Statement - investment portfolio | D88: Supporting Table SC5
A89: S71L | B89: =D89&"Monthly Budget Statement - transfers and grant receipts " -> Supporting Table SC6 Monthly Budget Statement - transfers and grant receipts | D89: Supporting Table SC6
A90: S71M | B90: =D90&" Monthly Budget Statement - transfers and grant expenditure " -> Supporting Table SC7(1) Monthly Budget Statement - transfers and grant expenditure | D90: Supporting Table SC7(1)
A91: S71N | B91: =D91&"Monthly Budget Statement - councillor and staff benefits " -> Supporting Table SC8 Monthly Budget Statement - councillor and staff benefits | D91: Supporting Table SC8
A92: S71O | B92: =D92&"Monthly Budget Statement - actuals and revised targets for cash receipts" -> Supporting Table SC9 Monthly Budget Statement - actuals and revised targets for cash receipts | D92: Supporting Table SC9
A93: S71P | B93: =IF(Consolques="YES",E93,F93) -> NOT REQUIRED - municipality does not have entities or this is the parent municipality's budget | D93: Supporting Table SC10 | E93: =D93&"Monthly Budget Statement - Parent Municipality Financial Performance (revenue and expenditure) " -> Supporting Table SC10 Monthly Budget Statement - Parent Municipality Financial Performance (revenue and expenditure) | F93: NOT REQUIRED - municipality does not have entities or this is the parent municipality's budget
A94: S71Q | B94: NOT REQUIRED - municipality does not have entities or this is the parent municipality's budget | D94: Supporting Table SC11 | E94: =D94&"Monthly Budget Statement - summary of municipal entities" -> Supporting Table SC11 Monthly Budget Statement - summary of municipal entities | F94: NOT REQUIRED - municipality does not have entities or this is the parent municipality's budget
A95: S71R | B95: Supporting Table SC12 Monthly Budget Statement - capital expenditure trend | D95: Supporting Table SC12 | E95: =D95&"Consolidated Monthly Budget Statement - capital expenditure trend " -> Supporting Table SC12 Consolidated Monthly Budget Statement - capital expenditure trend | F95: =D95&"Monthly Budget Statement - capital expenditure trend" -> Supporting Table SC12 Monthly Budget Statement - capital expenditure trend
A96: S71Sa | B96: Supporting Table SC13a Monthly Budget Statement - capital expenditure on new assets by asset class | D96: Supporting Table SC13a | E96: =D96&"Consolidated Monthly Budget Statement - capital expenditure on new assets by asset class" -> Supporting Table SC13a Consolidated Monthly Budget Statement - capital expenditure on new assets by asset class | F96: =D96&"Monthly Budget Statement - capital expenditure on new assets by asset class" -> Supporting Table SC13a Monthly Budget Statement - capital expenditure on new assets by asset class
A97: S71Sb | B97: Supporting Table SC13b Monthly Budget Statement - capital expenditure on renewal of existing assets by asset class | D97: Supporting Table SC13b | E97: =D97&"Consolidated Monthly Budget Statement - capital expenditure on renewal of existing assets by asset class" -> Supporting Table SC13b Consolidated Monthly Budget Statement - capital expenditure on renewal of existing assets by asset class | F97: =D97&"Monthly Budget Statement - capital expenditure on renewal of existing assets by asset class" -> Supporting Table SC13b Monthly Budget Statement - capital expenditure on renewal of existing assets by asset class
A98: S71Sc | B98: Supporting Table SC13c Monthly Budget Statement - expenditure on repairs and maintenance by asset class | D98: Supporting Table SC13c | E98: =D98&"Consolidated Monthly Budget Statement - expenditure on repairs and maintenance by asset class" -> Supporting Table SC13c Consolidated Monthly Budget Statement - expenditure on repairs and maintenance by asset class | F98: =D98&"Monthly Budget Statement - expenditure on repairs and maintenance by asset class" -> Supporting Table SC13c Monthly Budget Statement - expenditure on repairs and maintenance by asset class
A99: S71Sd | B99: Supporting Table SC13d Monthly Budget Statement - depreciation by asset class | D99: Supporting Table SC13d | E99: =D99&"Consolidated Monthly Budget Statement - depreciation by asset class" -> Supporting Table SC13d Consolidated Monthly Budget Statement - depreciation by asset class | F99: =D99&"Monthly Budget Statement - depreciation by asset class" -> Supporting Table SC13d Monthly Budget Statement - depreciation by asset class
A100: S71Se | B100: =IF(Consolques="YES",E100,F100) -> Supporting Table SC13e Monthly Budget Statement - capital expenditure on upgrading of existing assets by asset class | D100: Supporting Table SC13e | E100: =D100&"Consolidated Monthly Budget Statement - capital expenditure on upgrading of existing assets by asset class" -> Supporting Table SC13e Consolidated Monthly Budget Statement - capital expenditure on upgrading of existing assets by asset class | F100: =D100&"Monthly Budget Statement - capital expenditure on upgrading of existing assets by asset class" -> Supporting Table SC13e Monthly Budget Statement - capital expenditure on upgrading of existing assets by asset class
B101: s71 charts listing
B102: =D102&Head2A&" Capital Expenditure Monthly Trend: actual v target" -> Chart C1 2021/22 Capital Expenditure Monthly Trend: actual v target | D102: Chart C1
B103: =D103&Head2A&" Capital Expenditure: YTD actual v YTD target" -> Chart C2 2021/22 Capital Expenditure: YTD actual v YTD target | D103: Chart C2
B104: =D104&"Aged Consumer Debtors Analysis" -> Chart C3 Aged Consumer Debtors Analysis | D104: Chart C3
B105: =D105&"Consumer Debtors (total by Debtor Customer Category)" -> Chart C4 Consumer Debtors (total by Debtor Customer Category) | D105: Chart C4
B106: =D106&"Aged Creditors Analysis" -> Chart C5 Aged Creditors Analysis | D106: Chart C5
A107: S71T | B107: =D107&" Monthly Budget Statement - Expenditure against approved rollovers" -> Supporting Table SC7(2) Monthly Budget Statement - Expenditure against approved rollovers | D107: Supporting Table SC7(2)

Sheet Lookup and lists (hidden)
A1: Description | B1: 2013 | C1: 2014 | D1: 2015 | E1: 2016 | F1: 2017 | G1: 2018 | H1: 2019 | I1: 2020 | J1: 2021 | K1: 2022 | L1: 2023 | M1: 2024 | N1: 2025 | O1: 2026 | Q1: Grants: | R1: National - opex | S1: Provincial - opex | T1: National - capex | U1: Provincial - capex | V1: YESNO
A2: ='Template names'!C2 -> Prior year -1 | B2: =B1-1&"/"&RIGHT(B1,2)-0 -> 2012/13 | C2: =C1-1&"/"&RIGHT(C1,2)-0 -> 2013/14 | D2: =D1-1&"/"&RIGHT(D1,2)-0 -> 2014/15 | E2: =E1-1&"/"&RIGHT(E1,2)-0 -> 2015/16 | F2: =F1-1&"/"&RIGHT(F1,2)-0 -> 2016/17 | G2: 2017/18 | H2: 2018/19 | I2: 2019/20 | J2: 2020/21 | K2: 2021/22 | L2: 2022/23 | M2: 2023/24 | N2: 2024/25 | O2: 2025/26 | R2: Local Government Equitable Share | S2: Health subsidy | T2: Municipal Infrastructure Grant (MIG) | U2: Agriculture | V2: Yes
A3: ='Template names'!C5 -> MTREF header name | B3: =B1&"/"&RIGHT(B1,2)+1&" Medium Term Revenue & Expenditure Framework" -> 2013/14 Medium Term Revenue & Expenditure Framework | C3: =C1&"/"&RIGHT(C1,2)+1&" Medium Term Revenue & Expenditure Framework" -> 2014/15 Medium Term Revenue & Expenditure Framework | D3: =D1&"/"&RIGHT(D1,2)+1&" Medium Term Revenue & Expenditure Framework" -> 2015/16 Medium Term Revenue & Expenditure Framework | E3: =E1&"/"&RIGHT(E1,2)+1&" Medium Term Revenue & Expenditure Framework" -> 2016/17 Medium Term Revenue & Expenditure Framework | F3: =F1&"/"&RIGHT(F1,2)+1&" Medium Term Revenue & Expenditure Framework" -> 2017/18 Medium Term Revenue & Expenditure Framework | G3: 2018/19 Medium Term Revenue & Expenditure Framework | H3: 2019/20 Medium Term Revenue & Expenditure Framework | I3: 2020/21 Medium Term Revenue & Expenditure Framework | J3: 2021/22 Medium Term Revenue & Expenditure Framework | K3: 2022/23 Medium Term Revenue & Expenditure Framework | L3: 2023/24 Medium Term Revenue & Expenditure Framework | M3: 2024/25 Medium Term Revenue & Expenditure Framework | N3: 2025/26 Medium Term Revenue & Expenditure Framework | O3: 2026/27 Medium Term Revenue & Expenditure Framework | R3: RSC Levy Replacement | S3: Ambulance subsidy | T3: Public Transport and Systems | U3: Education | V3: No
A4: ='Template names'!C4 -> Approved budget year | B4: =B1&"/"&RIGHT(B1,2)+1 -> 2013/14 | C4: =C1&"/"&RIGHT(C1,2)+1 -> 2014/15 | D4: =D1&"/"&RIGHT(D1,2)+1 -> 2015/16 | E4: =E1&"/"&RIGHT(E1,2)+1 -> 2016/17 | F4: =F1&"/"&RIGHT(F1,2)+1 -> 2017/18 | G4: 2018/19 | H4: 2019/20 | I4: 2020/21 | J4: 2021/22 | K4: 2022/23 | L4: 2023/24 | M4: 2024/25 | N4: 2025/26 | O4: 2026/27 | R4: Finance Management | S4: Housing | T4: Rural Transport Services and Infrastructure | U4: Health
A5: ='Template names'!C12 -> 1st year of MTREF | B5: ="Budget Year "&B1&"/"&RIGHT(B1,2)+1 -> Budget Year 2013/14 | C5: ="Budget Year "&C1&"/"&RIGHT(C1,2)+1 -> Budget Year 2014/15 | D5: ="Budget Year "&D1&"/"&RIGHT(D1,2)+1 -> Budget Year 2015/16 | E5: ="Budget Year "&E1&"/"&RIGHT(E1,2)+1 -> Budget Year 2016/17 | F5: ="Budget Year "&F1&"/"&RIGHT(F1,2)+1 -> Budget Year 2017/18 | G5: Budget Year 2018/19 | H5: Budget Year 2019/20 | I5: Budget Year 2020/21 | J5: Budget Year 2021/22 | K5: Budget Year 2022/23 | L5: Budget Year 2023/24 | M5: Budget Year 2024/25 | N5: Budget Year 2025/26 | O5: Budget Year 2026/27 | R5: Municipal Systems Improvement | S5: Sport and Recreation | T5: Regional Bulk Infrastructure | U5: Housing and Local Government
A6: ='Template names'!C13 -> 2nd year of MTREF | B6: ="Budget Year +1 "&B1+1&"/"&RIGHT(B1,2)+2 -> Budget Year +1 2014/15 | C6: ="Budget Year +1 "&C1+1&"/"&RIGHT(C1,2)+2 -> Budget Year +1 2015/16 | D6: ="Budget Year +1 "&D1+1&"/"&RIGHT(D1,2)+2 -> Budget Year +1 2016/17 | E6: ="Budget Year +1 "&E1+1&"/"&RIGHT(E1,2)+2 -> Budget Year +1 2017/18 | F6: ="Budget Year +1 "&F1+1&"/"&RIGHT(F1,2)+2 -> Budget Year +1 2018/19 | G6: Budget Year +1 2019/20 | H6: Budget Year +1 2020/21 | I6: Budget Year +1 2021/22 | J6: Budget Year +1 2022/23 | K6: Budget Year +1 2023/24 | L6: Budget Year +1 2024/25 | M6: Budget Year +1 2025/26 | N6: Budget Year +1 2026/27 | O6: Budget Year +1 2027/28 | R6: Water Services Operating Subsidy | T6: Rural Households Infrastructure | U6: Other Departments
A7: ='Template names'!C14 -> 3rd year of MTREF | B7: ="Budget Year +2 "&B1+2&"/"&RIGHT(B1,2)+3 -> Budget Year +2 2015/16 | C7: ="Budget Year +2 "&C1+2&"/"&RIGHT(C1,2)+3 -> Budget Year +2 2016/17 | D7: ="Budget Year +2 "&D1+2&"/"&RIGHT(D1,2)+3 -> Budget Year +2 2017/18 | E7: ="Budget Year +2 "&E1+2&"/"&RIGHT(E1,2)+3 -> Budget Year +2 2018/19 | F7: ="Budget Year +2 "&F1+2&"/"&RIGHT(F1,2)+3 -> Budget Year +2 2019/20 | G7: Budget Year +2 2020/21 | H7: Budget Year +2 2021/22 | I7: Budget Year +2 2022/23 | J7: Budget Year +2 2023/24 | K7: Budget Year +2 2024/25 | L7: Budget Year +2 2025/26 | M7: Budget Year +2 2026/27 | N7: Budget Year +2 2027/28 | O7: Budget Year +2 2028/29 | R7: Energy Efficiency and Demand Management | T7: Neighbourhood Development Partnership | U7: Public Works, Roads, Transport
A8: NOTE: This sheet should not be directly amended - select headings from sheet 'S' | R8: Integrated National Electrification Programme | T8: 2010 FIFA World Cup Stadiums Development | U8: Sport and Recreation
R9: Municipal Drought Relief
R10: 2010 FIFA World Cup Operating
R11: Electricity Demand Side Management
R12: EPWP Incentive
A26: Name link | B26: 140
A27: Name of Muni | B27: =INDEX(B28:B311,B26,1) -> LIM351 Blouberg
B28: Choose name from list | C28: Set name on 'Instructions' sheet
B29: BUF Buffalo City | C29: EC EASTERN CAPE
B30: NMA Nelson Mandela Bay | C30: EC EASTERN CAPE
B31: EC101 Dr Beyers Naude | C31: EC EASTERN CAPE
B32: EC102 Blue Crane Route | C32: EC EASTERN CAPE
B33: EC104 Makana | C33: EC EASTERN CAPE
B34: EC105 Ndlambe | C34: EC EASTERN CAPE
B35: EC106 Sundays River Valley | C35: EC EASTERN CAPE
B36: EC108 Kouga | C36: EC EASTERN CAPE
B37: EC109 Kou-Kamma | C37: EC EASTERN CAPE
B38: DC10 Sarah Baartman | C38: EC EASTERN CAPE
B39: EC121 Mbhashe | C39: EC EASTERN CAPE
B40: EC122 Mnquma | C40: EC EASTERN CAPE
B41: EC123 Great Kei | C41: EC EASTERN CAPE
B42: EC124 Amahlathi | C42: EC EASTERN CAPE
B43: EC126 Ngqushwa | C43: EC EASTERN CAPE
B44: EC129 Raymond Mhlaba | C44: EC EASTERN CAPE
B45: DC12 Amathole | C45: EC EASTERN CAPE
B46: EC131 Inxuba Yethemba | C46: EC EASTERN CAPE
B47: EC135 Intsika Yethu | C47: EC EASTERN CAPE
B48: EC136 Emalahleni (Ec) | C48: EC EASTERN CAPE
B49: EC137 Engcobo | C49: EC EASTERN CAPE
B50: EC138 Sakhisizwe | C50: EC EASTERN CAPE
B51: EC139 Enoch Mgijima | C51: EC EASTERN CAPE
B52: DC13 Chris Hani | C52: EC EASTERN CAPE
B53: EC141 Elundini | C53: EC EASTERN CAPE
B54: EC142 Senqu | C54: EC EASTERN CAPE
B55: EC145 Walter Sisulu | C55: EC EASTERN CAPE
B56: DC14 Joe Gqabi | C56: EC EASTERN CAPE
B57: EC153 Ngquza Hills | C57: EC EASTERN CAPE
B58: EC154 Port St Johns | C58: EC EASTERN CAPE
B59: EC155 Nyandeni | C59: EC EASTERN CAPE
B60: EC156 Mhlontlo | C60: EC EASTERN CAPE
B61: EC157 King Sabata Dalindyebo | C61: EC EASTERN CAPE
B62: DC15 O .R. Tambo | C62: EC EASTERN CAPE
B63: EC441 Matatiele | C63: EC EASTERN CAPE
B64: EC442 Umzimvubu | C64: EC EASTERN CAPE
B65: EC443 Winnie Madikizela Mandela | C65: EC EASTERN CAPE
B66: EC444 Ntabankulu | C66: EC EASTERN CAPE
B67: DC44 Alfred Nzo | C67: EC EASTERN CAPE
B68: MAN Mangaung | C68: FS FREE STATE
B69: FS161 Letsemeng | C69: FS FREE STATE
B70: FS162 Kopanong | C70: FS FREE STATE
B71: FS163 Mohokare | C71: FS FREE STATE
B72: DC16 Xhariep | C72: FS FREE STATE
B73: FS181 Masilonyana | C73: FS FREE STATE
B74: FS182 Tokologo | C74: FS FREE STATE
B75: FS183 Tswelopele | C75: FS FREE STATE
B76: FS184 Matjhabeng | C76: FS FREE STATE
B77: FS185 Nala | C77: FS FREE STATE
B78: DC18 Lejweleputswa | C78: FS FREE STATE
B79: FS191 Setsoto | C79: FS FREE STATE
B80: FS192 Dihlabeng | C80: FS FREE STATE
B81: FS193 Nketoana | C81: FS FREE STATE
B82: FS194 Maluti-a-Phofung | C82: FS FREE STATE
B83: FS195 Phumelela | C83: FS FREE STATE
B84: FS196 Mantsopa | C84: FS FREE STATE
B85: DC19 Thabo Mofutsanyana | C85: FS FREE STATE
B86: FS201 Moqhaka | C86: FS FREE STATE
B87: FS203 Ngwathe | C87: FS FREE STATE
B88: FS204 Metsimaholo | C88: FS FREE STATE
B89: FS205 Mafube | C89: FS FREE STATE
B90: DC20 Fezile Dabi | C90: FS FREE STATE
B91: EKU City of Ekurhuleni | C91: GT GAUTENG
B92: JHB City Of Johannesburg | C92: GT GAUTENG
B93: TSH City Of Tshwane | C93: GT GAUTENG
B94: GT421 Emfuleni | C94: GT GAUTENG
B95: GT422 Midvaal | C95: GT GAUTENG
B96: GT423 Lesedi | C96: GT GAUTENG
B97: DC42 Sedibeng | C97: GT GAUTENG
B98: GT481 Mogale City | C98: GT GAUTENG
B99: GT484 Merafong City | C99: GT GAUTENG
B100: GT485 Rand West City | C100: GT GAUTENG
B101: DC48 West Rand | C101: GT GAUTENG
B102: ETH eThekwini | C102: KZN KWAZULU-NATAL
B103: KZN212 Umdoni | C103: KZN KWAZULU-NATAL
B104: KZN213 Umzumbe | C104: KZN KWAZULU-NATAL
B105: KZN214 uMuziwabantu | C105: KZN KWAZULU-NATAL
B106: KZN216 Ray Nkonyeni | C106: KZN KWAZULU-NATAL
B107: DC21 Ugu | C107: KZN KWAZULU-NATAL
B108: KZN221 uMshwathi | C108: KZN KWAZULU-NATAL
B109: KZN222 uMngeni | C109: KZN KWAZULU-NATAL
B110: KZN223 Mpofana | C110: KZN KWAZULU-NATAL
B111: KZN224 Impendle | C111: KZN KWAZULU-NATAL
B112: KZN225 Msunduzi | C112: KZN KWAZULU-NATAL
B113: KZN226 Mkhambathini | C113: KZN KWAZULU-NATAL
B114: KZN227 Richmond | C114: KZN KWAZULU-NATAL
B115: DC22 uMgungundlovu | C115: KZN KWAZULU-NATAL
B116: KZN235 Okhahlamba | C116: KZN KWAZULU-NATAL
B117: KZN237 Inkosi Langalibalele | C117: KZN KWAZULU-NATAL
B118: KZN238 Alfred Duma | C118: KZN KWAZULU-NATAL
B119: DC23 Uthukela | C119: KZN KWAZULU-NATAL
B120: KZN241 Endumeni | C120: KZN KWAZULU-NATAL
B121: KZN242 Nquthu | C121: KZN KWAZULU-NATAL
B122: KZN244 Msinga | C122: KZN KWAZULU-NATAL
B123: KZN245 Umvoti | C123: KZN KWAZULU-NATAL
B124: DC24 Umzinyathi | C124: KZN KWAZULU-NATAL
B125: KZN252 Newcastle | C125: KZN KWAZULU-NATAL
B126: KZN253 Emadlangeni | C126: KZN KWAZULU-NATAL
B127: KZN254 Dannhauser | C127: KZN KWAZULU-NATAL
B128: DC25 Amajuba | C128: KZN KWAZULU-NATAL
B129: KZN261 eDumbe | C129: KZN KWAZULU-NATAL
B130: KZN262 uPhongolo | C130: KZN KWAZULU-NATAL
B131: KZN263 Abaqulusi | C131: KZN KWAZULU-NATAL
B132: KZN265 Nongoma | C132: KZN KWAZULU-NATAL
B133: KZN266 Ulundi | C133: KZN KWAZULU-NATAL
B134: DC26 Zululand | C134: KZN KWAZULU-NATAL
B135: KZN271 Umhlabuyalingana | C135: KZN KWAZULU-NATAL
B136: KZN272 Jozini | C136: KZN KWAZULU-NATAL
B137: KZN275 Mtubatuba | C137: KZN KWAZULU-NATAL
B138: KZN276 Hlabisa Big Five | C138: KZN KWAZULU-NATAL
B139: DC27 Umkhanyakude | C139: KZN KWAZULU-NATAL
B140: KZN281 Mfolozi | C140: KZN KWAZULU-NATAL
B141: KZN282 uMhlathuze | C141: KZN KWAZULU-NATAL
B142: KZN284 uMlalazi | C142: KZN KWAZULU-NATAL
B143: KZN285 Mthonjaneni | C143: KZN KWAZULU-NATAL
B144: KZN286 Nkandla | C144: KZN KWAZULU-NATAL
B145: DC28 King Cetshwayo | C145: KZN KWAZULU-NATAL
B146: KZN291 Mandeni | C146: KZN KWAZULU-NATAL
B147: KZN292 KwaDukuza | C147: KZN KWAZULU-NATAL
B148: KZN293 Ndwedwe | C148: KZN KWAZULU-NATAL
B149: KZN294 Maphumulo | C149: KZN KWAZULU-NATAL
B150: DC29 iLembe | C150: KZN KWAZULU-NATAL
B151: KZN433 Greater Kokstad | C151: KZN KWAZULU-NATAL
B152: KZN434 Ubuhlebezwe | C152: KZN KWAZULU-NATAL
B153: KZN435 Umzimkhulu | C153: KZN KWAZULU-NATAL
B154: KZN436 Dr Nkosazana Dlamini Zuma | C154: KZN KWAZULU-NATAL
B155: DC43 Harry Gwala | C155: KZN KWAZULU-NATAL
B156: LIM331 Greater Giyani | C156: LIM LIMPOPO
B157: LIM332 Greater Letaba | C157: LIM LIMPOPO
B158: LIM333 Greater Tzaneen | C158: LIM LIMPOPO
B159: LIM334 Ba-Phalaborwa | C159: LIM LIMPOPO
B160: LIM335 Maruleng | C160: LIM LIMPOPO
B161: DC33 Mopani | C161: LIM LIMPOPO
B162: LIM341 Musina | C162: LIM LIMPOPO
B163: LIM343 Thulamela | C163: LIM LIMPOPO
B164: LIM344 Makhado | C164: LIM LIMPOPO
B165: LIM345 Collins Chabane | C165: LIM LIMPOPO
B166: DC34 Vhembe | C166: LIM LIMPOPO
B167: LIM351 Blouberg | C167: LIM LIMPOPO
B168: LIM353 Molemole | C168: LIM LIMPOPO
B169: LIM354 Polokwane | C169: LIM LIMPOPO
B170: LIM355 Lepelle-Nkumpi | C170: LIM LIMPOPO
B171: DC35 Capricorn | C171: LIM LIMPOPO
B172: LIM361 Thabazimbi | C172: LIM LIMPOPO
B173: LIM362 Lephalale | C173: LIM LIMPOPO
B174: LIM366 Bela Bela | C174: LIM LIMPOPO
B175: LIM367 Mogalakwena | C175: LIM LIMPOPO
B176: LIM368 Modimolle-Mookgopong | C176: LIM LIMPOPO
B177: DC36 Waterberg | C177: LIM LIMPOPO
B178: LIM471 Ephraim Mogale | C178: LIM LIMPOPO
B179: LIM472 Elias Motsoaledi | C179: LIM LIMPOPO
B180: LIM473 Makhuduthamaga | C180: LIM LIMPOPO
B181: LIM476 Tubatse Fetakgomo | C181: LIM LIMPOPO
B182: DC47 Sekhukhune | C182: LIM LIMPOPO
B183: MP301 Albert Luthuli | C183: MP MPUMALANGA
B184: MP302 Msukaligwa | C184: MP MPUMALANGA
B185: MP303 Mkhondo | C185: MP MPUMALANGA
B186: MP304 Pixley Ka Seme (MP) | C186: MP MPUMALANGA
B187: MP305 Lekwa | C187: MP MPUMALANGA
B188: MP306 Dipaleseng | C188: MP MPUMALANGA
B189: MP307 Govan Mbeki | C189: MP MPUMALANGA
B190: DC30 Gert Sibande | C190: MP MPUMALANGA
B191: MP311 Victor Khanye | C191: MP MPUMALANGA
B192: MP312 Emalahleni (Mp) | C192: MP MPUMALANGA
B193: MP313 Steve Tshwete | C193: MP MPUMALANGA
B194: MP314 Emakhazeni | C194: MP MPUMALANGA
B195: MP315 Thembisile Hani | C195: MP MPUMALANGA
B196: MP316 Dr J.S. Moroka | C196: MP MPUMALANGA
B197: DC31 Nkangala | C197: MP MPUMALANGA
B198: MP321 Thaba Chweu | C198: MP MPUMALANGA
B199: MP324 Nkomazi | C199: MP MPUMALANGA
B200: MP325 Bushbuckridge | C200: MP MPUMALANGA
B201: MP326 City of Mbombela | C201: MP MPUMALANGA
B202: DC32 Ehlanzeni | C202: MP MPUMALANGA
B203: NC451 Joe Morolong | C203: NC NORTHERN CAPE
B204: NC452 Ga-Segonyana | C204: NC NORTHERN CAPE
B205: NC453 Gamagara | C205: NC NORTHERN CAPE
B206: DC45 John Taolo Gaetsewe | C206: NC NORTHERN CAPE
B207: NC061 Richtersveld | C207: NC NORTHERN CAPE
B208: NC062 Nama Khoi | C208: NC NORTHERN CAPE
B209: NC064 Kamiesberg | C209: NC NORTHERN CAPE
B210: NC065 Hantam | C210: NC NORTHERN CAPE
B211: NC066 Karoo Hoogland | C211: NC NORTHERN CAPE
B212: NC067 Khai-Ma | C212: NC NORTHERN CAPE
B213: DC6 Namakwa | C213: NC NORTHERN CAPE
... 73 more rows

Sheet Org structure
A1: Organisational Structure Votes | C1: Organisational Structure Sub-Votes | E1: Display Sub-Votes
A2: =B2&" - "&C2 -> Vote 01 - Executive & Council | B2: Vote 01 | C2: Executive & Council
A3: =B4&" - "&C4 -> Vote 02 - Finance And Administration | B3: 01.1 | C3: Council General | D3: =CONCATENATE(B3, " - ", C3) -> 01.1 - Council General | E3: 01.1 - Council General
A4: =B6&" - "&C6 -> Vote 03 - Community Service | B4: Vote 02 | C4: Finance And Administration
A5: =B8&" - "&C8 -> Vote 04 - Public And Safety | B5: 02.1 | C5: Municipal Manager | D5: =CONCATENATE(B5, " - ", C5) -> 02.1 - Municipal Manager | E5: 02.1 - Municipal Manager
A6: =B10&" - "&C10 -> Vote 05 - Waste Management | B6: Vote 03 | C6: Community Service
A7: =B18&" - "&C18 -> Vote 06 - Roads Services | B7: 03.1 | C7: Finance Services Administration | D7: =CONCATENATE(B7, " - ", C7) -> 03.1 - Finance Services Administration | E7: 03.1 - Finance Services Administration
A8: =B33&" - "&C33 -> Vote 07 - Econominc Development And Planning | B8: Vote 04 | C8: Public And Safety
A9: =B36&" - "&C36 -> Vote 08 - | B9: 04.1 | C9: Corporate Services Administration | D9: =CONCATENATE(B9, " - ", C9) -> 04.1 - Corporate Services Administration | E9: 04.1 - Corporate Services Administration
A10: Vote 09 - | B10: Vote 05 | C10: Waste Management
A11: Vote 10 - | B11: 05.1 | C11: Technical Services Administration | D11: =CONCATENATE(B11, " - ", C11) -> 05.1 - Technical Services Administration | E11: 05.1 - Technical Services Administration
A12: Vote 11 - | B12: 05.2 | C12: Electrical Services | D12: 05.2 - Electrical Services | E12: 05.2 - Electrical Services
A13: Vote 12 - | B13: 05.3 | C13: Water Services | D13: 05.3 - Water Services | E13: 05.3 - Water Services
A14: Vote 13 - | B14: 05.4 | C14: Sanitation Services | D14: 05.4 - Sanitation Services | E14: 05.4 - Sanitation Services
A15: Vote 14 - | B15: 05.5 | C15: Roads Services | D15: 05.5 - Roads Services | E15: 05.5 - Roads Services
A16: Vote 15 - Other | B16: 05.6 | C16: Storm Water Services | D16: 05.6 - Storm Water Services | E16: 05.6 - Storm Water Services
B17: 05.7 | C17: Water Reporting Function | D17: 05.7 - Water Reporting Function | E17: 05.7 - Water Reporting Function
B18: Vote 06 | C18: Roads Services
B19: 06.1 | C19: Community Services Administration | D19: =CONCATENATE(B19, " - ", C19) -> 06.1 - Community Services Administration | E19: 06.1 - Community Services Administration
B20: 06.2 | C20: Traffic Services | D20: 06.2 - Traffic Services | E20: 06.2 - Traffic Services
B21: 06.3 | C21: Traffic Services | D21: 06.3 - Traffic Services | E21: 06.3 - Traffic Services
B22: 06.4 | C22: Libraries | D22: 06.4 - Libraries | E22: 06.4 - Libraries
B23: 06.5 | C23: Sport | D23: 06.5 - Sport | E23: 06.5 - Sport
B24: 06.6 | C24: Cemetery | D24: 06.6 - Cemetery | E24: 06.6 - Cemetery
B25: 06.7 | C25: Refuse | D25: 06.7 - Refuse | E25: 06.7 - Refuse
B26: 06.8 | C26: Pound Services | D26: 06.8 - Pound Services | E26: 06.8 - Pound Services
B27: 06.9 | C27: Pound Services | D27: 06.9 - Pound Services | E27: 06.9 - Pound Services
B28: 06.10 | C28: Satellite Offices | D28: 06.10 - Satellite Offices | E28: 06.10 - Satellite Offices
B29: 06.11 | C29: Alldays Offices | D29: 06.11 - Alldays Offices | E29: 06.11 - Alldays Offices
B30: 06.12 | C30: Eldorado Offices | D30: 06.12 - Eldorado Offices | E30: 06.12 - Eldorado Offices
B31: 06.13 | C31: Tolwe Offices | D31: 06.13 - Tolwe Offices | E31: 06.13 - Tolwe Offices
B32: 06.14 | C32: Senwabarwarna Offices | D32: 06.14 - Senwabarwarna Offices | E32: 06.14 - Senwabarwarna Offices
B33: Vote 07 | C33: Econominc Development And Planning
B34: 07.1 | C34: Project Management Unit | D34: =CONCATENATE(B34, " - ", C34) -> 07.1 - Project Management Unit | E34: 07.1 - Project Management Unit
B35: 07.2 | C35: Economic Development And Planning | D35: =CONCATENATE(B35, " - ", C35) -> 07.2 - Economic Development And Planning | E35: 07.2 - Economic Development And Planning
B36: Vote 08
B37: Vote 09
B38: Vote 10
B39: Vote 11
B40: Vote 12
B41: Vote 13
B42: Vote 14
B43: Vote 15 | C43: Other

Sheet Contacts
A1: =muni&" - "&" Contact Information" -> LIM351 Blouberg - Contact Information
A3: A. GENERAL INFORMATION
A4: Municipality | B4: =muni -> LIM351 Blouberg | C4: Set name on 'Instructions' sheet
A6: Grade | B6: 3 | C6: 1 Grade in terms of the Remuneration of Public Office Bearers Act.
A8: Province | B8: =IF(B4>" ",VLOOKUP(B4,'Lookup and lists'!B28:C311,2, FALSE)," ") -> LIM LIMPOPO
A10: Web Address | B10: www.blouberg.gov.za
A12: e-mail Address | B12: blou@blouberg.gov.za
A14: B. CONTACT INFORMATION
A15: Postal address:
A16: P.O. Box | B16: Box 1593
A17: City / Town | B17: Senwabarwana
A18: Postal Code | B18: 0790
A20: Street address
A21: Building | B21: 2nd Building
A22: Street No. & Name | B22: Senwabarwana/Dendron Road
A23: City / Town | B23: Senwabarwana
A24: Postal Code | B24: 0790
A26: General Contacts
A27: Telephone number | B27: 015 505 7100
A28: Fax number | B28: 015 505 0296
A30: C. POLITICAL LEADERSHIP
A31: Speaker: | C31: Secretary/PA to the Speaker:
A32: ID Number | C32: ID Number
A33: Title | B33: Mrs | C33: Title | D33: Mrs
A34: Name | B34: THAMAGA MN | C34: Name | D34: MALATJI PJ
A35: Telephone number | B35: 015 505 7117 | C35: Telephone number | D35: 015 505 7189
A36: Cell number | B36: 071 234 4190 | C36: Cell number | D36: 076 654 3873
A37: Fax number | B37: 015 505 0296 | C37: Fax number | D37: 105 505 0296
A38: E-mail address | B38: mariankholane@gmail.com | C38: E-mail address | D38: Malatjip@blouberg.gov.za
A40: Mayor/Executive Mayor: | C40: Secretary/PA to the Mayor/Executive Mayor:
A41: ID Number | C41: ID Number
A42: Title | B42: Mr | C42: Title | D42: Ms
A43: Name | B43: PHEEDI S | C43: Name | D43: MATLAPU M
A44: Telephone number | B44: 015 505 7191 | C44: Telephone number | D44: 015 505 7191
A45: Cell number | B45: 082 515 7596 | C45: Cell number | D45: 082 515 7596
A46: Fax number | B46: 015 505 0296 | C46: Fax number | D46: 015 505 0296
A47: E-mail address | B47: Masekapheedi3@gmail.com | C47: E-mail address | D47: matlapum@blouberg.gov.za
A49: Deputy Mayor/Executive Mayor: | C49: Secretary/PA to the Deputy Mayor/Executive Mayor:
A50: ID Number | C50: ID Number
A51: Title | C51: Title
A52: Name | C52: Name
A53: Telephone number | C53: Telephone number
A54: Cell number | C54: Cell number
A55: Fax number | C55: Fax number
A56: E-mail address | C56: E-mail address
A58: D. MANAGEMENT LEADERSHIP
A59: Municipal Manager: | C59: Secretary/PA to the Municipal Manager:
A60: ID Number | C60: ID Number | D60: 8402021376082
A61: Title | B61: Mr | C61: Title | D61: Mrs
A62: Name | B62: MACHABA M.J | C62: Name | D62: RAMOLOMO MS
A63: Telephone number | B63: 015 505 7163 | C63: Telephone number | D63: 015 505 7100/21
A64: Cell number | B64: 0825234435 | C64: Cell number | D64: 0786875828
A65: Fax number | B65: 015 505 0296 | C65: Fax number | D65: 015 505 0296
A66: E-mail address | B66: 825234435 | C66: E-mail address | D66: RamolomoM@blouberg.gov.za
A68: Chief Financial Officer | C68: Secretary/PA to the Chief Financial Officer
A69: ID Number | C69: ID Number
A70: Title | B70: Mr | C70: Title
A71: Name | B71: Mabote N.J | C71: Name
A72: Telephone number | B72: 015 505 7147 | C72: Telephone number
A73: Cell number | B73: 082 818 0008 | C73: Cell number
A74: Fax number | B74: 015 505 0296 | C74: Fax number
A75: E-mail address | B75: Mabotej@blouberg.gov.za | C75: E-mail address
A77: Official responsible for submitting financial information | C77: Official responsible for submitting financial information
A78: ID Number | B78: 8107260490086 | C78: ID Number
A79: Title | B79: Ms | C79: Title
A80: Name | B80: Riba M | C80: Name
A81: Telephone number | B81: 015 505 7156 | C81: Telephone number
A82: Cell number | B82: 083 561 9472 | C82: Cell number
A83: Fax number | B83: 015 505 0296 | C83: Fax number
A84: E-mail address | B84: Ribam@blouberg.gov.za | C84: E-mail address
A85: Official responsible for submitting financial information | C85: Official responsible for submitting financial information
A86: ID Number | C86: ID Number
A87: Title | C87: Title
A88: Name | C88: Name
A89: Telephone number | C89: Telephone number
A90: Cell number | C90: Cell number
A91: Fax number | C91: Fax number
A92: E-mail address | C92: E-mail address
A93: Official responsible for submitting financial information | C93: Official responsible for submitting financial information
A94: ID Number | C94: ID Number
A95: Title | C95: Title
A96: Name | C96: Name
A97: Telephone number | C97: Telephone number
A98: Cell number | C98: Cell number
A99: Fax number | C99: Fax number
A100: E-mail address | C100: E-mail address
A101: Official responsible for submitting financial information | C101: Official responsible for submitting financial information
A102: ID Number | C102: ID Number
A103: Title | C103: Title
A104: Name | C104: Name
A105: Telephone number | C105: Telephone number
A106: Cell number | C106: Cell number
A107: Fax number | C107: Fax number
A108: E-mail address | C108: E-mail address
A109: Official responsible for submitting financial information | C109: Official responsible for submitting financial information
A110: ID Number | C110: ID Number
A111: Title | C111: Title
A112: Name | C112: Name
A113: Telephone number | C113: Telephone number
A114: Cell number | C114: Cell number
A115: Fax number | C115: Fax number
A116: E-mail address | C116: E-mail address
A117: Official responsible for submitting financial information | C117: Official responsible for submitting financial information
A118: ID Number | C118: ID Number
A119: Title | C119: Title
A120: Name | C120: Name
A121: Telephone number | C121: Telephone number
A122: Cell number | C122: Cell number
A123: Fax number | C123: Fax number
A124: E-mail address | C124: E-mail address
A125: Official responsible for submitting financial information | C125: Official responsible for submitting financial information
A126: ID Number | C126: ID Number
A127: Title | C127: Title
A128: Name | C128: Name
A129: Telephone number | C129: Telephone number
A130: Cell number | C130: Cell number
A131: Fax number | C131: Fax number
A132: E-mail address | C132: E-mail address
A133: Official responsible for submitting financial information
A134: ID Number
A135: Title
A136: Name
A137: Telephone number
A138: Cell number
A139: Fax number
A140: E-mail address

Sheet C1-Sum
A1: =muni& " - "&s71sum& " - "&date -> LIM351 Blouberg - Table C1 Monthly Budget Statement Summary - M07 January
A2: =desc -> Description | B2: =Head1 -> 2020/21 | C2: =Head2 -> Budget Year 2021/22
B3: =Head5 -> Audited Outcome | C3: =Head6 -> Original Budget | D3: =Head7 -> Adjusted Budget | E3: =Head38 -> Monthly actual | F3: =Head39 -> YearTD actual | G3: =Head40 -> YearTD budget | H3: =Head41 -> YTD variance | I3: =Head41 -> YTD variance | J3: =Head8 -> Full Year Forecast
A4: R thousands | I4: %
A5: Financial Performance
A6: Property rates | B6: =SUM('C4-FinPerf RE'!C6:C6) -> 27729305.13 | C6: =SUM('C4-FinPerf RE'!D6:D6) -> 31243927 | D6: =SUM('C4-FinPerf RE'!E6:E6) -> 31243927 | E6: =SUM('C4-FinPerf RE'!F6:F6) -> 397804.47 | F6: =SUM('C4-FinPerf RE'!G6:G6) -> 27339133.92 | G6: =SUM('C4-FinPerf RE'!H6:H6) -> 18225571 | H6: =F6-G6 -> 9113562.92 | I6: =IF(H6=0,"",H6/G6) -> 0.5000426555 | J6: =SUM('C4-FinPerf RE'!K6:K6) -> 31243927
A7: Service charges | B7: =SUM('C4-FinPerf RE'!C7:C10) -> 30264179.35 | C7: =SUM('C4-FinPerf RE'!D7:D10) -> 42874945 | D7: =SUM('C4-FinPerf RE'!E7:E10) -> 42874945 | E7: =SUM('C4-FinPerf RE'!F7:F10) -> 3275940.09 | F7: =SUM('C4-FinPerf RE'!G7:G10) -> 19950272.54 | G7: =SUM('C4-FinPerf RE'!H7:H10) -> 25010370 | H7: =F7-G7 -> -5060097.46 | I7: =IF(H7=0,"",H7/G7) -> -0.2023199761 | J7: =SUM('C4-FinPerf RE'!K7:K10) -> 42874945
A8: Investment revenue | B8: ='C4-FinPerf RE'!C13 -> 1535693.45 | C8: ='C4-FinPerf RE'!D13 -> 1910120 | D8: ='C4-FinPerf RE'!E13 -> 1910120 | E8: ='C4-FinPerf RE'!F13 -> 1.94 | F8: ='C4-FinPerf RE'!G13 -> 489898.5 | G8: ='C4-FinPerf RE'!H13 -> 1114232 | H8: =F8-G8 -> -624333.5 | I8: =IF(H8=0,"",H8/G8) -> -0.5603263055 | J8: ='C4-FinPerf RE'!K13 -> 1910120
A9: Transfers and subsidies | B9: ='C4-FinPerf RE'!C19 -> 239282517.3 | C9: ='C4-FinPerf RE'!D19 -> 207281000 | D9: ='C4-FinPerf RE'!E19 -> 214181000 | E9: ='C4-FinPerf RE'!F19 -> 0 | F9: ='C4-FinPerf RE'!G19 -> 154701112 | G9: ='C4-FinPerf RE'!H19 -> 120626412 | H9: =F9-G9 -> 34074700 | I9: =IF(H9=0,"",H9/G9) -> 0.2824812529 | J9: ='C4-FinPerf RE'!K19 -> 214181000
A10: Other own revenue | B10: ='C4-FinPerf RE'!C12+'C4-FinPerf RE'!C14+'C4-FinPerf RE'!C15+'C4-FinPerf RE'!C16+'C4-FinPerf RE'!C17+'C4-FinPerf RE'!C18+'C4-FinPerf RE'!C20+'C4-FinPerf RE'!C21 -> 7329720.1 | C10: ='C4-FinPerf RE'!D12+'C4-FinPerf RE'!D14+'C4-FinPerf RE'!D15+'C4-FinPerf RE'!D16+'C4-FinPerf RE'!D17+'C4-FinPerf RE'!D18+'C4-FinPerf RE'!D20+'C4-FinPerf RE'!D21 -> 26206840 | D10: ='C4-FinPerf RE'!E12+'C4-FinPerf RE'!E14+'C4-FinPerf RE'!E15+'C4-FinPerf RE'!E16+'C4-FinPerf RE'!E17+'C4-FinPerf RE'!E18+'C4-FinPerf RE'!E20+'C4-FinPerf RE'!E21 -> 26206840 | E10: ='C4-FinPerf RE'!F12+'C4-FinPerf RE'!F14+'C4-FinPerf RE'!F15+'C4-FinPerf RE'!F16+'C4-FinPerf RE'!F17+'C4-FinPerf RE'!F18+'C4-FinPerf RE'!F20+'C4-FinPerf RE'!F21 -> 882411.27 | F10: ='C4-FinPerf RE'!G12+'C4-FinPerf RE'!G14+'C4-FinPerf RE'!G15+'C4-FinPerf RE'!G16+'C4-FinPerf RE'!G17+'C4-FinPerf RE'!G18+'C4-FinPerf RE'!G20+'C4-FinPerf RE'!G21 -> 4205059.94 | G10: ='C4-FinPerf RE'!H12+'C4-FinPerf RE'!H14+'C4-FinPerf RE'!H15+'C4-FinPerf RE'!H16+'C4-FinPerf RE'!H17+'C4-FinPerf RE'!H18+'C4-FinPerf RE'!H20+'C4-FinPerf RE'!H21 -> 15287258 | H10: =F10-G10 -> -11082198.06 | I10: =IF(H10=0,"",H10/G10) -> -0.7249304002 | J10: ='C4-FinPerf RE'!K12+'C4-FinPerf RE'!K14+'C4-FinPerf RE'!K15+'C4-FinPerf RE'!K16+'C4-FinPerf RE'!K17+'C4-FinPerf RE'!K18+'C4-FinPerf RE'!K20+'C4-FinPerf RE'!K21 -> 26206840
A11: Total Revenue (excluding capital transfers and contributions) | B11: =SUM(B6:B10) -> 306141415.4 | C11: 309516832 | D11: 316416832 | E11: 4556157.77 | F11: 206685476.9 | G11: 180263843 | H11: =F11-G11 -> 26421633.9 | I11: =IF(H11=0,"",H11/G11) -> 0.1465720106 | J11: 316416832
A12: Employee costs | B12: ='C4-FinPerf RE'!C25 -> 115571613.6 | C12: ='C4-FinPerf RE'!D25 -> 133004351 | D12: ='C4-FinPerf RE'!E25 -> 133004351 | E12: ='C4-FinPerf RE'!F25 -> 9708441.77 | F12: ='C4-FinPerf RE'!G25 -> 67976055.36 | G12: ='C4-FinPerf RE'!H25 -> 77586348 | H12: -9610292.64 | I12: -0.1238657688 | J12: ='C4-FinPerf RE'!K25 -> 133004351
A13: Remuneration of Councillors | B13: ='C4-FinPerf RE'!C26 -> 16412060.03 | C13: ='C4-FinPerf RE'!D26 -> 18841061 | D13: ='C4-FinPerf RE'!E26 -> 18841061 | E13: ='C4-FinPerf RE'!F26 -> 1403472.66 | F13: ='C4-FinPerf RE'!G26 -> 9681126.32 | G13: ='C4-FinPerf RE'!H26 -> 10990693 | H13: -1309566.68 | I13: -0.1191523301 | J13: ='C4-FinPerf RE'!K26 -> 18841061
A14: Depreciation & asset impairment | B14: ='C4-FinPerf RE'!C28 -> 31622576.58 | C14: ='C4-FinPerf RE'!D28 -> 40140615 | D14: ='C4-FinPerf RE'!E28 -> 40140615 | E14: ='C4-FinPerf RE'!F28 -> 0 | F14: ='C4-FinPerf RE'!G28 -> 14676968.51 | G14: ='C4-FinPerf RE'!H28 -> 23415385 | H14: -8738416.49 | I14: -0.3731912369 | J14: ='C4-FinPerf RE'!K28 -> 40140615
A15: Finance charges | B15: ='C4-FinPerf RE'!C29 -> 0 | C15: ='C4-FinPerf RE'!D29 -> 0 | D15: ='C4-FinPerf RE'!E29 -> 0 | E15: ='C4-FinPerf RE'!F29 -> 0 | F15: ='C4-FinPerf RE'!G29 -> 0 | G15: ='C4-FinPerf RE'!H29 -> 0 | H15: 0 | J15: ='C4-FinPerf RE'!K29 -> 0
A16: Inventory consumed and bulk purchases | B16: =SUM('C4-FinPerf RE'!C30:C31) -> 38509027.35 | C16: =SUM('C4-FinPerf RE'!D30:D31) -> 45156000 | D16: =SUM('C4-FinPerf RE'!E30:E31) -> 45156000 | E16: =SUM('C4-FinPerf RE'!F30:F31) -> 4246584.23 | F16: =SUM('C4-FinPerf RE'!G30:G31) -> 30664872.71 | G16: =SUM('C4-FinPerf RE'!H30:H31) -> 26341014 | H16: 4323858.71 | I16: 0.1641492886 | J16: =SUM('C4-FinPerf RE'!K30:K31) -> 45156000
A17: Transfers and subsidies | B17: ='C4-FinPerf RE'!C33 -> 0 | C17: ='C4-FinPerf RE'!D33 -> 0 | D17: ='C4-FinPerf RE'!E33 -> 50000 | E17: ='C4-FinPerf RE'!F33 -> 13750 | F17: ='C4-FinPerf RE'!G33 -> 49860 | G17: ='C4-FinPerf RE'!H33 -> 27272.7 | H17: 22587.3 | I17: 0.8282018282 | J17: ='C4-FinPerf RE'!K33 -> 50000
A18: Other expenditure | B18: ='C4-FinPerf RE'!C36-SUM('C1-Sum'!B12:B17) -> 119966812.8 | C18: ='C4-FinPerf RE'!D36-SUM('C1-Sum'!C12:C17) -> 104379744 | D18: ='C4-FinPerf RE'!E36-SUM('C1-Sum'!D12:D17) -> 111229744 | E18: ='C4-FinPerf RE'!F36-SUM('C1-Sum'!E12:E17) -> 7071918.81 | F18: ='C4-FinPerf RE'!G36-SUM('C1-Sum'!F12:F17) -> 48491679.59 | G18: ='C4-FinPerf RE'!H36-SUM('C1-Sum'!G12:G17) -> 63448803.3 | H18: -14957123.71 | I18: -0.2357353162 | J18: ='C4-FinPerf RE'!K36-SUM('C1-Sum'!J12:J17) -> 111229744
A19: Total Expenditure | B19: =SUM(B12:B18) -> 322082090.3 | C19: 341521771 | D19: 348421771 | E19: 22444167.47 | F19: 171540562.5 | G19: 201809516 | H19: -30268953.51 | I19: -0.1499877415 | J19: =SUM(J12:J18) -> 348421771
A20: Surplus/(Deficit) | B20: =B11-B19 -> -15940674.98 | C20: -32004939 | D20: -32004939 | E20: -17888009.7 | F20: 35144914.41 | G20: -21545673 | H20: 56690587.41 | I20: -2.63118202 | J20: =J11-J19 -> -32004939
A21: ='C4-FinPerf RE'!A39 -> Transfers and subsidies - capital (monetary allocations) (National / Provincial and District) | B21: ='C4-FinPerf RE'!C39 -> 55896304.42 | C21: ='C4-FinPerf RE'!D39 -> 56764000 | D21: ='C4-FinPerf RE'!E39 -> 62764000 | E21: ='C4-FinPerf RE'!F39 -> 0 | F21: ='C4-FinPerf RE'!G39 -> 35085174.87 | G21: ='C4-FinPerf RE'!H39 -> 32862331 | H21: 2222843.87 | I21: 0.06764108943 | J21: ='C4-FinPerf RE'!K39 -> 62764000
A22: ='C4-FinPerf RE'!A40&" & "&'C4-FinPerf RE'!A41 -> Transfers and subsidies - capital (monetary allocations) (National / Provincial Departmental Agencies, Households, Non-profit Institutions, Private Enterprises, Public Corporatons, Higher Educational Institutions) & Transfers and subsidies - capital (in-kind - all) | B22: =SUM('C4-FinPerf RE'!C40:C41) -> 0 | C22: =SUM('C4-FinPerf RE'!D40:D41) -> 0 | D22: =SUM('C4-FinPerf RE'!E40:E41) -> 0 | E22: =SUM('C4-FinPerf RE'!F40:F41) -> 0 | F22: =SUM('C4-FinPerf RE'!G40:G41) -> 0 | G22: =SUM('C4-FinPerf RE'!H40:H41) -> 0 | H22: 0 | J22: =SUM('C4-FinPerf RE'!K40:K41) -> 0
A23: Surplus/(Deficit) after capital transfers & contributions | B23: =B20+B21+B22 -> 39955629.44 | C23: 24759061 | D23: 30759061 | E23: -17888009.7 | F23: 70230089.28 | G23: 11316658 | H23: 58913431.28 | I23: 5.205903658 | J23: =J20+J21+J22 -> 30759061
A24: Share of surplus/ (deficit) of associate | B24: ='C4-FinPerf RE'!C47 -> 0 | C24: ='C4-FinPerf RE'!D47 -> 0 | D24: ='C4-FinPerf RE'!E47 -> 0 | E24: ='C4-FinPerf RE'!F47 -> 0 | F24: ='C4-FinPerf RE'!G47 -> 0 | G24: ='C4-FinPerf RE'!H47 -> 0 | H24: 0 | J24: ='C4-FinPerf RE'!K47 -> 0
A25: Surplus/ (Deficit) for the year | B25: =B23+B24 -> 39955629.44 | C25: 24759061 | D25: 30759061 | E25: -17888009.7 | F25: 70230089.28 | G25: 11316658 | H25: 58913431.28 | I25: 5.205903658 | J25: =J23+J24 -> 30759061
A27: Capital expenditure & funds sources
A28: Capital expenditure | B28: ='C5-Capex'!C40 -> 57373360.37 | C28: ='C5-Capex'!D40 -> 68143915 | D28: ='C5-Capex'!E40 -> 74143915 | E28: ='C5-Capex'!F40 -> 682490.49 | F28: ='C5-Capex'!G40 -> 33830559.89 | G28: ='C5-Capex'!H40 -> 42000683 | H28: =F28-G28 -> -8170123.11 | I28: =IF(H28=0,"",H28/G28) -> -0.1945235774 | J28: ='C5-Capex'!K40 -> 74143915
A29: Capital transfers recognised | B29: ='C5-Capex'!C70 -> 47312568.13 | C29: ='C5-Capex'!D70 -> 56196360 | D29: ='C5-Capex'!E70 -> 62196360 | E29: ='C5-Capex'!F70 -> 0 | F29: ='C5-Capex'!G70 -> 30473626.84 | G29: ='C5-Capex'!H70 -> 35031224 | H29: -4557597.16 | I29: -0.1301009968 | J29: ='C5-Capex'!K70 -> 62196360
A31: Borrowing | B31: ='C5-Capex'!C72 -> 0 | C31: ='C5-Capex'!D72 -> 0 | D31: ='C5-Capex'!E72 -> 0 | E31: ='C5-Capex'!F72 -> 0 | F31: ='C5-Capex'!G72 -> 0 | G31: ='C5-Capex'!H72 -> 0 | H31: 0 | J31: ='C5-Capex'!K72 -> 0
A32: Internally generated funds | B32: ='C5-Capex'!C73 -> 10060792.24 | C32: ='C5-Capex'!D73 -> 11947555 | D32: ='C5-Capex'!E73 -> 11947555 | E32: ='C5-Capex'!F73 -> 682490.49 | F32: ='C5-Capex'!G73 -> 3356933.05 | G32: ='C5-Capex'!H73 -> 6969459 | H32: -3612525.95 | I32: -0.5183366385 | J32: ='C5-Capex'!K73 -> 11947555
A33: Total sources of capital funds | B33: =+B29+B31+B32 -> 57373360.37 | C33: 68143915 | D33: 74143915 | E33: 682490.49 | F33: 33830559.89 | G33: 42000683 | H33: -8170123.11 | I33: -0.1945235774 | J33: =+J29+J31+J32 -> 74143915
A35: Financial position
A36: Total current assets | B36: ='C6-FinPos'!C13 -> 150667980.5 | C36: ='C6-FinPos'!D13 -> 206389727 | D36: ='C6-FinPos'!E13 -> 206389727 | F36: ='C6-FinPos'!F13 -> 222585056.8 | J36: ='C6-FinPos'!G13 -> 206389727
A37: Total non current assets | B37: ='C6-FinPos'!C25 -> 999633828.5 | C37: ='C6-FinPos'!D25 -> 990644191 | D37: ='C6-FinPos'!E25 -> 996644191 | F37: ='C6-FinPos'!F25 -> 1018787420 | J37: ='C6-FinPos'!G25 -> 996644191
A38: Total current liabilities | B38: ='C6-FinPos'!C35 -> 104280883.3 | C38: ='C6-FinPos'!D35 -> 9445383 | D38: ='C6-FinPos'!E35 -> 9445383 | F38: ='C6-FinPos'!F35 -> 78694512.49 | J38: ='C6-FinPos'!G35 -> 9445383
A39: Total non current liabilities | B39: ='C6-FinPos'!C40 -> 23125990.21 | C39: ='C6-FinPos'!D40 -> 19940599 | D39: ='C6-FinPos'!E40 -> 19940599 | F39: ='C6-FinPos'!F40 -> 23125990.21 | J39: ='C6-FinPos'!G40 -> 19940599
A40: Community wealth/Equity | B40: ='C6-FinPos'!C48 -> 1077672366 | C40: ='C6-FinPos'!D48 -> 1133107323 | D40: ='C6-FinPos'!E48 -> 1133107323 | F40: ='C6-FinPos'!F48 -> 1113213845 | J40: ='C6-FinPos'!G48 -> 1133107323
A42: Cash flows
A43: Net cash from (used) operating | B43: ='C7-CFlow'!C18 -> 65506691.98 | C43: ='C7-CFlow'!D18 -> 70577328 | D43: ='C7-CFlow'!E18 -> 70577328 | E43: ='C7-CFlow'!F18 -> -10221018.64 | F43: ='C7-CFlow'!G18 -> 105661640.5 | G43: ='C7-CFlow'!H18 -> 41170108.14 | H43: =G43-F43 -> -64491532.35 | I43: =IF(H43=0,"",H43/G43) -> -1.566464973 | J43: ='C7-CFlow'!K18 -> 70577328
A44: Net cash from (used) investing | B44: ='C7-CFlow'!C28 -> -52108055.57 | C44: ='C7-CFlow'!D28 -> -68143915 | D44: ='C7-CFlow'!E28 -> -68143915 | E44: ='C7-CFlow'!F28 -> -682490.49 | F44: ='C7-CFlow'!G28 -> -33830559.89 | G44: ='C7-CFlow'!H28 -> -39750616.99 | H44: =G44-F44 -> -5920057.1 | I44: =IF(H44=0,"",H44/G44) -> 0.1489299424 | J44: ='C7-CFlow'!K28 -> -68143915
A45: Net cash from (used) financing | B45: ='C7-CFlow'!C37 -> 0 | C45: ='C7-CFlow'!D37 -> -8680.44 | D45: ='C7-CFlow'!E37 -> 0 | E45: ='C7-CFlow'!F37 -> 0 | F45: ='C7-CFlow'!G37 -> 8680.44 | G45: ='C7-CFlow'!H37 -> 0 | H45: =G45-F45 -> -8680.44 | I45: =IF(H45=0,"",H45/G45) ->  | J45: ='C7-CFlow'!K37 -> 0
A46: Cash/cash equivalents at the month/year end | B46: ='C7-CFlow'!C41 -> 54906396.8 | C46: ='C7-CFlow'!D41 -> 79532006.56 | D46: ='C7-CFlow'!E41 -> 79540687 | E46: ='C7-CFlow'!F41 -> 0 | F46: ='C7-CFlow'!G41 -> 113170363.9 | G46: ='C7-CFlow'!H41 -> 1419491.15 | H46: =G46-F46 -> -111750872.8 | I46: =IF(H46=0,"",H46/G46) -> -78.7260088 | J46: ='C7-CFlow'!K41 -> 2433413
A48: Debtors & creditors analysis | B48: ='SC3'!C3 -> 0-30 Days | C48: ='SC3'!D3 -> 31-60 Days | D48: ='SC3'!E3 -> 61-90 Days | E48: ='SC3'!F3 -> 91-120 Days | F48: ='SC3'!G3 -> 121-150 Dys | G48: ='SC3'!H3 -> 151-180 Dys | H48: ='SC3'!I3 -> 181 Dys-1 Yr | I48: ='SC3'!J3 -> Over 1Yr | J48: Total
A49: =LEFT('SC3'!A4,20) -> Debtors Age Analysis
A50: ='SC3'!A14 -> Total By Income Source | B50: ='SC3'!C14 -> 3840827.17 | C50: ='SC3'!D14 -> 1970887.91 | D50: ='SC3'!E14 -> 1997914.69 | E50: ='SC3'!F14 -> 1340263.21 | F50: ='SC3'!G14 -> 3499757.67 | G50: ='SC3'!H14 -> 24285853.65 | H50: ='SC3'!I14 -> 7897068.98 | I50: ='SC3'!J14 -> 136901106.6 | J50: ='SC3'!K14 -> 181733679.9
A51: =LEFT('SC4'!A5,22) -> Creditors Age Analysis
A52: Total Creditors | B52: ='SC4'!C15 -> 0 | C52: ='SC4'!D15 -> 0 | D52: ='SC4'!E15 -> 0 | E52: ='SC4'!F15 -> 0 | F52: ='SC4'!G15 -> 0 | G52: ='SC4'!H15 -> 0 | H52: ='SC4'!I15 -> 0 | I52: ='SC4'!J15 -> 0 | J52: ='SC4'!K15 -> 0

Sheet C2-FinPerf SC
A1: =muni& " - "&S71A& " - "&date -> LIM351 Blouberg - Table C2 Monthly Budget Statement - Financial Performance (functional classification) - M07 January
A2: =desc -> Description | B2: =head27 -> Ref | C2: =Head1 -> 2020/21 | D2: =Head2 -> Budget Year 2021/22
C3: =Head5 -> Audited Outcome | D3: =Head6 -> Original Budget | E3: =Head7 -> Adjusted Budget | F3: =Head38 -> Monthly actual | G3: =Head39 -> YearTD actual | H3: =Head40 -> YearTD budget | I3: =Head41 -> YTD variance | J3: =Head41 -> YTD variance | K3: =Head8 -> Full Year Forecast
A4: R thousands | B4: 1 | J4: %
A5: Revenue - Functional
A6: Governance and administration | C6: =SUM(C7:C9) -> 270453090.6 | D6: 243375582 | E6: 243375582 | F6: 677296.38 | G6: 183449799 | H6: 141968995 | I6: =G6-H6 -> 41480803.95 | J6: =IF(I6=0,"",I6/H6) -> 0.2921821342 | K6: =SUM(K7:K9) -> 243375582
A7: Executive and council | C7: ='C2C'!C7 -> 157764.34 | D7: ='C2C'!D7 -> 0 | E7: ='C2C'!E7 -> 0 | F7: ='C2C'!F7 -> 0 | G7: ='C2C'!G7 -> 0 | H7: ='C2C'!H7 -> 0 | I7: 0 | J7: =IF(I7=0,"",I7/H7) ->  | K7: ='C2C'!K7 -> 0
A8: Finance and administration | C8: ='C2C'!C10 -> 270295326.2 | D8: ='C2C'!D10 -> 243375582 | E8: ='C2C'!E10 -> 243375582 | F8: ='C2C'!F10 -> 677296.38 | G8: ='C2C'!G10 -> 183449799 | H8: ='C2C'!H10 -> 141968995 | I8: 41480803.95 | J8: 0.2921821342 | K8: ='C2C'!K10 -> 243375582
A9: Internal audit | C9: ='C2C'!C24 -> 0 | D9: ='C2C'!D24 -> 0 | E9: ='C2C'!E24 -> 0 | F9: ='C2C'!F24 -> 0 | G9: ='C2C'!G24 -> 0 | H9: ='C2C'!H24 -> 0 | I9: 0 | K9: ='C2C'!K24 -> 0
A10: Community and public safety | C10: =SUM(C11:C15) -> 3158312.65 | D10: 7089917 | E10: 7089917 | F10: 332617.31 | G10: 1375803.92 | H10: 4135775 | I10: -2759971.08 | J10: -0.6673407233 | K10: =SUM(K11:K15) -> 7089917
A11: Community and social services | C11: ='C2C'!C27 -> 0 | D11: ='C2C'!D27 -> 0 | E11: ='C2C'!E27 -> 0 | F11: ='C2C'!F27 -> 0 | G11: ='C2C'!G27 -> 0 | H11: ='C2C'!H27 -> 0 | I11: 0 | K11: ='C2C'!K27 -> 0
A12: Sport and recreation | C12: ='C2C'!C49 -> 0 | D12: ='C2C'!D49 -> 0 | E12: ='C2C'!E49 -> 0 | F12: ='C2C'!F49 -> 0 | G12: ='C2C'!G49 -> 0 | H12: ='C2C'!H49 -> 0 | I12: 0 | K12: ='C2C'!K49 -> 0
A13: Public safety | C13: ='C2C'!C55 -> 3158312.65 | D13: ='C2C'!D55 -> 7089917 | E13: ='C2C'!E55 -> 7089917 | F13: ='C2C'!F55 -> 332617.31 | G13: ='C2C'!G55 -> 1375803.92 | H13: ='C2C'!H55 -> 4135775 | I13: -2759971.08 | J13: -0.6673407233 | K13: ='C2C'!K55 -> 7089917
A14: Housing | C14: ='C2C'!C64 -> 0 | D14: ='C2C'!D64 -> 0 | E14: ='C2C'!E64 -> 0 | F14: ='C2C'!F64 -> 0 | G14: ='C2C'!G64 -> 0 | H14: ='C2C'!H64 -> 0 | I14: 0 | K14: ='C2C'!K64 -> 0
A15: Health | C15: ='C2C'!C67 -> 0 | D15: ='C2C'!D67 -> 0 | E15: ='C2C'!E67 -> 0 | F15: ='C2C'!F67 -> 0 | G15: ='C2C'!G67 -> 0 | H15: ='C2C'!H67 -> 0 | I15: 0 | K15: ='C2C'!K67 -> 0
A16: Economic and environmental services | C16: =SUM(C17:C19) -> 179917.97 | D16: 70073459 | E16: 82973459 | F16: 174013.29 | G16: 35388279.58 | H16: 40338678 | I16: -4950398.42 | J16: -0.1227208889 | K16: =SUM(K17:K19) -> 82973459
A17: Planning and development | C17: ='C2C'!C76 -> 179917.97 | D17: ='C2C'!D76 -> 70073459 | E17: ='C2C'!E76 -> 70073459 | F17: ='C2C'!F76 -> 174013.29 | G17: ='C2C'!G76 -> 35388279.58 | H17: ='C2C'!H76 -> 40876178 | I17: -5487898.42 | J17: -0.1342566426 | K17: ='C2C'!K76 -> 70073459
A18: Road transport | C18: ='C2C'!C87 -> 0 | D18: ='C2C'!D87 -> 0 | E18: ='C2C'!E87 -> 12900000 | F18: ='C2C'!F87 -> 0 | G18: ='C2C'!G87 -> 0 | H18: ='C2C'!H87 -> -537500 | I18: 537500 | J18: -1 | K18: ='C2C'!K87 -> 12900000
A19: Environmental protection | C19: ='C2C'!C92 -> 0 | D19: ='C2C'!D92 -> 0 | E19: ='C2C'!E92 -> 0 | F19: ='C2C'!F92 -> 0 | G19: ='C2C'!G92 -> 0 | H19: ='C2C'!H92 -> 0 | I19: 0 | K19: ='C2C'!K92 -> 0
A20: Trading services | C20: =SUM(C21:C24) -> 88246398.6 | D20: =SUM(D21:D24) -> 45741874 | E20: 45741874 | F20: 3372230.79 | G20: 21556769.32 | H20: 26682726 | I20: -5125956.68 | J20: -0.1921076835 | K20: =SUM(K21:K24) -> 45741874
A21: Energy sources | C21: ='C2C'!C100 -> 85160922.3 | D21: ='C2C'!D100 -> 42009847 | E21: ='C2C'!E100 -> 42009847 | F21: ='C2C'!F100 -> 2686431.1 | G21: ='C2C'!G100 -> 16979443.15 | H21: ='C2C'!H100 -> 24505726 | I21: =G21-H21 -> -7526282.85 | J21: -0.3071234392 | K21: ='C2C'!K100 -> 42009847
A22: Water management | C22: ='C2C'!C104 -> 2570.24 | D22: ='C2C'!D104 -> 0 | E22: ='C2C'!E104 -> 0 | F22: ='C2C'!F104 -> 373808.51 | G22: ='C2C'!G104 -> 1504574.38 | H22: ='C2C'!H104 -> 0 | I22: =G22-H22 -> 1504574.38 | K22: ='C2C'!K104 -> 0
A23: Waste water management | C23: ='C2C'!C108 -> 0 | D23: ='C2C'!D108 -> 0 | E23: ='C2C'!E108 -> 0 | F23: ='C2C'!F108 -> 144150.08 | G23: ='C2C'!G108 -> 771934.04 | H23: ='C2C'!H108 -> 0 | I23: =G23-H23 -> 771934.04 | K23: ='C2C'!K108 -> 0
A24: Waste management | C24: ='C2C'!C113 -> 3082906.06 | D24: ='C2C'!D113 -> 3732027 | E24: ='C2C'!E113 -> 3732027 | F24: ='C2C'!F113 -> 167841.1 | G24: ='C2C'!G113 -> 2300817.75 | H24: ='C2C'!H113 -> 2177000 | I24: =G24-H24 -> 123817.75 | J24: 0.05687540193 | K24: ='C2C'!K113 -> 3732027
A25: Other | B25: 4 | C25: ='C2C'!C118 -> 0 | D25: ='C2C'!D118 -> 0 | E25: ='C2C'!E118 -> 0 | F25: ='C2C'!F118 -> 0 | G25: ='C2C'!G118 -> 0 | H25: ='C2C'!H118 -> 0 | I25: =G25-H25 -> 0 | K25: ='C2C'!K118 -> 0
A26: Total Revenue - Functional | B26: 2 | C26: =C6+C10+C16+C20+C25 -> 362037719.8 | D26: =D6+D10+D16+D20+D25 -> 366280832 | E26: 379180832 | F26: 4556157.77 | G26: 241770651.8 | H26: 213126174 | I26: 28644477.77 | J26: 0.1344015014 | K26: =K6+K10+K16+K20+K25 -> 379180832
A28: Expenditure - Functional
A29: Governance and administration | C29: =SUM(C30:C32) -> 174963881.4 | D29: 173250448 | E29: 173250448 | F29: 10951729.38 | G29: 84717497.25 | H29: 101063256 | I29: =G29-H29 -> -16345758.75 | J29: =IF(I29=0,"",I29/H29) -> -0.1617378996 | K29: =SUM(K30:K32) -> 173250448
A30: Executive and council | C30: ='C2C'!C129 -> 61988781.69 | D30: ='C2C'!D129 -> 59563774 | E30: ='C2C'!E129 -> 59663774 | F30: ='C2C'!F129 -> 4176859.68 | G30: ='C2C'!G129 -> 36434736.27 | H30: ='C2C'!H129 -> 34790204.44 | I30: 1644531.83 | J30: =IF(I30=0,"",I30/H30) -> 0.04726996741 | K30: ='C2C'!K129 -> 59663774
A31: Finance and administration | C31: ='C2C'!C132 -> 112975099.7 | D31: ='C2C'!D132 -> 113686674 | E31: ='C2C'!E132 -> 113586674 | F31: ='C2C'!F132 -> 6774869.7 | G31: ='C2C'!G132 -> 48282760.98 | H31: ='C2C'!H132 -> 66273051.56 | I31: -17990290.58 | J31: -0.2714571029 | K31: ='C2C'!K132 -> 113586674
A32: Internal audit | C32: ='C2C'!C146 -> 0 | D32: ='C2C'!D146 -> 0 | E32: ='C2C'!E146 -> 0 | F32: ='C2C'!F146 -> 0 | G32: ='C2C'!G146 -> 0 | H32: ='C2C'!H146 -> 0 | I32: 0 | K32: ='C2C'!K146 -> 0
A33: Community and public safety | C33: =SUM(C34:C38) -> 17687741.82 | D33: 15812697 | E33: 15812697 | F33: 1482180.72 | G33: 9961644.75 | H33: 9224131 | I33: 737513.75 | J33: 0.07995482176 | K33: =SUM(K34:K38) -> 15812697
A34: Community and social services | C34: ='C2C'!C149 -> 0 | D34: ='C2C'!D149 -> 0 | E34: ='C2C'!E149 -> 0 | F34: ='C2C'!F149 -> 0 | G34: ='C2C'!G149 -> 0 | H34: ='C2C'!H149 -> 0 | I34: 0 | K34: ='C2C'!K149 -> 0
A35: Sport and recreation | C35: ='C2C'!C171 -> 0 | D35: ='C2C'!D171 -> 0 | E35: ='C2C'!E171 -> 0 | F35: ='C2C'!F171 -> 0 | G35: ='C2C'!G171 -> 0 | H35: ='C2C'!H171 -> 0 | I35: 0 | K35: ='C2C'!K171 -> 0
A36: Public safety | C36: ='C2C'!C177 -> 17687741.82 | D36: ='C2C'!D177 -> 15812697 | E36: ='C2C'!E177 -> 15812697 | F36: ='C2C'!F177 -> 1482180.72 | G36: ='C2C'!G177 -> 9961644.75 | H36: ='C2C'!H177 -> 9224131 | I36: 737513.75 | J36: 0.07995482176 | K36: ='C2C'!K177 -> 15812697
A37: Housing | C37: ='C2C'!C186 -> 0 | D37: ='C2C'!D186 -> 0 | E37: ='C2C'!E186 -> 0 | F37: ='C2C'!F186 -> 0 | G37: ='C2C'!G186 -> 0 | H37: ='C2C'!H186 -> 0 | I37: 0 | K37: ='C2C'!K186 -> 0
A38: Health | C38: ='C2C'!C189 -> 0 | D38: ='C2C'!D189 -> 0 | E38: ='C2C'!E189 -> 0 | F38: ='C2C'!F189 -> 0 | G38: ='C2C'!G189 -> 0 | H38: ='C2C'!H189 -> 0 | I38: 0 | K38: ='C2C'!K189 -> 0
A39: Economic and environmental services | C39: =SUM(C40:C42) -> 43599190.89 | D39: 56790142 | E39: 63690142 | F39: 2883825.11 | G39: 15772695.94 | H39: 35715252 | I39: -19942556.06 | J39: -0.5583764622 | K39: =SUM(K40:K42) -> 63690142
A40: Planning and development | C40: ='C2C'!C198 -> 14964747.32 | D40: ='C2C'!D198 -> 14594722 | E40: ='C2C'!E198 -> 14594722 | F40: ='C2C'!F198 -> 952703.59 | G40: ='C2C'!G198 -> 6434590.43 | H40: ='C2C'!H198 -> 8513687 | I40: -2079096.57 | J40: -0.2442063668 | K40: ='C2C'!K198 -> 14594722
A41: Road transport | C41: ='C2C'!C209 -> 28634443.57 | D41: ='C2C'!D209 -> 42195420 | E41: ='C2C'!E209 -> 49095420 | F41: ='C2C'!F209 -> 1931121.52 | G41: ='C2C'!G209 -> 9338105.51 | H41: ='C2C'!H209 -> 27201565 | I41: -17863459.49 | J41: -0.6567070494 | K41: ='C2C'!K209 -> 49095420
A42: Environmental protection | C42: ='C2C'!C214 -> 0 | D42: ='C2C'!D214 -> 0 | E42: ='C2C'!E214 -> 0 | F42: ='C2C'!F214 -> 0 | G42: ='C2C'!G214 -> 0 | H42: ='C2C'!H214 -> 0 | I42: 0 | K42: ='C2C'!K214 -> 0
A43: Trading services | C43: =SUM(C44:C47) -> 85831276.23 | D43: =SUM(D44:D47) -> 95668484 | E43: 95668484 | F43: 7126432.26 | G43: 61088724.55 | H43: 55806877 | I43: 5281847.55 | J43: 0.09464510171 | K43: =SUM(K44:K47) -> 95668484
A44: Energy sources | C44: ='C2C'!C222 -> 65692445.05 | D44: ='C2C'!D222 -> 69404819 | E44: ='C2C'!E222 -> 69404819 | F44: ='C2C'!F222 -> 5402135.19 | G44: ='C2C'!G222 -> 47181784.66 | H44: ='C2C'!H222 -> 40486285 | I44: 6695499.66 | J44: 0.1653769828 | K44: ='C2C'!K222 -> 69404819
A45: Water management | C45: ='C2C'!C226 -> 0 | D45: ='C2C'!D226 -> 0 | E45: ='C2C'!E226 -> 0 | F45: ='C2C'!F226 -> 0 | G45: ='C2C'!G226 -> 0 | H45: ='C2C'!H226 -> 0 | I45: 0 | K45: ='C2C'!K226 -> 0
A46: Waste water management | C46: ='C2C'!C230 -> 0 | D46: ='C2C'!D230 -> 0 | E46: ='C2C'!E230 -> 0 | F46: ='C2C'!F230 -> 0 | G46: ='C2C'!G230 -> 0 | H46: ='C2C'!H230 -> 0 | I46: 0 | K46: ='C2C'!K230 -> 0
A47: Waste management | C47: ='C2C'!C235 -> 20138831.18 | D47: ='C2C'!D235 -> 26263665 | E47: ='C2C'!E235 -> 26263665 | F47: ='C2C'!F235 -> 1724297.07 | G47: ='C2C'!G235 -> 13906939.89 | H47: ='C2C'!H235 -> 15320592 | I47: -1413652.11 | J47: -0.09227137633 | K47: ='C2C'!K235 -> 26263665
A48: Other | C48: ='C2C'!C240 -> 0 | D48: ='C2C'!D240 -> 0 | E48: ='C2C'!E240 -> 0 | F48: ='C2C'!F240 -> 0 | G48: ='C2C'!G240 -> 0 | H48: ='C2C'!H240 -> 0 | I48: 0 | K48: ='C2C'!K240 -> 0
A49: Total Expenditure - Functional | B49: 3 | C49: =C29+C33+C39+C43+C48 -> 322082090.4 | D49: =D29+D33+D39+D43+D48 -> 341521771 | E49: 348421771 | F49: 22444167.47 | G49: 171540562.5 | H49: 201809516 | I49: -30268953.51 | J49: -0.1499877415 | K49: =K29+K33+K39+K43+K48 -> 348421771
A50: Surplus/ (Deficit) for the year | C50: =C26-C49 -> 39955629.44 | D50: 24759061 | E50: 30759061 | F50: -17888009.7 | G50: 70230089.28 | H50: 11316658 | I50: =I26-I49 -> 58913431.28 | J50: =IF(I50=0,"",I50/H50) -> 5.205903658 | K50: =K26-K49 -> 30759061
A51: =head27a -> References
A52: 1. Government Finance Statistics Functions and Sub-functions are standardised to assist the compilation of national and international accounts for comparison purposes
A53: 2. Total Revenue by functional classification must reconcile to Total Operating Revenue shown in the Financial Performance Statement
A54: 3. Total Expenditure by functional classification must reconcile to total operating expenditure shown in 'Financial Performance Statement'
A55: 4. All amounts must be classified under a functional classification (modified GFS). The GFS function 'Other' is only for Abbatoirs, Air Transport, Licensing and Regulation, Markets and Tourism - and if used must be supported by footnotes. Nothing else may be placed under 'Other'. Assign associate share to relevant classification

Sheet C2C
A1: =muni& " - "&S71A& " - "&date -> LIM351 Blouberg - Table C2 Monthly Budget Statement - Financial Performance (functional classification) - M07 January
A2: =desc -> Description | B2: =head27 -> Ref | C2: =Head1 -> 2020/21 | D2: =Head2 -> Budget Year 2021/22
C3: =Head5 -> Audited Outcome | D3: =Head6 -> Original Budget | E3: =Head7 -> Adjusted Budget | F3: =Head38 -> Monthly actual | G3: =Head39 -> YearTD actual | H3: =Head40 -> YearTD budget | I3: =Head41 -> YTD variance | J3: =Head41 -> YTD variance | K3: =Head8 -> Full Year Forecast
A4: R thousands | B4: 1 | J4: %
A5: Revenue - Functional
A6: Municipal governance and administration | C6: =C7+C10+C24 -> 270453090.6 | D6: 243375582 | E6: 243375582 | F6: 677296.38 | G6: 183449799 | H6: 141968995 | I6: =G6-H6 -> 41480803.95 | J6: =IF(I6=0,"",I6/H6) -> 0.2921821342 | K6: =K7+K10+K24 -> 243375582
A7: Executive and council | C7: =SUM(C8:C9) -> 157764.34 | D7: =SUM(D8:D9) -> 0 | E7: 0 | F7: 0 | G7: 0 | H7: 0 | I7: =G7-H7 -> 0 | J7: =IF(I7=0,"",I7/H7) ->  | K7: 0
A8: Mayor and Council | C8: 0 | D8: 0 | E8: 0 | F8: 0 | G8: 0 | H8: 0 | I8: 0 | K8: 0
A9: Municipal Manager, Town Secretary and Chief Executive | C9: 157764.34 | D9: 0 | E9: 0 | F9: 0 | G9: 0 | H9: 0 | I9: 0 | K9: 0
A10: Finance and administration | C10: =SUM(C11:C23) -> 270295326.2 | D10: 243375582 | E10: 243375582 | F10: 677296.38 | G10: 183449799 | H10: 141968995 | I10: 41480803.95 | J10: 0.2921821342 | K10: =SUM(K11:K23) -> 243375582
A11: Administrative and Corporate Support | C11: 130640.69 | D11: 401846 | E11: 401846 | F11: 1193.05 | G11: 12767.49 | H11: 234402 | I11: -221634.51 | J11: -0.9455316508 | K11: 401846
A12: Asset Management | I12: 0
A13: Finance | C13: 270164685.5 | D13: 242973736 | E13: 242973736 | F13: 676103.33 | G13: 183437031.5 | H13: 141734593 | I13: 41702438.46 | J13: 0.2942290769 | K13: 242973736
A14: Fleet Management | I14: 0
A15: Human Resources | I15: 0
A16: Information Technology | I16: 0
A17: Legal Services | I17: 0
A18: Marketing, Customer Relations, Publicity and Media Co-ordination | I18: 0
A19: Property Services | I19: 0
A20: Risk Management | I20: 0
A21: Security Services | I21: 0
A22: Supply Chain Management | I22: 0
A23: Valuation Service | I23: 0
A24: Internal audit | C24: =SUM(C25:C25) -> 0 | D24: 0 | E24: 0 | F24: 0 | G24: 0 | H24: 0 | I24: 0 | K24: =SUM(K25:K25) -> 0
A25: Governance Function | I25: 0
A26: Community and public safety | C26: =C27+C49+C55+C64+C67 -> 3158312.65 | D26: =D27+D49+D55+D64+D67 -> 7089917 | E26: 7089917 | F26: 332617.31 | G26: 1375803.92 | H26: 4135775 | I26: -2759971.08 | J26: -0.6673407233 | K26: 7089917
A27: Community and social services | C27: =SUM(C28:C48) -> 0 | D27: 0 | E27: 0 | F27: 0 | G27: 0 | H27: 0 | I27: 0 | K27: =SUM(K28:K48) -> 0
A28: Aged Care | I28: 0
A29: Agricultural | I29: 0
A30: Animal Care and Diseases | I30: 0
A31: Cemeteries, Funeral Parlours and Crematoriums | C31: 0 | D31: 0 | E31: 0 | F31: 0 | G31: 0 | H31: 0 | I31: 0 | K31: 0
A32: Child Care Facilities | I32: 0
A33: Community Halls and Facilities | I33: 0
A34: Consumer Protection | I34: 0
A35: Cultural Matters | I35: 0
A36: Disaster Management | I36: 0
A37: Education | I37: 0
A38: Indigenous and Customary Law | I38: 0
A39: Industrial Promotion | I39: 0
A40: Language Policy | I40: 0
A41: Libraries and Archives | I41: 0
A42: Literacy Programmes | I42: 0
A43: Media Services | I43: 0
A44: Museums and Art Galleries | I44: 0
A45: Population Development | I45: 0
A46: Provincial Cultural Matters | I46: 0
A47: Theatres | I47: 0
A48: Zoo's | I48: 0
A49: Sport and recreation | C49: =SUM(C50:C54) -> 0 | D49: =SUM(D50:D54) -> 0 | E49: 0 | F49: 0 | G49: 0 | H49: 0 | I49: 0 | K49: 0
A50: Beaches and Jetties | I50: 0
A51: Casinos, Racing, Gambling, Wagering | I51: 0
A52: Community Parks (including Nurseries) | I52: 0
A53: Recreational Facilities | I53: 0
A54: Sports Grounds and Stadiums | I54: 0
A55: Public safety | C55: =SUM(C56:C63) -> 3158312.65 | D55: =SUM(D56:D63) -> 7089917 | E55: 7089917 | F55: 332617.31 | G55: 1375803.92 | H55: 4135775 | I55: -2759971.08 | J55: -0.6673407233 | K55: 7089917
A56: Civil Defence | I56: 0
A57: Cleansing | I57: 0
A58: Control of Public Nuisances | I58: =G58-H58 -> 0 | J58: =IF(I58=0,"",I58/H58) -> 
A59: Fencing and Fences | I59: 0
A60: Fire Fighting and Protection | I60: 0
A61: Licensing and Control of Animals | I61: =G61-H61 -> 0 | J61: =IF(I61=0,"",I61/H61) -> 
A62: Police Forces, Traffic and Street Parking Control | C62: 3158312.65 | D62: 7089917 | E62: 7089917 | F62: 332617.31 | G62: 1375803.92 | H62: 4135775 | I62: =G62-H62 -> -2759971.08 | J62: =IF(I62=0,"",I62/H62) -> -0.6673407233 | K62: 7089917
A63: Pounds | C63: 0 | D63: 0 | E63: 0 | F63: 0 | G63: 0 | H63: 0 | I63: 0 | K63: 0
A64: Housing | C64: =SUM(C65:C66) -> 0 | D64: 0 | E64: 0 | F64: 0 | G64: 0 | H64: 0 | I64: =G64-H64 -> 0 | J64: =IF(I64=0,"",I64/H64) ->  | K64: =SUM(K65:K66) -> 0
A65: Housing | I65: =G65-H65 -> 0 | J65: =IF(I65=0,"",I65/H65) -> 
A66: Informal Settlements | I66: =G66-H66 -> 0 | J66: =IF(I66=0,"",I66/H66) -> 
A67: Health | C67: =SUM(C68:C74) -> 0 | D67: 0 | E67: 0 | F67: 0 | G67: 0 | H67: 0 | I67: 0 | K67: =SUM(K68:K74) -> 0
A68: Ambulance | I68: 0
A69: Health Services | I69: 0
A70: Laboratory Services | I70: =G70-H70 -> 0 | J70: =IF(I70=0,"",I70/H70) -> 
A71: Food Control | I71: =G71-H71 -> 0 | J71: =IF(I71=0,"",I71/H71) -> 
A72: Health Surveillance and Prevention of Communicable Diseases including immunizations | I72: 0
A73: Vector Control | I73: 0
A74: Chemical Safety | I74: 0
A75: Economic and environmental services | C75: =C76+C87+C92 -> 179917.97 | D75: 70073459 | E75: 82973459 | F75: 174013.29 | G75: 35388279.58 | H75: 40338678 | I75: -4950398.42 | J75: -0.1227208889 | K75: =K76+K87+K92 -> 82973459
A76: Planning and development | C76: =SUM(C77:C86) -> 179917.97 | D76: 70073459 | E76: 70073459 | F76: 174013.29 | G76: 35388279.58 | H76: 40876178 | I76: -5487898.42 | J76: -0.1342566426 | K76: =SUM(K77:K86) -> 70073459
A77: Billboards | I77: =G77-H77 -> 0 | J77: =IF(I77=0,"",I77/H77) -> 
A78: Corporate Wide Strategic Planning (IDPs, LEDs) | I78: 0
A79: Central City Improvement District | I79: 0
A80: Development Facilitation | I80: =G80-H80 -> 0 | J80: =IF(I80=0,"",I80/H80) -> 
A81: Economic Development/Planning | C81: 179917.97 | D81: 13309459 | E81: 13309459 | F81: 174013.29 | G81: 303104.71 | H81: 7763847 | I81: =G81-H81 -> -7460742.29 | J81: =IF(I81=0,"",I81/H81) -> -0.9609594689 | K81: 13309459
A82: Regional Planning and Development | I82: =G82-H82 -> 0 | J82: =IF(I82=0,"",I82/H82) -> 
A83: Town Planning, Building Regulations and Enforcement, and City Engineer | I83: =G83-H83 -> 0 | J83: =IF(I83=0,"",I83/H83) -> 
A84: Project Management Unit | C84: 0 | D84: 56764000 | E84: 56764000 | F84: 0 | G84: 35085174.87 | H84: 33112331 | I84: 1972843.87 | J84: 0.05958033791 | K84: 56764000
A85: Provincial Planning | I85: 0
A86: Support to Local Municipalities | I86: 0
A87: Road transport | C87: =SUM(C88:C91) -> 0 | D87: 0 | E87: 12900000 | F87: 0 | G87: 0 | H87: -537500 | I87: 537500 | J87: -1 | K87: =SUM(K88:K91) -> 12900000
A88: Public Transport | I88: 0
A89: Road and Traffic Regulation | I89: 0
A90: Roads | C90: 0 | D90: 0 | E90: 12900000 | F90: 0 | G90: 0 | H90: -537500 | I90: 537500 | J90: -1 | K90: 12900000
A91: Taxi Ranks | I91: 0
A92: Environmental protection | C92: =SUM(C93:C98) -> 0 | D92: =SUM(D93:D98) -> 0 | E92: 0 | F92: 0 | G92: 0 | H92: 0 | I92: 0 | K92: 0
A93: Biodiversity and Landscape | I93: 0
A94: Coastal Protection | I94: 0
A95: Indigenous Forests | I95: =G95-H95 -> 0 | J95: =IF(I95=0,"",I95/H95) -> 
A96: Nature Conservation | I96: =G96-H96 -> 0 | J96: =IF(I96=0,"",I96/H96) -> 
A97: Pollution Control | I97: 0
A98: Soil Conservation | I98: 0
A99: Trading services | C99: =C100+C104+C108+C113 -> 88246398.6 | D99: =D100+D104+D108+D113 -> 45741874 | E99: 45741874 | F99: 3372230.79 | G99: 21556769.32 | H99: 26682726 | I99: -5125956.68 | J99: -0.1921076835 | K99: =K100+K104+K108+K113 -> 45741874
A100: Energy sources | C100: =SUM(C101:C103) -> 85160922.3 | D100: =SUM(D101:D103) -> 42009847 | E100: 42009847 | F100: 2686431.1 | G100: 16979443.15 | H100: 24505726 | I100: -7526282.85 | J100: -0.3071234392 | K100: 42009847
A101: Electricity | C101: 85160922.3 | D101: 42009847 | E101: 42009847 | F101: 2686431.1 | G101: 16979443.15 | H101: 24505726 | I101: -7526282.85 | J101: -0.3071234392 | K101: 42009847
A102: Street Lighting and Signal Systems | I102: =G102-H102 -> 0 | J102: =IF(I102=0,"",I102/H102) -> 
A103: Nonelectric Energy | I103: 0
A104: Water management | C104: =SUM(C105:C107) -> 2570.24 | D104: =SUM(D105:D107) -> 0 | E104: 0 | F104: 373808.51 | G104: 1504574.38 | H104: 0 | I104: 1504574.38 | K104: 0
A105: Water Treatment | C105: 2570.24 | D105: 0 | E105: 0 | F105: 373808.51 | G105: 1504574.38 | H105: 0 | I105: 1504574.38 | K105: 0
A106: Water Distribution | I106: =G106-H106 -> 0 | J106: =IF(I106=0,"",I106/H106) -> 
A107: Water Storage | I107: 0
A108: Waste water management | C108: =SUM(C109:C112) -> 0 | D108: =SUM(D109:D112) -> 0 | E108: 0 | F108: 144150.08 | G108: 771934.04 | H108: 0 | I108: 771934.04 | K108: 0
A109: Public Toilets | I109: 0
A110: Sewerage | I110: 0
A111: Storm Water Management | C111: 0 | D111: 0 | E111: 0 | F111: 0 | G111: 0 | H111: 0 | I111: =G111-H111 -> 0 | J111: =IF(I111=0,"",I111/H111) ->  | K111: 0
A112: Waste Water Treatment | C112: 0 | D112: 0 | E112: 0 | F112: 144150.08 | G112: 771934.04 | H112: 0 | I112: 771934.04 | K112: 0
A113: Waste management | C113: =SUM(C114:C117) -> 3082906.06 | D113: 3732027 | E113: 3732027 | F113: 167841.1 | G113: 2300817.75 | H113: 2177000 | I113: 123817.75 | J113: 0.05687540193 | K113: =SUM(K114:K117) -> 3732027
A114: Recycling | I114: =G114-H114 -> 0 | J114: =IF(I114=0,"",I114/H114) -> 
A115: Solid Waste Disposal (Landfill Sites) | C115: 3082906.06 | D115: 3732027 | E115: 3732027 | F115: 167841.1 | G115: 2300817.75 | H115: 2177000 | I115: =G115-H115 -> 123817.75 | J115: =IF(I115=0,"",I115/H115) -> 0.05687540193 | K115: 3732027
A116: Solid Waste Removal | I116: 0
A117: Street Cleaning | I117: =G117-H117 -> 0 | J117: =IF(I117=0,"",I117/H117) -> 
A118: Other | C118: =SUM(C119:C124) -> 0 | D118: =SUM(D119:D124) -> 0 | E118: 0 | F118: 0 | G118: 0 | H118: 0 | I118: 0 | K118: 0
A119: Abattoirs | I119: 0
A120: Air Transport | I120: 0
A121: Forestry | I121: =G121-H121 -> 0 | J121: =IF(I121=0,"",I121/H121) -> 
A122: Licensing and Regulation | I122: 0
A123: Markets | I123: 0
A124: Tourism | I124: =G124-H124 -> 0 | J124: =IF(I124=0,"",I124/H124) -> 
A125: ="Total "&A5 -> Total Revenue - Functional | B125: 2 | C125: =C6+C26+C75+C99+C118 -> 362037719.8 | D125: 366280832 | E125: 379180832 | F125: 4556157.77 | G125: 241770651.8 | H125: 213126174 | I125: =G125-H125 -> 28644477.77 | J125: =IF(I125=0,"",I125/H125) -> 0.1344015014 | K125: =K6+K26+K75+K99+K118 -> 379180832
A127: Expenditure - Functional
A128: =A6 -> Municipal governance and administration | C128: =C129+C132+C146 -> 174963881.4 | D128: 173250448 | E128: 173250448 | F128: 10951729.38 | G128: 84717497.25 | H128: 101063256 | I128: =G128-H128 -> -16345758.75 | J128: =IF(I128=0,"",I128/H128) -> -0.1617378996 | K128: =K129+K132+K146 -> 173250448
A129: Executive and council | C129: =SUM(C130:C131) -> 61988781.69 | D129: 59563774 | E129: 59663774 | F129: 4176859.68 | G129: 36434736.27 | H129: 34790204.44 | I129: 1644531.83 | J129: 0.04726996741 | K129: 59663774
A130: Mayor and Council | C130: 17689242.32 | D130: 20161905 | E130: 20261905 | F130: 1433577.32 | G130: 10358227.16 | H130: 11805669.44 | I130: -1447442.28 | J130: -0.1226056927 | K130: 20261905
A131: Municipal Manager, Town Secretary and Chief Executive | C131: 44299539.37 | D131: 39401869 | E131: 39401869 | F131: 2743282.36 | G131: 26076509.11 | H131: 22984535 | I131: 3091974.11 | J131: 0.1345241098 | K131: 39401869
A132: Finance and administration | C132: =SUM(C133:C145) -> 112975099.7 | D132: 113686674 | E132: 113586674 | F132: 6774869.7 | G132: 48282760.98 | H132: 66273051.56 | I132: -17990290.58 | J132: -0.2714571029 | K132: =SUM(K133:K145) -> 113586674
A133: Administrative and Corporate Support | C133: 57689051.49 | D133: 66141641 | E133: 66041641 | F133: 4738085.71 | G133: 31441955.92 | H133: 38538323.56 | I133: -7096367.64 | J133: -0.1841379433 | K133: 66041641
A134: Asset Management | I134: 0
A135: Finance | C135: 55286048.23 | D135: 47545033 | E135: 47545033 | F135: 2036783.99 | G135: 16840805.06 | H135: 27734728 | I135: -10893922.94 | J135: -0.3927899686 | K135: 47545033
A136: Fleet Management | I136: 0
A137: Human Resources | I137: 0
A138: Information Technology | I138: 0
A139: Legal Services | I139: 0
A140: Marketing, Customer Relations, Publicity and Media Co-ordination | I140: 0
A141: Property Services | I141: 0
A142: Risk Management | I142: 0
A143: Security Services | I143: 0
A144: Supply Chain Management | I144: 0
A145: Valuation Service | I145: 0
A146: Internal audit | C146: =SUM(C147:C147) -> 0 | D146: 0 | E146: 0 | F146: 0 | G146: 0 | H146: 0 | I146: 0 | K146: =SUM(K147:K147) -> 0
A147: Governance Function | I147: 0
A148: Community and public safety | C148: =C149+C171+C177+C186+C189 -> 17687741.82 | D148: 15812697 | E148: 15812697 | F148: 1482180.72 | G148: 9961644.75 | H148: 9224131 | I148: 737513.75 | J148: 0.07995482176 | K148: =K149+K171+K177+K186+K189 -> 15812697
A149: Community and social services | C149: =SUM(C150:C170) -> 0 | D149: 0 | E149: 0 | F149: 0 | G149: 0 | H149: 0 | I149: 0 | K149: =SUM(K150:K170) -> 0
A150: Aged Care | I150: 0
A151: Agricultural | I151: 0
A152: Animal Care and Diseases | I152: 0
A153: Cemeteries, Funeral Parlours and Crematoriums | C153: 0 | D153: 0 | E153: 0 | F153: 0 | G153: 0 | H153: 0 | I153: 0 | K153: 0
A154: Child Care Facilities | I154: 0
A155: Community Halls and Facilities | I155: 0
A156: Consumer Protection | I156: 0
A157: Cultural Matters | I157: =G157-H157 -> 0 | J157: =IF(I157=0,"",I157/H157) -> 
A158: Disaster Management | I158: =G158-H158 -> 0 | J158: =IF(I158=0,"",I158/H158) -> 
A159: Education | I159: =G159-H159 -> 0 | J159: =IF(I159=0,"",I159/H159) -> 
A160: Indigenous and Customary Law | I160: 0
A161: Industrial Promotion | I161: 0
A162: Language Policy | I162: 0
A163: Libraries and Archives | C163: 0 | D163: 0 | E163: 0 | F163: 0 | G163: 0 | H163: 0 | I163: 0 | K163: 0
A164: Literacy Programmes | I164: 0
A165: Media Services | I165: 0
A166: Museums and Art Galleries | I166: 0
A167: Population Development | I167: 0
A168: Provincial Cultural Matters | I168: 0
A169: Theatres | I169: 0
A170: Zoo's | I170: 0
A171: Sport and recreation | C171: =SUM(C172:C176) -> 0 | D171: 0 | E171: 0 | F171: 0 | G171: 0 | H171: 0 | I171: 0 | K171: 0
A172: Beaches and Jetties | I172: 0
A173: Casinos, Racing, Gambling, Wagering | I173: 0
A174: Community Parks (including Nurseries) | I174: 0
A175: Recreational Facilities | C175: 0 | D175: 0 | E175: 0 | F175: 0 | G175: 0 | H175: 0 | I175: 0 | K175: 0
A176: Sports Grounds and Stadiums | I176: 0
A177: Public safety | C177: =SUM(C178:C185) -> 17687741.82 | D177: 15812697 | E177: 15812697 | F177: 1482180.72 | G177: 9961644.75 | H177: 9224131 | I177: 737513.75 | J177: 0.07995482176 | K177: 15812697
A178: Civil Defence | I178: 0
A179: Cleansing | I179: 0
A180: Control of Public Nuisances | I180: =G180-H180 -> 0 | J180: =IF(I180=0,"",I180/H180) -> 
A181: Fencing and Fences | I181: 0
A182: Fire Fighting and Protection | I182: 0
A183: Licensing and Control of Animals | I183: =G183-H183 -> 0 | J183: =IF(I183=0,"",I183/H183) -> 
A184: Police Forces, Traffic and Street Parking Control | C184: 17687741.82 | D184: 15612697 | E184: 15612697 | F184: 1482180.72 | G184: 9852194.75 | H184: 9107462 | I184: =G184-H184 -> 744732.75 | J184: =IF(I184=0,"",I184/H184) -> 0.08177171093 | K184: 15612697
A185: Pounds | C185: 0 | D185: 200000 | E185: 200000 | F185: 0 | G185: 109450 | H185: 116669 | I185: -7219 | J185: -0.06187590534 | K185: 200000
A186: Housing | C186: =SUM(C187:C188) -> 0 | D186: 0 | E186: 0 | F186: 0 | G186: 0 | H186: 0 | I186: =G186-H186 -> 0 | J186: =IF(I186=0,"",I186/H186) ->  | K186: =SUM(K187:K188) -> 0
A187: Housing | I187: =G187-H187 -> 0 | J187: =IF(I187=0,"",I187/H187) -> 
A188: Informal Settlements | I188: =G188-H188 -> 0 | J188: =IF(I188=0,"",I188/H188) -> 
A189: Health | C189: =SUM(C190:C196) -> 0 | D189: 0 | E189: 0 | F189: 0 | G189: 0 | H189: 0 | I189: 0 | K189: 0
A190: Ambulance | I190: 0
A191: Health Services | I191: 0
A192: =A70 -> Laboratory Services | I192: 0
A193: Food Control | I193: =G193-H193 -> 0 | J193: =IF(I193=0,"",I193/H193) -> 
A194: Health Surveillance and Prevention of Communicable Diseases including immunizations | I194: =G194-H194 -> 0 | J194: =IF(I194=0,"",I194/H194) -> 
A195: Vector Control | I195: 0
A196: Chemical Safety | I196: 0
A197: Economic and environmental services | C197: =C198+C209+C214 -> 43599190.89 | D197: 56790142 | E197: 63690142 | F197: 2883825.11 | G197: 15772695.94 | H197: 35715252 | I197: -19942556.06 | J197: -0.5583764622 | K197: =K198+K209+K214 -> 63690142
A198: Planning and development | C198: =SUM(C199:C208) -> 14964747.32 | D198: 14594722 | E198: 14594722 | F198: 952703.59 | G198: 6434590.43 | H198: 8513687 | I198: -2079096.57 | J198: -0.2442063668 | K198: 14594722
A199: Billboards | I199: 0
A200: Corporate Wide Strategic Planning (IDPs, LEDs) | I200: 0
A201: Central City Improvement District | I201: 0
... 54 more rows

Sheet C3-FinPerf V
A1: =muni& " - "&S71C& " - "&date -> LIM351 Blouberg - Table C3 Monthly Budget Statement - Financial Performance (revenue and expenditure by municipal vote) - M07 January
A2: =Vdesc -> Vote Description | B2: =head27 -> Ref | C2: =Head1 -> 2020/21 | D2: =Head2 -> Budget Year 2021/22
C3: =Head5 -> Audited Outcome | D3: =Head6 -> Original Budget | E3: =Head7 -> Adjusted Budget | F3: =Head38 -> Monthly actual | G3: =Head39 -> YearTD actual | H3: =Head40 -> YearTD budget | I3: =Head41 -> YTD variance | J3: =Head41 -> YTD variance | K3: =Head8 -> Full Year Forecast
A4: R thousands | J4: %
A5: Revenue by Vote | B5: 1
A6: ='Org structure'!A2 -> Vote 01 - Executive & Council | C6: ='C3C'!C6 -> 0 | D6: ='C3C'!D6 -> 0 | E6: ='C3C'!E6 -> 0 | F6: ='C3C'!F6 -> 0 | G6: ='C3C'!G6 -> 0 | H6: ='C3C'!H6 -> 0 | I6: =G6-H6 -> 0 | J6: =IF(I6=0,"",I6/H6) ->  | K6: ='C3C'!K6 -> 0
A7: ='Org structure'!A3 -> Vote 02 - Finance And Administration | C7: ='C3C'!C8 -> 157764.34 | D7: ='C3C'!D8 -> 0 | E7: ='C3C'!E8 -> 0 | F7: ='C3C'!F8 -> 0 | G7: ='C3C'!G8 -> 0 | H7: ='C3C'!H8 -> 0 | I7: 0 | K7: ='C3C'!K8 -> 0
A8: ='Org structure'!A4 -> Vote 03 - Community Service | C8: ='C3C'!C10 -> 270164685.5 | D8: ='C3C'!D10 -> 242973736 | E8: ='C3C'!E10 -> 242973736 | F8: ='C3C'!F10 -> 676103.33 | G8: ='C3C'!G10 -> 183437031.5 | H8: ='C3C'!H10 -> 141734593 | I8: 41702438.46 | J8: 0.2942290769 | K8: ='C3C'!K10 -> 242973736
A9: ='Org structure'!A5 -> Vote 04 - Public And Safety | C9: ='C3C'!C12 -> 130640.69 | D9: ='C3C'!D12 -> 401846 | E9: ='C3C'!E12 -> 401846 | F9: ='C3C'!F12 -> 1193.05 | G9: ='C3C'!G12 -> 12767.49 | H9: ='C3C'!H12 -> 234402 | I9: -221634.51 | J9: -0.9455316508 | K9: ='C3C'!K12 -> 401846
A10: ='Org structure'!A6 -> Vote 05 - Waste Management | C10: ='C3C'!C14 -> 85163492.54 | D10: ='C3C'!D14 -> 42009847 | E10: ='C3C'!E14 -> 54909847 | F10: ='C3C'!F14 -> 3204389.69 | G10: ='C3C'!G14 -> 19255951.57 | H10: ='C3C'!H14 -> 23968226 | I10: -4712274.43 | J10: -0.1966050566 | K10: ='C3C'!K14 -> 54909847
A11: ='Org structure'!A7 -> Vote 06 - Roads Services | C11: ='C3C'!C22 -> 6241218.71 | D11: ='C3C'!D22 -> 10821944 | E11: ='C3C'!E22 -> 10821944 | F11: ='C3C'!F22 -> 500458.41 | G11: ='C3C'!G22 -> 3676621.67 | H11: ='C3C'!H22 -> 6312775 | I11: -2636153.33 | J11: -0.4175902563 | K11: ='C3C'!K22 -> 10821944
A12: ='Org structure'!A8 -> Vote 07 - Econominc Development And Planning | C12: ='C3C'!C37 -> 179917.97 | D12: ='C3C'!D37 -> 70073459 | E12: ='C3C'!E37 -> 70073459 | F12: ='C3C'!F37 -> 174013.29 | G12: ='C3C'!G37 -> 35388279.58 | H12: ='C3C'!H37 -> 40876178 | I12: -5487898.42 | J12: -0.1342566426 | K12: ='C3C'!K37 -> 70073459
A13: ='Org structure'!A9 -> Vote 08 - | C13: ='C3C'!C40 -> 0 | D13: ='C3C'!D40 -> 0 | E13: ='C3C'!E40 -> 0 | F13: ='C3C'!F40 -> 0 | G13: ='C3C'!G40 -> 0 | H13: ='C3C'!H40 -> 0 | I13: =G13-H13 -> 0 | J13: =IF(I13=0,"",I13/H13) ->  | K13: ='C3C'!K40 -> 0
A14: ='Org structure'!A10 -> Vote 09 - | C14: ='C3C'!C41 -> 0 | D14: ='C3C'!D41 -> 0 | E14: ='C3C'!E41 -> 0 | F14: ='C3C'!F41 -> 0 | G14: ='C3C'!G41 -> 0 | H14: ='C3C'!H41 -> 0 | I14: 0 | K14: ='C3C'!K41 -> 0
A15: ='Org structure'!A11 -> Vote 10 - | C15: ='C3C'!C42 -> 0 | D15: ='C3C'!D42 -> 0 | E15: ='C3C'!E42 -> 0 | F15: ='C3C'!F42 -> 0 | G15: ='C3C'!G42 -> 0 | H15: ='C3C'!H42 -> 0 | I15: 0 | K15: ='C3C'!K42 -> 0
A16: ='Org structure'!A12 -> Vote 11 - | C16: ='C3C'!C43 -> 0 | D16: ='C3C'!D43 -> 0 | E16: ='C3C'!E43 -> 0 | F16: ='C3C'!F43 -> 0 | G16: ='C3C'!G43 -> 0 | H16: ='C3C'!H43 -> 0 | I16: 0 | K16: ='C3C'!K43 -> 0
A17: ='Org structure'!A13 -> Vote 12 - | C17: ='C3C'!C44 -> 0 | D17: ='C3C'!D44 -> 0 | E17: ='C3C'!E44 -> 0 | F17: ='C3C'!F44 -> 0 | G17: ='C3C'!G44 -> 0 | H17: ='C3C'!H44 -> 0 | I17: 0 | K17: ='C3C'!K44 -> 0
A18: ='Org structure'!A14 -> Vote 13 - | C18: ='C3C'!C45 -> 0 | D18: ='C3C'!D45 -> 0 | E18: ='C3C'!E45 -> 0 | F18: ='C3C'!F45 -> 0 | G18: ='C3C'!G45 -> 0 | H18: ='C3C'!H45 -> 0 | I18: 0 | K18: ='C3C'!K45 -> 0
A19: ='Org structure'!A15 -> Vote 14 - | C19: ='C3C'!C46 -> 0 | D19: ='C3C'!D46 -> 0 | E19: ='C3C'!E46 -> 0 | F19: ='C3C'!F46 -> 0 | G19: ='C3C'!G46 -> 0 | H19: ='C3C'!H46 -> 0 | I19: 0 | K19: ='C3C'!K46 -> 0
A20: ='Org structure'!A16 -> Vote 15 - Other | C20: ='C3C'!C47 -> 0 | D20: ='C3C'!D47 -> 0 | E20: ='C3C'!E47 -> 0 | F20: ='C3C'!F47 -> 0 | G20: ='C3C'!G47 -> 0 | H20: ='C3C'!H47 -> 0 | I20: 0 | K20: ='C3C'!K47 -> 0
A21: Total Revenue by Vote | B21: 2 | C21: =SUM(C6:C20) -> 362037719.8 | D21: =SUM(D6:D20) -> 366280832 | E21: 379180832 | F21: 4556157.77 | G21: 241770651.8 | H21: 213126174 | I21: 28644477.77 | J21: 0.1344015014 | K21: =SUM(K6:K20) -> 379180832
A23: Expenditure by Vote | B23: 1
A24: ='Org structure'!A2 -> Vote 01 - Executive & Council | C24: ='C3C'!C51 -> 17689242.32 | D24: ='C3C'!D51 -> 20161905 | E24: ='C3C'!E51 -> 20261905 | F24: ='C3C'!F51 -> 1433577.32 | G24: ='C3C'!G51 -> 10358227.16 | H24: ='C3C'!H51 -> 11805669.44 | I24: =G24-H24 -> -1447442.28 | J24: =IF(I24=0,"",I24/H24) -> -0.1226056927 | K24: ='C3C'!K51 -> 20261905
A25: ='Org structure'!A3 -> Vote 02 - Finance And Administration | C25: ='C3C'!C53 -> 44299539.37 | D25: ='C3C'!D53 -> 39401869 | E25: ='C3C'!E53 -> 39401869 | F25: ='C3C'!F53 -> 2743282.36 | G25: ='C3C'!G53 -> 26076509.11 | H25: ='C3C'!H53 -> 22984535 | I25: 3091974.11 | J25: 0.1345241098 | K25: ='C3C'!K53 -> 39401869
A26: ='Org structure'!A4 -> Vote 03 - Community Service | C26: ='C3C'!C55 -> 55286048.23 | D26: ='C3C'!D55 -> 47545033 | E26: ='C3C'!E55 -> 47545033 | F26: ='C3C'!F55 -> 2036783.99 | G26: ='C3C'!G55 -> 16840805.06 | H26: ='C3C'!H55 -> 27734728 | I26: -10893922.94 | J26: -0.3927899686 | K26: ='C3C'!K55 -> 47545033
A27: ='Org structure'!A5 -> Vote 04 - Public And Safety | C27: ='C3C'!C57 -> 57689051.49 | D27: ='C3C'!D57 -> 66141641 | E27: ='C3C'!E57 -> 66041641 | F27: ='C3C'!F57 -> 4738085.71 | G27: ='C3C'!G57 -> 31441955.92 | H27: ='C3C'!H57 -> 38538323.56 | I27: -7096367.64 | J27: -0.1841379433 | K27: ='C3C'!K57 -> 66041641
A28: ='Org structure'!A6 -> Vote 05 - Waste Management | C28: ='C3C'!C59 -> 94326888.62 | D28: ='C3C'!D59 -> 111600239 | E28: ='C3C'!E59 -> 118500239 | F28: ='C3C'!F59 -> 7333256.71 | G28: ='C3C'!G59 -> 56519890.17 | H28: ='C3C'!H59 -> 67687850 | I28: -11167959.83 | J28: -0.1649920899 | K28: ='C3C'!K59 -> 118500239
A29: ='Org structure'!A7 -> Vote 06 - Roads Services | C29: ='C3C'!C67 -> 37826573 | D29: ='C3C'!D67 -> 42076362 | E29: ='C3C'!E67 -> 42076362 | F29: ='C3C'!F67 -> 3206477.79 | G29: ='C3C'!G67 -> 23868584.64 | H29: ='C3C'!H67 -> 24544723 | I29: -676138.36 | J29: -0.02754719864 | K29: ='C3C'!K67 -> 42076362
A30: ='Org structure'!A8 -> Vote 07 - Econominc Development And Planning | C30: ='C3C'!C82 -> 14964747.32 | D30: ='C3C'!D82 -> 14594722 | E30: ='C3C'!E82 -> 14594722 | F30: ='C3C'!F82 -> 952703.59 | G30: ='C3C'!G82 -> 6434590.43 | H30: ='C3C'!H82 -> 8513687 | I30: -2079096.57 | J30: -0.2442063668 | K30: ='C3C'!K82 -> 14594722
A31: ='Org structure'!A9 -> Vote 08 - | C31: ='C3C'!C85 -> 0 | D31: ='C3C'!D85 -> 0 | E31: ='C3C'!E85 -> 0 | F31: ='C3C'!F85 -> 0 | G31: ='C3C'!G85 -> 0 | H31: ='C3C'!H85 -> 0 | I31: =G31-H31 -> 0 | J31: =IF(I31=0,"",I31/H31) ->  | K31: ='C3C'!K85 -> 0
A32: ='Org structure'!A10 -> Vote 09 - | C32: ='C3C'!C86 -> 0 | D32: ='C3C'!D86 -> 0 | E32: ='C3C'!E86 -> 0 | F32: ='C3C'!F86 -> 0 | G32: ='C3C'!G86 -> 0 | H32: ='C3C'!H86 -> 0 | I32: 0 | K32: ='C3C'!K86 -> 0
A33: ='Org structure'!A11 -> Vote 10 - | C33: ='C3C'!C87 -> 0 | D33: ='C3C'!D87 -> 0 | E33: ='C3C'!E87 -> 0 | F33: ='C3C'!F87 -> 0 | G33: ='C3C'!G87 -> 0 | H33: ='C3C'!H87 -> 0 | I33: 0 | J33: =IF(I33=0,"",I33/H33) ->  | K33: ='C3C'!K87 -> 0
A34: ='Org structure'!A12 -> Vote 11 - | C34: ='C3C'!C88 -> 0 | D34: ='C3C'!D88 -> 0 | E34: ='C3C'!E88 -> 0 | F34: ='C3C'!F88 -> 0 | G34: ='C3C'!G88 -> 0 | H34: ='C3C'!H88 -> 0 | I34: 0 | J34: =IF(I34=0,"",I34/H34) ->  | K34: ='C3C'!K88 -> 0
A35: ='Org structure'!A13 -> Vote 12 - | C35: ='C3C'!C89 -> 0 | D35: ='C3C'!D89 -> 0 | E35: ='C3C'!E89 -> 0 | F35: ='C3C'!F89 -> 0 | G35: ='C3C'!G89 -> 0 | H35: ='C3C'!H89 -> 0 | I35: 0 | J35: =IF(I35=0,"",I35/H35) ->  | K35: ='C3C'!K89 -> 0
A36: ='Org structure'!A14 -> Vote 13 - | C36: ='C3C'!C90 -> 0 | D36: ='C3C'!D90 -> 0 | E36: ='C3C'!E90 -> 0 | F36: ='C3C'!F90 -> 0 | G36: ='C3C'!G90 -> 0 | H36: ='C3C'!H90 -> 0 | I36: 0 | J36: =IF(I36=0,"",I36/H36) ->  | K36: ='C3C'!K90 -> 0
A37: ='Org structure'!A15 -> Vote 14 - | C37: ='C3C'!C91 -> 0 | D37: ='C3C'!D91 -> 0 | E37: ='C3C'!E91 -> 0 | F37: ='C3C'!F91 -> 0 | G37: ='C3C'!G91 -> 0 | H37: ='C3C'!H91 -> 0 | I37: 0 | J37: =IF(I37=0,"",I37/H37) ->  | K37: ='C3C'!K91 -> 0
A38: ='Org structure'!A16 -> Vote 15 - Other | C38: ='C3C'!C92 -> 0 | D38: ='C3C'!D92 -> 0 | E38: ='C3C'!E92 -> 0 | F38: ='C3C'!F92 -> 0 | G38: ='C3C'!G92 -> 0 | H38: ='C3C'!H92 -> 0 | I38: 0 | K38: ='C3C'!K92 -> 0
A39: Total Expenditure by Vote | B39: 2 | C39: =SUM(C24:C38) -> 322082090.3 | D39: =SUM(D24:D38) -> 341521771 | E39: 348421771 | F39: 22444167.47 | G39: 171540562.5 | H39: 201809516 | I39: -30268953.51 | J39: =IF(I39=0,"",I39/H39) -> -0.1499877415 | K39: =SUM(K24:K38) -> 348421771
A40: =result -> Surplus/ (Deficit) for the year | B40: 2 | C40: =C21-C39 -> 39955629.44 | D40: 24759061 | E40: 30759061 | F40: -17888009.7 | G40: 70230089.28 | H40: 11316658 | I40: =I21-I39 -> 58913431.28 | J40: =IF(I40=0,"",I40/H40) -> 5.205903658 | K40: =K21-K39 -> 30759061
A41: =head27a -> References
A42: 1. Insert 'Vote'; e.g. Department, if different to standard classification structure
A43: 2. Must reconcile to Monthly Budget Statement - Financial Performance Statement (standard classification)

Sheet C3C
A1: =muni& " - "&S71C& " - "&"A"& " - "&date -> LIM351 Blouberg - Table C3 Monthly Budget Statement - Financial Performance (revenue and expenditure by municipal vote) - A - M07 January
A2: =Vdesc -> Vote Description | B2: =head27 -> Ref | C2: =Head1 -> 2020/21 | D2: =Head2 -> Budget Year 2021/22 | L2: =Head4 -> 
A3: R thousand | C3: =Head5 -> Audited Outcome | D3: =Head6 -> Original Budget | E3: =Head7 -> Adjusted Budget | F3: =Head38 -> Monthly actual | G3: =Head39 -> YearTD actual | H3: =Head40 -> YearTD budget | I3: =Head41 -> YTD variance | J3: =Head41 -> YTD variance | K3: =Head8 -> Full Year Forecast | L3: =Head12 -> Forecast 2010/11 | M3: =Head13 -> Forecast 2011/12 | N3: =Head14 -> Forecast 2012/13 | O3: =Head15 -> Forecast 2013/14 | P3: =Head16 -> Forecast 2014/15 | Q3: =Head17 -> Forecast 2015/16 | R3: =Head18 -> Forecast 2016/17 | S3: =Head19 -> Forecast 2017/18 | T3: =Head20 -> Forecast 2018/19 | U3: =Head21 -> Forecast 2019/20 | V3: =Head22 -> Forecast 2020/21 | W3: =Head23 -> Forecast 2021/22
J4: %
A5: Revenue by Vote | B5: 1
A6: ='Org structure'!A2 -> Vote 01 - Executive & Council | C6: =SUM(C7:C7) -> 0 | D6: 0 | E6: 0 | F6: 0 | G6: 0 | H6: 0 | I6: =G6-H6 -> 0 | J6: =IF(I6=0,"",I6/H6) ->  | K6: =SUM(K7:K7) -> 0
A7: ='Org structure'!E3 -> 01.1 - Council General | C7: 0 | D7: 0 | E7: 0 | F7: 0 | G7: 0 | H7: 0 | I7: =G7-H7 -> 0 | J7: =IF(I7=0,"",I7/H7) ->  | K7: 0
A8: ='Org structure'!A3 -> Vote 02 - Finance And Administration | C8: =SUM(C9:C9) -> 157764.34 | D8: 0 | E8: 0 | F8: 0 | G8: 0 | H8: 0 | I8: 0 | K8: =SUM(K9:K9) -> 0
A9: ='Org structure'!E5 -> 02.1 - Municipal Manager | C9: 157764.34 | D9: 0 | E9: 0 | F9: 0 | G9: 0 | H9: 0 | I9: =G9-H9 -> 0 | J9: =IF(I9=0,"",I9/H9) ->  | K9: 0
A10: ='Org structure'!A4 -> Vote 03 - Community Service | C10: =SUM(C11:C11) -> 270164685.5 | D10: 242973736 | E10: 242973736 | F10: 676103.33 | G10: 183437031.5 | H10: 141734593 | I10: 41702438.46 | J10: 0.2942290769 | K10: =SUM(K11:K11) -> 242973736
A11: ='Org structure'!E7 -> 03.1 - Finance Services Administration | C11: 270164685.5 | D11: 242973736 | E11: 242973736 | F11: 676103.33 | G11: 183437031.5 | H11: 141734593 | I11: =G11-H11 -> 41702438.46 | J11: =IF(I11=0,"",I11/H11) -> 0.2942290769 | K11: 242973736
A12: ='Org structure'!A5 -> Vote 04 - Public And Safety | C12: =SUM(C13:C13) -> 130640.69 | D12: 401846 | E12: 401846 | F12: 1193.05 | G12: 12767.49 | H12: 234402 | I12: -221634.51 | J12: -0.9455316508 | K12: =SUM(K13:K13) -> 401846
A13: ='Org structure'!E9 -> 04.1 - Corporate Services Administration | C13: 130640.69 | D13: 401846 | E13: 401846 | F13: 1193.05 | G13: 12767.49 | H13: 234402 | I13: =G13-H13 -> -221634.51 | J13: =IF(I13=0,"",I13/H13) -> -0.9455316508 | K13: 401846
A14: ='Org structure'!A6 -> Vote 05 - Waste Management | C14: =SUM(C15:C21) -> 85163492.54 | D14: 42009847 | E14: 54909847 | F14: 3204389.69 | G14: 19255951.57 | H14: 23968226 | I14: -4712274.43 | J14: -0.1966050566 | K14: =SUM(K15:K21) -> 54909847
A15: ='Org structure'!E11 -> 05.1 - Technical Services Administration | C15: 0 | D15: 0 | E15: 0 | F15: 0 | G15: 0 | H15: 0 | I15: =G15-H15 -> 0 | J15: =IF(I15=0,"",I15/H15) ->  | K15: 0
A16: ='Org structure'!E12 -> 05.2 - Electrical Services | C16: 85160922.3 | D16: 42009847 | E16: 42009847 | F16: 2686431.1 | G16: 16979443.15 | H16: 24505726 | I16: -7526282.85 | J16: -0.3071234392 | K16: 42009847
A17: ='Org structure'!E13 -> 05.3 - Water Services | C17: 2570.24 | D17: 0 | E17: 0 | F17: 373808.51 | G17: 1504574.38 | H17: 0 | I17: 1504574.38 | K17: 0
A18: ='Org structure'!E14 -> 05.4 - Sanitation Services | C18: 0 | D18: 0 | E18: 0 | F18: 144150.08 | G18: 771934.04 | H18: 0 | I18: 771934.04 | K18: 0
A19: ='Org structure'!E15 -> 05.5 - Roads Services | C19: 0 | D19: 0 | E19: 12900000 | F19: 0 | G19: 0 | H19: -537500 | I19: 537500 | J19: -1 | K19: 12900000
A20: ='Org structure'!E16 -> 05.6 - Storm Water Services | C20: 0 | D20: 0 | E20: 0 | F20: 0 | G20: 0 | H20: 0 | I20: 0 | K20: 0
A21: ='Org structure'!E17 -> 05.7 - Water Reporting Function | C21: 0 | D21: 0 | E21: 0 | F21: 0 | G21: 0 | H21: 0 | I21: 0 | K21: 0
A22: ='Org structure'!A7 -> Vote 06 - Roads Services | C22: =SUM(C23:C36) -> 6241218.71 | D22: 10821944 | E22: 10821944 | F22: 500458.41 | G22: 3676621.67 | H22: 6312775 | I22: -2636153.33 | J22: -0.4175902563 | K22: =SUM(K23:K36) -> 10821944
A23: ='Org structure'!E19 -> 06.1 - Community Services Administration | C23: 1547040 | D23: 2432000 | E23: 2432000 | F23: 0 | G23: 886000 | H23: 1418662 | I23: =G23-H23 -> -532662 | J23: =IF(I23=0,"",I23/H23) -> -0.3754678704 | K23: 2432000
A24: ='Org structure'!E20 -> 06.2 - Traffic Services | C24: 0 | D24: 0 | E24: 0 | F24: 0 | G24: 0 | H24: 0 | I24: 0 | K24: 0
A25: ='Org structure'!E21 -> 06.3 - Traffic Services | C25: 3158312.65 | D25: 7089917 | E25: 7089917 | F25: 332617.31 | G25: 1375803.92 | H25: 4135775 | I25: -2759971.08 | J25: -0.6673407233 | K25: 7089917
A26: ='Org structure'!E22 -> 06.4 - Libraries | C26: 0 | D26: 0 | E26: 0 | F26: 0 | G26: 0 | H26: 0 | I26: 0 | K26: 0
A27: ='Org structure'!E23 -> 06.5 - Sport | C27: 0 | D27: 0 | E27: 0 | F27: 0 | G27: 0 | H27: 0 | I27: 0 | K27: 0
A28: ='Org structure'!E24 -> 06.6 - Cemetery | C28: 0 | D28: 0 | E28: 0 | F28: 0 | G28: 0 | H28: 0 | I28: 0 | K28: 0
A29: ='Org structure'!E25 -> 06.7 - Refuse | C29: 1535866.06 | D29: 1300027 | E29: 1300027 | F29: 167841.1 | G29: 1414817.75 | H29: 758338 | I29: 656479.75 | J29: 0.8656822551 | K29: 1300027
A30: ='Org structure'!E26 -> 06.8 - Pound Services | C30: 0 | D30: 0 | E30: 0 | F30: 0 | G30: 0 | H30: 0 | I30: 0 | K30: 0
A31: ='Org structure'!E27 -> 06.9 - Pound Services | C31: 0 | D31: 0 | E31: 0 | F31: 0 | G31: 0 | H31: 0 | I31: 0 | K31: 0
A32: ='Org structure'!E28 -> 06.10 - Satellite Offices | C32: 0 | D32: 0 | E32: 0 | F32: 0 | G32: 0 | H32: 0 | I32: 0 | K32: 0
A33: ='Org structure'!E29 -> 06.11 - Alldays Offices | C33: 0 | D33: 0 | E33: 0 | F33: 0 | G33: 0 | H33: 0 | I33: 0 | K33: 0
A34: ='Org structure'!E30 -> 06.12 - Eldorado Offices | C34: 0 | D34: 0 | E34: 0 | F34: 0 | G34: 0 | H34: 0 | I34: 0 | K34: 0
A35: ='Org structure'!E31 -> 06.13 - Tolwe Offices | C35: 0 | D35: 0 | E35: 0 | F35: 0 | G35: 0 | H35: 0 | I35: 0 | K35: 0
A36: ='Org structure'!E32 -> 06.14 - Senwabarwarna Offices | C36: 0 | D36: 0 | E36: 0 | F36: 0 | G36: 0 | H36: 0 | I36: 0 | K36: 0
A37: ='Org structure'!A8 -> Vote 07 - Econominc Development And Planning | C37: =SUM(C38:C39) -> 179917.97 | D37: 70073459 | E37: 70073459 | F37: 174013.29 | G37: 35388279.58 | H37: 40876178 | I37: =G37-H37 -> -5487898.42 | J37: =IF(I37=0,"",I37/H37) -> -0.1342566426 | K37: =SUM(K38:K39) -> 70073459
A38: ='Org structure'!E34 -> 07.1 - Project Management Unit | C38: 0 | D38: 56764000 | E38: 56764000 | F38: 0 | G38: 35085174.87 | H38: 33112331 | I38: =G38-H38 -> 1972843.87 | J38: =IF(I38=0,"",I38/H38) -> 0.05958033791 | K38: 56764000
A39: ='Org structure'!E35 -> 07.2 - Economic Development And Planning | C39: 179917.97 | D39: 13309459 | E39: 13309459 | F39: 174013.29 | G39: 303104.71 | H39: 7763847 | I39: =G39-H39 -> -7460742.29 | J39: =IF(I39=0,"",I39/H39) -> -0.9609594689 | K39: 13309459
A40: ='Org structure'!A9 -> Vote 08 - | C40: 0 | D40: 0 | E40: 0 | F40: 0 | G40: 0 | H40: 0 | I40: 0 | K40: 0
A41: ='Org structure'!A10 -> Vote 09 - | C41: 0 | D41: 0 | E41: 0 | F41: 0 | G41: 0 | H41: 0 | I41: 0 | K41: 0
A42: ='Org structure'!A11 -> Vote 10 - | C42: 0 | D42: 0 | E42: 0 | F42: 0 | G42: 0 | H42: 0 | I42: 0 | K42: 0
A43: ='Org structure'!A12 -> Vote 11 - | C43: 0 | D43: 0 | E43: 0 | F43: 0 | G43: 0 | H43: 0 | I43: 0 | K43: 0
A44: ='Org structure'!A13 -> Vote 12 - | C44: 0 | D44: 0 | E44: 0 | F44: 0 | G44: 0 | H44: 0 | I44: 0 | K44: 0
A45: ='Org structure'!A14 -> Vote 13 - | C45: 0 | D45: 0 | E45: 0 | F45: 0 | G45: 0 | H45: 0 | I45: =G45-H45 -> 0 | J45: =IF(I45=0,"",I45/H45) ->  | K45: 0
A46: ='Org structure'!A15 -> Vote 14 - | C46: 0 | D46: 0 | E46: 0 | F46: 0 | G46: 0 | H46: 0 | I46: 0 | K46: 0
A47: ='Org structure'!A16 -> Vote 15 - Other | C47: 0 | D47: 0 | E47: 0 | F47: 0 | G47: 0 | H47: 0 | I47: 0 | K47: 0
A48: Total Revenue by Vote | B48: 2 | C48: =C6+C8+C10+C12+C14+C22+C37+C40+C41+C42+C43+C44+C45+C46+C47 -> 362037719.8 | D48: 366280832 | E48: 379180832 | F48: 4556157.77 | G48: 241770651.8 | H48: 213126174 | I48: 28644477.77 | J48: 0.1344015014 | K48: =K6+K8+K10+K12+K14+K22+K37+K40+K41+K42+K43+K44+K45+K46+K47 -> 379180832
I49: 0
A50: Expenditure by Vote | B50: 1 | I50: 0
A51: ='Org structure'!A2 -> Vote 01 - Executive & Council | C51: =SUM(C52:C52) -> 17689242.32 | D51: 20161905 | E51: 20261905 | F51: 1433577.32 | G51: 10358227.16 | H51: 11805669.44 | I51: -1447442.28 | J51: -0.1226056927 | K51: =SUM(K52:K52) -> 20261905
A52: ='Org structure'!E3 -> 01.1 - Council General | C52: 17689242.32 | D52: 20161905 | E52: 20261905 | F52: 1433577.32 | G52: 10358227.16 | H52: 11805669.44 | I52: =G52-H52 -> -1447442.28 | J52: =IF(I52=0,"",I52/H52) -> -0.1226056927 | K52: 20261905
A53: ='Org structure'!A3 -> Vote 02 - Finance And Administration | C53: =SUM(C54:C54) -> 44299539.37 | D53: 39401869 | E53: 39401869 | F53: 2743282.36 | G53: 26076509.11 | H53: 22984535 | I53: 3091974.11 | J53: 0.1345241098 | K53: =SUM(K54:K54) -> 39401869
A54: ='Org structure'!E5 -> 02.1 - Municipal Manager | C54: 44299539.37 | D54: 39401869 | E54: 39401869 | F54: 2743282.36 | G54: 26076509.11 | H54: 22984535 | I54: =G54-H54 -> 3091974.11 | J54: =IF(I54=0,"",I54/H54) -> 0.1345241098 | K54: 39401869
A55: ='Org structure'!A4 -> Vote 03 - Community Service | C55: =SUM(C56:C56) -> 55286048.23 | D55: 47545033 | E55: 47545033 | F55: 2036783.99 | G55: 16840805.06 | H55: 27734728 | I55: -10893922.94 | J55: -0.3927899686 | K55: =SUM(K56:K56) -> 47545033
A56: ='Org structure'!E7 -> 03.1 - Finance Services Administration | C56: 55286048.23 | D56: 47545033 | E56: 47545033 | F56: 2036783.99 | G56: 16840805.06 | H56: 27734728 | I56: =G56-H56 -> -10893922.94 | J56: =IF(I56=0,"",I56/H56) -> -0.3927899686 | K56: 47545033
A57: ='Org structure'!A5 -> Vote 04 - Public And Safety | C57: =SUM(C58:C58) -> 57689051.49 | D57: 66141641 | E57: 66041641 | F57: 4738085.71 | G57: 31441955.92 | H57: 38538323.56 | I57: =G57-H57 -> -7096367.64 | J57: =IF(I57=0,"",I57/H57) -> -0.1841379433 | K57: =SUM(K58:K58) -> 66041641
A58: ='Org structure'!E9 -> 04.1 - Corporate Services Administration | C58: 57689051.49 | D58: 66141641 | E58: 66041641 | F58: 4738085.71 | G58: 31441955.92 | H58: 38538323.56 | I58: =G58-H58 -> -7096367.64 | J58: =IF(I58=0,"",I58/H58) -> -0.1841379433 | K58: 66041641
A59: ='Org structure'!A6 -> Vote 05 - Waste Management | C59: =SUM(C60:C66) -> 94326888.62 | D59: 111600239 | E59: 118500239 | F59: 7333256.71 | G59: 56519890.17 | H59: 67687850 | I59: -11167959.83 | J59: -0.1649920899 | K59: =SUM(K60:K66) -> 118500239
A60: ='Org structure'!E11 -> 05.1 - Technical Services Administration | C60: 4533546.13 | D60: 6456848 | E60: 6456848 | F60: 549511.77 | G60: 3556376.89 | H60: 3766560 | I60: =G60-H60 -> -210183.11 | J60: =IF(I60=0,"",I60/H60) -> -0.05580240591 | K60: 6456848
A61: ='Org structure'!E12 -> 05.2 - Electrical Services | C61: 61158898.92 | D61: 62947971 | E61: 62947971 | F61: 4852623.42 | G61: 43625407.77 | H61: 36719725 | I61: 6905682.77 | J61: 0.1880646647 | K61: 62947971
A62: ='Org structure'!E13 -> 05.3 - Water Services | C62: 0 | D62: 0 | E62: 0 | F62: 0 | G62: 0 | H62: 0 | I62: 0 | K62: 0
A63: ='Org structure'!E14 -> 05.4 - Sanitation Services | C63: 0 | D63: 0 | E63: 0 | F63: 0 | G63: 0 | H63: 0 | I63: 0 | K63: 0
A64: ='Org structure'!E15 -> 05.5 - Roads Services | C64: 28634443.57 | D64: 42195420 | E64: 49095420 | F64: 1931121.52 | G64: 9338105.51 | H64: 27201565 | I64: -17863459.49 | J64: -0.6567070494 | K64: 49095420
A65: ='Org structure'!E16 -> 05.6 - Storm Water Services | C65: 0 | D65: 0 | E65: 0 | F65: 0 | G65: 0 | H65: 0 | I65: 0 | K65: 0
A66: ='Org structure'!E17 -> 05.7 - Water Reporting Function | C66: 0 | D66: 0 | E66: 0 | F66: 0 | G66: 0 | H66: 0 | I66: 0 | K66: 0
A67: ='Org structure'!A7 -> Vote 06 - Roads Services | C67: =SUM(C68:C81) -> 37826573 | D67: 42076362 | E67: 42076362 | F67: 3206477.79 | G67: 23868584.64 | H67: 24544723 | I67: -676138.36 | J67: -0.02754719864 | K67: =SUM(K68:K81) -> 42076362
A68: ='Org structure'!E19 -> 06.1 - Community Services Administration | C68: 16626759.42 | D68: 21463665 | E68: 21463665 | F68: 1125505.08 | G68: 12107911.14 | H68: 12520578 | I68: =G68-H68 -> -412666.86 | J68: =IF(I68=0,"",I68/H68) -> -0.03295909023 | K68: 21463665
A69: ='Org structure'!E20 -> 06.2 - Traffic Services | C69: 0 | D69: 0 | E69: 0 | F69: 0 | G69: 0 | H69: 0 | I69: 0 | K69: 0
A70: ='Org structure'!E21 -> 06.3 - Traffic Services | C70: 17687741.82 | D70: 15612697 | E70: 15612697 | F70: 1482180.72 | G70: 9852194.75 | H70: 9107462 | I70: 744732.75 | J70: 0.08177171093 | K70: 15612697
A71: ='Org structure'!E22 -> 06.4 - Libraries | C71: 0 | D71: 0 | E71: 0 | F71: 0 | G71: 0 | H71: 0 | I71: 0 | K71: 0
A72: ='Org structure'!E23 -> 06.5 - Sport | C72: 0 | D72: 0 | E72: 0 | F72: 0 | G72: 0 | H72: 0 | I72: 0 | K72: 0
A73: ='Org structure'!E24 -> 06.6 - Cemetery | C73: 0 | D73: 0 | E73: 0 | F73: 0 | G73: 0 | H73: 0 | I73: 0 | K73: 0
A74: ='Org structure'!E25 -> 06.7 - Refuse | C74: 3512071.76 | D74: 4800000 | E74: 4800000 | F74: 598791.99 | G74: 1799028.75 | H74: 2800014 | I74: -1000985.25 | J74: -0.3574929447 | K74: 4800000
A75: ='Org structure'!E26 -> 06.8 - Pound Services | C75: 0 | D75: 0 | E75: 0 | F75: 0 | G75: 0 | H75: 0 | I75: 0 | K75: 0
A76: ='Org structure'!E27 -> 06.9 - Pound Services | C76: 0 | D76: 200000 | E76: 200000 | F76: 0 | G76: 109450 | H76: 116669 | I76: -7219 | J76: -0.06187590534 | K76: 200000
A77: ='Org structure'!E28 -> 06.10 - Satellite Offices | C77: 0 | D77: 0 | E77: 0 | F77: 0 | G77: 0 | H77: 0 | I77: 0 | K77: 0
A78: ='Org structure'!E29 -> 06.11 - Alldays Offices | C78: 0 | D78: 0 | E78: 0 | F78: 0 | G78: 0 | H78: 0 | I78: 0 | K78: 0
A79: ='Org structure'!E30 -> 06.12 - Eldorado Offices | C79: 0 | D79: 0 | E79: 0 | F79: 0 | G79: 0 | H79: 0 | I79: 0 | K79: 0
A80: ='Org structure'!E31 -> 06.13 - Tolwe Offices | C80: 0 | D80: 0 | E80: 0 | F80: 0 | G80: 0 | H80: 0 | I80: 0 | K80: 0
A81: ='Org structure'!E32 -> 06.14 - Senwabarwarna Offices | C81: 0 | D81: 0 | E81: 0 | F81: 0 | G81: 0 | H81: 0 | I81: 0 | K81: 0
A82: ='Org structure'!A8 -> Vote 07 - Econominc Development And Planning | C82: =SUM(C83:C84) -> 14964747.32 | D82: 14594722 | E82: 14594722 | F82: 952703.59 | G82: 6434590.43 | H82: 8513687 | I82: -2079096.57 | J82: -0.2442063668 | K82: =SUM(K83:K84) -> 14594722
A83: ='Org structure'!E34 -> 07.1 - Project Management Unit | C83: 0 | D83: 567640 | E83: 567640 | F83: 77000 | G83: 117504 | H83: 331128 | I83: =G83-H83 -> -213624 | J83: =IF(I83=0,"",I83/H83) -> -0.6451402479 | K83: 567640
A84: ='Org structure'!E35 -> 07.2 - Economic Development And Planning | C84: 14964747.32 | D84: 14027082 | E84: 14027082 | F84: 875703.59 | G84: 6317086.43 | H84: 8182559 | I84: =G84-H84 -> -1865472.57 | J84: =IF(I84=0,"",I84/H84) -> -0.2279815605 | K84: 14027082
A85: ='Org structure'!A9 -> Vote 08 - | C85: 0 | D85: 0 | E85: 0 | F85: 0 | G85: 0 | H85: 0 | I85: 0 | K85: 0
A86: ='Org structure'!A10 -> Vote 09 - | C86: 0 | D86: 0 | E86: 0 | F86: 0 | G86: 0 | H86: 0 | I86: =G86-H86 -> 0 | J86: =IF(I86=0,"",I86/H86) ->  | K86: 0
A87: ='Org structure'!A11 -> Vote 10 - | C87: 0 | D87: 0 | E87: 0 | F87: 0 | G87: 0 | H87: 0 | I87: 0 | K87: 0
A88: ='Org structure'!A12 -> Vote 11 - | C88: 0 | D88: 0 | E88: 0 | F88: 0 | G88: 0 | H88: 0 | I88: 0 | K88: 0
A89: ='Org structure'!A13 -> Vote 12 - | C89: 0 | D89: 0 | E89: 0 | F89: 0 | G89: 0 | H89: 0 | I89: 0 | K89: 0
A90: ='Org structure'!A14 -> Vote 13 - | C90: 0 | D90: 0 | E90: 0 | F90: 0 | G90: 0 | H90: 0 | I90: 0 | K90: 0
A91: ='Org structure'!A15 -> Vote 14 - | C91: 0 | D91: 0 | E91: 0 | F91: 0 | G91: 0 | H91: 0 | I91: 0 | K91: 0
A92: ='Org structure'!A16 -> Vote 15 - Other | C92: 0 | D92: 0 | E92: 0 | F92: 0 | G92: 0 | H92: 0 | I92: =G92-H92 -> 0 | J92: =IF(I92=0,"",I92/H92) ->  | K92: 0
A93: Total Expenditure by Vote | B93: 2 | C93: =C51+C53+C55+C57+C59+C67+C82+C85+C86+C87+C88+C89+C90+C91+C92 -> 322082090.3 | D93: 341521771 | E93: 348421771 | F93: 22444167.47 | G93: 171540562.5 | H93: 201809516 | I93: -30268953.51 | J93: -0.1499877415 | K93: =K51+K53+K55+K57+K59+K67+K82+K85+K86+K87+K88+K89+K90+K91+K92 -> 348421771
I94: 0 | L94: =#REF!-#REF! ->  | M94: =#REF!-#REF! ->  | N94: =#REF!-#REF! ->  | O94: =#REF!-#REF! ->  | P94: =#REF!-#REF! ->  | Q94: =#REF!-#REF! ->  | R94: =#REF!-#REF! ->  | S94: =#REF!-#REF! ->  | T94: =#REF!-#REF! ->  | U94: =#REF!-#REF! ->  | V94: =#REF!-#REF! ->  | W94: =#REF!-#REF! -> 
A95: =result -> Surplus/ (Deficit) for the year | B95: 2 | C95: =C48-C93 -> 39955629.44 | D95: 24759061 | E95: 30759061 | F95: -17888009.7 | G95: 70230089.28 | H95: 11316658 | I95: 58913431.28 | J95: 5.205903658 | K95: =K48-K93 -> 30759061
A96: =head27a -> References
A97: 1. Insert 'Vote'; e.g. Department, if different to standard structure
A98: 2. Must reconcile to Financial Performance ('Revenue and Expenditure by Standard Classification' and 'Revenue and Expenditure')
A99: 3. Assign share in 'associate' to relevant Vote
A101: check revenue
A102: check expenditure

Sheet C4-FinPerf RE
A1: =muni& " - "&S71B& " - "&date -> LIM351 Blouberg - Table C4 Monthly Budget Statement - Financial Performance (revenue and expenditure) - M07 January
A2: =desc -> Description | B2: =head27 -> Ref | C2: =Head1 -> 2020/21 | D2: =Head2 -> Budget Year 2021/22
C3: =Head5 -> Audited Outcome | D3: =Head6 -> Original Budget | E3: =Head7 -> Adjusted Budget | F3: =Head38 -> Monthly actual | G3: =Head39 -> YearTD actual | H3: =Head40 -> YearTD budget | I3: =Head41 -> YTD variance | J3: =Head41 -> YTD variance | K3: =Head8 -> Full Year Forecast
A4: R thousands | J4: %
A5: Revenue By Source
A6: Property rates | C6: 27729305.13 | D6: 31243927 | E6: 31243927 | F6: 397804.47 | G6: 27339133.92 | H6: 18225571 | I6: =G6-H6 -> 9113562.92 | J6: =IF(I6=0,"",I6/H6) -> 0.5000426555 | K6: 31243927
A7: Service charges - electricity revenue | C7: 28825554.81 | D7: 41676042 | E7: 41676042 | F7: 2642791.73 | G7: 16612895.01 | H7: 24311014 | I7: -7698118.99 | J7: -0.3166514975 | K7: 41676042
A8: Service charges - water revenue | C8: -0.2 | D8: 0 | E8: 0 | F8: 337946.32 | G8: 1262642.61 | H8: 0 | I8: 1262642.61 | K8: 0
A9: Service charges - sanitation revenue | C9: 2570.44 | D9: 0 | E9: 0 | F9: 138846.24 | G9: 729347.89 | H9: 0 | I9: 729347.89 | K9: 0
A10: Service charges - refuse revenue | C10: 1436054.3 | D10: 1198903 | E10: 1198903 | F10: 156355.8 | G10: 1345387.03 | H10: 699356 | I10: 646031.03 | J10: 0.9237513226 | K10: 1198903
A12: Rental of facilities and equipment | C12: 0 | D12: 231080 | E12: 231080 | F12: 0 | G12: 0 | H12: 134792 | I12: -134792 | J12: -1 | K12: 231080
A13: Interest earned - external investments | C13: 1535693.45 | D13: 1910120 | E13: 1910120 | F13: 1.94 | G13: 489898.5 | H13: 1114232 | I13: -624333.5 | J13: -0.5603263055 | K13: 1910120
A14: Interest earned - outstanding debtors | C14: 2249950.81 | D14: 1682300 | E14: 1682300 | F14: 208186.71 | G14: 1679529.4 | H14: 981323 | I14: 698206.4 | J14: 0.711494992 | K14: 1682300
A15: Dividends received | I15: 0
A16: Fines, penalties and forfeits | C16: 4782.96 | D16: 3809390 | E16: 3809390 | F16: 5350 | G16: 108146.53 | H16: 2222136 | I16: -2113989.47 | J16: -0.9513321732 | K16: 3809390
A17: Licences and permits | C17: 3824031.21 | D17: 4617176 | E17: 4617176 | F17: 436352.58 | G17: 1739067.61 | H17: 2693341 | I17: -954273.39 | J17: -0.3543084184 | K17: 4617176
A18: Agency services | C18: 40 | D18: 1166000 | E18: 1166000 | F18: 0 | G18: 0 | H18: 680162 | I18: -680162 | J18: -1 | K18: 1166000
A19: Transfers and subsidies | C19: 239282517.3 | D19: 207281000 | E19: 214181000 | F19: 0 | G19: 154701112 | H19: 120626412 | I19: 34074700 | J19: 0.2824812529 | K19: 214181000
A20: Other revenue | C20: 1250915.12 | D20: 14700894 | E20: 14700894 | F20: 232521.98 | G20: 678316.4 | H20: 8575504 | I20: -7897187.6 | J20: -0.9209006957 | K20: 14700894
A21: Gains | C21: 0 | D21: 0 | E21: 0 | F21: 0 | G21: 0 | H21: 0 | I21: 0 | K21: 0
A22: Total Revenue (excluding capital transfers and contributions) | C22: =SUM(C6:C10)+SUM(C12:C21) -> 306141415.4 | D22: 309516832 | E22: 316416832 | F22: 4556157.77 | G22: 206685476.9 | H22: 180263843 | I22: 26421633.9 | J22: 0.1465720106 | K22: =SUM(K6:K10)+SUM(K12:K21) -> 316416832
A24: Expenditure By Type
A25: Employee related costs | C25: 115571613.6 | D25: 133004351 | E25: 133004351 | F25: 9708441.77 | G25: 67976055.36 | H25: 77586348 | I25: =G25-H25 -> -9610292.64 | J25: =IF(I25=0,"",I25/H25) -> -0.1238657688 | K25: 133004351
A26: Remuneration of councillors | C26: 16412060.03 | D26: 18841061 | E26: 18841061 | F26: 1403472.66 | G26: 9681126.32 | H26: 10990693 | I26: -1309566.68 | J26: -0.1191523301 | K26: 18841061
A27: Debt impairment | C27: 20754372.09 | D27: 9271744 | E27: 9271744 | F27: 0 | G27: 0 | H27: 5408522 | I27: -5408522 | J27: -1 | K27: 9271744
A28: Depreciation & asset impairment | C28: 31622576.58 | D28: 40140615 | E28: 40140615 | F28: 0 | G28: 14676968.51 | H28: 23415385 | I28: -8738416.49 | J28: -0.3731912369 | K28: 40140615
A29: Finance charges | I29: 0
A30: Bulk purchases - electricity | C30: 36471695.57 | D30: 42506000 | E30: 42506000 | F30: 4058984.23 | G30: 29680860.88 | H30: 24795169 | I30: 4885691.88 | J30: 0.1970420883 | K30: 42506000
A31: Inventory consumed | C31: 2037331.78 | D31: 2650000 | E31: 2650000 | F31: 187600 | G31: 984011.83 | H31: 1545845 | I31: -561833.17 | J31: -0.3634472861 | K31: 2650000
A32: Contracted services | C32: 62836296.14 | D32: 53234768 | E32: 60139768 | F32: 3977033.15 | G32: 25769497.59 | H32: 33667716.73 | I32: -7898219.14 | J32: -0.2345932516 | K32: 60139768
A33: Transfers and subsidies | C33: 0 | D33: 0 | E33: 50000 | F33: 13750 | G33: 49860 | H33: 27272.7 | I33: 22587.3 | J33: 0.8282018282 | K33: 50000
A34: Other expenditure | C34: 35923441.76 | D34: 41873232 | E34: 41818232 | F34: 3094885.66 | G34: 22722182 | H34: 24372564.57 | I34: -1650382.57 | J34: -0.0677147686 | K34: 41818232
A35: Losses | C35: 452702.77 | D35: 0 | E35: 0 | F35: 0 | G35: 0 | H35: 0 | I35: 0 | K35: 0
A36: Total Expenditure | C36: =SUM(C25:C35) -> 322082090.3 | D36: =SUM(D25:D35) -> 341521771 | E36: =SUM(E25:E35) -> 348421771 | F36: 22444167.47 | G36: 171540562.5 | H36: 201809516 | I36: -30268953.51 | J36: -0.1499877415 | K36: 348421771
A38: Surplus/(Deficit) | C38: =C22-C36 -> -15940674.98 | D38: -32004939 | E38: -32004939 | F38: -17888009.7 | G38: 35144914.41 | H38: -21545673 | I38: =I22-I36 -> 56690587.41 | J38: -2.63118202 | K38: =K22-K36 -> -32004939
A39: Transfers and subsidies - capital (monetary allocations) (National / Provincial and District) | C39: 55896304.42 | D39: 56764000 | E39: 62764000 | F39: 0 | G39: 35085174.87 | H39: 32862331 | I39: =G39-H39 -> 2222843.87 | J39: 0.06764108943 | K39: 62764000
A40: Transfers and subsidies - capital (monetary allocations) (National / Provincial Departmental Agencies, Households, Non-profit Institutions, Private Enterprises, Public Corporatons, Higher Educational Institutions) | I40: =G40-H40 -> 0
A41: Transfers and subsidies - capital (in-kind - all) | I41: =G41-H41 -> 0
A42: Surplus/(Deficit) after capital transfers & contributions | C42: =C38+SUM(C39:C41) -> 39955629.44 | D42: 24759061 | E42: 30759061 | F42: -17888009.7 | G42: 70230089.28 | H42: 11316658 | K42: =K38+SUM(K39:K41) -> 30759061
A43: Taxation | I43: =G43-H43 -> 0 | J43: =IF(I43=0,"",I43/H43) -> 
A44: Surplus/(Deficit) after taxation | C44: =C42-C43 -> 39955629.44 | D44: 24759061 | E44: 30759061 | F44: -17888009.7 | G44: 70230089.28 | H44: 11316658 | K44: =K42-K43 -> 30759061
A45: Attributable to minorities
A46: Surplus/(Deficit) attributable to municipality | C46: =SUM(C44:C45) -> 39955629.44 | D46: 24759061 | E46: 30759061 | F46: -17888009.7 | G46: 70230089.28 | H46: 11316658 | K46: =SUM(K44:K45) -> 30759061
A47: Share of surplus/ (deficit) of associate
A48: Surplus/ (Deficit) for the year | C48: =C46+C47 -> 39955629.44 | D48: 24759061 | E48: 30759061 | F48: -17888009.7 | G48: 70230089.28 | H48: 11316658 | K48: =K46+K47 -> 30759061
A49: =head27a -> References
A50: 1. Material variances to be explained on Table SC1
A53: =A22&" including capital transfers/contributions etc" -> Total Revenue (excluding capital transfers and contributions) including capital transfers/contributions etc | C53: =C22+SUM(C39:C41) -> 362037719.8 | D53: 366280832 | E53: 379180832 | F53: 4556157.77 | G53: 241770651.8 | H53: 213126174 | K53: =K22+SUM(K39:K41) -> 379180832

Sheet C5-Capex
A1: =muni& " - "&S71D& " - "&date -> LIM351 Blouberg - Table C5 Monthly Budget Statement - Capital Expenditure (municipal vote, functional classification and funding) - M07 January
A2: =Vdesc -> Vote Description | B2: =head27 -> Ref | C2: =Head1 -> 2020/21 | D2: =Head2 -> Budget Year 2021/22
C3: =Head5 -> Audited Outcome | D3: =Head6 -> Original Budget | E3: =Head7 -> Adjusted Budget | F3: =Head38 -> Monthly actual | G3: =Head39 -> YearTD actual | H3: =Head40 -> YearTD budget | I3: =Head41 -> YTD variance | J3: =Head41 -> YTD variance | K3: =Head8 -> Full Year Forecast
A4: R thousands | B4: 1 | J4: %
A5: Multi-Year expenditure appropriation | B5: 2
A6: ='Org structure'!A2 -> Vote 01 - Executive & Council | C6: ='C5C'!C7 -> 0 | D6: ='C5C'!D7 -> 0 | E6: ='C5C'!E7 -> 0 | F6: ='C5C'!F7 -> 0 | G6: ='C5C'!G7 -> 0 | H6: ='C5C'!H7 -> 0 | I6: =G6-H6 -> 0 | J6: =IF(I6=0,"",I6/H6) ->  | K6: ='C5C'!K7 -> 0
A7: ='Org structure'!A3 -> Vote 02 - Finance And Administration | C7: ='C5C'!C9 -> 0 | D7: ='C5C'!D9 -> 0 | E7: ='C5C'!E9 -> 0 | F7: ='C5C'!F9 -> 0 | G7: ='C5C'!G9 -> 0 | H7: ='C5C'!H9 -> 0 | I7: 0 | K7: ='C5C'!K9 -> 0
A8: ='Org structure'!A4 -> Vote 03 - Community Service | C8: ='C5C'!C11 -> 0 | D8: ='C5C'!D11 -> 0 | E8: ='C5C'!E11 -> 0 | F8: ='C5C'!F11 -> 0 | G8: ='C5C'!G11 -> 0 | H8: ='C5C'!H11 -> 0 | I8: 0 | K8: ='C5C'!K11 -> 0
A9: ='Org structure'!A5 -> Vote 04 - Public And Safety | C9: ='C5C'!C13 -> 0 | D9: ='C5C'!D13 -> 0 | E9: ='C5C'!E13 -> 0 | F9: ='C5C'!F13 -> 0 | G9: ='C5C'!G13 -> 0 | H9: ='C5C'!H13 -> 0 | I9: 0 | K9: ='C5C'!K13 -> 0
A10: ='Org structure'!A6 -> Vote 05 - Waste Management | C10: ='C5C'!C15 -> 0 | D10: ='C5C'!D15 -> 0 | E10: ='C5C'!E15 -> 0 | F10: ='C5C'!F15 -> 0 | G10: ='C5C'!G15 -> 0 | H10: ='C5C'!H15 -> 0 | I10: 0 | K10: ='C5C'!K15 -> 0
A11: ='Org structure'!A7 -> Vote 06 - Roads Services | C11: ='C5C'!C23 -> 0 | D11: ='C5C'!D23 -> 0 | E11: ='C5C'!E23 -> 0 | F11: ='C5C'!F23 -> 0 | G11: ='C5C'!G23 -> 0 | H11: ='C5C'!H23 -> 0 | I11: 0 | K11: ='C5C'!K23 -> 0
A12: ='Org structure'!A8 -> Vote 07 - Econominc Development And Planning | C12: ='C5C'!C38 -> 0 | D12: ='C5C'!D38 -> 0 | E12: ='C5C'!E38 -> 0 | F12: ='C5C'!F38 -> 0 | G12: ='C5C'!G38 -> 0 | H12: ='C5C'!H38 -> 0 | I12: 0 | K12: ='C5C'!K38 -> 0
A13: ='Org structure'!A9 -> Vote 08 - | C13: ='C5C'!C41 -> 0 | D13: ='C5C'!D41 -> 0 | E13: ='C5C'!E41 -> 0 | F13: ='C5C'!F41 -> 0 | G13: ='C5C'!G41 -> 0 | H13: ='C5C'!H41 -> 0 | I13: =G13-H13 -> 0 | J13: =IF(I13=0,"",I13/H13) ->  | K13: ='C5C'!K41 -> 0
A14: ='Org structure'!A10 -> Vote 09 - | C14: ='C5C'!C42 -> 0 | D14: ='C5C'!D42 -> 0 | E14: ='C5C'!E42 -> 0 | F14: ='C5C'!F42 -> 0 | G14: ='C5C'!G42 -> 0 | H14: ='C5C'!H42 -> 0 | I14: 0 | K14: ='C5C'!K42 -> 0
A15: ='Org structure'!A11 -> Vote 10 - | C15: ='C5C'!C43 -> 0 | D15: ='C5C'!D43 -> 0 | E15: ='C5C'!E43 -> 0 | F15: ='C5C'!F43 -> 0 | G15: ='C5C'!G43 -> 0 | H15: ='C5C'!H43 -> 0 | I15: 0 | K15: ='C5C'!K43 -> 0
A16: ='Org structure'!A12 -> Vote 11 - | C16: ='C5C'!C44 -> 0 | D16: ='C5C'!D44 -> 0 | E16: ='C5C'!E44 -> 0 | F16: ='C5C'!F44 -> 0 | G16: ='C5C'!G44 -> 0 | H16: ='C5C'!H44 -> 0 | I16: 0 | K16: ='C5C'!K44 -> 0
A17: ='Org structure'!A13 -> Vote 12 - | C17: ='C5C'!C45 -> 0 | D17: ='C5C'!D45 -> 0 | E17: ='C5C'!E45 -> 0 | F17: ='C5C'!F45 -> 0 | G17: ='C5C'!G45 -> 0 | H17: ='C5C'!H45 -> 0 | I17: 0 | K17: ='C5C'!K45 -> 0
A18: ='Org structure'!A14 -> Vote 13 - | C18: ='C5C'!C46 -> 0 | D18: ='C5C'!D46 -> 0 | E18: ='C5C'!E46 -> 0 | F18: ='C5C'!F46 -> 0 | G18: ='C5C'!G46 -> 0 | H18: ='C5C'!H46 -> 0 | I18: =G18-H18 -> 0 | J18: =IF(I18=0,"",I18/H18) ->  | K18: ='C5C'!K46 -> 0
A19: ='Org structure'!A15 -> Vote 14 - | C19: ='C5C'!C47 -> 0 | D19: ='C5C'!D47 -> 0 | E19: ='C5C'!E47 -> 0 | F19: ='C5C'!F47 -> 0 | G19: ='C5C'!G47 -> 0 | H19: ='C5C'!H47 -> 0 | I19: =G19-H19 -> 0 | J19: =IF(I19=0,"",I19/H19) ->  | K19: ='C5C'!K47 -> 0
A20: ='Org structure'!A16 -> Vote 15 - Other | C20: ='C5C'!C48 -> 0 | D20: ='C5C'!D48 -> 0 | E20: ='C5C'!E48 -> 0 | F20: ='C5C'!F48 -> 0 | G20: ='C5C'!G48 -> 0 | H20: ='C5C'!H48 -> 0 | I20: =G20-H20 -> 0 | J20: =IF(I20=0,"",I20/H20) ->  | K20: ='C5C'!K48 -> 0
A21: Total Capital Multi-year expenditure | B21: 4,7 | C21: =SUM(C6:C20) -> 0 | D21: =SUM(D6:D20) -> 0 | E21: 0 | F21: 0 | G21: 0 | H21: 0 | I21: 0 | J21: =IF(I21=0,"",I21/H21) ->  | K21: =SUM(K6:K20) -> 0
A23: Single Year expenditure appropriation | B23: 2
A24: ='C5C'!A53 -> Vote 01 - Executive & Council | C24: ='C5C'!C53 -> 0 | D24: ='C5C'!D53 -> 0 | E24: ='C5C'!E53 -> 0 | F24: ='C5C'!F53 -> 0 | G24: ='C5C'!G53 -> 0 | H24: ='C5C'!H53 -> 0 | I24: =G24-H24 -> 0 | J24: =IF(I24=0,"",I24/H24) ->  | K24: ='C5C'!K53 -> 0
A25: ='C5C'!A55 -> Vote 02 - Finance And Administration | C25: ='C5C'!C55 -> 175337.45 | D25: ='C5C'!D55 -> 150000 | E25: ='C5C'!E55 -> 150000 | F25: ='C5C'!F55 -> 0 | G25: ='C5C'!G55 -> 96995 | H25: ='C5C'!H55 -> 87507 | I25: 9488 | J25: 0.1084256117 | K25: ='C5C'!K55 -> 150000
A26: ='C5C'!A57 -> Vote 03 - Community Service | C26: ='C5C'!C57 -> 228095.1 | D26: ='C5C'!D57 -> 0 | E26: ='C5C'!E57 -> 0 | F26: ='C5C'!F57 -> 0 | G26: ='C5C'!G57 -> 0 | H26: ='C5C'!H57 -> 0 | I26: 0 | K26: ='C5C'!K57 -> 0
A27: ='C5C'!A59 -> Vote 04 - Public And Safety | C27: ='C5C'!C59 -> 2113835.67 | D27: ='C5C'!D59 -> 3116000 | E27: ='C5C'!E59 -> 3116000 | F27: ='C5C'!F59 -> 681415.22 | G27: ='C5C'!G59 -> 1150824.1 | H27: ='C5C'!H59 -> 1817683 | I27: -666858.9 | J27: -0.3668730466 | K27: ='C5C'!K59 -> 3116000
A28: ='C5C'!A61 -> Vote 05 - Waste Management | C28: ='C5C'!C61 -> 53545176.29 | D28: ='C5C'!D61 -> 4346955 | E28: ='C5C'!E61 -> 10346955 | F28: ='C5C'!F61 -> 1075.27 | G28: ='C5C'!G61 -> 1054269.65 | H28: ='C5C'!H61 -> 4785743 | I28: -3731473.35 | J28: -0.779706171 | K28: ='C5C'!K61 -> 10346955
A29: ='C5C'!A69 -> Vote 06 - Roads Services | C29: ='C5C'!C69 -> 1164355.86 | D29: ='C5C'!D69 -> 1380000 | E29: ='C5C'!E69 -> 1420000 | F29: ='C5C'!F69 -> 0 | G29: ='C5C'!G69 -> 395344.3 | H29: ='C5C'!H69 -> 828333.31 | I29: -432989.01 | J29: -0.5227231656 | K29: ='C5C'!K69 -> 1420000
A30: ='C5C'!A84 -> Vote 07 - Econominc Development And Planning | C30: ='C5C'!C84 -> 146560 | D30: ='C5C'!D84 -> 59150960 | E30: ='C5C'!E84 -> 59110960 | F30: ='C5C'!F84 -> 0 | G30: ='C5C'!G84 -> 31133126.84 | H30: ='C5C'!H84 -> 34481416.69 | I30: -3348289.85 | J30: -0.09710418456 | K30: ='C5C'!K84 -> 59110960
A31: ='Org structure'!A9 -> Vote 08 - | C31: ='C5C'!C87 -> 0 | D31: ='C5C'!D87 -> 0 | E31: ='C5C'!E87 -> 0 | F31: ='C5C'!F87 -> 0 | G31: ='C5C'!G87 -> 0 | H31: ='C5C'!H87 -> 0 | I31: ='C5C'!I87 -> 0 | J31: =IF(I31=0,"",I31/H31) ->  | K31: ='C5C'!K87 -> 0
A32: ='Org structure'!A10 -> Vote 09 - | C32: ='C5C'!C88 -> 0 | D32: ='C5C'!D88 -> 0 | E32: ='C5C'!E88 -> 0 | F32: ='C5C'!F88 -> 0 | G32: ='C5C'!G88 -> 0 | H32: ='C5C'!H88 -> 0 | I32: ='C5C'!I88 -> 0 | K32: ='C5C'!K88 -> 0
A33: ='Org structure'!A11 -> Vote 10 - | C33: ='C5C'!C89 -> 0 | D33: ='C5C'!D89 -> 0 | E33: ='C5C'!E89 -> 0 | F33: ='C5C'!F89 -> 0 | G33: ='C5C'!G89 -> 0 | H33: ='C5C'!H89 -> 0 | I33: ='C5C'!I89 -> 0 | K33: ='C5C'!K89 -> 0
A34: ='Org structure'!A12 -> Vote 11 - | C34: ='C5C'!C90 -> 0 | D34: ='C5C'!D90 -> 0 | E34: ='C5C'!E90 -> 0 | F34: ='C5C'!F90 -> 0 | G34: ='C5C'!G90 -> 0 | H34: ='C5C'!H90 -> 0 | I34: ='C5C'!I90 -> 0 | K34: ='C5C'!K90 -> 0
A35: ='Org structure'!A13 -> Vote 12 - | C35: ='C5C'!C91 -> 0 | D35: ='C5C'!D91 -> 0 | E35: ='C5C'!E91 -> 0 | F35: ='C5C'!F91 -> 0 | G35: ='C5C'!G91 -> 0 | H35: ='C5C'!H91 -> 0 | I35: ='C5C'!I91 -> 0 | K35: ='C5C'!K91 -> 0
A36: ='Org structure'!A14 -> Vote 13 - | C36: ='C5C'!C92 -> 0 | D36: ='C5C'!D92 -> 0 | E36: ='C5C'!E92 -> 0 | F36: ='C5C'!F92 -> 0 | G36: ='C5C'!G92 -> 0 | H36: ='C5C'!H92 -> 0 | I36: ='C5C'!I92 -> 0 | K36: ='C5C'!K92 -> 0
A37: ='Org structure'!A15 -> Vote 14 - | C37: ='C5C'!C93 -> 0 | D37: ='C5C'!D93 -> 0 | E37: ='C5C'!E93 -> 0 | F37: ='C5C'!F93 -> 0 | G37: ='C5C'!G93 -> 0 | H37: ='C5C'!H93 -> 0 | I37: ='C5C'!I93 -> 0 | K37: ='C5C'!K93 -> 0
A38: ='Org structure'!A16 -> Vote 15 - Other | C38: ='C5C'!C94 -> 0 | D38: ='C5C'!D94 -> 0 | E38: ='C5C'!E94 -> 0 | F38: ='C5C'!F94 -> 0 | G38: ='C5C'!G94 -> 0 | H38: ='C5C'!H94 -> 0 | I38: ='C5C'!I94 -> 0 | K38: ='C5C'!K94 -> 0
A39: Total Capital single-year expenditure | B39: 4 | C39: =SUM(C24:C38) -> 57373360.37 | D39: 68143915 | E39: 74143915 | F39: 682490.49 | G39: 33830559.89 | H39: 42000683 | I39: -8170123.11 | J39: -0.1945235774 | K39: =SUM(K24:K38) -> 74143915
A40: Total Capital Expenditure | C40: =C39+C21 -> 57373360.37 | D40: 68143915 | E40: 74143915 | F40: 682490.49 | G40: 33830559.89 | H40: 42000683 | I40: -8170123.11 | J40: =IF(I40=0,"",I40/H40) -> -0.1945235774 | K40: =K39+K21 -> 74143915
A42: Capital Expenditure - Functional Classification
A43: Governance and administration | C43: =SUM(C44:C46) -> 2517268.22 | D43: 3266000 | E43: 3266000 | F43: 681415.22 | G43: 1247819.1 | H43: 1905190 | I43: =G43-H43 -> -657370.9 | J43: =IF(I43=0,"",I43/H43) -> -0.3450421743 | K43: =SUM(K44:K46) -> 3266000
A44: Executive and council | C44: 175337.45 | D44: 150000 | E44: 150000 | F44: 0 | G44: 96995 | H44: 87507 | I44: 9488 | J44: =IF(I44=0,"",I44/H44) -> 0.1084256117 | K44: 150000
A45: Finance and administration | C45: 2341930.77 | D45: 3116000 | E45: 3116000 | F45: 681415.22 | G45: 1150824.1 | H45: 1817683 | I45: -666858.9 | J45: -0.3668730466 | K45: 3116000
A46: Internal audit | I46: 0
A47: Community and public safety | C47: =SUM(C48:C52) -> 152532.85 | D47: 330000 | E47: 330000 | F47: 0 | G47: 0 | H47: 192500 | I47: -192500 | J47: -1 | K47: =SUM(K48:K52) -> 330000
A48: Community and social services | I48: 0
A49: Sport and recreation | I49: 0
A50: Public safety | C50: 152532.85 | D50: 330000 | E50: 330000 | F50: 0 | G50: 0 | H50: 192500 | I50: -192500 | J50: -1 | K50: 330000
A51: Housing | I51: 0
A52: Health | I52: 0
A53: Economic and environmental services | C53: =SUM(C54:C56) -> 41303948.68 | D53: 59200960 | E53: 65160960 | F53: 1075.27 | G53: 31182202.11 | H53: 36760585.69 | I53: -5578383.58 | J53: -0.1517490398 | K53: =SUM(K54:K56) -> 65160960
A54: Planning and development | C54: 146560 | D54: 59150960 | E54: 59110960 | F54: 0 | G54: 31133126.84 | H54: 34481416.69 | I54: -3348289.85 | J54: -0.09710418456 | K54: 59110960
A55: Road transport | C55: 41157388.68 | D55: 50000 | E55: 6050000 | F55: 1075.27 | G55: 49075.27 | H55: 2279169 | I55: -2230093.73 | J55: -0.9784679109 | K55: 6050000
A56: Environmental protection | I56: 0
A57: Trading services | C57: =SUM(C58:C61) -> 13399610.62 | D57: 5346955 | E57: 5386955 | F57: 0 | G57: 1400538.68 | H57: 3142407.31 | I57: -1741868.63 | J57: -0.5543102654 | K57: =SUM(K58:K61) -> 5386955
A58: Energy sources | C58: 12387787.61 | D58: 4296955 | E58: 4296955 | F58: 0 | G58: 1005194.38 | H58: 2506574 | I58: -1501379.62 | J58: -0.5989767787 | K58: 4296955
A59: Water management | I59: 0
A60: Waste water management | C60: 0 | D60: 0 | E60: 0 | F60: 0 | G60: 0 | H60: 0 | I60: 0 | K60: 0
A61: Waste management | C61: 1011823.01 | D61: 1050000 | E61: 1090000 | F61: 0 | G61: 395344.3 | H61: 635833.31 | I61: -240489.01 | J61: -0.3782265041 | K61: 1090000
A62: Other | I62: 0
A63: Total Capital Expenditure - Functional Classification | B63: 3 | C63: =C43+C47+C53+C57+C62 -> 57373360.37 | D63: =D43+D47+D53+D57+D62 -> 68143915 | E63: 74143915 | F63: 682490.49 | G63: 33830559.89 | H63: 42000683 | I63: -8170123.11 | J63: -0.1945235774 | K63: =K43+K47+K53+K57+K62 -> 74143915
A65: Funded by:
A66: National Government | C66: 47312568.13 | D66: 56196360 | E66: 62196360 | F66: 0 | G66: 30473626.84 | H66: 35031224 | I66: =G66-H66 -> -4557597.16 | J66: =IF(I66=0,"",I66/H66) -> -0.1301009968 | K66: 62196360
A67: Provincial Government | I67: 0
A68: District Municipality | I68: 0
A69: ='C4-FinPerf RE'!A40 -> Transfers and subsidies - capital (monetary allocations) (National / Provincial Departmental Agencies, Households, Non-profit Institutions, Private Enterprises, Public Corporatons, Higher Educational Institutions) | C69: 0 | D69: 0 | E69: 0 | F69: 0 | G69: 0 | H69: 0 | I69: 0 | K69: 0
A70: Transfers recognised - capital | C70: =SUM(C66:C69) -> 47312568.13 | D70: 56196360 | E70: 62196360 | F70: 0 | G70: 30473626.84 | H70: 35031224 | I70: -4557597.16 | J70: -0.1301009968 | K70: =SUM(K66:K69) -> 62196360
A72: Borrowing | B72: 6 | C72: 0 | D72: 0 | E72: 0 | F72: 0 | G72: 0 | H72: 0 | I72: 0 | K72: 0
A73: Internally generated funds | C73: 10060792.24 | D73: 11947555 | E73: 11947555 | F73: 682490.49 | G73: 3356933.05 | H73: 6969459 | I73: -3612525.95 | J73: -0.5183366385 | K73: 11947555
A74: Total Capital Funding | C74: =+C70+C72+C73 -> 57373360.37 | D74: 68143915 | E74: 74143915 | F74: 682490.49 | G74: 33830559.89 | H74: 42000683 | I74: -8170123.11 | J74: -0.1945235774 | K74: =+K70+K72+K73 -> 74143915
A75: =head27a -> References
A76: 1. Municipalities may choose to appropriate for capital expenditure for three years or for one year (if one year appropriation projected expenditure required for yr2 and yr3).
A77: 2. Include capital component of PPP unitary payment
A78: 3. Capital expenditure by functional classification must reconcile to the total of multi-year and single year appropriations
A79: 4. Include expenditure on investment property, intangible and biological assets
A81: 6. Include finance leases and PPP capital funding component of unitary payment - total borrowing/repayments to reconcile to changes in Table SA17
A86: check balance | C86: =C40-C74 -> 0 | D86: =D40-D74 -> 0 | E86: 0 | F86: 0 | G86: 0 | H86: 0 | K86: 0

Sheet C5C
A1: =muni& " - "&S71D& " - "&"A"& " - "&date -> LIM351 Blouberg - Table C5 Monthly Budget Statement - Capital Expenditure (municipal vote, functional classification and funding) - A - M07 January
A2: =Vdesc -> Vote Description | B2: =head27 -> Ref | C2: =Head1 -> 2020/21 | D2: =Head2 -> Budget Year 2021/22 | L2: =Head4 -> 
A3: R thousand | C3: =Head5 -> Audited Outcome | D3: =Head6 -> Original Budget | E3: =Head7 -> Adjusted Budget | F3: =Head38 -> Monthly actual | G3: =Head39 -> YearTD actual | H3: =Head40 -> YearTD budget | I3: =Head41 -> YTD variance | J3: =Head41 -> YTD variance | K3: =Head8 -> Full Year Forecast | L3: =Head12 -> Forecast 2010/11 | M3: =Head13 -> Forecast 2011/12 | N3: =Head14 -> Forecast 2012/13 | O3: =Head15 -> Forecast 2013/14 | P3: =Head16 -> Forecast 2014/15 | Q3: =Head17 -> Forecast 2015/16 | R3: =Head18 -> Forecast 2016/17 | S3: =Head19 -> Forecast 2017/18 | T3: =Head20 -> Forecast 2018/19 | U3: =Head21 -> Forecast 2019/20 | V3: =Head22 -> Forecast 2020/21 | W3: =Head23 -> Forecast 2021/22
J4: %
A5: Capital expenditure - Municipal Vote
A6: Expenditure of multi-year capital appropriation | B6: 1
A7: ='Org structure'!A2 -> Vote 01 - Executive & Council | C7: =SUM(C8:C8) -> 0 | D7: 0 | E7: 0 | F7: 0 | G7: 0 | H7: 0 | I7: =G7-H7 -> 0 | J7: =IF(I7=0,"",I7/H7) ->  | K7: =SUM(K8:K8) -> 0
A8: ='Org structure'!E3 -> 01.1 - Council General | I8: =G8-H8 -> 0 | J8: =IF(I8=0,"",I8/H8) ->  | K8: 0
A9: ='Org structure'!A3 -> Vote 02 - Finance And Administration | C9: =SUM(C10:C10) -> 0 | D9: 0 | E9: 0 | F9: 0 | G9: 0 | H9: 0 | I9: 0 | K9: =SUM(K10:K10) -> 0
A10: ='Org structure'!E5 -> 02.1 - Municipal Manager | I10: =G10-H10 -> 0 | J10: =IF(I10=0,"",I10/H10) ->  | K10: 0
A11: ='Org structure'!A4 -> Vote 03 - Community Service | C11: =SUM(C12:C12) -> 0 | D11: 0 | E11: 0 | F11: 0 | G11: 0 | H11: 0 | I11: 0 | K11: =SUM(K12:K12) -> 0
A12: ='Org structure'!E7 -> 03.1 - Finance Services Administration | I12: =G12-H12 -> 0 | J12: =IF(I12=0,"",I12/H12) ->  | K12: 0
A13: ='Org structure'!A5 -> Vote 04 - Public And Safety | C13: =SUM(C14:C14) -> 0 | D13: 0 | E13: 0 | F13: 0 | G13: 0 | H13: 0 | I13: 0 | K13: =SUM(K14:K14) -> 0
A14: ='Org structure'!E9 -> 04.1 - Corporate Services Administration | I14: =G14-H14 -> 0 | J14: =IF(I14=0,"",I14/H14) ->  | K14: 0
A15: ='Org structure'!A6 -> Vote 05 - Waste Management | C15: =SUM(C16:C22) -> 0 | D15: 0 | E15: 0 | F15: 0 | G15: 0 | H15: 0 | I15: 0 | K15: =SUM(K16:K22) -> 0
A16: ='Org structure'!E11 -> 05.1 - Technical Services Administration | I16: =G16-H16 -> 0 | J16: =IF(I16=0,"",I16/H16) ->  | K16: 0
A17: ='Org structure'!E12 -> 05.2 - Electrical Services | I17: 0 | K17: 0
A18: ='Org structure'!E13 -> 05.3 - Water Services | I18: 0 | K18: 0
A19: ='Org structure'!E14 -> 05.4 - Sanitation Services | I19: 0 | K19: 0
A20: ='Org structure'!E15 -> 05.5 - Roads Services | I20: 0 | K20: 0
A21: ='Org structure'!E16 -> 05.6 - Storm Water Services | I21: 0 | K21: 0
A22: ='Org structure'!E17 -> 05.7 - Water Reporting Function | I22: 0 | K22: 0
A23: ='Org structure'!A7 -> Vote 06 - Roads Services | C23: =SUM(C24:C37) -> 0 | D23: 0 | E23: 0 | F23: 0 | G23: 0 | H23: 0 | I23: 0 | K23: =SUM(K24:K37) -> 0
A24: ='Org structure'!E19 -> 06.1 - Community Services Administration | I24: =G24-H24 -> 0 | J24: =IF(I24=0,"",I24/H24) ->  | K24: 0
A25: ='Org structure'!E20 -> 06.2 - Traffic Services | I25: 0 | K25: 0
A26: ='Org structure'!E21 -> 06.3 - Traffic Services | I26: 0 | K26: 0
A27: ='Org structure'!E22 -> 06.4 - Libraries | I27: 0 | K27: 0
A28: ='Org structure'!E23 -> 06.5 - Sport | I28: 0 | K28: 0
A29: ='Org structure'!E24 -> 06.6 - Cemetery | I29: 0 | K29: 0
A30: ='Org structure'!E25 -> 06.7 - Refuse | I30: 0 | K30: 0
A31: ='Org structure'!E26 -> 06.8 - Pound Services | I31: 0 | K31: 0
A32: ='Org structure'!E27 -> 06.9 - Pound Services | I32: 0 | K32: 0
A33: ='Org structure'!E28 -> 06.10 - Satellite Offices | I33: 0 | K33: 0
A34: ='Org structure'!E29 -> 06.11 - Alldays Offices | I34: 0 | K34: 0
A35: ='Org structure'!E30 -> 06.12 - Eldorado Offices | I35: 0 | K35: 0
A36: ='Org structure'!E31 -> 06.13 - Tolwe Offices | I36: 0 | K36: 0
A37: ='Org structure'!E32 -> 06.14 - Senwabarwarna Offices | I37: 0 | K37: 0
A38: ='Org structure'!A8 -> Vote 07 - Econominc Development And Planning | C38: =SUM(C39:C40) -> 0 | D38: 0 | E38: 0 | F38: 0 | G38: 0 | H38: 0 | I38: =G38-H38 -> 0 | J38: =IF(I38=0,"",I38/H38) ->  | K38: =SUM(K39:K40) -> 0
A39: ='Org structure'!E34 -> 07.1 - Project Management Unit | I39: =G39-H39 -> 0 | J39: =IF(I39=0,"",I39/H39) ->  | K39: 0
A40: ='Org structure'!E35 -> 07.2 - Economic Development And Planning | I40: =G40-H40 -> 0 | J40: =IF(I40=0,"",I40/H40) ->  | K40: 0
A41: ='Org structure'!A9 -> Vote 08 - | C41: 0 | D41: 0 | E41: 0 | F41: 0 | G41: 0 | H41: 0 | I41: 0 | K41: 0
A42: ='Org structure'!A10 -> Vote 09 - | C42: 0 | D42: 0 | E42: 0 | F42: 0 | G42: 0 | H42: 0 | I42: 0 | K42: 0
A43: ='Org structure'!A11 -> Vote 10 - | C43: 0 | D43: 0 | E43: 0 | F43: 0 | G43: 0 | H43: 0 | I43: 0 | K43: 0
A44: ='Org structure'!A12 -> Vote 11 - | C44: 0 | D44: 0 | E44: 0 | F44: 0 | G44: 0 | H44: 0 | I44: 0 | K44: 0
A45: ='Org structure'!A13 -> Vote 12 - | C45: 0 | D45: 0 | E45: 0 | F45: 0 | G45: 0 | H45: 0 | I45: 0 | K45: 0
A46: ='Org structure'!A14 -> Vote 13 - | C46: 0 | D46: 0 | E46: 0 | F46: 0 | G46: 0 | H46: 0 | I46: =G46-H46 -> 0 | J46: =IF(I46=0,"",I46/H46) ->  | K46: 0
A47: ='Org structure'!A15 -> Vote 14 - | C47: 0 | D47: 0 | E47: 0 | F47: 0 | G47: 0 | H47: 0 | I47: 0 | K47: 0
A48: ='Org structure'!A16 -> Vote 15 - Other | C48: 0 | D48: 0 | E48: 0 | F48: 0 | G48: 0 | H48: 0 | I48: 0 | K48: 0
A49: Total multi-year capital expenditure | C49: =C7+C9+C11+C13+C15+C23+C38+C41+C42+C43+C44+C45+C46+C47+C48 -> 0 | D49: 0 | E49: 0 | F49: 0 | G49: 0 | H49: 0 | I49: 0 | K49: =K7+K9+K11+K13+K15+K23+K38+K41+K42+K43+K44+K45+K46+K47+K48 -> 0
I50: 0
A51: Capital expenditure - Municipal Vote
A52: Expenditue of single-year capital appropriation | B52: 1 | I52: 0
A53: ='Org structure'!A2 -> Vote 01 - Executive & Council | C53: =SUM(C54:C54) -> 0 | D53: 0 | E53: 0 | F53: 0 | G53: 0 | H53: 0 | I53: 0 | K53: =SUM(K54:K54) -> 0
A54: ='Org structure'!E3 -> 01.1 - Council General | C54: 0 | D54: 0 | E54: 0 | F54: 0 | G54: 0 | H54: 0 | I54: 0 | K54: 0
A55: ='Org structure'!A3 -> Vote 02 - Finance And Administration | C55: =SUM(C56:C56) -> 175337.45 | D55: 150000 | E55: 150000 | F55: 0 | G55: 96995 | H55: 87507 | I55: 9488 | J55: 0.1084256117 | K55: =SUM(K56:K56) -> 150000
A56: ='Org structure'!E5 -> 02.1 - Municipal Manager | C56: 175337.45 | D56: 150000 | E56: 150000 | F56: 0 | G56: 96995 | H56: 87507 | I56: 9488 | J56: 0.1084256117 | K56: 150000
A57: ='Org structure'!A4 -> Vote 03 - Community Service | C57: =SUM(C58:C58) -> 228095.1 | D57: 0 | E57: 0 | F57: 0 | G57: 0 | H57: 0 | I57: 0 | K57: =SUM(K58:K58) -> 0
A58: ='Org structure'!E7 -> 03.1 - Finance Services Administration | C58: 228095.1 | D58: 0 | E58: 0 | F58: 0 | G58: 0 | H58: 0 | I58: 0 | K58: 0
A59: ='Org structure'!A5 -> Vote 04 - Public And Safety | C59: =SUM(C60:C60) -> 2113835.67 | D59: 3116000 | E59: 3116000 | F59: 681415.22 | G59: 1150824.1 | H59: 1817683 | I59: =G59-H59 -> -666858.9 | J59: =IF(I59=0,"",I59/H59) -> -0.3668730466 | K59: =SUM(K60:K60) -> 3116000
A60: ='Org structure'!E9 -> 04.1 - Corporate Services Administration | C60: 2113835.67 | D60: 3116000 | E60: 3116000 | F60: 681415.22 | G60: 1150824.1 | H60: 1817683 | I60: -666858.9 | J60: -0.3668730466 | K60: 3116000
A61: ='Org structure'!A6 -> Vote 05 - Waste Management | C61: =SUM(C62:C68) -> 53545176.29 | D61: 4346955 | E61: 10346955 | F61: 1075.27 | G61: 1054269.65 | H61: 4785743 | I61: -3731473.35 | J61: -0.779706171 | K61: =SUM(K62:K68) -> 10346955
A62: ='Org structure'!E11 -> 05.1 - Technical Services Administration | C62: 0 | D62: 0 | E62: 0 | F62: 0 | G62: 0 | H62: 0 | I62: 0 | K62: 0
A63: ='Org structure'!E12 -> 05.2 - Electrical Services | C63: 12387787.61 | D63: 4296955 | E63: 4296955 | F63: 0 | G63: 1005194.38 | H63: 2506574 | I63: -1501379.62 | J63: -0.5989767787 | K63: 4296955
A64: ='Org structure'!E13 -> 05.3 - Water Services | C64: 0 | D64: 0 | E64: 0 | F64: 0 | G64: 0 | H64: 0 | I64: 0 | K64: 0
A65: ='Org structure'!E14 -> 05.4 - Sanitation Services | C65: 0 | D65: 0 | E65: 0 | F65: 0 | G65: 0 | H65: 0 | I65: 0 | K65: 0
A66: ='Org structure'!E15 -> 05.5 - Roads Services | C66: 41157388.68 | D66: 50000 | E66: 6050000 | F66: 1075.27 | G66: 49075.27 | H66: 2279169 | I66: -2230093.73 | J66: -0.9784679109 | K66: 6050000
A67: ='Org structure'!E16 -> 05.6 - Storm Water Services | C67: 0 | D67: 0 | E67: 0 | F67: 0 | G67: 0 | H67: 0 | I67: 0 | K67: 0
A68: ='Org structure'!E17 -> 05.7 - Water Reporting Function | C68: 0 | D68: 0 | E68: 0 | F68: 0 | G68: 0 | H68: 0 | I68: 0 | K68: 0
A69: ='Org structure'!A7 -> Vote 06 - Roads Services | C69: =SUM(C70:C83) -> 1164355.86 | D69: 1380000 | E69: 1420000 | F69: 0 | G69: 395344.3 | H69: 828333.31 | I69: -432989.01 | J69: -0.5227231656 | K69: =SUM(K70:K83) -> 1420000
A70: ='Org structure'!E19 -> 06.1 - Community Services Administration | C70: 1011823.01 | D70: 1050000 | E70: 1090000 | F70: 0 | G70: 395344.3 | H70: 635833.31 | I70: -240489.01 | J70: -0.3782265041 | K70: 1090000
A71: ='Org structure'!E20 -> 06.2 - Traffic Services | C71: 0 | D71: 0 | E71: 0 | F71: 0 | G71: 0 | H71: 0 | I71: 0 | K71: 0
A72: ='Org structure'!E21 -> 06.3 - Traffic Services | C72: 152532.85 | D72: 330000 | E72: 330000 | F72: 0 | G72: 0 | H72: 192500 | I72: -192500 | J72: -1 | K72: 330000
A73: ='Org structure'!E22 -> 06.4 - Libraries | C73: 0 | D73: 0 | E73: 0 | F73: 0 | G73: 0 | H73: 0 | I73: 0 | K73: 0
A74: ='Org structure'!E23 -> 06.5 - Sport | C74: 0 | D74: 0 | E74: 0 | F74: 0 | G74: 0 | H74: 0 | I74: 0 | K74: 0
A75: ='Org structure'!E24 -> 06.6 - Cemetery | C75: 0 | D75: 0 | E75: 0 | F75: 0 | G75: 0 | H75: 0 | I75: 0 | K75: 0
A76: ='Org structure'!E25 -> 06.7 - Refuse | C76: 0 | D76: 0 | E76: 0 | F76: 0 | G76: 0 | H76: 0 | I76: 0 | K76: 0
A77: ='Org structure'!E26 -> 06.8 - Pound Services | C77: 0 | D77: 0 | E77: 0 | F77: 0 | G77: 0 | H77: 0 | I77: 0 | K77: 0
A78: ='Org structure'!E27 -> 06.9 - Pound Services | C78: 0 | D78: 0 | E78: 0 | F78: 0 | G78: 0 | H78: 0 | I78: 0 | K78: 0
A79: ='Org structure'!E28 -> 06.10 - Satellite Offices | C79: 0 | D79: 0 | E79: 0 | F79: 0 | G79: 0 | H79: 0 | K79: 0
A80: ='Org structure'!E29 -> 06.11 - Alldays Offices | C80: 0 | D80: 0 | E80: 0 | F80: 0 | G80: 0 | H80: 0 | K80: 0
A81: ='Org structure'!E30 -> 06.12 - Eldorado Offices | C81: 0 | D81: 0 | E81: 0 | F81: 0 | G81: 0 | H81: 0 | K81: 0
A82: ='Org structure'!E31 -> 06.13 - Tolwe Offices | C82: 0 | D82: 0 | E82: 0 | F82: 0 | G82: 0 | H82: 0 | K82: 0
A83: ='Org structure'!E32 -> 06.14 - Senwabarwarna Offices | C83: 0 | D83: 0 | E83: 0 | F83: 0 | G83: 0 | H83: 0 | K83: 0
A84: ='Org structure'!A8 -> Vote 07 - Econominc Development And Planning | C84: =SUM(C85:C86) -> 146560 | D84: 59150960 | E84: 59110960 | F84: 0 | G84: 31133126.84 | H84: 34481416.69 | I84: -3348289.85 | J84: -0.09710418456 | K84: =SUM(K85:K86) -> 59110960
A85: ='Org structure'!E34 -> 07.1 - Project Management Unit | C85: 0 | D85: 59110960 | E85: 59110960 | F85: 0 | G85: 31133126.84 | H85: 34481412 | I85: -3348285.16 | J85: -0.09710406175 | K85: 59110960
A86: ='Org structure'!E35 -> 07.2 - Economic Development And Planning | C86: 146560 | D86: 40000 | E86: 0 | F86: 0 | G86: 0 | H86: 4.69 | I86: -4.69 | J86: -1 | K86: 0
A87: ='Org structure'!A9 -> Vote 08 - | C87: 0 | D87: 0 | E87: 0 | F87: 0 | G87: 0 | H87: 0 | I87: 0 | K87: 0
A88: ='Org structure'!A10 -> Vote 09 - | C88: 0 | D88: 0 | E88: 0 | F88: 0 | G88: 0 | H88: 0 | I88: =G88-H88 -> 0 | J88: =IF(I88=0,"",I88/H88) ->  | K88: 0
A89: ='Org structure'!A11 -> Vote 10 - | C89: 0 | D89: 0 | E89: 0 | F89: 0 | G89: 0 | H89: 0 | I89: 0 | K89: 0
A90: ='Org structure'!A12 -> Vote 11 - | C90: 0 | D90: 0 | E90: 0 | F90: 0 | G90: 0 | H90: 0 | I90: 0 | K90: 0
A91: ='Org structure'!A13 -> Vote 12 - | C91: 0 | D91: 0 | E91: 0 | F91: 0 | G91: 0 | H91: 0 | I91: 0 | K91: 0
A92: ='Org structure'!A14 -> Vote 13 - | C92: 0 | D92: 0 | E92: 0 | F92: 0 | G92: 0 | H92: 0 | I92: 0 | K92: 0
A93: ='Org structure'!A15 -> Vote 14 - | C93: 0 | D93: 0 | E93: 0 | F93: 0 | G93: 0 | H93: 0 | I93: 0 | K93: 0
A94: ='Org structure'!A16 -> Vote 15 - Other | C94: 0 | D94: 0 | E94: 0 | F94: 0 | G94: 0 | H94: 0 | I94: =G94-H94 -> 0 | J94: =IF(I94=0,"",I94/H94) ->  | K94: 0
A95: Total single-year capital expenditure | C95: =C53+C55+C57+C59+C61+C69+C84+C87+C88+C89+C90+C91+C92+C93+C94 -> 57373360.37 | D95: 68143915 | E95: 74143915 | F95: 682490.49 | G95: 33830559.89 | H95: 42000683 | I95: -8170123.11 | J95: -0.1945235774 | K95: =K53+K55+K57+K59+K61+K69+K84+K87+K88+K89+K90+K91+K92+K93+K94 -> 74143915
A96: Total Capital Expenditure | C96: =C49+C95 -> 57373360.37 | D96: 68143915 | E96: 74143915 | F96: 682490.49 | G96: 33830559.89 | H96: 42000683 | I96: -8170123.11 | J96: -0.1945235774 | K96: =K49+K95 -> 74143915
A97: =head27a -> References
A98: 1. Insert 'Vote'; e.g. Department, if different to standard structure

Sheet C6-FinPos
A1: =muni& " - "&S71E& " - "&date -> LIM351 Blouberg - Table C6 Monthly Budget Statement - Financial Position - M07 January
A2: =desc -> Description | B2: =head27 -> Ref | C2: =Head1 -> 2020/21 | D2: =Head2 -> Budget Year 2021/22
C3: =Head5 -> Audited Outcome | D3: =Head6 -> Original Budget | E3: =Head7 -> Adjusted Budget | F3: =Head39 -> YearTD actual | G3: =Head8 -> Full Year Forecast
A4: R thousands | B4: 1
A5: ASSETS
A6: Current assets
A7: Cash | C7: 134775322.1 | D7: 72822814 | E7: 72822814 | F7: 73818937.19 | G7: 72822814
A8: Call investment deposits | C8: -91797156.54 | D8: 8108657 | E8: 8108657 | F8: 8517199.03 | G8: 8108657
A9: Consumer debtors | C9: 92965118.47 | D9: 122606081 | E9: 122606081 | F9: 122263451.8 | G9: 122606081
A10: Other debtors | C10: 10081363.62 | D10: 2852175 | E10: 2852175 | F10: 13342135.89 | G10: 2852175
A11: Current portion of long-term receivables
A12: Inventory | C12: 4643332.85 | D12: 0 | E12: 0 | F12: 4643332.85 | G12: 0
A13: Total current assets | C13: =SUM(C7:C12) -> 150667980.5 | D13: =SUM(D7:D12) -> 206389727 | E13: =SUM(E7:E12) -> 206389727 | F13: =SUM(F7:F12) -> 222585056.8 | G13: =SUM(G7:G12) -> 206389727
A15: Non current assets
A16: Long-term receivables
A17: Investments
A18: Investment property | C18: 7723000.01 | D18: 8544772 | E18: 8544772 | F18: 7723000.01 | G18: 8544772
A19: Investments in Associate
A20: Property, plant and equipment | C20: 991211532.3 | D20: 981686931 | E20: 987726931 | F20: 1010406492 | G20: 987726931
A22: Biological
A23: Intangible | C23: 699296.22 | D23: 412488 | E23: 372488 | F23: 657927.52 | G23: 372488
A24: Other non-current assets | C24: 0 | D24: 0 | E24: 0 | F24: 0 | G24: 0
A25: Total non current assets | C25: =SUM(C16:C20)+SUM(C22:C24) -> 999633828.5 | D25: =SUM(D16:D20)+SUM(D22:D24) -> 990644191 | E25: =SUM(E16:E20)+SUM(E22:E24) -> 996644191 | F25: =SUM(F16:F20)+SUM(F22:F24) -> 1018787420 | G25: =SUM(G16:G20)+SUM(G22:G24) -> 996644191
A26: TOTAL ASSETS | C26: =C13+C25 -> 1150301809 | D26: =D13+D25 -> 1197033918 | E26: =E13+E25 -> 1203033918 | F26: =F13+F25 -> 1241372477 | G26: =G13+G25 -> 1203033918
A28: LIABILITIES
A29: Current liabilities
A30: Bank overdraft | C30: 0 | D30: 0 | E30: 0 | F30: 0 | G30: 0
A31: Borrowing | C31: 0 | D31: 0 | E31: 0 | F31: 0 | G31: 0
A32: Consumer deposits | C32: -8680.44 | D32: 0 | E32: 0 | F32: -8680.44 | G32: 0
A33: Trade and other payables | C33: 104289563.8 | D33: 9445383 | E33: 9445383 | F33: 78703192.93 | G33: 9445383
A34: Provisions | C34: 0 | D34: 0 | E34: 0 | F34: 0 | G34: 0
A35: Total current liabilities | C35: =SUM(C30:C34) -> 104280883.3 | D35: =SUM(D30:D34) -> 9445383 | E35: =SUM(E30:E34) -> 9445383 | F35: =SUM(F30:F34) -> 78694512.49 | G35: =SUM(G30:G34) -> 9445383
A37: Non current liabilities
A38: Borrowing | C38: 1158502.44 | D38: 0 | E38: 0 | F38: 1158502.44 | G38: 0
A39: Provisions | C39: 21967487.77 | D39: 19940599 | E39: 19940599 | F39: 21967487.77 | G39: 19940599
A40: Total non current liabilities | C40: =SUM(C38:C39) -> 23125990.21 | D40: =SUM(D38:D39) -> 19940599 | E40: =SUM(E38:E39) -> 19940599 | F40: =SUM(F38:F39) -> 23125990.21 | G40: =SUM(G38:G39) -> 19940599
A41: TOTAL LIABILITIES | C41: =C35+C40 -> 127406873.6 | D41: =D35+D40 -> 29385982 | E41: =E35+E40 -> 29385982 | F41: =F35+F40 -> 101820502.7 | G41: =G35+G40 -> 29385982
A43: NET ASSETS | B43: 2 | C43: =C26-C41 -> 1022894935 | D43: =D26-D41 -> 1167647936 | E43: =E26-E41 -> 1173647936 | F43: =F26-F41 -> 1139551974 | G43: =G26-G41 -> 1173647936
A45: COMMUNITY WEALTH/EQUITY
A46: Accumulated Surplus/(Deficit) | C46: 1077672366 | D46: 1133107323 | E46: 1133107323 | F46: 1113213845 | G46: 1133107323
A47: Reserves | C47: 0 | D47: 0 | E47: 0 | F47: 0 | G47: 0
A48: TOTAL COMMUNITY WEALTH/EQUITY | B48: 2 | C48: =SUM(C46:C47) -> 1077672366 | D48: =SUM(D46:D47) -> 1133107323 | E48: =SUM(E46:E47) -> 1133107323 | F48: =SUM(F46:F47) -> 1113213845 | G48: =SUM(G46:G47) -> 1133107323
A49: =head27a -> References
A50: 1. Material variances to be explained in Table SC1
A51: 2. Net assets must balance with Total Community Wealth/Equity
A54: check balance | C54: =C43-C48 -> -54777430.85 | D54: =D43-D48 -> 34540613 | E54: =E43-E48 -> 40540613 | F54: =F43-F48 -> 26338129.3 | G54: =G43-G48 -> 40540613

Sheet C7-CFlow
A1: =muni& " - "&S71F& " - "&date -> LIM351 Blouberg - Table C7 Monthly Budget Statement - Cash Flow - M07 January
A2: =desc -> Description | B2: =head27 -> Ref | C2: =Head1 -> 2020/21 | D2: =Head2 -> Budget Year 2021/22
C3: =Head5 -> Audited Outcome | D3: =Head6 -> Original Budget | E3: =Head7 -> Adjusted Budget | F3: =Head38 -> Monthly actual | G3: =Head39 -> YearTD actual | H3: =Head40 -> YearTD budget | I3: =Head41 -> YTD variance | J3: =Head41 -> YTD variance | K3: =Head8 -> Full Year Forecast
A4: R thousands | B4: 1 | J4: %
A5: CASH FLOW FROM OPERATING ACTIVITIES
A6: Receipts
A7: Property rates | C7: 5583084.98 | D7: 28119535 | E7: 28119535 | F7: 323796.26 | G7: 2392509.15 | H7: 16403062.06 | I7: =G7-H7 -> -14010552.91 | J7: =IF(I7=0,"",I7/H7) -> -0.8541425289 | K7: 28119535
A8: Service charges | C8: 22994455.26 | D8: 38311460 | E8: 38311460 | F8: 2343134.48 | G8: 69105214.8 | H8: 22348351.69 | I8: 46756863.11 | J8: =IF(I8=0,"",I8/H8) -> 2.092183968 | K8: 38311460
A9: Other revenue | C9: 235718539 | D9: 28442800 | E9: 28442800 | F9: 1749030.71 | G9: -39646653.63 | H9: 16591633.45 | I9: -56238287.08 | J9: =IF(I9=0,"",I9/H9) -> -3.389556987 | K9: 28442800
A10: Transfers and Subsidies - Operational | C10: 0 | D10: 207281000 | E10: 207281000 | F10: 0 | G10: 162639000 | H10: 120913916.7 | I10: 41725083.31 | J10: =IF(I10=0,"",I10/H10) -> 0.345080901 | K10: 207281000
A11: Transfers and Subsidies - Capital | C11: 0 | D11: 56764000 | E11: 56764000 | F11: 0 | G11: 52843000 | H11: 33112333.31 | I11: 19730666.69 | J11: =IF(I11=0,"",I11/H11) -> 0.5958706233 | K11: 56764000
A12: Interest | C12: 0 | D12: 1910120 | E12: 1910120 | F12: 0 | G12: 0 | H12: 1114236.69 | I12: -1114236.69 | J12: -1 | K12: 1910120
A13: Dividends | I13: 0
A14: Payments
A15: Suppliers and employees | C15: -198789387.2 | D15: -290251587 | E15: -290251587 | F15: -14636980.09 | G15: -141671429.8 | H15: -169313425.8 | I15: =H15-G15 -> -27641995.92 | J15: 0.1632593269 | K15: -290251587
A16: Finance charges | I16: =H16-G16 -> 0
A17: Transfers and Grants | I17: =H17-G17 -> 0
A18: NET CASH FROM/(USED) OPERATING ACTIVITIES | C18: =SUM(C7:C13)+SUM(C15:C17) -> 65506691.98 | D18: 70577328 | E18: 70577328 | F18: -10221018.64 | G18: 105661640.5 | H18: 41170108.14 | I18: =H18-G18 -> -64491532.35 | J18: -1.566464973 | K18: =SUM(K7:K13)+SUM(K15:K17) -> 70577328
A20: CASH FLOWS FROM INVESTING ACTIVITIES
A21: Receipts
A22: Proceeds on disposal of PPE | C22: 0 | D22: 0 | E22: 0 | F22: 0 | G22: 0 | H22: 0 | I22: =G22-H22 -> 0 | J22: =IF(I22=0,"",I22/H22) ->  | K22: 0
A24: Decrease (increase) in non-current receivables | I24: =G24-H24 -> 0
A25: Decrease (increase) in non-current investments | I25: =G25-H25 -> 0
A26: Payments
A27: Capital assets | C27: -52108055.57 | D27: -68143915 | E27: -68143915 | F27: -682490.49 | G27: -33830559.89 | H27: -39750616.99 | I27: =H27-G27 -> -5920057.1 | J27: 0.1489299424 | K27: -68143915
A28: NET CASH FROM/(USED) INVESTING ACTIVITIES | C28: =SUM(C22:C25)+C27 -> -52108055.57 | D28: =SUM(D22:D25)+D27 -> -68143915 | E28: -68143915 | F28: -682490.49 | G28: -33830559.89 | H28: -39750616.99 | I28: =H28-G28 -> -5920057.1 | J28: 0.1489299424 | K28: =SUM(K22:K25)+K27 -> -68143915
A30: CASH FLOWS FROM FINANCING ACTIVITIES
A31: Receipts
A32: Short term loans | I32: =G32-H32 -> 0 | J32: =IF(I32=0,"",I32/H32) -> 
A33: Borrowing long term/refinancing | I33: =G33-H33 -> 0
A34: Increase (decrease) in consumer deposits | C34: 0 | D34: -8680.44 | E34: 0 | F34: 0 | G34: 8680.44 | H34: 0 | I34: =G34-H34 -> 8680.44 | K34: 0
A35: Payments
A36: Repayment of borrowing | I36: =H36-G36 -> 0
A37: NET CASH FROM/(USED) FINANCING ACTIVITIES | C37: =SUM(C32:C34)+C36 -> 0 | D37: -8680.44 | E37: 0 | F37: 0 | G37: 8680.44 | H37: 0 | I37: =H37-G37 -> -8680.44 | K37: =SUM(K32:K34)+K36 -> 0
A39: NET INCREASE/ (DECREASE) IN CASH HELD | C39: =C18+C28+C37 -> 13398636.41 | D39: 2424732.56 | E39: 2433413 | F39: -10903509.13 | G39: 71839761.04 | H39: 1419491.15 | K39: =K18+K28+K37 -> 2433413
A40: Cash/cash equivalents at beginning: | C40: 41507760.39 | D40: 77107274 | E40: 77107274 | F40: 0 | G40: 41330602.88
A41: Cash/cash equivalents at month/year end: | C41: =C39+C40 -> 54906396.8 | D41: =D39+D40 -> 79532006.56 | E41: =E39+E40 -> 79540687 | G41: =G39+G40 -> 113170363.9 | H41: =H39+H40 -> 1419491.15 | K41: =K39+K40 -> 2433413
A42: References
A43: 1. Material variances to be explained in Table SC1

Sheet SC1
A1: =muni& " - "&S71G& " - "&date -> LIM351 Blouberg - Supporting Table SC1 Material variance explanations - M07 January
A2: =head27 -> Ref | B2: =desc -> Description
C3: Variance | D3: Reasons for material deviations | E3: Remedial or corrective steps/remarks
B4: R thousands
A5: 1 | B5: ='C4-FinPerf RE'!A5 -> Revenue By Source
B6: Client elected not to populate this sheet
A10: 2 | B10: ='C4-FinPerf RE'!A24 -> Expenditure By Type
B11: Client elected not to populate this sheet
A15: 3 | B15: =RIGHT('C5-Capex'!A40,19) -> Capital Expenditure
B16: Client elected not to populate this sheet
A20: 4 | B20: Financial Position
B21: Client elected not to populate this sheet
A25: 5 | B25: Cash Flow
B26: Client elected not to populate this sheet
A30: 6 | B30: Measureable performance
B31: Client elected not to populate this sheet
A35: 7 | B35: Municipal Entities
B36: Client elected not to populate this sheet
A41: =head27a -> References
A42: 1. Revenue for each source, vote and standard classification
A43: 2. Expenditure for each type, vote and standard classification
A44: 3. Capital expenditure for each vote and standard classification
A45: 4. Explain any material variances between the annual budget and the expected financial position based on current trends
A46: 5. Cash receipts by source and cash payments by type where not explained under revenue and expenditure
A47: 6. For Sept, Dec, Mar and Jun statements explain any material variances in achievement of measurable performance objectives

Sheet SC2
A1: =muni& " - "&S71H& " - "&Head57 -> LIM351 Blouberg - Supporting Table SC2 Monthly Budget Statement - performance indicators - M07 January
A2: Description of financial indicator | B2: Basis of calculation | C2: =head27 -> Ref | D2: =Head1 -> 2020/21 | E2: =Head2 -> Budget Year 2021/22
D3: =Head5 -> Audited Outcome | E3: =Head6 -> Original Budget | F3: =Head7 -> Adjusted Budget | G3: =Head39 -> YearTD actual | H3: =Head8 -> Full Year Forecast
A5: Borrowing Management
A7: Capital Charges to Operating Expenditure | B7: Interest & principal paid/Operating Expenditure | D7: =IF(ISERROR((D42-D43)/D45),0,((D42-D43)/D45)) -> 0 | E7: =IF(ISERROR((E42+E44)/E45),0,((E42+E44)/E45)) -> 0.1175345715 | F7: =IF(ISERROR((F42+F44)/F45),0,((F42+F44)/F45)) -> 0.1152069656 | G7: =IF(ISERROR((G42+G44)/G45),0,((G42+G44)/G45)) -> 0 | H7: =IF(ISERROR((H42+H44)/H45),0,((H42+H44)/H45)) -> 0.05407544123
A8: Borrowed funding of 'own' capital expenditure | B8: Borrowings/Capital expenditure excl. transfers and grants | D8: =IF(ISERROR(D47/D46),0,(D47/D46)) -> 0 | E8: =IF(ISERROR(E47/E46),0,(E47/E46)) -> 0 | F8: =IF(ISERROR(F47/F46),0,(F47/F46)) -> 0 | G8: =IF(ISERROR(G47/G46),0,(G47/G46)) -> 0 | H8: =IF(ISERROR(H47/H46),0,(H47/H46)) -> 0
A9: Safety of Capital
A10: Debt to Equity | B10: Loans, Accounts Payable, Overdraft & Tax Provision/ Funds & Reserves | D10: =IF(ISERROR(D48/D49),0,(D48/D49)) -> 0.09784798192 | E10: =IF(ISERROR(E48/E49),0,(E48/E49)) -> 0.008335823808 | F10: =IF(ISERROR(F48/F49),0,(F48/F49)) -> 0.008335823808 | G10: =IF(ISERROR(G48/G49),0,(G48/G49)) -> 0.07173976119 | H10: =IF(ISERROR(H48/H49),0,(H48/H49)) -> 0.008335823808
A11: Gearing | B11: Long Term Borrowing/ Funds & Reserves | D11: =IF(ISERROR(D51/D50),0,(D51/D50)) -> 0 | E11: =IF(ISERROR(E51/E50),0,(E51/E50)) -> 0 | F11: =IF(ISERROR(F51/F50),0,(F51/F50)) -> 0 | G11: =IF(ISERROR(G51/G50),0,(G51/G50)) -> 0 | H11: =IF(ISERROR(H51/H50),0,(H51/H50)) -> 0
A12: Liquidity
A13: Current Ratio | B13: Current assets/current liabilities | C13: 1 | D13: =IF(ISERROR(D52/D53),0,(D52/D53)) -> 1.444828387 | E13: =IF(ISERROR(E52/E53),0,(E52/E53)) -> 21.85085846 | F13: =IF(ISERROR(F52/F53),0,(F52/F53)) -> 21.85085846 | G13: =IF(ISERROR(G52/G53),0,(G52/G53)) -> 2.828469861 | H13: =IF(ISERROR(H52/H53),0,(H52/H53)) -> 21.85085846
A14: Liquidity Ratio | B14: Monetary Assets/Current Liabilities | D14: =IF(ISERROR(D54/D53),0,(D54/D53)) -> 0.4121384875 | E14: =IF(ISERROR(E54/E53),0,(E54/E53)) -> 8.568363083 | F14: =IF(ISERROR(F54/F53),0,(F54/F53)) -> 8.568363083 | G14: =IF(ISERROR(G54/G53),0,(G54/G53)) -> 1.046275447 | H14: =IF(ISERROR(H54/H53),0,(H54/H53)) -> 8.568363083
A15: Revenue Management
A16: Annual Debtors Collection Rate (Payment Level %) | B16: Last 12 Mths Receipts/ Last 12 Mths Billing
A17: Outstanding Debtors to Revenue | B17: Total Outstanding Debtors to Annual Revenue | D17: =IF(ISERROR(D59/D55),0,(D59/D55)) -> 0.3365976536 | E17: =IF(ISERROR(E59/E55),0,(E59/E55)) -> 0.4053358106 | F17: =IF(ISERROR(F59/F55),0,(F59/F55)) -> 0.3964967831 | G17: =IF(ISERROR(G59/G55),0,(G59/G55)) -> 0.6560963536 | H17: =IF(ISERROR(H59/H55),0,(H59/H55)) -> 0.3964967831
A18: Longstanding Debtors Recovered | B18: Debtors > 12 Mths Recovered/Total Debtors > 12 Months Old | D18: =IF(ISERROR(D64/D63),0,(D64/D63)) -> 0 | E18: =IF(ISERROR(E64/E63),0,(E64/E63)) -> 0 | F18: =IF(ISERROR(F64/F63),0,(F64/F63)) -> 0 | G18: =IF(ISERROR(G64/G63),0,(G64/G63)) -> 0 | H18: =IF(ISERROR(H64/H63),0,(H64/H63)) -> 0
A19: Creditors Management
A20: Creditors System Efficiency | B20: % of Creditors Paid Within Terms (within MFMA s 65(e))
A21: Funding of Provisions
A22: Percentage Of Provisions Not Funded | B22: Unfunded Provisions/Total Provisions
A23: Other Indicators
A24: Electricity Distribution Losses | B24: % Volume (units purchased and generated less units sold)/units purchased and generated | C24: 2
A25: Water Distribution Losses | B25: % Volume (units purchased and own source less units sold)/Total units purchased and own source | C25: 2
A26: Employee costs | B26: Employee costs/Total Revenue - capital revenue | D26: =IF(ISERROR(D40/D55),0,(D40/D55)) -> 0.3775105485 | E26: =IF(ISERROR(E40/E55),0,(E40/E55)) -> 0.4297160518 | F26: =IF(ISERROR(F40/F55),0,(F40/F55)) -> 0.4203453721 | G26: =IF(ISERROR(G40/G55),0,(G40/G55)) -> 0.3288864626 | H26: =IF(ISERROR(H40/H55),0,(H40/H55)) -> 0.4203453721
A27: Repairs & Maintenance | B27: R&M/Total Revenue - capital revenue | D27: =IF(ISERROR(D41/D55),0,(D41/D55)) -> 0.05247487972 | E27: =IF(ISERROR(E41/E55),0,(E41/E55)) -> 0.03083192581 | F27: =IF(ISERROR(F41/F55),0,(F41/F55)) -> 0.05196626202 | G27: =IF(ISERROR(G41/G55),0,(G41/G55)) -> 0.02423790406 | H27: =IF(ISERROR(H41/H55),0,(H41/H55)) -> 0.05196626202
A28: Interest & Depreciation | B28: I&D/Total Revenue - capital revenue | D28: =IF(ISERROR((D42+D44)/D55),0,((D42+D44)/D55)) -> 0.1032940171 | E28: =IF(ISERROR((E42+E44)/E55),0,((E42+E44)/E55)) -> 0.1296879874 | F28: =IF(ISERROR((F42+F44)/F55),0,((F42+F44)/F55)) -> 0.1268599232 | G28: =IF(ISERROR((G42+G44)/G55),0,((G42+G44)/G55)) -> 0 | H28: =IF(ISERROR((H42+H44)/H55),0,((H42+H44)/H55)) -> 0.05954506554
A29: IDP regulation financial viability indicators
A30: i. Debt coverage | B30: (Total Operating Revenue - Operating Grants)/Debt service payments due within financial year)
A31: ii. O/S Service Debtors to Revenue | B31: Total outstanding service debtors/annual revenue received for services
A32: iii. Cost coverage | B32: (Available cash + Investments)/monthly fixed operational expenditure
A33: References
A34: 1. Consumer debtors > 12 months old are excluded from current assets.
A35: 2. Material variances to be explained.
A37: Calculations
A38: ='C6-FinPos'!A38 -> Borrowing | D38: ='C6-FinPos'!C38 -> 1158502.44 | E38: ='C6-FinPos'!D38 -> 0 | F38: ='C6-FinPos'!E38 -> 0 | G38: ='C6-FinPos'!F38 -> 1158502.44 | H38: 0
A39: Total Assets | D39: ='C6-FinPos'!C26 -> 1150301809 | E39: ='C6-FinPos'!D26 -> 1197033918 | F39: ='C6-FinPos'!E26 -> 1203033918 | G39: ='C6-FinPos'!F26 -> 1241372477 | H39: ='C6-FinPos'!G26 -> 1203033918
A40: ='C4-FinPerf RE'!A25 -> Employee related costs | D40: ='C4-FinPerf RE'!C25 -> 115571613.6 | E40: ='C4-FinPerf RE'!D25 -> 133004351 | F40: ='C4-FinPerf RE'!E25 -> 133004351 | G40: ='C4-FinPerf RE'!G25 -> 67976055.36 | H40: ='C4-FinPerf RE'!K25 -> 133004351
A41: =A27 -> Repairs & Maintenance | D41: 16064733.95 | E41: 9543000 | F41: 16443000 | G41: 5009622.76 | H41: 16443000
A42: Interest (finance charges) | D42: ='C4-FinPerf RE'!C29 -> 0 | E42: ='C4-FinPerf RE'!D29 -> 0 | F42: ='C4-FinPerf RE'!E29 -> 0 | G42: ='C4-FinPerf RE'!G29 -> 0 | H42: ='C4-FinPerf RE'!K29 -> 0
A43: Principal paid | D43: =-'C7-CFlow'!C36 -> 0 | E43: =-'C7-CFlow'!D36 -> 0 | F43: =-'C7-CFlow'!E36 -> 0 | G43: =-'C7-CFlow'!G36 -> 0 | H43: =-'C7-CFlow'!K36 -> 0
A44: Depreciation | D44: ='C4-FinPerf RE'!C28 -> 31622576.58 | E44: ='C4-FinPerf RE'!D28 -> 40140615 | F44: ='C4-FinPerf RE'!E28 -> 40140615 | H44: ='C4-FinPerf RE'!K26 -> 18841061
A45: Operating expenditure | D45: ='C4-FinPerf RE'!C36 -> 322082090.3 | E45: ='C4-FinPerf RE'!D36 -> 341521771 | F45: ='C4-FinPerf RE'!E36 -> 348421771 | G45: ='C4-FinPerf RE'!G36 -> 171540562.5 | H45: ='C4-FinPerf RE'!K36 -> 348421771
A46: ='C5-Capex'!A40 -> Total Capital Expenditure | D46: ='C5-Capex'!C40 -> 57373360.37 | E46: ='C5-Capex'!D40 -> 68143915 | F46: ='C5-Capex'!E40 -> 74143915 | G46: ='C5-Capex'!G40 -> 33830559.89 | H46: ='C5-Capex'!K40 -> 74143915
A47: Borrowed funding for capital | D47: ='C5-Capex'!C72 -> 0 | E47: ='C5-Capex'!D72 -> 0 | F47: ='C5-Capex'!E72 -> 0 | G47: ='C5-Capex'!G72 -> 0 | H47: ='C5-Capex'!K72 -> 0
A48: Debt | D48: ='C6-FinPos'!C30+'C6-FinPos'!C31+'C6-FinPos'!C33+'C6-FinPos'!C38 -> 105448066.2 | E48: ='C6-FinPos'!D30+'C6-FinPos'!D31+'C6-FinPos'!D33+'C6-FinPos'!D38 -> 9445383 | F48: ='C6-FinPos'!E30+'C6-FinPos'!E31+'C6-FinPos'!E33+'C6-FinPos'!E38 -> 9445383 | G48: ='C6-FinPos'!F30+'C6-FinPos'!F31+'C6-FinPos'!F33+'C6-FinPos'!F38 -> 79861695.37 | H48: ='C6-FinPos'!G30+'C6-FinPos'!G31+'C6-FinPos'!G33+'C6-FinPos'!G38 -> 9445383
A49: Equity | D49: ='C6-FinPos'!C48 -> 1077672366 | E49: ='C6-FinPos'!D48 -> 1133107323 | F49: ='C6-FinPos'!E48 -> 1133107323 | G49: ='C6-FinPos'!F48 -> 1113213845 | H49: ='C6-FinPos'!G48 -> 1133107323
A50: ='C6-FinPos'!A47 -> Reserves | D50: ='C6-FinPos'!C47 -> 0 | E50: ='C6-FinPos'!D47 -> 0 | F50: ='C6-FinPos'!E47 -> 0 | G50: ='C6-FinPos'!F47 -> 0 | H50: ='C6-FinPos'!G47 -> 0
A51: ='C6-FinPos'!A38 -> Borrowing | D51: ='C6-FinPos'!C38 -> 1158502.44 | E51: ='C6-FinPos'!D38 -> 0 | F51: ='C6-FinPos'!E38 -> 0 | G51: ='C6-FinPos'!F38 -> 1158502.44 | H51: ='C6-FinPos'!G38 -> 0
A52: ='C6-FinPos'!A6 -> Current assets | D52: ='C6-FinPos'!C13 -> 150667980.5 | E52: ='C6-FinPos'!D13 -> 206389727 | F52: ='C6-FinPos'!E13 -> 206389727 | G52: ='C6-FinPos'!F13 -> 222585056.8 | H52: ='C6-FinPos'!G13 -> 206389727
A53: ='C6-FinPos'!A29 -> Current liabilities | D53: ='C6-FinPos'!C35 -> 104280883.3 | E53: ='C6-FinPos'!D35 -> 9445383 | F53: ='C6-FinPos'!E35 -> 9445383 | G53: ='C6-FinPos'!F35 -> 78694512.49 | H53: ='C6-FinPos'!G35 -> 9445383
A54: Monetary assets | D54: ='C6-FinPos'!C7+'C6-FinPos'!C8 -> 42978165.54 | E54: ='C6-FinPos'!D7+'C6-FinPos'!D8 -> 80931471 | F54: ='C6-FinPos'!E7+'C6-FinPos'!E8 -> 80931471 | G54: ='C6-FinPos'!F7+'C6-FinPos'!F8 -> 82336136.22 | H54: ='C6-FinPos'!G7+'C6-FinPos'!G8 -> 80931471
A55: ='C4-FinPerf RE'!A22 -> Total Revenue (excluding capital transfers and contributions) | D55: ='C4-FinPerf RE'!C22 -> 306141415.4 | E55: ='C4-FinPerf RE'!D22 -> 309516832 | F55: ='C4-FinPerf RE'!E22 -> 316416832 | G55: ='C4-FinPerf RE'!G22 -> 206685476.9 | H55: ='C4-FinPerf RE'!K22 -> 316416832
A56: ='C4-FinPerf RE'!A19 -> Transfers and subsidies | D56: ='C4-FinPerf RE'!C19 -> 239282517.3 | E56: ='C4-FinPerf RE'!D19 -> 207281000 | F56: ='C4-FinPerf RE'!E19 -> 214181000 | G56: ='C4-FinPerf RE'!G19 -> 154701112 | H56: ='C4-FinPerf RE'!K19 -> 214181000
A57: ='C4-FinPerf RE'!A39 -> Transfers and subsidies - capital (monetary allocations) (National / Provincial and District) | D57: ='C4-FinPerf RE'!C39 -> 55896304.42 | E57: ='C4-FinPerf RE'!D39 -> 56764000 | F57: ='C4-FinPerf RE'!E39 -> 62764000 | G57: ='C4-FinPerf RE'!G39 -> 35085174.87 | H57: ='C4-FinPerf RE'!K39 -> 62764000
A58: Debt service payments | D58: ='C7-CFlow'!C12+'C7-CFlow'!C36 -> 0 | E58: ='C7-CFlow'!D12+'C7-CFlow'!D36 -> 1910120 | F58: ='C7-CFlow'!E12+'C7-CFlow'!E36 -> 1910120 | G58: ='C7-CFlow'!G16+'C7-CFlow'!G36 -> 0 | H58: ='C7-CFlow'!K16+'C7-CFlow'!K36 -> 0
A59: Outstanding debtors (receivables) | D59: ='C6-FinPos'!C9+'C6-FinPos'!C10+'C6-FinPos'!C11+'C6-FinPos'!C16 -> 103046482.1 | E59: ='C6-FinPos'!D9+'C6-FinPos'!D10+'C6-FinPos'!D11+'C6-FinPos'!D16 -> 125458256 | F59: ='C6-FinPos'!E9+'C6-FinPos'!E10+'C6-FinPos'!E11+'C6-FinPos'!E16 -> 125458256 | G59: ='C6-FinPos'!F9+'C6-FinPos'!F10+'C6-FinPos'!F11+'C6-FinPos'!F16 -> 135605587.7 | H59: ='C6-FinPos'!G9+'C6-FinPos'!G10+'C6-FinPos'!G11+'C6-FinPos'!G16 -> 125458256
A60: Annual services revenue | D60: =SUM('C4-FinPerf RE'!C7:C11) -> 30264179.35 | E60: =SUM('C4-FinPerf RE'!D7:D11) -> 42874945 | F60: =SUM('C4-FinPerf RE'!E7:E11) -> 42874945 | G60: =SUM('C4-FinPerf RE'!G7:G11) -> 19950272.54
A61: Cash + investments | B61: Including LT investments | D61: ='C6-FinPos'!C7+'C6-FinPos'!C8+'C6-FinPos'!C17-'C6-FinPos'!C30 -> 42978165.54 | E61: ='C6-FinPos'!D7+'C6-FinPos'!D8+'C6-FinPos'!D17-'C6-FinPos'!D30 -> 80931471 | F61: ='C6-FinPos'!E7+'C6-FinPos'!E8+'C6-FinPos'!E17-'C6-FinPos'!E30 -> 80931471 | G61: ='C6-FinPos'!F7+'C6-FinPos'!F8+'C6-FinPos'!F17-'C6-FinPos'!F30 -> 82336136.22 | H61: ='C6-FinPos'!G7+'C6-FinPos'!G8+'C6-FinPos'!G17-'C6-FinPos'!G30 -> 80931471
A62: Fixed operational expend. (monthly)
A63: Longstanding debtors outstanding | D63: ='C6-FinPos'!C16 -> 0 | E63: ='C6-FinPos'!D16 -> 0 | F63: ='C6-FinPos'!E16 -> 0 | G63: ='C6-FinPos'!F16 -> 0 | H63: ='C6-FinPos'!G16 -> 0
A64: Longstanding debtors recovered
A65: Attorney collections

Sheet SC3
A1: =muni& " - "&S71I& " - "&Head57 -> LIM351 Blouberg - Supporting Table SC3 Monthly Budget Statement - aged debtors - M07 January
A2: =desc -> Description | C2: =Head2 -> Budget Year 2021/22
A3: R thousands | B3: NT Code | C3: 0-30 Days | D3: 31-60 Days | E3: 61-90 Days | F3: 91-120 Days | G3: 121-150 Dys | H3: 151-180 Dys | I3: 181 Dys-1 Yr | J3: Over 1Yr | K3: Total | L3: Total over 90 days | M3: Actual Bad Debts Written Off against Debtors | N3: Impairment - Bad Debts i.t.o Council Policy
A4: Debtors Age Analysis By Income Source
A5: Trade and Other Receivables from Exchange Transactions - Water | B5: 1200 | C5: 751485.05 | D5: 358859.1 | E5: 346010.26 | F5: 348168.65 | G5: 1296739.55 | H5: 300934.25 | I5: 1331816 | J5: 10360027.54 | K5: =SUM(C5:J5) -> 15094040.4 | L5: =SUM(F5:J5) -> 13637685.99 | M5: 0 | N5: 0
A6: Trade and Other Receivables from Exchange Transactions - Electricity | B6: 1300 | C6: 1408053.7 | D6: 571367.14 | E6: 406061.57 | F6: 538242.31 | G6: 337988.12 | H6: 330676.06 | I6: 2704519.01 | J6: 12591656.43 | K6: =SUM(C6:J6) -> 18888564.34 | L6: =SUM(F6:J6) -> 16503081.93 | M6: 0 | N6: 0
A7: Receivables from Non-exchange Transactions - Property Rates | B7: 1400 | C7: 581424.78 | D7: 267099.79 | E7: 264216.34 | F7: 261471.95 | G7: 1512125.66 | H7: 22989760.33 | I7: 1418893.88 | J7: 102107486 | K7: =SUM(C7:J7) -> 129402478.8 | L7: 128289737.9 | M7: 0 | N7: 0
A8: Receivables from Exchange Transactions - Waste Water Management | B8: 1500 | C8: 298732.18 | D8: 135300.87 | E8: 132579.4 | F8: 71519.82 | G8: 67087.26 | H8: 65646.23 | I8: 382566.8 | J8: 1981230.24 | K8: 3134662.8 | L8: 2568050.35 | M8: 0 | N8: 0
A9: Receivables from Exchange Transactions - Waste Management | B9: 1600 | C9: 350202.08 | D9: 418298.38 | E9: 420815.65 | F9: 101342.6 | G9: 97702.84 | H9: 95302.54 | I9: 678328.51 | J9: 2252144.64 | K9: 4414137.24 | L9: =SUM(F9:J9) -> 3224821.13 | M9: 0 | N9: 0
A10: Receivables from Exchange Transactions - Property Rental Debtors | B10: 1700 | C10: 0 | D10: 0 | E10: 0 | F10: 0 | G10: 0 | H10: 0 | I10: 0 | J10: 0 | K10: 0 | L10: =SUM(F10:J10) -> 0 | M10: 0 | N10: 0
A11: Interest on Arrear Debtor Accounts | B11: 1810 | C11: 411641.11 | D11: 200444.75 | E11: 408713.59 | F11: 0 | G11: 168596.36 | H11: 484016.36 | I11: 1263837.5 | J11: 5660204.04 | K11: 8597453.71 | L11: 7576654.26 | M11: 0 | N11: 0
A12: Recoverable unauthorised, irregular, fruitless and wasteful expenditure | B12: 1820 | K12: 0 | L12: 0
A13: Other | B13: 1900 | C13: 39288.27 | D13: 19517.88 | E13: 19517.88 | F13: 19517.88 | G13: 19517.88 | H13: 19517.88 | I13: 117107.28 | J13: 1948357.68 | K13: 2202342.63 | L13: =SUM(F13:J13) -> 2124018.6 | M13: 0 | N13: 0
A14: Total By Income Source | B14: 2000 | C14: =SUM(C5:C13) -> 3840827.17 | D14: 1970887.91 | E14: 1997914.69 | F14: 1340263.21 | G14: 3499757.67 | H14: 24285853.65 | I14: 7897068.98 | J14: 136901106.6 | K14: 181733679.9 | L14: =SUM(L5:L13) -> 173924050.1 | M14: 0 | N14: 0
A15: =Head1&" - totals only" -> 2020/21 - totals only | K15: =SUM(C15:J15) -> 0 | L15: =SUM(F15:J15) -> 0
A16: Debtors Age Analysis By Customer Group
A17: Organs of State | B17: 2200 | C17: 0 | D17: 0 | E17: 0 | F17: 0 | G17: 0 | H17: 0 | I17: 0 | J17: 0 | K17: =SUM(C17:J17) -> 0 | L17: =SUM(F17:J17) -> 0 | M17: 0 | N17: 0
A18: Commercial | B18: 2300 | C18: 0 | D18: 0 | E18: 0 | F18: 0 | G18: 0 | H18: 0 | I18: 0 | J18: 0 | K18: =SUM(C18:J18) -> 0 | L18: =SUM(F18:J18) -> 0 | M18: 0 | N18: 0
A19: Households | B19: 2400 | C19: 0 | D19: 0 | E19: 0 | F19: 0 | G19: 0 | H19: 0 | I19: 0 | J19: 0 | K19: =SUM(C19:J19) -> 0 | L19: =SUM(F19:J19) -> 0 | M19: 0 | N19: 0
A20: Other | B20: 2500 | C20: 3840827.17 | D20: 1970887.91 | E20: 1997914.69 | F20: 1340263.21 | G20: 3499757.67 | H20: 24285853.65 | I20: 7897068.98 | J20: 136901106.6 | K20: =SUM(C20:J20) -> 181733679.9 | L20: =SUM(F20:J20) -> 173924050.1 | M20: 0 | N20: 0
A21: Total By Customer Group | B21: 2600 | C21: =SUM(C17:C20) -> 3840827.17 | D21: 1970887.91 | E21: 1997914.69 | F21: 1340263.21 | G21: 3499757.67 | H21: 24285853.65 | I21: 7897068.98 | J21: =SUM(J17:J20) -> 136901106.6 | K21: =SUM(K17:K20) -> 181733679.9 | L21: =SUM(L17:L20) -> 173924050.1 | M21: =SUM(M17:M20) -> 0 | N21: =SUM(N17:N20) -> 0
A22: Notes
A23: Material increases in value of debtors' categories compared to previous month to be explained
A24: Bad debts = amounts actually written off in the month
A25: Total by Income Source must reconcile with Total by Customer Group
C26: =C14-C21 -> 0 | D26: =D14-D21 -> 0 | E26: =E14-E21 -> 0 | F26: 0 | G26: 0 | H26: 0 | I26: 0 | J26: =J14-J21 -> 0 | K26: 0
C27: =IF(C26=0,"","MUST AGREE") ->  | D27: =IF(D26=0,"","MUST AGREE") -> 

Sheet SC4
A1: =muni& " - "&S71J& " - "&Head57 -> LIM351 Blouberg - Supporting Table SC4 Monthly Budget Statement - aged creditors - M07 January
A2: =desc -> Description | B2: NT Code | C2: =Head2 -> Budget Year 2021/22 | L2: Prior year totals for chart (same period)
C3: 0 - 30 Days | D3: 31 - 60 Days | E3: 61 - 90 Days | F3: 91 - 120 Days | G3: 121 - 150 Days | H3: 151 - 180 Days | I3: 181 Days - 1 Year | J3: Over 1 Year | K3: Total
A4: R thousands
A5: Creditors Age Analysis By Customer Type
A6: Bulk Electricity | B6: 0100 | K6: =SUM(C6:J6) -> 0
A7: Bulk Water | B7: 0200 | K7: =SUM(C7:J7) -> 0
A8: PAYE deductions | B8: 0300 | K8: 0
A9: VAT (output less input) | B9: 0400 | K9: 0
A10: Pensions / Retirement deductions | B10: 0500 | K10: 0
A11: Loan repayments | B11: 0600 | K11: 0
A12: Trade Creditors | B12: 0700 | K12: 0
A13: Auditor General | B13: 0800 | K13: 0
A14: Other | B14: 0900 | K14: =SUM(C14:J14) -> 0
A15: Total By Customer Type | B15: 1000 | C15: =SUM(C6:C14) -> 0 | D15: =SUM(D6:D14) -> 0 | E15: 0 | F15: 0 | G15: 0 | H15: 0 | I15: 0 | J15: 0 | K15: =SUM(K6:K14) -> 0 | L15: =SUM(L6:L14) -> 0
A16: Notes
A17: Material increases in value of creditors' categories compared to previous month to be explained

Sheet SC5
A1: =muni& " - "&S71K& " - "&Head57 -> LIM351 Blouberg - Supporting Table SC5 Monthly Budget Statement - investment portfolio - M07 January
A2: Investments by maturity Name of institution & investment ID | B2: Ref | C2: Period of Investment | D2: Type of Investment | E2: Capital Guarantee (Yes/ No) | F2: Variable or Fixed interest rate | G2: Interest Rate ᶟ | H2: Commission Paid (Rands) | I2: Commission Recipient | J2: Expiry date of investment | K2: Opening balance | L2: Interest to be realised | M2: Partial / Premature Withdrawal (4) | N2: Investment Top Up | O2: Closing Balance
A3: R thousands | C3: Yrs/Months
A4: Municipality
A5: Absa | C5: Months | D5: Fixed | E5: Yes | F5: Variable | G5: 7.22 | H5: 0 | I5: 0 | J5: 0000/00/00 | K5: 57 | L5: 0 | M5: 0 | N5: 0 | O5: =SUM(K5:N5) -> 57
A6: Municipality sub-total | K6: =SUM(K5:K5) -> 57 | M6: =SUM(M5:M5) -> 0 | N6: =SUM(N5:N5) -> 0 | O6: =SUM(O5:O5) -> 57
A8: Entities
O9: =SUM(K9:N9) -> 0
O10: 0
O11: 0
O12: 0
O13: 0
O14: 0
O15: 0
A16: Entities sub-total | K16: =SUM(K9:K15) -> 0 | M16: =SUM(M9:M15) -> 0 | N16: =SUM(N9:N15) -> 0 | O16: =SUM(O9:O15) -> 0
A18: TOTAL INVESTMENTS AND INTEREST | B18: 2 | K18: =K6+K16 -> 57 | M18: =M6+M16 -> 0 | N18: =N6+N16 -> 0 | O18: =O6+O16 -> 57
A19: =head27a -> References
A20: 2. List investments in expiry date order
A21: 3. If 'variable' is selected in column F, input interest rate range
A22: 4. Withdrawals to be entered as negative

Sheet SC6
A1: =muni& " - "&S71L& " - "&Head57 -> LIM351 Blouberg - Supporting Table SC6 Monthly Budget Statement - transfers and grant receipts - M07 January
A2: =desc -> Description | B2: =head27 -> Ref | C2: =Head1 -> 2020/21 | D2: =Head2 -> Budget Year 2021/22
C3: =Head5 -> Audited Outcome | D3: =Head6 -> Original Budget | E3: =Head7 -> Adjusted Budget | F3: =Head38 -> Monthly actual | G3: =Head39 -> YearTD actual | H3: =Head40 -> YearTD budget | I3: =Head41 -> YTD variance | J3: =Head41 -> YTD variance | K3: =Head8 -> Full Year Forecast
A4: R thousands | J4: %
A5: RECEIPTS: | B5: 1,2
A7: Operating Transfers and Grants
A8: National Government: | C8: =SUM(C9:C14) -> 239124753 | D8: 207281000 | E8: 214181000 | F8: 0 | G8: 154701112 | H8: 120626412 | I8: =G8-H8 -> 34074700 | J8: =IF(H8=0,"",I8/H8) -> 0.2824812529 | K8: =SUM(K9:K14) -> 214181000
A9: Energy Efficiency and Demand Side Management Grant | C9: 0 | D9: 0 | E9: 0 | F9: 0 | G9: 0 | H9: 0 | I9: 0 | K9: 0
A10: Equitable Share | C10: 235077753 | D10: 203615000 | E10: 203615000 | F10: 0 | G10: 152453000 | H10: 118775412 | I10: 33677588 | J10: 0.2835400647 | K10: 203615000
A11: Expanded Public Works Programme Integrated Grant | C11: 1547000 | D11: 1266000 | E11: 1266000 | F11: 0 | G11: 886000 | H11: 738500 | I11: 147500 | J11: 0.1997291808 | K11: 1266000
A12: Local Government Financial Management Grant | C12: 2500000 | D12: 2400000 | E12: 2400000 | F12: 0 | G12: 1362112 | H12: 1400000 | I12: -37888 | J12: -0.02706285714 | K12: 2400000
A13: Municipal Demarcation Transition Grant | C13: 0 | D13: 0 | E13: 0 | F13: 0 | G13: 0 | H13: 0 | I13: 0 | K13: 0
A14: Municipal Disaster Relief Grant | C14: 0 | D14: 0 | E14: 6900000 | F14: 0 | G14: 0 | H14: -287500 | I14: 287500 | J14: -1 | K14: 6900000
A15: Other transfers and grants [insert description] | I15: =G15-H15 -> 0 | J15: =IF(I15=0,"",I15/H15) -> 
A16: Provincial Government: | C16: =SUM(C17:C18) -> 0 | D16: 0 | E16: 0 | F16: 0 | G16: 0 | H16: 0 | I16: 0 | K16: =SUM(K17:K18) -> 0
I17: =G17-H17 -> 0
A18: Other transfers and grants [insert description] | I18: 0
A19: District Municipality: | C19: =SUM(C20:C21) -> 0 | D19: 0 | E19: 0 | F19: 0 | G19: 0 | H19: 0 | I19: =G19-H19 -> 0 | J19: =IF(H19=0,"",I19/H19) ->  | K19: =SUM(K20:K21) -> 0
A20: Environmental Protection | C20: 0 | D20: 0 | E20: 0 | F20: 0 | G20: 0 | H20: 0 | I20: 0 | K20: 0
A21: Specify (Add grant description) | C21: 0 | D21: 0 | E21: 0 | F21: 0 | G21: 0 | H21: 0 | I21: 0 | K21: 0
A22: Other grant providers: | C22: =SUM(C23:C24) -> 157764.34 | D22: 0 | E22: 0 | F22: 0 | G22: 0 | H22: 0 | I22: 0 | K22: =SUM(K23:K24) -> 0
A23: Mayors' Charity Fund | C23: 0 | D23: 0 | E23: 0 | F23: 0 | G23: 0 | H23: 0 | I23: 0 | K23: 0
A24: National Skills Fund | C24: 157764.34 | D24: 0 | E24: 0 | F24: 0 | G24: 0 | H24: 0 | I24: 0 | K24: 0
A25: Total Operating Transfers and Grants | B25: 5 | C25: =C8+C16+C19+C22 -> 239282517.3 | D25: 207281000 | E25: 214181000 | F25: 0 | G25: 154701112 | H25: 120626412 | I25: 34074700 | J25: 0.2824812529 | K25: =K8+K16+K19+K22 -> 214181000
A27: Capital Transfers and Grants
A28: =A8 -> National Government: | C28: =SUM(C29:C33) -> 55896304.42 | D28: 56764000 | E28: 62764000 | F28: 0 | G28: 35085174.87 | H28: 32862331 | I28: =G28-H28 -> 2222843.87 | J28: =IF(H28=0,"",I28/H28) -> 0.06764108943 | K28: =SUM(K29:K33) -> 62764000
A29: Energy Efficiency and Demand Side Management Grant | C29: 0 | D29: 0 | E29: 0 | F29: 0 | G29: 0 | H29: 0 | I29: 0 | K29: 0
A30: Integrated National Electrification Programme Grant | C30: 12533259.84 | D30: 0 | E30: 0 | F30: 0 | G30: 0 | H30: 0 | I30: 0 | K30: 0
A31: Municipal Disaster Relief Grant | C31: 0 | D31: 0 | E31: 6000000 | F31: 0 | G31: 0 | H31: -250000 | I31: 250000 | J31: -1 | K31: 6000000
A32: Municipal Infrastructure Grant | C32: 43363044.58 | D32: 56764000 | E32: 56764000 | F32: 0 | G32: 35085174.87 | H32: 33112331 | I32: 1972843.87 | J32: 0.05958033791 | K32: 56764000
A33: Municipal Rehabilitation Grant | C33: 0 | D33: 0 | E33: 0 | F33: 0 | G33: 0 | H33: 0 | I33: 0 | K33: 0
A34: =A16 -> Provincial Government: | C34: =SUM(C35:C35) -> 0 | D34: 0 | E34: 0 | F34: 0 | G34: 0 | H34: 0 | I34: =G34-H34 -> 0 | J34: =IF(I34=0,"",I34/H34) ->  | K34: =SUM(K35:K35) -> 0
A35: [insert description] | I35: 0 | J35: =IF(I35=0,"",I35/H35) -> 
A36: =A19 -> District Municipality: | C36: =SUM(C37:C37) -> 0 | D36: 0 | E36: 0 | F36: 0 | G36: 0 | H36: 0 | I36: 0 | J36: =IF(I36=0,"",I36/H36) ->  | K36: =SUM(K37:K37) -> 0
A37: [insert description] | I37: 0
A38: =A22 -> Other grant providers: | C38: =SUM(C39:C39) -> 0 | D38: 0 | E38: 0 | F38: 0 | G38: 0 | H38: 0 | I38: 0 | K38: =SUM(K39:K39) -> 0
A39: [insert description] | I39: 0 | J39: =IF(I39=0,"",I39/H39) -> 
A40: Total Capital Transfers and Grants | B40: 5 | C40: =C28+C34+C36+C38 -> 55896304.42 | D40: 56764000 | E40: 62764000 | F40: 0 | G40: 35085174.87 | H40: 32862331 | I40: 2222843.87 | J40: 0.06764108943 | K40: =K28+K34+K36+K38 -> 62764000
A42: TOTAL RECEIPTS OF TRANSFERS & GRANTS | B42: 5 | C42: =C25+C40 -> 295178821.8 | D42: 264045000 | E42: 276945000 | F42: 0 | G42: 189786286.9 | H42: 153488743 | I42: 36297543.87 | J42: 0.2364834265 | K42: =K25+K40 -> 276945000
A43: =head27a -> References
A44: 1. Each grant is listed by name as gazetted together with the name of the transferring department or municipality, donor or other organisation
A45: 2. Grant expenditure must be separately listed for each grant received
A46: 3. Replacement of RSC levies
A47: 4. Housing subsidies for housing where ownership transferred
A48: 5. Total recurrent/capital grants and subsidies must reconcile to the 'Financial Performance' Statement

Sheet SC7(1)
A1: =muni& " - "&S71M& " - "&Head57 -> LIM351 Blouberg - Supporting Table SC7(1) Monthly Budget Statement - transfers and grant expenditure - M07 January
A2: =desc -> Description | B2: =head27 -> Ref | C2: =Head1 -> 2020/21 | D2: =Head2 -> Budget Year 2021/22
C3: =Head5 -> Audited Outcome | D3: =Head6 -> Original Budget | E3: =Head7 -> Adjusted Budget | F3: =Head38 -> Monthly actual | G3: =Head39 -> YearTD actual | H3: =Head40 -> YearTD budget | I3: =Head41 -> YTD variance | J3: =Head41 -> YTD variance | K3: =Head8 -> Full Year Forecast
A4: R thousands | J4: %
A5: EXPENDITURE
A7: Operating expenditure of Transfers and Grants
A8: ='SC6'!A8 -> National Government: | C8: =SUM(C9:C15) -> 201694531.9 | D8: 207109194 | E8: 214009194 | F8: 15807044.28 | G8: 104143289.2 | H8: 123373145 | I8: -19229855.77 | J8: =IF(I8=0,"",I8/H8) -> -0.1558674359 | K8: =SUM(K9:K15) -> 214009194
I9: =G9-H9 -> 0
A10: Equitable Share | C10: 195936581.9 | D10: 202875554 | E10: 202875554 | F10: 14436191.23 | G10: 100241306.7 | H10: 118316003 | I10: =G10-H10 -> -18074696.31 | J10: =IF(H10=0,"",I10/H10) -> -0.1527662856 | K10: 202875554
A11: Expanded Public Works Programme Integrated Grant | C11: 1441197.87 | D11: 1266000 | E11: 1266000 | F11: 369195.75 | G11: 1635195.75 | H11: 738500 | I11: 896695.75 | J11: 1.214212255 | K11: 1266000
A12: Local Government Financial Management Grant | C12: 2322113.35 | D12: 2400000 | E12: 2400000 | F12: 31364.87 | G12: 1255990.36 | H12: 1400014 | I12: -144023.64 | J12: -0.1028729998 | K12: 2400000
A13: Municipal Demarcation Transition Grant | C13: 0 | D13: 0 | E13: 0 | F13: 0 | G13: 0 | H13: 0 | I13: 0 | K13: 0
A14: Municipal Disaster Relief Grant | C14: 0 | D14: 0 | E14: 6900000 | F14: 893292.43 | G14: 893292.43 | H14: 2587500 | I14: -1694207.57 | J14: -0.6547662106 | K14: 6900000
A15: Municipal Infrastructure Grant | C15: 1994638.74 | D15: 567640 | E15: 567640 | F15: 77000 | G15: 117504 | H15: 331128 | I15: -213624 | J15: -0.6451402479 | K15: 567640
A16: ='SC6'!A16 -> Provincial Government: | C16: =SUM(C17:C17) -> 0 | D16: 0 | E16: 0 | F16: 0 | G16: 0 | H16: 0 | I16: 0 | K16: =SUM(K17:K17) -> 0
I17: =G17-H17 -> 0
A18: ='SC6'!A19 -> District Municipality: | C18: =SUM(C19:C19) -> 0 | D18: 0 | E18: 0 | F18: 0 | G18: 0 | H18: 0 | I18: 0 | K18: =SUM(K19:K19) -> 0
I19: 0
A20: Environmental Protection | C20: 0 | D20: 0 | E20: 0 | F20: 0 | G20: 0 | H20: 0 | I20: =G20-H20 -> 0 | J20: =IF(H20=0,"",I20/H20) ->  | K20: 0
A21: Specify (Add grant description) | C21: 0 | D21: 0 | E21: 0 | F21: 0 | G21: 0 | H21: 0 | I21: =G21-H21 -> 0 | J21: =IF(H21=0,"",I21/H21) ->  | K21: 0
A22: ='SC6'!A22 -> Other grant providers: | C22: =SUM(C23:C23) -> 0 | D22: 0 | E22: 0 | F22: 0 | G22: 0 | H22: 0 | I22: 0 | K22: =SUM(K23:K23) -> 0
I23: 0
A24: National Skills Fund | C24: 0 | D24: 0 | E24: 0 | F24: 0 | G24: 0 | H24: 0 | I24: =G24-H24 -> 0 | J24: =IF(H24=0,"",I24/H24) ->  | K24: 0
A25: Skill Development and Training | C25: 0 | D25: 0 | E25: 0 | F25: 0 | G25: 0 | H25: 0 | I25: =G25-H25 -> 0 | J25: =IF(H25=0,"",I25/H25) ->  | K25: 0
A26: Total operating expenditure of Transfers and Grants: | C26: =C8+C16+C18+C22 -> 201694531.9 | D26: 207109194 | E26: 214009194 | F26: 15807044.28 | G26: 104143289.2 | H26: 123373145 | I26: -19229855.77 | J26: -0.1558674359 | K26: =K8+K16+K18+K22 -> 214009194
A28: Capital expenditure of Transfers and Grants
A29: ='SC6'!A28 -> National Government: | C29: =SUM(C30:C33) -> 47312568.13 | D29: 56196360 | E29: 62196360 | F29: 0 | G29: 30473626.84 | H29: 35031224 | I29: -4557597.16 | J29: =IF(I29=0,"",I29/H29) -> -0.1301009968 | K29: =SUM(K30:K33) -> 62196360
A30: Energy Efficiency and Demand Side Management Grant | C30: 0 | D30: 0 | E30: 0 | F30: 0 | G30: 0 | H30: 0 | I30: =G30-H30 -> 0 | J30: =IF(H30=0,"",I30/H30) ->  | K30: 0
A31: Integrated National Electrification Programme Grant | C31: 10914541.22 | D31: 0 | E31: 0 | F31: 0 | G31: 0 | H31: 0 | I31: =G31-H31 -> 0 | J31: =IF(H31=0,"",I31/H31) ->  | K31: 0
A32: Municipal Disaster Relief Grant | C32: 0 | D32: 0 | E32: 6000000 | F32: 0 | G32: 0 | H32: 2250000 | I32: =G32-H32 -> -2250000 | J32: =IF(H32=0,"",I32/H32) -> -1 | K32: 6000000
A33: Municipal Infrastructure Grant | C33: 36398026.91 | D33: 56196360 | E33: 56196360 | F33: 0 | G33: 30473626.84 | H33: 32781224 | I33: =G33-H33 -> -2307597.16 | J33: =IF(H33=0,"",I33/H33) -> -0.07039386815 | K33: 56196360
A34: ='SC6'!A34 -> Provincial Government: | C34: =SUM(C35:C35) -> 0 | D34: 0 | E34: 0 | F34: 0 | G34: 0 | H34: 0 | I34: =G34-H34 -> 0 | K34: =SUM(K35:K35) -> 0
I35: 0
A36: ='SC6'!A36 -> District Municipality: | C36: =SUM(C37:C37) -> 0 | D36: 0 | E36: 0 | F36: 0 | G36: 0 | H36: 0 | I36: 0 | K36: =SUM(K37:K37) -> 0
I37: 0
A38: ='SC6'!A38 -> Other grant providers: | C38: =SUM(C39:C39) -> 0 | D38: 0 | E38: 0 | F38: 0 | G38: 0 | H38: 0 | I38: 0 | K38: =SUM(K39:K39) -> 0
A39: Discount Benefit Scheme (Housing | C39: 0 | D39: 0 | E39: 0 | F39: 0 | G39: 0 | H39: 0 | I39: =G39-H39 -> 0 | J39: =IF(H39=0,"",I39/H39) ->  | K39: 0
A40: Total capital expenditure of Transfers and Grants | C40: =C29+C34+C36+C38 -> 47312568.13 | D40: 56196360 | E40: 62196360 | F40: 0 | G40: 30473626.84 | H40: 35031224 | I40: -4557597.16 | J40: =IF(I40=0,"",I40/H40) -> -0.1301009968 | K40: =K29+K34+K36+K38 -> 62196360
A42: TOTAL EXPENDITURE OF TRANSFERS AND GRANTS | C42: =C26+C40 -> 249007100 | D42: 263305554 | E42: 276205554 | F42: 15807044.28 | G42: 134616916.1 | H42: 158404369 | I42: -23787452.93 | J42: =IF(I42=0,"",I42/H42) -> -0.150169172 | K42: =K26+K40 -> 276205554
A43: =head27a -> References

Sheet SC7(2)
A1: =muni& " - "&S71T& " - "&Head57 -> LIM351 Blouberg - Supporting Table SC7(2) Monthly Budget Statement - Expenditure against approved rollovers - M07 January
A2: =desc -> Description | B2: =head27 -> Ref | C2: =Head2 -> Budget Year 2021/22
C3: ="Approved Rollover " &Head1 -> Approved Rollover 2020/21 | D3: =Head38 -> Monthly actual | E3: =Head39 -> YearTD actual | F3: =Head41 -> YTD variance | G3: =Head41 -> YTD variance
A4: R thousands | G4: %
A5: EXPENDITURE
A7: Operating expenditure of Approved Roll-overs
A8: ='SC6'!A8 -> National Government: | C8: =SUM(C9:C9) -> 0 | D8: =SUM(D9:D9) -> 0 | E8: =SUM(E9:E9) -> 0 | F8: =SUM(F9:F9) -> 0 | G8: =IF(F8=0,"",F8/C8) -> 
F9: =E9-C9 -> 0 | G9: =IF(F9=0,"",F9/C9) -> 
A10: ='SC6'!A16 -> Provincial Government: | C10: =SUM(C11:C11) -> 0 | D10: =SUM(D11:D11) -> 0 | E10: =SUM(E11:E11) -> 0 | F10: =SUM(F11:F11) -> 0
F11: =C11-E11 -> 0
A12: ='SC6'!A19 -> District Municipality: | C12: =SUM(C13:C13) -> 0 | D12: =SUM(D13:D13) -> 0 | E12: =SUM(E13:E13) -> 0 | F12: =SUM(F13:F13) -> 0
F13: =C13-E13 -> 0
A14: ='SC6'!A22 -> Other grant providers: | C14: =SUM(C15:C15) -> 0 | D14: =SUM(D15:D15) -> 0 | E14: =SUM(E15:E15) -> 0 | F14: =SUM(F15:F15) -> 0
F15: =C15-E15 -> 0
A16: Total operating expenditure of Approved Roll-overs | C16: =C8+C10+C12+C14 -> 0 | D16: =D8+D10+D12+D14 -> 0 | E16: =E8+E10+E12+E14 -> 0 | F16: =F8+F10+F12+F14 -> 0
A18: Capital expenditure of Approved Roll-overs
A19: ='SC6'!A28 -> National Government: | C19: =SUM(C20:C20) -> 0 | D19: =SUM(D20:D20) -> 0 | E19: =SUM(E20:E20) -> 0 | F19: =SUM(F20:F20) -> 0
F20: =C20-E20 -> 0
A21: ='SC6'!A34 -> Provincial Government: | C21: =SUM(C22:C22) -> 0 | D21: =SUM(D22:D22) -> 0 | E21: =SUM(E22:E22) -> 0 | F21: =SUM(F22:F22) -> 0
F22: =C22-E22 -> 0
A23: ='SC6'!A36 -> District Municipality: | C23: =SUM(C24:C24) -> 0 | D23: =SUM(D24:D24) -> 0 | E23: =SUM(E24:E24) -> 0 | F23: =SUM(F24:F24) -> 0
F24: =C24-E24 -> 0
A25: ='SC6'!A38 -> Other grant providers: | C25: =SUM(C26:C26) -> 0 | D25: =SUM(D26:D26) -> 0 | E25: =SUM(E26:E26) -> 0 | F25: =SUM(F26:F26) -> 0
F26: =C26-E26 -> 0
A27: Total capital expenditure of Approved Roll-overs | C27: =C19+C21+C23+C25 -> 0 | D27: =D19+D21+D23+D25 -> 0 | E27: =E19+E21+E23+E25 -> 0 | F27: =F19+F21+F23+F25 -> 0
A29: TOTAL EXPENDITURE OF APPROVED ROLL-OVERS | C29: =C16+C27 -> 0 | D29: =D16+D27 -> 0 | E29: =E16+E27 -> 0 | F29: =F16+F27 -> 0
A30: =head27a -> References

Sheet SC8
A1: =muni& " - "&S71N& " - "&Head57 -> LIM351 Blouberg - Supporting Table SC8 Monthly Budget Statement - councillor and staff benefits - M07 January
A2: Summary of Employee and Councillor remuneration | B2: =head27 -> Ref | C2: =Head1 -> 2020/21 | D2: =Head2 -> Budget Year 2021/22
C3: =Head5 -> Audited Outcome | D3: =Head6 -> Original Budget | E3: =Head7 -> Adjusted Budget | F3: =Head38 -> Monthly actual | G3: =Head39 -> YearTD actual | H3: =Head40 -> YearTD budget | I3: =Head41 -> YTD variance | J3: =Head41 -> YTD variance | K3: =Head8 -> Full Year Forecast
A4: R thousands | J4: %
B5: 1 | C5: A | D5: B | E5: C | K5: D
A6: Councillors (Political Office Bearers plus Other)
A7: Basic Salaries and Wages | C7: 7774905.47 | D7: 11198506 | E7: 11198506 | F7: 934665.3 | G7: 6705311.66 | H7: 6532477 | I7: =G7-H7 -> 172834.66 | J7: =IF(I7=0,"",I7/H7) -> 0.02645775255 | K7: 11198506
A8: Pension and UIF Contributions | C8: 3155301 | D8: 1276014 | E8: 1276014 | F8: 0 | G8: 2717.5 | H8: 744359 | I8: -741641.5 | J8: -0.9963492078 | K8: 1276014
A9: Medical Aid Contributions | I9: 0
A10: Motor Vehicle Allowance | I10: =G10-H10 -> 0 | J10: =IF(I10=0,"",I10/H10) -> 
A11: Cellphone Allowance | C11: 1839300 | D11: 2413179 | E11: 2413179 | F11: 162800 | G11: 1088900 | H11: 1407707 | I11: =G11-H11 -> -318807 | J11: =IF(I11=0,"",I11/H11) -> -0.2264725543 | K11: 2413179
A12: Housing Allowances | I12: =G12-H12 -> 0 | J12: =IF(I12=0,"",I12/H12) -> 
A13: Other benefits and allowances | C13: 3642553.56 | D13: 3953362 | E13: 3953362 | F13: 306007.36 | G13: 1884197.16 | H13: 2306150 | I13: -421952.84 | J13: -0.1829685146 | K13: 3953362
A14: Sub Total - Councillors | C14: =SUM(C7:C13) -> 16412060.03 | D14: 18841061 | E14: 18841061 | F14: 1403472.66 | G14: 9681126.32 | H14: 10990693 | I14: -1309566.68 | J14: -0.1191523301 | K14: 18841061
A15: % increase | B15: 4 | D15: =IF(D14=0,"",(D14/C14)-1) -> 0.1480009801 | E15: =IF(E14=0,"",(E14/C14)-1) -> 0.1480009801 | K15: =IF(K14=0,"",(K14/C14)-1) -> 0.1480009801
A17: Senior Managers of the Municipality | B17: 3
A18: Basic Salaries and Wages | C18: 3630367.31 | D18: 4851044 | E18: 4851044 | F18: 219041.36 | G18: 2182123.54 | H18: 2829785 | I18: =G18-H18 -> -647661.46 | J18: =IF(I18=0,"",I18/H18) -> -0.2288730275 | K18: 4851044
A19: Pension and UIF Contributions | C19: 717533.24 | D19: 706903 | E19: 706903 | F19: 46608.87 | G19: 409257.65 | H19: 412370 | I19: -3112.35 | J19: -0.007547469506 | K19: 706903
A20: Medical Aid Contributions | C20: 0 | D20: 0 | E20: 0 | F20: 0 | G20: 0 | H20: 0 | I20: 0 | K20: 0
A21: Overtime | C21: 0 | D21: 0 | E21: 0 | F21: 0 | G21: 0 | H21: 0 | I21: 0 | K21: 0
A22: Performance Bonus | C22: 233712.21 | D22: 288621 | E22: 288621 | F22: 0 | G22: 216675.84 | H22: 168385 | I22: =G22-H22 -> 48290.84 | J22: =IF(I22=0,"",I22/H22) -> 0.2867882531 | K22: 288621
A23: Motor Vehicle Allowance | C23: 1258711.04 | D23: 1459900 | E23: 1459900 | F23: 75367.92 | G23: 689773.84 | H23: 851620 | I23: =G23-H23 -> -161846.16 | J23: =IF(I23=0,"",I23/H23) -> -0.1900450436 | K23: 1459900
A24: Cellphone Allowance | C24: 130253.76 | D24: 188739 | E24: 188739 | F24: 7974.72 | G24: 72658.56 | H24: 110117 | I24: =G24-H24 -> -37458.44 | J24: =IF(I24=0,"",I24/H24) -> -0.3401694561 | K24: 188739
A25: Housing Allowances | C25: 0 | D25: 0 | E25: 0 | F25: 0 | G25: 0 | H25: 0 | I25: =G25-H25 -> 0 | J25: =IF(I25=0,"",I25/H25) ->  | K25: 0
A26: Other benefits and allowances | C26: 3219.2 | D26: 564482 | E26: 564482 | F26: 41.2 | G26: 805.6 | H26: 329336 | I26: -328530.4 | J26: -0.997553866 | K26: 564482
A27: Payments in lieu of leave | C27: 0 | D27: 0 | E27: 0 | F27: 0 | G27: 0 | H27: 0 | I27: 0 | K27: 0
A28: Long service awards | C28: 0 | D28: 0 | E28: 0 | F28: 0 | G28: 0 | H28: 0 | I28: 0 | K28: 0
A29: Post-retirement benefit obligations | B29: 2 | C29: 0 | D29: 0 | E29: 0 | F29: 0 | G29: 0 | H29: 0 | I29: 0 | K29: 0
A30: Sub Total - Senior Managers of Municipality | C30: =SUM(C18:C29) -> 5973796.76 | D30: 8059689 | E30: 8059689 | F30: =SUM(F18:F29) -> 349034.07 | G30: =SUM(G18:G29) -> 3571295.03 | H30: =SUM(H18:H29) -> 4701613 | I30: -1130317.97 | J30: =IF(I30=0,"",I30/H30) -> -0.2404106782 | K30: 8059689
A31: % increase | B31: 4 | D31: =IF(D30=0,"",(D30/C30)-1) -> 0.34917362 | E31: =IF(E30=0,"",(E30/C30)-1) -> 0.34917362 | K31: =IF(K30=0,"",(K30/C30)-1) -> 0.34917362
A33: Other Municipal Staff
A34: Basic Salaries and Wages | C34: 62281288.15 | D34: 72510869 | E34: 72510869 | F34: 5389257.26 | G34: 38019184.4 | H34: 42298060 | I34: =G34-H34 -> -4278875.6 | J34: =IF(I34=0,"",I34/H34) -> -0.101160091 | K34: 72510869
A35: Pension and UIF Contributions | C35: 14117862.28 | D35: 17280125 | E35: 17280125 | F35: 1241779.02 | G35: 8480400.84 | H35: 10080133 | I35: -1599732.16 | J35: -0.1587014933 | K35: 17280125
A36: Medical Aid Contributions | C36: 4417210.72 | D36: 4228406 | E36: 4228406 | F36: 388367.28 | G36: 2609164.32 | H36: 2466611 | I36: 142553.32 | J36: 0.05779319074 | K36: 4228406
A37: Overtime | C37: 2592188.48 | D37: 2358003 | E37: 2358003 | F37: 366452 | G37: 1615035.23 | H37: 1375528 | I37: 239507.23 | J37: 0.1741202142 | K37: 2358003
A38: Performance Bonus | C38: 5492147.66 | D38: 6687402 | E38: 6687402 | F38: 376240.15 | G38: 2575406.86 | H38: 3901009 | I38: -1325602.14 | J38: -0.3398100697 | K38: 6687402
A39: Motor Vehicle Allowance | C39: 14802210.84 | D39: 16382646 | E39: 16382646 | F39: 1265696.39 | G39: 8933352.4 | H39: 9556575 | I39: =G39-H39 -> -623222.6 | J39: =IF(I39=0,"",I39/H39) -> -0.06521401234 | K39: 16382646
A40: Cellphone Allowance | C40: 2091933.07 | D40: 2130916 | E40: 2130916 | F40: 184128 | G40: 1290258.08 | H40: 1243060 | I40: =G40-H40 -> 47198.08 | J40: =IF(I40=0,"",I40/H40) -> 0.03796926938 | K40: 2130916
A41: Housing Allowances | C41: 208220.68 | D41: 550328 | E41: 550328 | F41: 17361.18 | G41: 121528.26 | H41: 321048 | I41: =G41-H41 -> -199519.74 | J41: =IF(I41=0,"",I41/H41) -> -0.6214638932 | K41: 550328
A42: Other benefits and allowances | C42: 557643.68 | D42: 563276 | E42: 563276 | F42: 59968.92 | G42: 287535.84 | H42: 328615 | I42: -41079.16 | J42: -0.1250069534 | K42: 563276
A43: Payments in lieu of leave | C43: 739975.31 | D43: 2159883 | E43: 2159883 | F43: 70157.5 | G43: 472894.1 | H43: 1259958 | I43: -787063.9 | J43: -0.6246747114 | K43: 2159883
A44: Long service awards | C44: 0 | D44: 92808 | E44: 92808 | F44: 0 | G44: 0 | H44: 54138 | I44: -54138 | J44: -1 | K44: 92808
A45: Post-retirement benefit obligations | B45: 2 | C45: 2297136 | D45: 0 | E45: 0 | F45: 0 | G45: 0 | H45: 0 | I45: 0 | K45: 0
A46: Sub Total - Other Municipal Staff | C46: =SUM(C34:C45) -> 109597816.9 | D46: 124944662 | E46: 124944662 | F46: =SUM(F34:F45) -> 9359407.7 | G46: =SUM(G34:G45) -> 64404760.33 | H46: =SUM(H34:H45) -> 72884735 | I46: -8479974.67 | J46: =IF(I46=0,"",I46/H46) -> -0.1163477465 | K46: 124944662
A47: % increase | B47: 4 | D47: =IF(D46=0,"",(D46/C46)-1) -> 0.1400287485 | E47: =IF(E46=0,"",(E46/C46)-1) -> 0.1400287485 | K47: =IF(K46=0,"",(K46/C46)-1) -> 0.1400287485
A49: Total Parent Municipality | C49: =C14+C30+C46 -> 131983673.7 | D49: =D14+D30+D46 -> 151845412 | E49: 151845412 | F49: 11111914.43 | G49: 77657181.68 | H49: 88577041 | I49: =G49-H49 -> -10919859.32 | J49: =IF(I49=0,"",I49/H49) -> -0.1232809224 | K49: 151845412
D50: =IF(D49=0,"",(D49/C49)-1) -> 0.1504863275 | E50: =IF(E49=0,"",(E49/C49)-1) -> 0.1504863275 | K50: =IF(K49=0,"",(K49/C49)-1) -> 0.1504863275
A51: Unpaid salary, allowances & benefits in arrears:
A53: Board Members of Entities
A54: Basic Salaries and Wages | I54: =G54-H54 -> 0 | J54: =IF(I54=0,"",I54/H54) -> 
A55: Pension and UIF Contributions | I55: 0
A56: Medical Aid Contributions | I56: 0
A57: Overtime | I57: =G57-H57 -> 0 | J57: =IF(I57=0,"",I57/H57) -> 
A58: Performance Bonus | I58: =G58-H58 -> 0 | J58: =IF(I58=0,"",I58/H58) -> 
A59: Motor Vehicle Allowance | I59: =G59-H59 -> 0 | J59: =IF(I59=0,"",I59/H59) -> 
A60: Cellphone Allowance | I60: =G60-H60 -> 0 | J60: =IF(I60=0,"",I60/H60) -> 
A61: Housing Allowances | I61: =G61-H61 -> 0 | J61: =IF(I61=0,"",I61/H61) -> 
A62: Other benefits and allowances | I62: 0
A63: Board Fees | I63: =G63-H63 -> 0 | J63: =IF(I63=0,"",I63/H63) -> 
A64: Payments in lieu of leave | I64: 0
A65: Long service awards | I65: 0
A66: Post-retirement benefit obligations | I66: 0
A67: Sub Total - Board Members of Entities | B67: 2 | C67: =SUM(C54:C66) -> 0 | D67: 0 | E67: 0 | F67: =SUM(F54:F66) -> 0 | G67: =SUM(G54:G66) -> 0 | H67: =SUM(H54:H66) -> 0 | I67: 0 | J67: =IF(I67=0,"",I67/H67) ->  | K67: 0
A68: % increase | B68: 4 | D68: =IF(D67=0,"",(D67/C67)-1) ->  | E68: =IF(E67=0,"",(E67/C67)-1) ->  | K68: =IF(K67=0,"",(K67/C67)-1) -> 
A70: Senior Managers of Entities
A71: Basic Salaries and Wages | I71: =G71-H71 -> 0 | J71: =IF(I71=0,"",I71/H71) -> 
A72: Pension and UIF Contributions | I72: 0
A73: Medical Aid Contributions | I73: 0
A74: Overtime | I74: 0
A75: Performance Bonus | I75: =G75-H75 -> 0 | J75: =IF(I75=0,"",I75/H75) -> 
A76: Motor Vehicle Allowance | I76: =G76-H76 -> 0 | J76: =IF(I76=0,"",I76/H76) -> 
A77: Cellphone Allowance | I77: =G77-H77 -> 0 | J77: =IF(I77=0,"",I77/H77) -> 
A78: Housing Allowances | I78: =G78-H78 -> 0 | J78: =IF(I78=0,"",I78/H78) -> 
A79: Other benefits and allowances | I79: 0
A80: Payments in lieu of leave | I80: 0
A81: Long service awards | I81: 0
A82: Post-retirement benefit obligations | B82: 2 | I82: 0
A83: Sub Total - Senior Managers of Entities | C83: =SUM(C71:C82) -> 0 | D83: 0 | E83: 0 | F83: =SUM(F71:F82) -> 0 | G83: =SUM(G71:G82) -> 0 | H83: =SUM(H71:H82) -> 0 | I83: 0 | J83: =IF(I83=0,"",I83/H83) ->  | K83: 0
A84: % increase | B84: 4 | D84: =IF(D83=0,"",(D83/C83)-1) ->  | E84: =IF(E83=0,"",(E83/C83)-1) ->  | K84: =IF(K83=0,"",(K83/C83)-1) -> 
A86: Other Staff of Entities
A87: Basic Salaries and Wages | I87: =G87-H87 -> 0 | J87: =IF(I87=0,"",I87/H87) -> 
A88: Pension and UIF Contributions | I88: 0
A89: Medical Aid Contributions | I89: =G89-H89 -> 0 | J89: =IF(I89=0,"",I89/H89) -> 
A90: Overtime | I90: =G90-H90 -> 0 | J90: =IF(I90=0,"",I90/H90) -> 
A91: Performance Bonus | I91: =G91-H91 -> 0 | J91: =IF(I91=0,"",I91/H91) -> 
A92: Motor Vehicle Allowance | I92: =G92-H92 -> 0 | J92: =IF(I92=0,"",I92/H92) -> 
A93: Cellphone Allowance | I93: 0
A94: Housing Allowances | I94: 0
A95: Other benefits and allowances | I95: 0
A96: Payments in lieu of leave | I96: 0
A97: Long service awards | I97: 0
A98: Post-retirement benefit obligations | I98: 0
A99: Sub Total - Other Staff of Entities | C99: =SUM(C87:C98) -> 0 | D99: 0 | E99: 0 | F99: 0 | G99: 0 | H99: 0 | I99: 0 | J99: =IF(I99=0,"",I99/H99) ->  | K99: =SUM(K87:K98) -> 0
A100: % increase | B100: 4 | D100: =IF(D99=0,"",(D99/C99)-1) ->  | E100: =IF(E99=0,"",(E99/C99)-1) ->  | K100: =IF(K99=0,"",(K99/C99)-1) -> 
A102: Total Municipal Entities | C102: =C67+C83+C99 -> 0 | D102: 0 | E102: 0 | F102: 0 | G102: 0 | H102: 0 | I102: =G102-H102 -> 0 | J102: =IF(I102=0,"",I102/H102) ->  | K102: =K67+K83+K99 -> 0
A104: TOTAL SALARY, ALLOWANCES & BENEFITS | C104: =C49+C102 -> 131983673.7 | D104: 151845412 | E104: 151845412 | F104: 11111914.43 | G104: 77657181.68 | H104: 88577041 | I104: =G104-H104 -> -10919859.32 | J104: =IF(I104=0,"",I104/H104) -> -0.1232809224 | K104: =K49+K102 -> 151845412
A105: % increase | B105: 4 | D105: =IF(D104=0,"",(D104/C104)-1) -> 0.1504863275 | E105: =IF(E104=0,"",(E104/C104)-1) -> 0.1504863275 | K105: =IF(K104=0,"",(K104/C104)-1) -> 0.1504863275
A106: TOTAL MANAGERS AND STAFF | C106: =C30+C46+C83+C99 -> 115571613.6 | D106: 133004351 | E106: 133004351 | F106: 9708441.77 | G106: 67976055.36 | H106: 77586348 | I106: -9610292.64 | J106: =IF(I106=0,"",I106/H106) -> -0.1238657688 | K106: =K30+K46+K83+K99 -> 133004351
A107: =head27a -> References
A108: 1. Include 'Loans and advances' where applicable if any reportable amounts until phased compliance with s164 of MFMA achieved
A109: 2. If benefits in kind are provided (e.g. provision of living quarters) the full market value must be shown as the cost to the municipality
A110: 3. s57 of the Systems Act
A111: 4. B/A, C/A, D/A
A112: Column Definitions:
A113: A. Audited actual 2005/06 (audited financial statements). If audited amounts unavailable, unaudited amounts must be provided with a note stating these are unaudited
A114: B. The original budget approved by council for the 2006/07 budget year.
A115: C. The budget for 2006/07 budget year as adjusted by council resolution in terms of section 28 of the MFMA.
A116: D. An estimate of final actual amounts (pre audit - 2006/07 budget year) at the time of preparing the budget for the 2007/08 budget year. This may differ from C.

Sheet SC9
A1: =muni& " - "&S71O& " - "&Head57 -> LIM351 Blouberg - Supporting Table SC9 Monthly Budget Statement - actuals and revised targets for cash receipts - M07 January
A2: =desc -> Description | B2: =head27 -> Ref | C2: =Head2 -> Budget Year 2021/22 | O2: ='Template names'!B5 -> 2021/22 Medium Term Revenue & Expenditure Framework
C3: July | D3: August | E3: Sept | F3: October | G3: Nov | H3: Dec | I3: January | J3: Feb | K3: March | L3: April | M3: May | N3: June | O3: =Head9 -> Budget Year 2021/22 | P3: =Head10 -> Budget Year +1 2022/23 | Q3: =Head11 -> Budget Year +2 2023/24
A4: R thousands | B4: 1 | C4: Outcome | D4: Outcome | E4: Outcome | F4: Outcome | G4: Outcome | H4: Outcome | I4: Outcome | J4: Budget | K4: Budget | L4: Budget | M4: Budget | N4: Budget
A5: Cash Receipts By Source
A6: Property rates | C6: 439395.62 | D6: 330941.27 | E6: 214069.02 | F6: 356154.46 | G6: 421555.97 | H6: 306596.55 | I6: 323796.26 | J6: 2343294.58 | K6: 2343294.58 | L6: 2343294.58 | M6: 2343294.58 | N6: =O6-SUM(C6:M6) -> 16353847.53 | O6: 28119535 | P6: 29806709 | Q6: 31595109
A7: Service charges - electricity revenue | C7: 3489167.86 | D7: 2027857.31 | E7: 2142755.02 | F7: 2319305.57 | G7: 2151590.18 | H7: 2790664.31 | I7: 2236211.71 | J7: 3102703.92 | K7: 3102703.92 | L7: 3102703.92 | M7: 3102703.92 | N7: 7664079.36 | O7: 37232447 | P7: 39466394 | Q7: 41834377
A8: Service charges - water revenue | C8: 290778.51 | D8: 163391.01 | E8: 48395696.28 | F8: 78208.39 | G8: 2187195.71 | H8: 57506.11 | I8: 59810.75 | J8: 0 | K8: 0 | L8: 0 | M8: 0 | N8: -51232586.76 | O8: 0 | P8: 0 | Q8: 0
A9: Service charges - sanitation revenue | C9: 26973.29 | D9: 36612.76 | E9: 20840.36 | F9: 31372.82 | G9: 38587.05 | H9: 17589.54 | I9: 18278.92 | J9: 0 | K9: 0 | L9: 0 | M9: 0 | N9: -190254.74 | O9: 0 | P9: 0 | Q9: 0
A10: Service charges - refuse | C10: 17651.96 | D10: 39899.25 | E10: 25603.14 | F10: 158885.76 | G10: 196822.91 | H10: 57125.22 | I10: 28833.1 | J10: 89917.75 | K10: 89917.75 | L10: 89917.75 | M10: 89917.75 | N10: 194520.66 | O10: 1079013 | P10: 1143753 | Q10: 1212379
A12: Rental of facilities and equipment | N12: 0
A13: Interest earned - external investments | C13: 0 | D13: 0 | E13: 0 | F13: 0 | G13: 0 | H13: 0 | I13: 0 | J13: 159176.67 | K13: 159176.67 | L13: 159176.67 | M13: 159176.67 | N13: 1273413.32 | O13: 1910120 | P13: 2024728 | Q13: 2146211
A14: Interest earned - outstanding debtors | N14: 0
A15: Dividends received | N15: 0
A16: Fines, penalties and forfeits | C16: 3500 | D16: 49422.61 | E16: 32317.83 | F16: 6200 | G16: 7456.09 | H16: 3900 | I16: 5350 | J16: 317449.17 | K16: 317449.17 | L16: 317449.17 | M16: 317449.17 | N16: 2431446.79 | O16: 3809390 | P16: 4037954 | Q16: 4280231
A17: Licences and permits | C17: 51326.25 | D17: 132652.39 | E17: 640695.74 | F17: 304827.22 | G17: 173213.43 | H17: 0 | I17: 436352.58 | J17: 384764.67 | K17: 384764.67 | L17: 384764.67 | M17: 384764.67 | N17: 1339049.71 | O17: 4617176 | P17: 4894206 | Q17: 5187859
A18: Agency services | C18: 0 | D18: 0 | E18: 0 | F18: 0 | G18: 0 | H18: 0 | I18: 0 | J18: 97166.67 | K18: 97166.67 | L18: 97166.67 | M18: 97166.67 | N18: 777333.32 | O18: 1166000 | P18: 1235960 | Q18: 1310118
A19: Transfers and Subsidies - Operational | C19: 0 | D19: 0 | E19: 0 | F19: 87557000 | G19: 6900000 | H19: 68182000 | I19: 0 | J19: 17273416.67 | K19: 17273416.67 | L19: 17273416.67 | M19: 17273416.67 | N19: -24451666.68 | O19: 207281000 | P19: 214327000 | Q19: 207572000
A20: Other revenue | C20: 104901386.1 | D20: 4048856.38 | E20: -46464654.17 | F20: -89262021.64 | G20: -659515.41 | H20: -15365247.13 | I20: 1307328.13 | J20: 1570852.84 | K20: 1570852.84 | L20: 1570852.84 | M20: 1570852.84 | N20: 54060690.41 | O20: 18850234 | P20: 15243650 | Q20: 15617968
A21: Cash Receipts by Source | C21: =SUM(C6:C10)+SUM(C12:C20) -> 109220179.6 | D21: =SUM(D6:D10)+SUM(D12:D20) -> 6829632.98 | E21: 5007323.22 | F21: 1549932.58 | G21: 11416905.93 | H21: 56050134.6 | I21: 4415961.45 | J21: 25338742.94 | K21: 25338742.94 | L21: 25338742.94 | M21: 25338742.94 | N21: 8219872.92 | O21: 304064915 | P21: 312180354 | Q21: 310756252
N22: =O22-SUM(C22:M22) -> 0
A23: Other Cash Flows by Source | N23: 0
A24: ='C4-FinPerf RE'!A39 -> Transfers and subsidies - capital (monetary allocations) (National / Provincial and District) | C24: 0 | D24: 0 | E24: 0 | F24: 18252000 | G24: 6000000 | H24: 28591000 | I24: 0 | J24: 4730333.33 | K24: 4730333.33 | L24: 4730333.33 | M24: 4730333.33 | N24: -15000333.32 | O24: 56764000 | P24: 74408000 | Q24: 75582000
A25: ='C4-FinPerf RE'!A40 -> Transfers and subsidies - capital (monetary allocations) (National / Provincial Departmental Agencies, Households, Non-profit Institutions, Private Enterprises, Public Corporatons, Higher Educational Institutions) | C25: 0 | D25: 0 | E25: 0 | F25: 0 | G25: 0 | H25: 0 | I25: 0 | J25: 0 | K25: 0 | L25: 0 | M25: 0 | N25: 0 | O25: 0 | P25: 0 | Q25: 0
A26: Proceeds on Disposal of Fixed and Intangible Assets | N26: 0
A27: Short term loans | N27: 0
A28: Borrowing long term/refinancing | N28: 0
A29: Increase (decrease) in consumer deposits | C29: 0 | D29: 0 | E29: 0 | F29: 0 | G29: 0 | H29: 0 | I29: 0 | J29: 0 | K29: 0 | L29: 0 | M29: 0 | N29: 8680.44 | O29: 8680.44 | P29: 0 | Q29: 0
A31: Decrease (increase) in non-current receivables | N31: 0
A32: Decrease (increase) in non-current investments | N32: 0
A33: Total Cash Receipts by Source | C33: =SUM(C21:C29)+SUM(C31:C32) -> 109220179.6 | D33: =SUM(D21:D29)+SUM(D31:D32) -> 6829632.98 | E33: 5007323.22 | F33: 19801932.58 | G33: 17416905.93 | H33: 84641134.6 | I33: 4415961.45 | J33: 30069076.27 | K33: 30069076.27 | L33: 30069076.27 | M33: 30069076.27 | N33: -6771779.96 | O33: 360837595.4 | P33: 386588354 | Q33: 386338252
N34: =O34-SUM(C34:M34) -> 0
A35: Cash Payments by Type | N35: 0
A36: Employee related costs | C36: 0 | D36: 0 | E36: 9986897.38 | F36: 10476792.31 | G36: 9556350.7 | H36: 10327967.61 | I36: 9663241.76 | J36: 12653784.25 | K36: 12653784.25 | L36: 12653784.25 | M36: 12653784.25 | N36: 51219024.24 | O36: 151845411 | P36: 158222833 | Q36: 165184638
A37: Remuneration of councillors | N37: 0
A38: Interest paid | N38: 0
A39: Bulk purchases - Electricity | C39: 0 | D39: 0 | E39: 0 | F39: 0 | G39: 8670828.66 | H39: 4305917.91 | I39: 4777788.04 | J39: 3542166.67 | K39: 3542166.67 | L39: 3542166.67 | M39: 3542166.67 | N39: 10582798.71 | O39: 42506000 | P39: 45056360 | Q39: 45056360
A40: Acquisitions - water & other inventory | C40: 0 | D40: 0 | E40: 0 | F40: 0 | G40: 0 | H40: 0 | I40: 0 | J40: 220833.33 | K40: 220833.33 | L40: 220833.33 | M40: 220833.33 | N40: 1766666.68 | O40: 2650000 | P40: 0 | Q40: 0
A42: Contracted services | C42: 0 | D42: 0 | E42: 0 | F42: 0 | G42: 0 | H42: 0 | I42: 0 | J42: 0 | K42: 0 | L42: 0 | M42: 0 | N42: 0 | O42: 0 | P42: 1969298 | Q42: 2087456
A43: Grants and subsidies paid - other municipalities | N43: 0
A44: Grants and subsidies paid - other | N44: 0
A45: General expenses | C45: 3400944.41 | D45: 12940753.05 | E45: 11327277.11 | F45: 14791906.66 | G45: 15265282.17 | H45: 13324343.76 | I45: -468778.57 | J45: 7770848 | K45: 7770848 | L45: 7770848 | M45: 7770848 | N45: -8414944.59 | O45: 93250176 | P45: 95554406 | Q45: 87154599
A46: Cash Payments by Type | B46: =SUM(B36:B45) -> 0 | C46: =SUM(C36:C45) -> 3400944.41 | D46: =SUM(D36:D45) -> 12940753.05 | E46: 21314174.49 | F46: 25268698.97 | G46: 33492461.53 | H46: 27958229.28 | I46: 13972251.23 | J46: 24187632.25 | K46: 24187632.25 | L46: 24187632.25 | M46: 24187632.25 | N46: 55153545.04 | O46: 290251587 | P46: 300802897 | Q46: 299483053
N47: =O47-SUM(C47:M47) -> 0
A48: Other Cash Flows/Payments by Type
A49: Capital assets | C49: 1246407.39 | D49: 6065436.06 | E49: 2350230.7 | F49: 11504020.84 | G49: 6440467.26 | H49: 5541507.15 | I49: 682490.49 | J49: 5678659.57 | K49: 5678659.57 | L49: 5678659.57 | M49: 5678659.57 | N49: =O49-SUM(C49:M49) -> 11598716.83 | O49: 68143915 | P49: 83603000 | Q49: 84689880
A50: Repayment of borrowing | N50: =O50-SUM(C50:M50) -> 0
A51: Other Cash Flows/Payments | C51: 0 | D51: 166367.78 | E51: 939327.83 | F51: 380814.57 | G51: 228318.55 | H51: 944359.28 | I51: 664728.86 | J51: 0 | K51: 0 | L51: 0 | M51: 0 | N51: =O51-SUM(C51:M51) -> -3323916.87 | O51: 0 | P51: 0 | Q51: 0
A52: Total Cash Payments by Type | B52: =SUM(B46:B51) -> 0 | C52: 4647351.8 | D52: 19172556.89 | E52: 24603733.02 | F52: 37153534.38 | G52: 40161247.34 | H52: 34444095.71 | I52: 15319470.58 | J52: 29866291.82 | K52: 29866291.82 | L52: 29866291.82 | M52: 29866291.82 | N52: 63428345 | O52: 358395502 | P52: 384405897 | Q52: 384172933
N53: =O53-SUM(C53:M53) -> 0
A54: NET INCREASE/(DECREASE) IN CASH HELD | B54: =B33-B52 -> 0 | C54: 104572827.8 | D54: -12342923.91 | E54: -19596409.8 | F54: -17351601.8 | G54: -22744341.41 | H54: 50197038.89 | I54: -10903509.13 | J54: 202784.45 | K54: 202784.45 | L54: 202784.45 | M54: 202784.45 | N54: -70200124.96 | O54: 2442093.44 | P54: 2182457 | Q54: 2165319
A55: Cash/cash equivalents at the month/year beginning: | C55: 41330602.88 | D55: =C56 -> 145903430.6 | E55: =D56 -> 133560506.7 | F55: 113964096.9 | G55: 96612495.13 | H55: 73868153.72 | I55: 124065192.6 | J55: 113161683.5 | K55: 113364467.9 | L55: 113567252.4 | M55: 113770036.8 | N55: 113972821.3 | O55: =C55 -> 41330602.88 | P55: =O56 -> 43772696.32 | Q55: =P56 -> 45955153.32
A56: Cash/cash equivalents at the month/year end: | C56: =C54+C55 -> 145903430.6 | D56: =D54+D55 -> 133560506.7 | E56: =E54+E55 -> 113964096.9 | F56: 96612495.13 | G56: 73868153.72 | H56: 124065192.6 | I56: 113161683.5 | J56: 113364467.9 | K56: 113567252.4 | L56: 113770036.8 | M56: 113972821.3 | N56: 43772696.32 | O56: =O54+O55 -> 43772696.32 | P56: =P54+P55 -> 45955153.32 | Q56: =Q54+Q55 -> 48120472.32
A57: =head27a -> References
A58: 1. Replace 'budget' heading with adjusted budget, or 'outcome' only for month/s complete
A59: 2. Total of monthly amounts must always agree to the approved or adjusted budget
A60: 3. Amend 'cash-at-beginning' when prior year actual known (as part of the adjustments budget)
E65: =E46+E64 -> 21314174.49 | F65: 25268698.97 | G65: 33492461.53 | H65: 27958229.28 | I65: 13972251.23 | J65: 24187632.25 | K65: 24187632.25 | L65: 24187632.25 | N65: =N46+N64 -> 55153545.04 | O65: 290251587 | P65: 300802897
E66: =E54-E64 -> -19596409.8 | F66: -17351601.8 | G66: -22744341.41 | H66: 50197038.89 | I66: -10903509.13 | J66: 202784.45 | K66: 202784.45 | L66: 202784.45 | M66: =M54-M64 -> 202784.45 | N66: =N54-N64 -> -70200124.96 | O66: 2442093.44 | P66: 2182457

Sheet SC10
A1: =muni& " - "&S71P& " - "&Head57 -> LIM351 Blouberg - NOT REQUIRED - municipality does not have entities or this is the parent municipality's budget - M07 January
A2: =desc -> Description | B2: =head27 -> Ref | C2: =Head1 -> 2020/21 | D2: =Head2 -> Budget Year 2021/22
C3: =Head5 -> Audited Outcome | D3: =Head6 -> Original Budget | E3: =Head7 -> Adjusted Budget | F3: =Head38 -> Monthly actual | G3: =Head39 -> YearTD actual | H3: =Head40 -> YearTD budget | I3: =Head41 -> YTD variance | J3: =Head41 -> YTD variance | K3: =Head8 -> Full Year Forecast
A4: R thousands | B4: 1 | J4: %
A5: ='C4-FinPerf RE'!A5 -> Revenue By Source
A6: ='C4-FinPerf RE'!A6 -> Property rates | I6: =G6-H6 -> 0 | J6: =IF(I6=0,"",I6/H6) -> 
A7: ='C4-FinPerf RE'!A7 -> Service charges - electricity revenue | I7: 0 | J7: =IF(I7=0,"",I7/H7) -> 
A8: ='C4-FinPerf RE'!A8 -> Service charges - water revenue | I8: 0
A9: ='C4-FinPerf RE'!A9 -> Service charges - sanitation revenue | I9: 0
A10: ='C4-FinPerf RE'!A10 -> Service charges - refuse revenue | I10: 0
A12: ='C4-FinPerf RE'!A12 -> Rental of facilities and equipment | I12: 0
A13: ='C4-FinPerf RE'!A13 -> Interest earned - external investments | I13: 0
A14: ='C4-FinPerf RE'!A14 -> Interest earned - outstanding debtors | I14: 0
A15: ='C4-FinPerf RE'!A15 -> Dividends received | I15: 0
A16: ='C4-FinPerf RE'!A16 -> Fines, penalties and forfeits | I16: 0
A17: ='C4-FinPerf RE'!A17 -> Licences and permits | I17: 0
A18: ='C4-FinPerf RE'!A18 -> Agency services | I18: 0
A19: ='C4-FinPerf RE'!A19 -> Transfers and subsidies | I19: 0
A20: ='C4-FinPerf RE'!A20 -> Other revenue | I20: 0
A21: ='C4-FinPerf RE'!A21 -> Gains | I21: 0
A22: Total Revenue (excluding capital transfers and contributions) | C22: =SUM(C6:C10)+SUM(C12:C21) -> 0 | D22: 0 | E22: 0 | F22: 0 | G22: 0 | H22: 0 | I22: =G22-H22 -> 0 | K22: =SUM(K6:K10)+SUM(K12:K21) -> 0
A24: Expenditure By Type
A25: ='C4-FinPerf RE'!A25 -> Employee related costs | I25: =G25-H25 -> 0 | J25: =IF(I25=0,"",I25/H25) -> 
A26: ='C4-FinPerf RE'!A26 -> Remuneration of councillors | I26: 0
A27: ='C4-FinPerf RE'!A27 -> Debt impairment | I27: 0
A28: ='C4-FinPerf RE'!A28 -> Depreciation & asset impairment | I28: 0
A29: ='C4-FinPerf RE'!A29 -> Finance charges | I29: 0
A30: ='C4-FinPerf RE'!A30 -> Bulk purchases - electricity | I30: 0
A31: ='C4-FinPerf RE'!A31 -> Inventory consumed | I31: 0
A32: ='C4-FinPerf RE'!A32 -> Contracted services | I32: 0
A33: ='C4-FinPerf RE'!A33 -> Transfers and subsidies | I33: 0
A34: ='C4-FinPerf RE'!A34 -> Other expenditure | I34: 0
A35: ='C4-FinPerf RE'!A35 -> Losses | I35: 0
A36: Total Expenditure | C36: =SUM(C25:C35) -> 0 | D36: 0 | E36: 0 | F36: 0 | G36: 0 | H36: 0 | I36: 0 | K36: =SUM(K25:K35) -> 0
I37: 0
A38: ='C4-FinPerf RE'!A38 -> Surplus/(Deficit) | C38: =C22-C36 -> 0 | D38: 0 | E38: 0 | F38: 0 | G38: 0 | H38: 0 | I38: 0 | K38: =K22-K36 -> 0
A39: ='C4-FinPerf RE'!A39 -> Transfers and subsidies - capital (monetary allocations) (National / Provincial and District) | I39: 0
A40: ='C4-FinPerf RE'!A40 -> Transfers and subsidies - capital (monetary allocations) (National / Provincial Departmental Agencies, Households, Non-profit Institutions, Private Enterprises, Public Corporatons, Higher Educational Institutions) | I40: 0
A41: ='C4-FinPerf RE'!A41 -> Transfers and subsidies - capital (in-kind - all) | I41: 0
A42: ='C4-FinPerf RE'!A42 -> Surplus/(Deficit) after capital transfers & contributions | C42: =C38+SUM(C39:C41) -> 0 | D42: =D38+SUM(D39:D41) -> 0 | E42: 0 | F42: 0 | G42: 0 | H42: 0 | I42: 0 | K42: 0
A43: ='C4-FinPerf RE'!A43 -> Taxation | I43: 0
A44: ='C4-FinPerf RE'!A44 -> Surplus/(Deficit) after taxation | C44: =C42-C43 -> 0 | D44: 0 | E44: 0 | F44: 0 | G44: 0 | H44: 0 | I44: 0 | K44: =K42-K43 -> 0
A45: =head27a -> References
A46: 1. Votes (consolidated) are revenue sources and expenditure type

Sheet SC11
A1: =muni& " - "&S71Q& " - "&Head57 -> LIM351 Blouberg - NOT REQUIRED - municipality does not have entities or this is the parent municipality's budget - M07 January
A2: =desc -> Description | B2: =head27 -> Ref | C2: =Head1 -> 2020/21 | D2: =Head2 -> Budget Year 2021/22
C3: =Head5 -> Audited Outcome | D3: =Head6 -> Original Budget | E3: =Head7 -> Adjusted Budget | F3: =Head38 -> Monthly actual | G3: =Head39 -> YearTD actual | H3: =Head40 -> YearTD budget | I3: =Head41 -> YTD variance | J3: =Head41 -> YTD variance | K3: =Head8 -> Full Year Forecast
A4: R thousands | J4: %
A5: Revenue By Municipal Entity
A6: Insert name of municipal entity | I6: =G6-H6 -> 0 | J6: =IF(I6=0,"",I6/H6) -> 
I7: 0 | J7: =IF(I7=0,"",I7/H7) -> 
I8: 0
I9: 0
I10: 0
I11: 0
I12: 0
I13: 0
I14: 0
I15: 0
A16: Total Operating Revenue | B16: 1 | C16: =SUM(C6:C15) -> 0 | D16: 0 | E16: 0 | F16: 0 | G16: 0 | H16: 0 | I16: 0 | K16: =SUM(K6:K15) -> 0
A18: Expenditure By Municipal Entity
A19: =A6 -> Insert name of municipal entity | I19: 0 | J19: =IF(I19=0,"",I19/H19) -> 
A20: =IF(A7="","",A7) ->  | I20: 0
A21: =IF(A8="","",A8) ->  | I21: 0
I22: 0
I23: 0
I24: 0
I25: 0
I26: 0
I27: 0
I28: 0
A29: Total Operating Expenditure | B29: 2 | C29: =SUM(C19:C28) -> 0 | D29: 0 | E29: 0 | F29: 0 | G29: 0 | H29: 0 | I29: 0 | K29: =SUM(K19:K28) -> 0
A31: =Head42 -> Surplus/ (Deficit) for the yr/period | C31: =C16-C29 -> 0 | D31: =D16-D29 -> 0 | E31: 0 | F31: 0 | G31: 0 | H31: 0 | I31: =I16+I29 -> 0 | K31: 0
A32: Capital Expenditure By Municipal Entity
A33: =$A$6 -> Insert name of municipal entity | I33: 0
A34: =IF(A7="","",A7) ->  | I34: 0
A35: =IF(A8="","",A8) ->  | I35: 0
I36: 0
I37: 0
I38: 0
I39: 0
I40: 0
I41: 0
A43: Total Capital Expenditure | B43: 3 | C43: =SUM(C32:C42) -> 0 | D43: =SUM(D32:D42) -> 0 | E43: 0 | F43: 0 | G43: 0 | H43: =SUM(H32:H42) -> 0 | I43: =G43-H43 -> 0 | K43: 0
A44: =head27a -> References
A45: 1. Must reconcile to the sum of all municipal entity monthly revenue reports
A46: 2. Must reconcile to the sum of all municipal entity monthly expenditure reports
A47: 3. YTD = Year to date; FAV - favourable variance or unfavourable variance
A48: 4. Material variances to be explained
A49: 5. Insert additional 'Adjustment' Budget column for each Adjustment made by an entity

Sheet SC12
A1: =muni& " - "&S71R& " - "&Head57 -> LIM351 Blouberg - Supporting Table SC12 Monthly Budget Statement - capital expenditure trend - M07 January
A2: Month | B2: =Head1 -> 2020/21 | C2: =Head2 -> Budget Year 2021/22
B3: =Head5 -> Audited Outcome | C3: =Head6 -> Original Budget | D3: =Head7 -> Adjusted Budget | E3: =Head38 -> Monthly actual | F3: =Head39 -> YearTD actual | G3: =Head40 -> YearTD budget | H3: =Head41 -> YTD variance | I3: =Head41 -> YTD variance | J3: % spend of Original Budget
A4: R thousands | I4: %
A5: Monthly expenditure performance trend
A6: July | B6: 0 | C6: 5678659.57 | D6: 5678669 | E6: 1246407.39 | F6: =IF(E6>0,E6,"") -> 1246407.39 | G6: =IF(D6>0,D6,C6) -> 5678669 | H6: =IF(F6="",0,G6-F6) -> 4432261.61 | I6: =IF(F6="","",IF(H6=0,"",H6/G6)) -> 0.7805106461 | J6: =IF(F6="","",F6/$C$18) -> 0.01829080983
A7: August | B7: 2573305.83 | C7: 5678659.57 | D7: 5678669 | E7: 6065436.06 | F7: =IF(E7>0,E7+F6,"") -> 7311843.45 | G7: =IF(D7>0,D7+D6,C7+C6) -> 11357338 | H7: 4045494.55 | I7: 0.3562009469 | J7: 0.1073000201
A8: September | B8: 2068871.88 | C8: 5678659.57 | D8: 5678669 | E8: 2350230.7 | F8: =IF(E8>0,E8+F7,"") -> 9662074.15 | G8: =IF(D8>0,D8+G7,C8+G7) -> 17036007 | H8: 7373932.85 | I8: 0.4328439669 | J8: 0.1417892434
A9: October | B9: 1945092.21 | C9: 5678659.57 | D9: 5678669 | E9: 11504020.84 | F9: 21166094.99 | G9: =IF(D9>0,D9+G8,C9+G8) -> 22714676 | H9: 1548581.01 | I9: 0.06817535104 | J9: 0.3106087314
A10: November | B10: 3325711.13 | C10: 5678659.57 | D10: 6428669 | E10: 6440467.26 | F10: 27606562.25 | G10: 29143345 | H10: 1536782.75 | I10: 0.05273185868 | J10: 0.4051214588
A11: December | B11: 17074244.07 | C11: 5678659.57 | D11: 6428669 | E11: 5541507.15 | F11: 33148069.4 | G11: 35572014 | H11: 2423944.6 | I11: 0.06814189942 | J11: 0.4864421042
A12: January | B12: 77970.3 | C12: 5678659.57 | D12: 6428669 | E12: 682490.49 | F12: 33830559.89 | G12: 42000683 | H12: 8170123.11 | I12: 0.1945235774 | J12: 0.4964575324
A13: February | B13: 3180554.74 | C13: 5678659.57 | D13: 6428669 | E13: 0 | G13: 48429352 | H13: 0
A14: March | B14: 4894245.86 | C14: 5678659.57 | D14: 6428669 | E14: 0 | G14: 54858021 | H14: 0
A15: April | B15: 2830623.61 | C15: 5678659.57 | D15: 6428669 | E15: 0 | G15: 61286690 | H15: 0
A16: May | B16: 3164125.91 | C16: 5678659.57 | D16: 6428669 | E16: 0 | G16: 67715359 | H16: 0
A17: June | B17: 16238614.83 | C17: 5678659.73 | D17: 6428556 | E17: 0 | G17: 74143915 | H17: =IF(F17="",0,G17-F17) -> 0 | I17: =IF(F17="","",IF(H17=0,"",H17/G17)) ->  | J17: =IF(F17="","",F17/$C$18) -> 
A18: Total Capital expenditure | B18: =SUM(B6:B17) -> 57373360.37 | C18: =SUM(C6:C17) -> 68143915 | D18: =SUM(D6:D17) -> 74143915 | E18: =SUM(E6:E17) -> 33830559.89

Sheet SC13a
A1: =muni& " - "&S71Sa& " - "&Head57 -> LIM351 Blouberg - Supporting Table SC13a Monthly Budget Statement - capital expenditure on new assets by asset class - M07 January
A2: =desc -> Description | B2: =head27 -> Ref | C2: =Head1 -> 2020/21 | D2: =Head2 -> Budget Year 2021/22
C3: =Head5 -> Audited Outcome | D3: =Head6 -> Original Budget | E3: =Head7 -> Adjusted Budget | F3: =Head38 -> Monthly actual | G3: =Head39 -> YearTD actual | H3: =Head40 -> YearTD budget | I3: =Head41 -> YTD variance | J3: =Head41 -> YTD variance | K3: =Head8 -> Full Year Forecast
A4: R thousands | B4: 1 | J4: %
A5: Capital expenditure on new assets by Asset Class/Sub-class
A7: Infrastructure | C7: =C8+C13+C17+C27+C38+C45+C53+C63+C69 -> 36498469.97 | D7: 17613744 | E7: 23613744 | F7: 0 | G7: 10217477.45 | H7: 12524698 | I7: =H7-G7 -> 2307220.55 | J7: =IF(I7=0,"",I7/H7) -> 0.1842136673 | K7: =K8+K13+K17+K27+K38+K45+K53+K63+K69 -> 23613744
A8: Roads Infrastructure | C8: =SUM(C9:C12) -> 25084350.36 | D8: 16213744 | E8: 16213744 | F8: 0 | G8: 9212283.07 | H8: 9458022 | I8: 245738.93 | J8: 0.02598206369 | K8: =SUM(K9:K12) -> 16213744
A9: Roads | C9: 25084350.36 | D9: 16213744 | E9: 16213744 | F9: 0 | G9: 9212283.07 | H9: 9458022 | I9: 245738.93 | J9: 0.02598206369 | K9: 16213744
A10: Road Structures | C10: 0 | D10: 0 | E10: 0 | F10: 0 | G10: 0 | H10: 0 | I10: 0 | K10: 0
A11: Road Furniture | C11: 0 | D11: 0 | E11: 0 | F11: 0 | G11: 0 | H11: 0 | I11: 0 | K11: 0
A12: Capital Spares | I12: 0
A13: Storm water Infrastructure | C13: =SUM(C14:C16) -> 0 | D13: 0 | E13: 6000000 | F13: 0 | G13: 0 | H13: 2250000 | I13: 2250000 | J13: 1 | K13: =SUM(K14:K16) -> 6000000
A14: Drainage Collection | I14: 0
A15: Storm water Conveyance | C15: 0 | D15: 0 | E15: 6000000 | F15: 0 | G15: 0 | H15: 2250000 | I15: 2250000 | J15: 1 | K15: 6000000
A16: Attenuation | I16: 0
A17: Electrical Infrastructure | C17: =SUM(C18:C26) -> 11414119.61 | D17: 1400000 | E17: 1400000 | F17: 0 | G17: 1005194.38 | H17: 816676 | I17: -188518.38 | J17: -0.2308361945 | K17: =SUM(K18:K26) -> 1400000
A18: Power Plants | I18: 0
A19: HV Substations | C19: 4530506.31 | D19: 0 | E19: 0 | F19: 0 | G19: 0 | H19: 0 | I19: 0 | K19: 0
A20: HV Switching Station | I20: 0
A21: HV Transmission Conductors | I21: 0
A22: MV Substations | C22: 0 | D22: 0 | E22: 0 | F22: 0 | G22: 0 | H22: 0 | I22: 0 | K22: 0
A23: MV Switching Stations | I23: 0
A24: MV Networks | I24: 0
A25: LV Networks | C25: 6883613.3 | D25: 1400000 | E25: 1400000 | F25: 0 | G25: 1005194.38 | H25: 816676 | I25: -188518.38 | J25: -0.2308361945 | K25: 1400000
A26: Capital Spares | C26: 0 | D26: 0 | E26: 0 | F26: 0 | G26: 0 | H26: 0 | I26: 0 | K26: 0
A27: Water Supply Infrastructure | C27: =SUM(C28:C37) -> 0 | D27: 0 | E27: 0 | F27: 0 | G27: 0 | H27: 0 | I27: 0 | K27: =SUM(K28:K37) -> 0
A28: Dams and Weirs | I28: 0
A29: Boreholes | I29: 0
A30: Reservoirs | I30: 0
A31: Pump Stations | I31: 0
A32: Water Treatment Works | I32: 0
A33: Bulk Mains | I33: 0
A34: Distribution | I34: 0
A35: Distribution Points | I35: 0
A36: PRV Stations | I36: 0
A37: Capital Spares | I37: 0
A38: Sanitation Infrastructure | C38: =SUM(C39:C44) -> 0 | D38: 0 | E38: 0 | F38: 0 | G38: 0 | H38: 0 | I38: 0 | K38: =SUM(K39:K44) -> 0
A39: Pump Station | I39: 0
A40: Reticulation | I40: =H40-G40 -> 0 | J40: =IF(I40=0,"",I40/H40) -> 
A41: Waste Water Treatment Works | I41: =H41-G41 -> 0 | J41: =IF(I41=0,"",I41/H41) -> 
A42: Outfall Sewers | I42: =H42-G42 -> 0 | J42: =IF(I42=0,"",I42/H42) -> 
A43: Toilet Facilities | I43: 0
A44: Capital Spares | I44: 0
A45: Solid Waste Infrastructure | C45: =SUM(C46:C52) -> 0 | D45: 0 | E45: 0 | F45: 0 | G45: 0 | H45: 0 | I45: 0 | K45: =SUM(K46:K52) -> 0
A46: Landfill Sites | C46: 0 | D46: 0 | E46: 0 | F46: 0 | G46: 0 | H46: 0 | I46: 0 | K46: 0
A47: Waste Transfer Stations | I47: 0
A48: Waste Processing Facilities | I48: =H48-G48 -> 0 | J48: =IF(I48=0,"",I48/H48) -> 
A49: Waste Drop-off Points | I49: 0
A50: Waste Separation Facilities | I50: 0
A51: Electricity Generation Facilities | I51: 0
A52: Capital Spares | I52: 0
A53: Rail Infrastructure | C53: =SUM(C54:C62) -> 0 | D53: 0 | E53: 0 | F53: 0 | G53: 0 | H53: 0 | I53: 0 | K53: =SUM(K54:K62) -> 0
A54: Rail Lines | I54: 0
A55: Rail Structures | I55: 0
A56: Rail Furniture | I56: 0
A57: Drainage Collection | I57: 0
A58: Storm water Conveyance | I58: 0
A59: Attenuation | I59: 0
A60: MV Substations | I60: 0
A61: LV Networks | I61: 0
A62: Capital Spares | I62: 0
A63: Coastal Infrastructure | C63: =SUM(C64:C68) -> 0 | D63: 0 | E63: 0 | F63: 0 | G63: 0 | H63: 0 | I63: 0 | K63: =SUM(K64:K68) -> 0
A64: Sand Pumps | I64: 0
A65: Piers | I65: 0
A66: Revetments | I66: 0
A67: Promenades | I67: 0
A68: Capital Spares | I68: 0
A69: Information and Communication Infrastructure | C69: =SUM(C70:C73) -> 0 | D69: 0 | E69: 0 | F69: 0 | G69: 0 | H69: 0 | I69: =H69-G69 -> 0 | K69: =SUM(K70:K73) -> 0
A70: Data Centres | I70: =H70-G70 -> 0
A71: Core Layers | I71: =H71-G71 -> 0 | J71: =IF(I71=0,"",I71/H71) -> 
A72: Distribution Layers | I72: =H72-G72 -> 0
A73: Capital Spares | I73: =H73-G73 -> 0
A75: Community Assets | C75: =+C76+C99 -> 16054584.89 | D75: 43047216 | E75: 43047216 | F75: 0 | G75: 21978779.42 | H75: 25110890 | I75: =H75-G75 -> 3132110.58 | J75: 0.1247311656 | K75: =+K76+K99 -> 43047216
A76: Community Facilities | C76: =SUM(C77:C98) -> 932288.66 | D76: 150000 | E76: 150000 | F76: 0 | G76: 57935.65 | H76: 87500 | I76: =H76-G76 -> 29564.35 | J76: 0.3378782857 | K76: =SUM(K77:K98) -> 150000
A77: Halls | C77: 0 | D77: 150000 | E77: 150000 | F77: 0 | G77: 57935.65 | H77: 87500 | I77: 29564.35 | J77: 0.3378782857 | K77: 150000
A78: Centres | C78: 146560 | D78: 0 | E78: 0 | F78: 0 | G78: 0 | H78: 0 | I78: 0 | K78: 0
A79: Crèches | C79: 785728.66 | D79: 0 | E79: 0 | F79: 0 | G79: 0 | H79: 0 | I79: 0 | K79: 0
A80: Clinics/Care Centres | I80: 0
A81: Fire/Ambulance Stations | I81: 0
A82: Testing Stations | I82: 0
A83: Museums | I83: 0
A84: Galleries | I84: 0
A85: Theatres | I85: 0
A86: Libraries | I86: 0
A87: Cemeteries/Crematoria | C87: 0 | D87: 0 | E87: 0 | F87: 0 | G87: 0 | H87: 0 | I87: 0 | K87: 0
A88: Police | I88: 0
A89: Purls | C89: 0 | D89: 0 | E89: 0 | F89: 0 | G89: 0 | H89: 0 | I89: 0 | K89: 0
A90: Public Open Space | I90: 0
A91: Nature Reserves | I91: 0
A92: Public Ablution Facilities | I92: 0
A93: Markets | I93: 0
A94: Stalls | I94: 0
A95: Abattoirs | I95: 0
A96: Airports | I96: 0
A97: Taxi Ranks/Bus Terminals | I97: 0
A98: Capital Spares | C98: 0 | D98: 0 | E98: 0 | F98: 0 | G98: 0 | H98: 0 | I98: 0 | K98: 0
A99: Sport and Recreation Facilities | C99: =SUM(C100:C102) -> 15122296.23 | D99: 42897216 | E99: 42897216 | F99: 0 | G99: 21920843.77 | H99: 25023390 | I99: 3102546.23 | J99: 0.123985848 | K99: =SUM(K100:K102) -> 42897216
A100: Indoor Facilities | I100: 0
A101: Outdoor Facilities | C101: 15122296.23 | D101: 42897216 | E101: 42897216 | F101: 0 | G101: 21920843.77 | H101: 25023390 | I101: 3102546.23 | J101: 0.123985848 | K101: 42897216
A102: Capital Spares | I102: 0
A103: Heritage assets | C103: =SUM(C104:C108) -> 0 | D103: 0 | E103: 0 | F103: 0 | G103: 0 | H103: 0 | I103: 0 | K103: =SUM(K104:K108) -> 0
A104: Monuments | I104: 0
A105: Historic Buildings | I105: 0
A106: Works of Art | I106: 0
A107: Conservation Areas | C107: 0 | D107: 0 | E107: 0 | F107: 0 | G107: 0 | H107: 0 | I107: 0 | K107: 0
A108: Other Heritage | I108: 0
I109: 0
A110: Investment properties | C110: =+C111+C114 -> 0 | D110: 0 | E110: 0 | F110: 0 | G110: 0 | H110: 0 | I110: 0 | K110: =+K111+K114 -> 0
A111: Revenue Generating | C111: =SUM(C112:C113) -> 0 | D111: 0 | E111: 0 | F111: 0 | G111: 0 | H111: 0 | I111: 0 | K111: =SUM(K112:K113) -> 0
A112: Improved Property | I112: 0
A113: Unimproved Property | I113: 0
A114: Non-revenue Generating | C114: =SUM(C115:C116) -> 0 | D114: 0 | E114: 0 | F114: 0 | G114: 0 | H114: 0 | I114: 0 | K114: =SUM(K115:K116) -> 0
A115: Improved Property | I115: 0
A116: Unimproved Property | I116: 0
A117: Other assets | C117: =+C118+C130 -> 705255.18 | D117: 300000 | E117: 300000 | F117: 0 | G117: 299999.65 | H117: 175000 | I117: -124999.65 | J117: -0.7142837143 | K117: =+K118+K130 -> 300000
A118: Operational Buildings | C118: =SUM(C119:C129) -> 705255.18 | D118: 300000 | E118: 300000 | F118: 0 | G118: 299999.65 | H118: 175000 | I118: -124999.65 | J118: -0.7142837143 | K118: =SUM(K119:K129) -> 300000
A119: Municipal Offices | C119: 705255.18 | D119: 300000 | E119: 300000 | F119: 0 | G119: 299999.65 | H119: 175000 | I119: -124999.65 | J119: -0.7142837143 | K119: 300000
A120: Pay/Enquiry Points | I120: 0
A121: Building Plan Offices | I121: 0
A122: Workshops | I122: 0
A123: Yards | C123: 0 | D123: 0 | E123: 0 | F123: 0 | G123: 0 | H123: 0 | I123: 0 | K123: 0
A124: Stores | I124: 0
A125: Laboratories | I125: 0
A126: Training Centres | I126: 0
A127: Manufacturing Plant | I127: 0
A128: Depots | I128: 0
A129: Capital Spares | I129: 0
A130: Housing | C130: =SUM(C131:C133) -> 0 | D130: 0 | E130: 0 | F130: 0 | G130: 0 | H130: 0 | I130: 0 | K130: =SUM(K131:K133) -> 0
A131: Staff Housing | I131: 0
A132: Social Housing | I132: 0
A133: Capital Spares | I133: 0
A135: Biological or Cultivated Assets | C135: =SUM(C136:C136) -> 0 | D135: 0 | E135: 0 | F135: 0 | G135: 0 | H135: 0 | I135: =H135-G135 -> 0 | J135: =IF(I135=0,"",I135/H135) ->  | K135: =SUM(K136) -> 0
A136: Biological or Cultivated Assets | I136: =H136-G136 -> 0
A138: Intangible Assets | C138: =SUM(C139:C140) -> 266937.53 | D138: 40000 | E138: 0 | F138: 0 | G138: 0 | H138: 4.69 | I138: =H138-G138 -> 4.69 | J138: 1 | K138: =SUM(K139:K140) -> 0
A139: Servitudes | I139: 0
A140: Licences and Rights | C140: =SUM(C141:C146) -> 266937.53 | D140: 40000 | E140: 0 | F140: 0 | G140: 0 | H140: 4.69 | I140: 4.69 | J140: 1 | K140: =SUM(K141:K146) -> 0
A141: Water Rights | I141: 0
A142: Effluent Licenses | I142: 0
A143: Solid Waste Licenses | I143: 0
A144: Computer Software and Applications | C144: 266937.53 | D144: 40000 | E144: 0 | F144: 0 | G144: 0 | H144: 4.69 | I144: 4.69 | J144: 1 | K144: 0
A145: Load Settlement Software Applications | I145: 0
A146: Unspecified | I146: 0
A148: Computer Equipment | C148: =SUM(C149:C149) -> 901278.44 | D148: 1650000 | E148: 1650000 | F148: 85850 | G148: 491677.2 | H148: 962507 | I148: =H148-G148 -> 470829.8 | J148: =IF(I148=0,"",I148/H148) -> 0.4891702606 | K148: =SUM(K149) -> 1650000
A149: Computer Equipment | C149: 901278.44 | D149: 1650000 | E149: 1650000 | F149: 85850 | G149: 491677.2 | H149: 962507 | I149: =H149-G149 -> 470829.8 | J149: =IF(I149=0,"",I149/H149) -> 0.4891702606 | K149: 1650000
A151: Furniture and Office Equipment | C151: =SUM(C152:C152) -> 106746.11 | D151: 133000 | E151: 133000 | F151: 0 | G151: 63581.68 | H151: 77588 | I151: =H151-G151 -> 14006.32 | J151: =IF(I151=0,"",I151/H151) -> 0.1805217302 | K151: =SUM(K152) -> 133000
A152: Furniture and Office Equipment | C152: 106746.11 | D152: 133000 | E152: 133000 | F152: 0 | G152: 63581.68 | H152: 77588 | I152: =H152-G152 -> 14006.32 | J152: =IF(I152=0,"",I152/H152) -> 0.1805217302 | K152: 133000
J153: =IF(I153=0,"",I153/H153) -> 
A154: Machinery and Equipment | C154: =SUM(C155:C155) -> 2088166.68 | D154: 4059955 | E154: 4059955 | F154: 1075.27 | G154: 146070.27 | H154: 2368324 | I154: =H154-G154 -> 2222253.73 | J154: =IF(I154=0,"",I154/H154) -> 0.9383233586 | K154: =SUM(K155) -> 4059955
A155: Machinery and Equipment | C155: 2088166.68 | D155: 4059955 | E155: 4059955 | F155: 1075.27 | G155: 146070.27 | H155: 2368324 | I155: =H155-G155 -> 2222253.73 | J155: =IF(I155=0,"",I155/H155) -> 0.9383233586 | K155: 4059955
A157: Transport Assets | C157: =SUM(C158:C158) -> 621701.57 | D157: 1300000 | E157: 1300000 | F157: 595565.22 | G157: 595565.22 | H157: 758338 | I157: =H157-G157 -> 162772.78 | J157: =IF(I157=0,"",I157/H157) -> 0.2146441033 | K157: =SUM(K158) -> 1300000
A158: Transport Assets | C158: 621701.57 | D158: 1300000 | E158: 1300000 | F158: 595565.22 | G158: 595565.22 | H158: 758338 | I158: =H158-G158 -> 162772.78 | J158: =IF(I158=0,"",I158/H158) -> 0.2146441033 | K158: 1300000
A160: Land | C160: =SUM(C161:C161) -> 0 | D160: 0 | E160: 0 | F160: 0 | G160: 0 | H160: 0 | I160: =H160-G160 -> 0 | J160: =IF(I160=0,"",I160/H160) ->  | K160: =SUM(K161) -> 0
A161: Land | I161: =H161-G161 -> 0 | J161: =IF(I161=0,"",I161/H161) -> 
A163: Zoo's, Marine and Non-biological Animals | C163: =SUM(C164:C164) -> 0 | D163: 0 | E163: 0 | F163: 0 | G163: 0 | H163: 0 | I163: =H163-G163 -> 0 | J163: =IF(I163=0,"",I163/H163) ->  | K163: =SUM(K164) -> 0
A164: Zoo's, Marine and Non-biological Animals | I164: =H164-G164 -> 0 | J164: =IF(I164=0,"",I164/H164) -> 
J165: =IF(I165=0,"",I165/H165) -> 
A166: Total Capital Expenditure on new assets | B166: 1 | C166: =C7+C75+C103+C110+C117+C135+C138+C148+C151+C154+C157+C160+C163 -> 57243140.37 | D166: 68143915 | E166: 74103915 | F166: 682490.49 | G166: 33793150.89 | H166: 41977349.69 | I166: =H166-G166 -> 8184198.8 | J166: =IF(I166=0,"",I166/H166) -> 0.1949670206 | K166: =K7+K75+K103+K110+K117+K135+K138+K148+K151+K154+K157+K160+K163 -> 74103915
A168: =head27a -> References
A169: 1. Total Capital Expenditure on new assets (SC13a) plus Total Capital Expenditure on renewal of existing assets (SC13b) plus Total Capital Expenditure on upgrading of existing assets (SC13e) must reconcile to total capital expenditure in Table C5
A171: check balance | C171: =C166+SC13b!C166+SC13e!C166-'C5-Capex'!C40 -> 0 | D171: =D166+SC13b!D166+SC13e!D166-'C5-Capex'!D40 -> 0 | E171: =E166+SC13b!E166+SC13e!E166-'C5-Capex'!E40 -> 0 | F171: =F166+SC13b!F166+SC13e!F166-'C5-Capex'!F40 -> 0 | G171: =G166+SC13b!G166+SC13e!G166-'C5-Capex'!G40 -> 0 | H171: =H166+SC13b!H166+SC13e!H166-'C5-Capex'!H40 -> 0 | K171: =K166+SC13b!K166+SC13e!K166-'C5-Capex'!K40 -> 0

Sheet SC13b
A1: =muni& " - "&S71Sb& " - "&Head57 -> LIM351 Blouberg - Supporting Table SC13b Monthly Budget Statement - capital expenditure on renewal of existing assets by asset class - M07 January
A2: =desc -> Description | B2: =head27 -> Ref | C2: =Head1 -> 2020/21 | D2: =Head2 -> Budget Year 2021/22
C3: =Head5 -> Audited Outcome | D3: =Head6 -> Original Budget | E3: =Head7 -> Adjusted Budget | F3: =Head38 -> Monthly actual | G3: =Head39 -> YearTD actual | H3: =Head40 -> YearTD budget | I3: =Head41 -> YTD variance | J3: =Head41 -> YTD variance | K3: =Head8 -> Full Year Forecast
A4: R thousands | B4: 1 | J4: %
A5: Capital expenditure on renewal of existing assets by Asset Class/Sub-class
A7: Infrastructure | C7: =C8+C13+C17+C27+C38+C45+C53+C63+C69 -> 0 | D7: 0 | E7: 0 | F7: 0 | G7: 0 | H7: 0 | I7: =H7-G7 -> 0 | J7: =IF(I7=0,"",I7/H7) ->  | K7: =K8+K13+K17+K27+K38+K45+K53+K63+K69 -> 0
A8: Roads Infrastructure | C8: =SUM(C9:C12) -> 0 | D8: 0 | E8: 0 | F8: 0 | G8: 0 | H8: 0 | I8: 0 | K8: =SUM(K9:K12) -> 0
A9: Roads | C9: 0 | D9: 0 | E9: 0 | F9: 0 | G9: 0 | H9: 0 | I9: 0 | K9: 0
A10: Road Structures | I10: 0
A11: Road Furniture | I11: 0
A12: Capital Spares | I12: 0
A13: Storm water Infrastructure | C13: =SUM(C14:C16) -> 0 | D13: 0 | E13: 0 | F13: 0 | G13: 0 | H13: 0 | I13: 0 | K13: =SUM(K14:K16) -> 0
A14: Drainage Collection | I14: 0
A15: Storm water Conveyance | I15: 0
A16: Attenuation | I16: 0
A17: Electrical Infrastructure | C17: =SUM(C18:C26) -> 0 | D17: 0 | E17: 0 | F17: 0 | G17: 0 | H17: 0 | I17: 0 | K17: =SUM(K18:K26) -> 0
A18: Power Plants | I18: 0
A19: HV Substations | I19: 0
A20: HV Switching Station | I20: 0
A21: HV Transmission Conductors | C21: 0 | D21: 0 | E21: 0 | F21: 0 | G21: 0 | H21: 0 | I21: 0 | K21: 0
A22: MV Substations | I22: 0
A23: MV Switching Stations | I23: 0
A24: MV Networks | I24: 0
A25: LV Networks | C25: 0 | D25: 0 | E25: 0 | F25: 0 | G25: 0 | H25: 0 | I25: 0 | K25: 0
A26: Capital Spares | C26: 0 | D26: 0 | E26: 0 | F26: 0 | G26: 0 | H26: 0 | I26: 0 | K26: 0
A27: Water Supply Infrastructure | C27: =SUM(C28:C37) -> 0 | D27: 0 | E27: 0 | F27: 0 | G27: 0 | H27: 0 | I27: 0 | K27: =SUM(K28:K37) -> 0
A28: Dams and Weirs | I28: 0
A29: Boreholes | C29: 0 | D29: 0 | E29: 0 | F29: 0 | G29: 0 | H29: 0 | I29: 0 | K29: 0
A30: Reservoirs | I30: 0
A31: Pump Stations | I31: 0
A32: Water Treatment Works | I32: 0
A33: Bulk Mains | I33: 0
A34: Distribution | I34: 0
A35: Distribution Points | I35: 0
A36: PRV Stations | I36: 0
A37: Capital Spares | I37: 0
A38: Sanitation Infrastructure | C38: =SUM(C39:C44) -> 0 | D38: 0 | E38: 0 | F38: 0 | G38: 0 | H38: 0 | I38: 0 | K38: =SUM(K39:K44) -> 0
A39: Pump Station | I39: 0
A40: Reticulation | I40: 0
A41: Waste Water Treatment Works | I41: 0
A42: Outfall Sewers | I42: 0
A43: Toilet Facilities | I43: 0
A44: Capital Spares | I44: 0
A45: Solid Waste Infrastructure | C45: =SUM(C46:C52) -> 0 | D45: 0 | E45: 0 | F45: 0 | G45: 0 | H45: 0 | I45: 0 | K45: =SUM(K46:K52) -> 0
A46: Landfill Sites | C46: 0 | D46: 0 | E46: 0 | F46: 0 | G46: 0 | H46: 0 | I46: 0 | K46: 0
A47: Waste Transfer Stations | I47: 0
A48: Waste Processing Facilities | I48: 0
A49: Waste Drop-off Points | I49: 0
A50: Waste Separation Facilities | I50: 0
A51: Electricity Generation Facilities | I51: 0
A52: Capital Spares | I52: 0
A53: Rail Infrastructure | C53: =SUM(C54:C62) -> 0 | D53: 0 | E53: 0 | F53: 0 | G53: 0 | H53: 0 | I53: 0 | K53: =SUM(K54:K62) -> 0
A54: Rail Lines | I54: 0
A55: Rail Structures | I55: 0
A56: Rail Furniture | I56: 0
A57: Drainage Collection | I57: 0
A58: Storm water Conveyance | I58: 0
A59: Attenuation | I59: 0
A60: MV Substations | I60: 0
A61: LV Networks | I61: 0
A62: Capital Spares | I62: 0
A63: Coastal Infrastructure | C63: =SUM(C64:C68) -> 0 | D63: 0 | E63: 0 | F63: 0 | G63: 0 | H63: 0 | I63: 0 | K63: =SUM(K64:K68) -> 0
A64: Sand Pumps | I64: 0
A65: Piers | I65: 0
A66: Revetments | I66: 0
A67: Promenades | I67: 0
A68: Capital Spares | I68: 0
A69: Information and Communication Infrastructure | C69: =SUM(C70:C73) -> 0 | D69: 0 | E69: 0 | F69: 0 | G69: 0 | H69: 0 | I69: 0 | K69: =SUM(K70:K73) -> 0
A70: Data Centres | I70: 0
A71: Core Layers | I71: 0
A72: Distribution Layers | I72: 0
A73: Capital Spares | I73: 0
A75: Community Assets | C75: =+C76+C99 -> 0 | D75: 0 | E75: 0 | F75: 0 | G75: 0 | H75: 0 | I75: 0 | K75: =+K76+K99 -> 0
A76: Community Facilities | C76: =SUM(C77:C98) -> 0 | D76: 0 | E76: 0 | F76: 0 | G76: 0 | H76: 0 | I76: 0 | K76: =SUM(K77:K98) -> 0
A77: Halls | I77: 0
A78: Centres | I78: 0
A79: Crèches | I79: 0
A80: Clinics/Care Centres | I80: 0
A81: Fire/Ambulance Stations | I81: 0
A82: Testing Stations | I82: 0
A83: Museums | I83: 0
A84: Galleries | I84: 0
A85: Theatres | I85: 0
A86: Libraries | I86: 0
A87: Cemeteries/Crematoria | C87: 0 | D87: 0 | E87: 0 | F87: 0 | G87: 0 | H87: 0 | I87: 0 | K87: 0
A88: Police | I88: 0
A89: Purls | I89: 0
A90: Public Open Space | I90: 0
A91: Nature Reserves | I91: 0
A92: Public Ablution Facilities | I92: 0
A93: Markets | I93: 0
A94: Stalls | I94: 0
A95: Abattoirs | I95: 0
A96: Airports | I96: 0
A97: Taxi Ranks/Bus Terminals | I97: 0
A98: Capital Spares | I98: 0
A99: Sport and Recreation Facilities | C99: =SUM(C100:C102) -> 0 | D99: 0 | E99: 0 | F99: 0 | G99: 0 | H99: 0 | I99: 0 | K99: =SUM(K100:K102) -> 0
A100: Indoor Facilities | I100: 0
A101: Outdoor Facilities | C101: 0 | D101: 0 | E101: 0 | F101: 0 | G101: 0 | H101: 0 | I101: =H101-G101 -> 0 | J101: =IF(I101=0,"",I101/H101) ->  | K101: 0
A102: Capital Spares | I102: 0
A103: Heritage assets | C103: =SUM(C104:C108) -> 0 | D103: 0 | E103: 0 | F103: 0 | G103: 0 | H103: 0 | I103: 0 | K103: =SUM(K104:K108) -> 0
A104: Monuments | I104: 0
A105: Historic Buildings | I105: 0
A106: Works of Art | I106: 0
A107: Conservation Areas | I107: 0
A108: Other Heritage | I108: 0
I109: 0
A110: Investment properties | C110: =+C111+C114 -> 0 | D110: 0 | E110: 0 | F110: 0 | G110: 0 | H110: 0 | I110: 0 | K110: =+K111+K114 -> 0
A111: Revenue Generating | C111: =SUM(C112:C113) -> 0 | D111: 0 | E111: 0 | F111: 0 | G111: 0 | H111: 0 | I111: 0 | K111: =SUM(K112:K113) -> 0
A112: Improved Property | I112: 0
A113: Unimproved Property | I113: 0
A114: Non-revenue Generating | C114: =SUM(C115:C116) -> 0 | D114: 0 | E114: 0 | F114: 0 | G114: 0 | H114: 0 | I114: 0 | K114: =SUM(K115:K116) -> 0
A115: Improved Property | I115: 0
A116: Unimproved Property | I116: =H116-G116 -> 0 | J116: =IF(I116=0,"",I116/H116) -> 
A117: Other assets | C117: =+C118+C130 -> 0 | D117: 0 | E117: 0 | F117: 0 | G117: 0 | H117: 0 | I117: 0 | K117: =+K118+K130 -> 0
A118: Operational Buildings | C118: =SUM(C119:C129) -> 0 | D118: 0 | E118: 0 | F118: 0 | G118: 0 | H118: 0 | I118: 0 | K118: =SUM(K119:K129) -> 0
A119: Municipal Offices | C119: 0 | D119: 0 | E119: 0 | F119: 0 | G119: 0 | H119: 0 | I119: 0 | K119: 0
A120: Pay/Enquiry Points | I120: 0
A121: Building Plan Offices | I121: 0
A122: Workshops | I122: 0
A123: Yards | I123: 0
A124: Stores | I124: 0
A125: Laboratories | I125: 0
A126: Training Centres | I126: 0
A127: Manufacturing Plant | I127: 0
A128: Depots | I128: 0
A129: Capital Spares | I129: 0
A130: Housing | C130: =SUM(C131:C133) -> 0 | D130: 0 | E130: 0 | F130: 0 | G130: 0 | H130: 0 | I130: 0 | K130: =SUM(K131:K133) -> 0
A131: Staff Housing | I131: 0
A132: Social Housing | I132: 0
A133: Capital Spares | I133: 0
A135: Biological or Cultivated Assets | C135: =SUM(C136:C136) -> 0 | D135: 0 | E135: 0 | F135: 0 | G135: 0 | H135: 0 | I135: =H135-G135 -> 0 | K135: =SUM(K136) -> 0
A136: Biological or Cultivated Assets | I136: =H136-G136 -> 0
J137: =IF(I137=0,"",I137/H137) -> 
A138: Intangible Assets | C138: =SUM(C139:C140) -> 0 | D138: 0 | E138: 0 | F138: 0 | G138: 0 | H138: 0 | I138: =H138-G138 -> 0 | K138: =SUM(K139:K140) -> 0
A139: Servitudes | I139: 0
A140: Licences and Rights | C140: =SUM(C141:C146) -> 0 | D140: 0 | E140: 0 | F140: 0 | G140: 0 | H140: 0 | I140: 0 | K140: =SUM(K141:K146) -> 0
A141: Water Rights | I141: 0
A142: Effluent Licenses | I142: 0
A143: Solid Waste Licenses | I143: 0
A144: Computer Software and Applications | I144: 0
A145: Load Settlement Software Applications | I145: 0
A146: Unspecified | I146: 0
A148: Computer Equipment | C148: =SUM(C149:C149) -> 0 | D148: 0 | E148: 0 | F148: 0 | G148: 0 | H148: 0 | I148: =H148-G148 -> 0 | J148: =IF(I148=0,"",I148/H148) ->  | K148: =SUM(K149) -> 0
A149: Computer Equipment | I149: =H149-G149 -> 0 | J149: =IF(I149=0,"",I149/H149) -> 
A151: Furniture and Office Equipment | C151: =SUM(C152:C152) -> 0 | D151: 0 | E151: 0 | F151: 0 | G151: 0 | H151: 0 | I151: =H151-G151 -> 0 | J151: =IF(I151=0,"",I151/H151) ->  | K151: =SUM(K152) -> 0
A152: Furniture and Office Equipment | C152: 0 | D152: 0 | E152: 0 | F152: 0 | G152: 0 | H152: 0 | I152: =H152-G152 -> 0 | J152: =IF(I152=0,"",I152/H152) ->  | K152: 0
J153: =IF(I153=0,"",I153/H153) -> 
A154: Machinery and Equipment | C154: =SUM(C155:C155) -> 0 | D154: 0 | E154: 0 | F154: 0 | G154: 0 | H154: 0 | I154: =H154-G154 -> 0 | J154: =IF(I154=0,"",I154/H154) ->  | K154: =SUM(K155) -> 0
A155: Machinery and Equipment | I155: =H155-G155 -> 0 | J155: =IF(I155=0,"",I155/H155) -> 
A157: Transport Assets | C157: =SUM(C158:C158) -> 0 | D157: 0 | E157: 0 | F157: 0 | G157: 0 | H157: 0 | I157: =H157-G157 -> 0 | J157: =IF(I157=0,"",I157/H157) ->  | K157: =SUM(K158) -> 0
A158: Transport Assets | I158: =H158-G158 -> 0 | J158: =IF(I158=0,"",I158/H158) -> 
A160: Land | C160: =SUM(C161:C161) -> 0 | D160: 0 | E160: 0 | F160: 0 | G160: 0 | H160: 0 | I160: =H160-G160 -> 0 | J160: =IF(I160=0,"",I160/H160) ->  | K160: =SUM(K161) -> 0
A161: Land | I161: =H161-G161 -> 0 | J161: =IF(I161=0,"",I161/H161) -> 
J162: .
A163: Zoo's, Marine and Non-biological Animals | C163: =SUM(C164:C164) -> 0 | D163: 0 | E163: 0 | F163: 0 | G163: 0 | H163: 0 | I163: =H163-G163 -> 0 | J163: =IF(I163=0,"",I163/H163) ->  | K163: =SUM(K164) -> 0
A164: Zoo's, Marine and Non-biological Animals | I164: =H164-G164 -> 0 | J164: =IF(I164=0,"",I164/H164) -> 
J165: =IF(I165=0,"",I165/H165) -> 
A166: Total Capital Expenditure on renewal of existing assets | B166: 1 | C166: =C7+C75+C103+C110+C117+C135+C138+C148+C151+C154+C157+C160+C163 -> 0 | D166: 0 | E166: 0 | F166: 0 | G166: 0 | H166: 0 | I166: =H166-G166 -> 0 | J166: =IF(I166=0,"",I166/H166) ->  | K166: =K7+K75+K103+K110+K117+K135+K138+K148+K151+K154+K157+K160+K163 -> 0
A168: =head27a -> References
A169: 1. Total Capital Expenditure on new assets (SC13a) plus Total Capital Expenditure on renewal of existing assets (SC13b) plus Total Capital Expenditure on upgrading of existing assets (SC13e) must reconcile to total capital expenditure in Table C5
A171: check balance | C171: =C166+SC13a!C166+SC13e!C166-'C5-Capex'!C40 -> 0 | D171: =D166+SC13a!D166+SC13e!D166-'C5-Capex'!D40 -> 0 | E171: =E166+SC13a!E166+SC13e!E166-'C5-Capex'!E40 -> 0 | F171: =F166+SC13a!F166+SC13e!F166-'C5-Capex'!F40 -> 0 | G171: =G166+SC13a!G166+SC13e!G166-'C5-Capex'!G40 -> 0 | H171: =H166+SC13a!H166+SC13e!H166-'C5-Capex'!H40 -> 0 | K171: =K166+SC13a!K166+SC13e!K166-'C5-Capex'!K40 -> 0

Sheet SC13c
A1: =muni& " - "&S71Sc& " - "&Head57 -> LIM351 Blouberg - Supporting Table SC13c Monthly Budget Statement - expenditure on repairs and maintenance by asset class - M07 January
A2: =desc -> Description | B2: =head27 -> Ref | C2: =Head1 -> 2020/21 | D2: =Head2 -> Budget Year 2021/22
C3: =Head5 -> Audited Outcome | D3: =Head6 -> Original Budget | E3: =Head7 -> Adjusted Budget | F3: =Head38 -> Monthly actual | G3: =Head39 -> YearTD actual | H3: =Head40 -> YearTD budget | I3: =Head41 -> YTD variance | J3: =Head41 -> YTD variance | K3: =Head8 -> Full Year Forecast
A4: R thousands | B4: 1 | J4: %
A5: Repairs and maintenance expenditure by Asset Class/Sub-class
A7: Infrastructure | C7: =C8+C13+C17+C27+C38+C45+C53+C63+C69 -> 10673510.55 | D7: 6490000 | E7: 13390000 | F7: 1314145.78 | G7: 3485115.16 | H7: 6373359 | I7: =H7-G7 -> 2888243.84 | J7: =IF(I7=0,"",I7/H7) -> 0.4531745097 | K7: =K8+K13+K17+K27+K38+K45+K53+K63+K69 -> 13390000
A8: Roads Infrastructure | C8: =SUM(C9:C12) -> 888887.53 | D8: 1490000 | E8: 1490000 | F8: 324843.35 | G8: 1020419.83 | H8: 869183 | I8: -151236.83 | J8: -0.1739988357 | K8: =SUM(K9:K12) -> 1490000
A9: Roads | C9: 888887.53 | D9: 1490000 | E9: 1490000 | F9: 324843.35 | G9: 1020419.83 | H9: 869183 | I9: -151236.83 | J9: -0.1739988357 | K9: 1490000
A10: Road Structures | I10: 0
A11: Road Furniture | C11: 0 | D11: 0 | E11: 0 | F11: 0 | G11: 0 | H11: 0 | I11: 0 | K11: 0
A12: Capital Spares | I12: 0
A13: Storm water Infrastructure | C13: =SUM(C14:C16) -> 8197044.11 | D13: 3500000 | E13: 10400000 | F13: 989302.43 | G13: 1188782.5 | H13: 4629169 | I13: 3440386.5 | J13: 0.7431974292 | K13: =SUM(K14:K16) -> 10400000
A14: Drainage Collection | C14: 8197044.11 | D14: 3500000 | E14: 3500000 | F14: 96010 | G14: 295490.07 | H14: 2041669 | I14: 1746178.93 | J14: 0.8552703352 | K14: 3500000
A15: Storm water Conveyance | C15: 0 | D15: 0 | E15: 6900000 | F15: 893292.43 | G15: 893292.43 | H15: 2587500 | I15: 1694207.57 | J15: 0.6547662106 | K15: 6900000
A16: Attenuation | I16: 0
A17: Electrical Infrastructure | C17: =SUM(C18:C26) -> 1587578.91 | D17: 1500000 | E17: 1500000 | F17: 0 | G17: 1275912.83 | H17: 875007 | I17: -400905.83 | J17: -0.458174426 | K17: =SUM(K18:K26) -> 1500000
A18: Power Plants | C18: 0 | D18: 0 | E18: 0 | F18: 0 | G18: 0 | H18: 0 | I18: 0 | K18: 0
A19: HV Substations | I19: 0
A20: HV Switching Station | I20: 0
A21: HV Transmission Conductors | I21: 0
A22: MV Substations | I22: 0
A23: MV Switching Stations | I23: 0
A24: MV Networks | C24: 0 | D24: 0 | E24: 0 | F24: 0 | G24: 0 | H24: 0 | I24: 0 | K24: 0
A25: LV Networks | C25: 1587578.91 | D25: 1500000 | E25: 1500000 | F25: 0 | G25: 1275912.83 | H25: 875007 | I25: -400905.83 | J25: -0.458174426 | K25: 1500000
A26: Capital Spares | I26: 0
A27: Water Supply Infrastructure | C27: =SUM(C28:C37) -> 0 | D27: 0 | E27: 0 | F27: 0 | G27: 0 | H27: 0 | I27: 0 | K27: =SUM(K28:K37) -> 0
A28: Dams and Weirs | I28: 0
A29: Boreholes | I29: 0
A30: Reservoirs | I30: 0
A31: Pump Stations | I31: 0
A32: Water Treatment Works | I32: 0
A33: Bulk Mains | I33: 0
A34: Distribution | I34: 0
A35: Distribution Points | I35: 0
A36: PRV Stations | I36: 0
A37: Capital Spares | I37: 0
A38: Sanitation Infrastructure | C38: =SUM(C39:C44) -> 0 | D38: 0 | E38: 0 | F38: 0 | G38: 0 | H38: 0 | I38: 0 | K38: =SUM(K39:K44) -> 0
A39: Pump Station | I39: 0
A40: Reticulation | I40: 0
A41: Waste Water Treatment Works | I41: 0
A42: Outfall Sewers | I42: 0
A43: Toilet Facilities | I43: 0
A44: Capital Spares | I44: 0
A45: Solid Waste Infrastructure | C45: =SUM(C46:C52) -> 0 | D45: 0 | E45: 0 | F45: 0 | G45: 0 | H45: 0 | I45: 0 | K45: =SUM(K46:K52) -> 0
A46: Landfill Sites | I46: 0
A47: Waste Transfer Stations | I47: 0
A48: Waste Processing Facilities | I48: 0
A49: Waste Drop-off Points | I49: 0
A50: Waste Separation Facilities | I50: 0
A51: Electricity Generation Facilities | I51: 0
A52: Capital Spares | I52: 0
A53: Rail Infrastructure | C53: =SUM(C54:C62) -> 0 | D53: 0 | E53: 0 | F53: 0 | G53: 0 | H53: 0 | I53: 0 | K53: =SUM(K54:K62) -> 0
A54: Rail Lines | I54: 0
A55: Rail Structures | I55: 0
A56: Rail Furniture | I56: 0
A57: Drainage Collection | I57: 0
A58: Storm water Conveyance | I58: 0
A59: Attenuation | I59: 0
A60: MV Substations | I60: 0
A61: LV Networks | I61: 0
A62: Capital Spares | I62: 0
A63: Coastal Infrastructure | C63: =SUM(C64:C68) -> 0 | D63: 0 | E63: 0 | F63: 0 | G63: 0 | H63: 0 | I63: 0 | K63: =SUM(K64:K68) -> 0
A64: Sand Pumps | I64: 0
A65: Piers | I65: 0
A66: Revetments | I66: 0
A67: Promenades | I67: 0
A68: Capital Spares | I68: 0
A69: Information and Communication Infrastructure | C69: =SUM(C70:C73) -> 0 | D69: 0 | E69: 0 | F69: 0 | G69: 0 | H69: 0 | I69: 0 | K69: =SUM(K70:K73) -> 0
A70: Data Centres | C70: 0 | D70: 0 | E70: 0 | F70: 0 | G70: 0 | H70: 0 | I70: 0 | K70: 0
A71: Core Layers | I71: 0
A72: Distribution Layers | I72: 0
A73: Capital Spares | I73: 0
A75: Community Assets | C75: =+C76+C99 -> 668843.33 | D75: 700000 | E75: 700000 | F75: 43669.56 | G75: 327573.46 | H75: 408338 | I75: 80764.54 | J75: 0.1977884498 | K75: =+K76+K99 -> 700000
A76: Community Facilities | C76: =SUM(C77:C98) -> 239484.17 | D76: 400000 | E76: 400000 | F76: 43669.56 | G76: 252273.46 | H76: 233338 | I76: -18935.46 | J76: -0.08115034842 | K76: =SUM(K77:K98) -> 400000
A77: Halls | C77: 133800 | D77: 100000 | E77: 100000 | F77: 0 | G77: 99430 | H77: 58338 | I77: -41092 | J77: -0.7043779355 | K77: 100000
A78: Centres | I78: 0
A79: Crèches | I79: 0
A80: Clinics/Care Centres | C80: 0 | D80: 0 | E80: 0 | F80: 0 | G80: 0 | H80: 0 | I80: 0 | K80: 0
A81: Fire/Ambulance Stations | I81: 0
A82: Testing Stations | I82: 0
A83: Museums | I83: 0
A84: Galleries | I84: 0
A85: Theatres | I85: 0
A86: Libraries | I86: 0
A87: Cemeteries/Crematoria | I87: 0
A88: Police | I88: 0
A89: Purls | I89: 0
A90: Public Open Space | I90: 0
A91: Nature Reserves | I91: 0
A92: Public Ablution Facilities | C92: 105684.17 | D92: 300000 | E92: 300000 | F92: 43669.56 | G92: 152843.46 | H92: 175000 | I92: 22156.54 | J92: 0.1266088 | K92: 300000
A93: Markets | I93: 0
A94: Stalls | I94: 0
A95: Abattoirs | I95: 0
A96: Airports | I96: 0
A97: Taxi Ranks/Bus Terminals | I97: 0
A98: Capital Spares | I98: 0
A99: Sport and Recreation Facilities | C99: =SUM(C100:C102) -> 429359.16 | D99: 300000 | E99: 300000 | F99: 0 | G99: 75300 | H99: 175000 | I99: 99700 | J99: 0.5697142857 | K99: =SUM(K100:K102) -> 300000
A100: Indoor Facilities | I100: 0
A101: Outdoor Facilities | C101: 429359.16 | D101: 300000 | E101: 300000 | F101: 0 | G101: 75300 | H101: 175000 | I101: =H101-G101 -> 99700 | J101: =IF(I101=0,"",I101/H101) -> 0.5697142857 | K101: 300000
A102: Capital Spares | I102: 0
A103: Heritage assets | C103: =SUM(C104:C108) -> 0 | D103: 0 | E103: 0 | F103: 0 | G103: 0 | H103: 0 | I103: 0 | K103: =SUM(K104:K108) -> 0
A104: Monuments | I104: 0
A105: Historic Buildings | I105: 0
A106: Works of Art | I106: 0
A107: Conservation Areas | I107: 0
A108: Other Heritage | I108: 0
I109: 0
A110: Investment properties | C110: =+C111+C114 -> 0 | D110: 0 | E110: 0 | F110: 0 | G110: 0 | H110: 0 | I110: 0 | K110: =+K111+K114 -> 0
A111: Revenue Generating | C111: =SUM(C112:C113) -> 0 | D111: 0 | E111: 0 | F111: 0 | G111: 0 | H111: 0 | I111: 0 | K111: =SUM(K112:K113) -> 0
A112: Improved Property | I112: 0
A113: Unimproved Property | I113: 0
A114: Non-revenue Generating | C114: =SUM(C115:C116) -> 0 | D114: 0 | E114: 0 | F114: 0 | G114: 0 | H114: 0 | I114: 0 | K114: =SUM(K115:K116) -> 0
A115: Improved Property | I115: 0
A116: Unimproved Property | I116: =H116-G116 -> 0 | J116: =IF(I116=0,"",I116/H116) -> 
A117: Other assets | C117: =+C118+C130 -> 1032038.22 | D117: 520000 | E117: 520000 | F117: 19680 | G117: 310406.7 | H117: 303338 | I117: -7068.7 | J117: -0.02330304808 | K117: =+K118+K130 -> 520000
A118: Operational Buildings | C118: =SUM(C119:C129) -> 1032038.22 | D118: 520000 | E118: 520000 | F118: 19680 | G118: 310406.7 | H118: 303338 | I118: -7068.7 | J118: -0.02330304808 | K118: =SUM(K119:K129) -> 520000
A119: Municipal Offices | C119: 1032038.22 | D119: 520000 | E119: 520000 | F119: 19680 | G119: 310406.7 | H119: 303338 | I119: -7068.7 | J119: -0.02330304808 | K119: 520000
A120: Pay/Enquiry Points | I120: 0
A121: Building Plan Offices | I121: 0
A122: Workshops | I122: 0
A123: Yards | C123: 0 | D123: 0 | E123: 0 | F123: 0 | G123: 0 | H123: 0 | I123: 0 | K123: 0
A124: Stores | I124: 0
A125: Laboratories | I125: 0
A126: Training Centres | I126: 0
A127: Manufacturing Plant | I127: 0
A128: Depots | I128: 0
A129: Capital Spares | I129: 0
A130: Housing | C130: =SUM(C131:C133) -> 0 | D130: 0 | E130: 0 | F130: 0 | G130: 0 | H130: 0 | I130: 0 | K130: =SUM(K131:K133) -> 0
A131: Staff Housing | I131: 0
A132: Social Housing | I132: 0
A133: Capital Spares | I133: 0
A135: Biological or Cultivated Assets | C135: =SUM(C136:C136) -> 0 | D135: 0 | E135: 0 | F135: 0 | G135: 0 | H135: 0 | I135: =H135-G135 -> 0 | K135: =SUM(K136) -> 0
A136: Biological or Cultivated Assets | I136: =H136-G136 -> 0
A138: Intangible Assets | C138: =SUM(C139:C140) -> 0 | D138: 0 | E138: 0 | F138: 0 | G138: 0 | H138: 0 | I138: =H138-G138 -> 0 | K138: =SUM(K139:K140) -> 0
A139: Servitudes | I139: 0
A140: Licences and Rights | C140: =SUM(C141:C146) -> 0 | D140: 0 | E140: 0 | F140: 0 | G140: 0 | H140: 0 | I140: 0 | K140: =SUM(K141:K146) -> 0
A141: Water Rights | I141: 0
A142: Effluent Licenses | I142: 0
A143: Solid Waste Licenses | I143: 0
A144: Computer Software and Applications | I144: 0
A145: Load Settlement Software Applications | I145: 0
A146: Unspecified | I146: 0
A148: Computer Equipment | C148: =SUM(C149:C149) -> 129380 | D148: 359000 | E148: 359000 | F148: 0 | G148: 155650.6 | H148: 209419 | I148: =H148-G148 -> 53768.4 | J148: =IF(I148=0,"",I148/H148) -> 0.2567503426 | K148: =SUM(K149) -> 359000
A149: Computer Equipment | C149: 129380 | D149: 359000 | E149: 359000 | F149: 0 | G149: 155650.6 | H149: 209419 | I149: =H149-G149 -> 53768.4 | J149: =IF(I149=0,"",I149/H149) -> 0.2567503426 | K149: 359000
A151: Furniture and Office Equipment | C151: =SUM(C152:C152) -> 0 | D151: 230000 | E151: 230000 | F151: 0 | G151: -52543.5 | H151: 134169 | I151: =H151-G151 -> 186712.5 | J151: =IF(I151=0,"",I151/H151) -> 1.391621761 | K151: =SUM(K152) -> 230000
A152: Furniture and Office Equipment | C152: 0 | D152: 230000 | E152: 230000 | F152: 0 | G152: -52543.5 | H152: 134169 | I152: =H152-G152 -> 186712.5 | J152: =IF(I152=0,"",I152/H152) -> 1.391621761 | K152: 230000
J153: =IF(I153=0,"",I153/H153) -> 
A154: Machinery and Equipment | C154: =SUM(C155:C155) -> 52939.8 | D154: 276000 | E154: 276000 | F154: 0 | G154: 90622.64 | H154: 161000 | I154: =H154-G154 -> 70377.36 | J154: =IF(I154=0,"",I154/H154) -> 0.4371264596 | K154: =SUM(K155) -> 276000
A155: Machinery and Equipment | C155: 52939.8 | D155: 276000 | E155: 276000 | F155: 0 | G155: 90622.64 | H155: 161000 | I155: =H155-G155 -> 70377.36 | J155: =IF(I155=0,"",I155/H155) -> 0.4371264596 | K155: 276000
A157: Transport Assets | C157: =SUM(C158:C158) -> 3508022.05 | D157: 968000 | E157: 968000 | F157: 15557.41 | G157: 692797.7 | H157: 564669 | I157: =H157-G157 -> -128128.7 | J157: =IF(I157=0,"",I157/H157) -> -0.2269093929 | K157: =SUM(K158) -> 968000
A158: Transport Assets | C158: 3508022.05 | D158: 968000 | E158: 968000 | F158: 15557.41 | G158: 692797.7 | H158: 564669 | I158: =H158-G158 -> -128128.7 | J158: =IF(I158=0,"",I158/H158) -> -0.2269093929 | K158: 968000
A160: Land | C160: =SUM(C161:C161) -> 0 | D160: 0 | E160: 0 | F160: 0 | G160: 0 | H160: 0 | I160: =H160-G160 -> 0 | J160: =IF(I160=0,"",I160/H160) ->  | K160: =SUM(K161) -> 0
A161: Land | I161: =H161-G161 -> 0 | J161: =IF(I161=0,"",I161/H161) -> 
A163: Zoo's, Marine and Non-biological Animals | C163: =SUM(C164:C164) -> 0 | D163: 0 | E163: 0 | F163: 0 | G163: 0 | H163: 0 | I163: =H163-G163 -> 0 | J163: =IF(I163=0,"",I163/H163) ->  | K163: =SUM(K164) -> 0
A164: Zoo's, Marine and Non-biological Animals | I164: =H164-G164 -> 0 | J164: =IF(I164=0,"",I164/H164) -> 
J165: =IF(I165=0,"",I165/H165) -> 
A166: Total Repairs and Maintenance Expenditure | B166: 1 | C166: =C7+C75+C103+C110+C117+C135+C138+C148+C151+C154+C157+C160+C163 -> 16064733.95 | D166: 9543000 | E166: 16443000 | F166: 1393052.75 | G166: 5009622.76 | H166: 8154292 | I166: 3144669.24 | J166: 0.3856458954 | K166: =K7+K75+K103+K110+K117+K135+K138+K148+K151+K154+K157+K160+K163 -> 16443000

Sheet SC13d
A1: =muni& " - "&S71Sd& " - "&Head57 -> LIM351 Blouberg - Supporting Table SC13d Monthly Budget Statement - depreciation by asset class - M07 January
A2: =desc -> Description | B2: =head27 -> Ref | C2: =Head1 -> 2020/21 | D2: =Head2 -> Budget Year 2021/22
C3: =Head5 -> Audited Outcome | D3: =Head6 -> Original Budget | E3: =Head7 -> Adjusted Budget | F3: =Head38 -> Monthly actual | G3: =Head39 -> YearTD actual | H3: =Head40 -> YearTD budget | I3: =Head41 -> YTD variance | J3: =Head41 -> YTD variance | K3: =Head8 -> Full Year Forecast
A4: R thousands | B4: 1 | J4: %
A5: Depreciation by Asset Class/Sub-class
A7: Infrastructure | C7: =C8+C13+C17+C27+C38+C45+C53+C63+C69 -> 15044478.25 | D7: 19691385 | E7: 19691385 | F7: 0 | G7: 10542171.39 | H7: 11486650 | I7: =H7-G7 -> 944478.61 | J7: =IF(I7=0,"",I7/H7) -> 0.08222402615 | K7: =K8+K13+K17+K27+K38+K45+K53+K63+K69 -> 19691385
A8: Roads Infrastructure | C8: =SUM(C9:C12) -> -448905 | D8: 10237099 | E8: 10237099 | F8: 0 | G8: 2620813.85 | H8: 5971644 | I8: 3350830.15 | J8: 0.5611235616 | K8: =SUM(K9:K12) -> 10237099
A9: Roads | C9: -448905 | D9: 10237099 | E9: 10237099 | F9: 0 | G9: 1578555.64 | H9: 5971644 | I9: 4393088.36 | J9: 0.7356581136 | K9: 10237099
A10: Road Structures | C10: 0 | D10: 0 | E10: 0 | F10: 0 | G10: 589070.1 | H10: 0 | I10: -589070.1 | K10: 0
A11: Road Furniture | C11: 0 | D11: 0 | E11: 0 | F11: 0 | G11: 453188.11 | H11: 0 | I11: -453188.11 | K11: 0
A12: Capital Spares | C12: 0 | D12: 0 | E12: 0 | F12: 0 | G12: 0 | H12: 0 | I12: 0 | K12: 0
A13: Storm water Infrastructure | C13: =SUM(C14:C16) -> 0 | D13: 0 | E13: 0 | F13: 0 | G13: 0 | H13: 0 | I13: 0 | K13: =SUM(K14:K16) -> 0
A14: Drainage Collection | C14: 0 | D14: 0 | E14: 0 | F14: 0 | G14: 0 | H14: 0 | I14: 0 | K14: 0
A15: Storm water Conveyance | C15: 0 | D15: 0 | E15: 0 | F15: 0 | G15: 0 | H15: 0 | I15: 0 | K15: 0
A16: Attenuation | C16: 0 | D16: 0 | E16: 0 | F16: 0 | G16: 0 | H16: 0 | I16: 0 | K16: 0
A17: Electrical Infrastructure | C17: =SUM(C18:C26) -> 15493383.25 | D17: 9454286 | E17: 9454286 | F17: 0 | G17: 7379175.77 | H17: 5515006 | I17: -1864169.77 | J17: -0.3380177229 | K17: =SUM(K18:K26) -> 9454286
A18: Power Plants | C18: 0 | D18: 0 | E18: 0 | F18: 0 | G18: 0 | H18: 0 | I18: 0 | K18: 0
A19: HV Substations | C19: 0 | D19: 0 | E19: 0 | F19: 0 | G19: 0 | H19: 0 | I19: 0 | K19: 0
A20: HV Switching Station | C20: 0 | D20: 0 | E20: 0 | F20: 0 | G20: 283786.47 | H20: 0 | I20: -283786.47 | K20: 0
A21: HV Transmission Conductors | C21: 0 | D21: 0 | E21: 0 | F21: 0 | G21: 1065129.01 | H21: 0 | I21: -1065129.01 | K21: 0
A22: MV Substations | C22: 0 | D22: 0 | E22: 0 | F22: 0 | G22: 0 | H22: 0 | I22: 0 | K22: 0
A23: MV Switching Stations | C23: 0 | D23: 0 | E23: 0 | F23: 0 | G23: 18129.46 | H23: 0 | I23: -18129.46 | K23: 0
A24: MV Networks | C24: 0 | D24: 0 | E24: 0 | F24: 0 | G24: 0 | H24: 0 | I24: 0 | K24: 0
A25: LV Networks | C25: 15493383.25 | D25: 9454286 | E25: 9454286 | F25: 0 | G25: 4751501.48 | H25: 5515006 | I25: 763504.52 | J25: 0.1384412855 | K25: 9454286
A26: Capital Spares | C26: 0 | D26: 0 | E26: 0 | F26: 0 | G26: 1260629.35 | H26: 0 | I26: -1260629.35 | K26: 0
A27: Water Supply Infrastructure | C27: =SUM(C28:C37) -> 0 | D27: 0 | E27: 0 | F27: 0 | G27: 0 | H27: 0 | I27: 0 | K27: =SUM(K28:K37) -> 0
A28: Dams and Weirs | C28: 0 | D28: 0 | E28: 0 | F28: 0 | G28: 0 | H28: 0 | I28: 0 | K28: 0
A29: Boreholes | C29: 0 | D29: 0 | E29: 0 | F29: 0 | G29: 0 | H29: 0 | I29: 0 | K29: 0
A30: Reservoirs | I30: 0
A31: Pump Stations | I31: 0
A32: Water Treatment Works | I32: 0
A33: Bulk Mains | I33: 0
A34: Distribution | I34: 0
A35: Distribution Points | I35: 0
A36: PRV Stations | I36: 0
A37: Capital Spares | I37: 0
A38: Sanitation Infrastructure | C38: =SUM(C39:C44) -> 0 | D38: 0 | E38: 0 | F38: 0 | G38: 0 | H38: 0 | I38: 0 | K38: =SUM(K39:K44) -> 0
A39: Pump Station | I39: 0
A40: Reticulation | I40: 0
A41: Waste Water Treatment Works | I41: 0
A42: Outfall Sewers | I42: 0
A43: Toilet Facilities | I43: 0
A44: Capital Spares | I44: 0
A45: Solid Waste Infrastructure | C45: =SUM(C46:C52) -> 0 | D45: 0 | E45: 0 | F45: 0 | G45: 542181.77 | H45: 0 | I45: -542181.77 | K45: =SUM(K46:K52) -> 0
A46: Landfill Sites | C46: 0 | D46: 0 | E46: 0 | F46: 0 | G46: 542181.77 | H46: 0 | I46: -542181.77 | K46: 0
A47: Waste Transfer Stations | C47: 0 | D47: 0 | E47: 0 | F47: 0 | G47: 0 | H47: 0 | I47: 0 | K47: 0
A48: Waste Processing Facilities | C48: 0 | D48: 0 | E48: 0 | F48: 0 | G48: 0 | H48: 0 | I48: 0 | K48: 0
A49: Waste Drop-off Points | C49: 0 | D49: 0 | E49: 0 | F49: 0 | G49: 0 | H49: 0 | I49: 0 | K49: 0
A50: Waste Separation Facilities | C50: 0 | D50: 0 | E50: 0 | F50: 0 | G50: 0 | H50: 0 | I50: 0 | K50: 0
A51: Electricity Generation Facilities | C51: 0 | D51: 0 | E51: 0 | F51: 0 | G51: 0 | H51: 0 | I51: 0 | K51: 0
A52: Capital Spares | C52: 0 | D52: 0 | E52: 0 | F52: 0 | G52: 0 | H52: 0 | I52: 0 | K52: 0
A53: Rail Infrastructure | C53: =SUM(C54:C62) -> 0 | D53: 0 | E53: 0 | F53: 0 | G53: 0 | H53: 0 | I53: 0 | K53: =SUM(K54:K62) -> 0
A54: Rail Lines | I54: 0
A55: Rail Structures | I55: 0
A56: Rail Furniture | I56: 0
A57: Drainage Collection | I57: 0
A58: Storm water Conveyance | I58: 0
A59: Attenuation | I59: 0
A60: MV Substations | I60: 0
A61: LV Networks | I61: 0
A62: Capital Spares | I62: 0
A63: Coastal Infrastructure | C63: =SUM(C64:C68) -> 0 | D63: 0 | E63: 0 | F63: 0 | G63: 0 | H63: 0 | I63: 0 | K63: =SUM(K64:K68) -> 0
A64: Sand Pumps | I64: 0
A65: Piers | I65: 0
A66: Revetments | I66: 0
A67: Promenades | I67: 0
A68: Capital Spares | I68: 0
A69: Information and Communication Infrastructure | C69: =SUM(C70:C73) -> 0 | D69: 0 | E69: 0 | F69: 0 | G69: 0 | H69: 0 | I69: 0 | K69: =SUM(K70:K73) -> 0
A70: Data Centres | I70: 0
A71: Core Layers | I71: 0
A72: Distribution Layers | I72: 0
A73: Capital Spares | I73: 0
A75: Community Assets | C75: =+C76+C99 -> 13798740.12 | D75: 16834472 | E75: 16834472 | F75: 0 | G75: 2351572.44 | H75: 9820118 | I75: 7468545.56 | J75: 0.7605352156 | K75: =+K76+K99 -> 16834472
A76: Community Facilities | C76: =SUM(C77:C98) -> 13798740.12 | D76: 16834472 | E76: 16834472 | F76: 0 | G76: 2351572.44 | H76: 9820118 | I76: 7468545.56 | J76: 0.7605352156 | K76: =SUM(K77:K98) -> 16834472
A77: Halls | C77: 6389886 | D77: 0 | E77: 0 | F77: 0 | G77: 263852.53 | H77: 0 | I77: -263852.53 | K77: 0
A78: Centres | C78: 1611515.63 | D78: 5195756 | E78: 5195756 | F78: 0 | G78: 707297.99 | H78: 3030860 | I78: 2323562.01 | J78: 0.7666345559 | K78: 5195756
A79: Crèches | C79: 5797338.49 | D79: 6442958 | E79: 6442958 | F79: 0 | G79: 798375.28 | H79: 3758398 | I79: 2960022.72 | J79: 0.7875756426 | K79: 6442958
A80: Clinics/Care Centres | C80: 0 | D80: 0 | E80: 0 | F80: 0 | G80: 0 | H80: 0 | I80: 0 | K80: 0
A81: Fire/Ambulance Stations | C81: 0 | D81: 0 | E81: 0 | F81: 0 | G81: 77160.82 | H81: 0 | I81: -77160.82 | K81: 0
A82: Testing Stations | C82: 0 | D82: 0 | E82: 0 | F82: 0 | G82: 215087.99 | H82: 0 | I82: -215087.99 | K82: 0
A83: Museums | C83: 0 | D83: 0 | E83: 0 | F83: 0 | G83: 0 | H83: 0 | I83: 0 | K83: 0
A84: Galleries | C84: 0 | D84: 0 | E84: 0 | F84: 0 | G84: 0 | H84: 0 | I84: 0 | K84: 0
A85: Theatres | C85: 0 | D85: 0 | E85: 0 | F85: 0 | G85: 0 | H85: 0 | I85: 0 | K85: 0
A86: Libraries | C86: 0 | D86: 0 | E86: 0 | F86: 0 | G86: 0 | H86: 0 | I86: 0 | K86: 0
A87: Cemeteries/Crematoria | C87: 0 | D87: 5195758 | E87: 5195758 | F87: 0 | G87: 63799.97 | H87: 3030860 | I87: 2967060.03 | J87: 0.9789498789 | K87: 5195758
A88: Police | C88: 0 | D88: 0 | E88: 0 | F88: 0 | G88: 0 | H88: 0 | I88: 0 | K88: 0
A89: Purls | C89: 0 | D89: 0 | E89: 0 | F89: 0 | G89: 0 | H89: 0 | I89: 0 | K89: 0
A90: Public Open Space | C90: 0 | D90: 0 | E90: 0 | F90: 0 | G90: 0 | H90: 0 | I90: 0 | K90: 0
A91: Nature Reserves | C91: 0 | D91: 0 | E91: 0 | F91: 0 | G91: 0 | H91: 0 | I91: 0 | K91: 0
A92: Public Ablution Facilities | C92: 0 | D92: 0 | E92: 0 | F92: 0 | G92: 0 | H92: 0 | I92: 0 | K92: 0
A93: Markets | C93: 0 | D93: 0 | E93: 0 | F93: 0 | G93: 0 | H93: 0 | I93: 0 | K93: 0
A94: Stalls | C94: 0 | D94: 0 | E94: 0 | F94: 0 | G94: 0 | H94: 0 | I94: 0 | K94: 0
A95: Abattoirs | C95: 0 | D95: 0 | E95: 0 | F95: 0 | G95: 0 | H95: 0 | I95: 0 | K95: 0
A96: Airports | C96: 0 | D96: 0 | E96: 0 | F96: 0 | G96: 0 | H96: 0 | I96: 0 | K96: 0
A97: Taxi Ranks/Bus Terminals | C97: 0 | D97: 0 | E97: 0 | F97: 0 | G97: 225997.86 | H97: 0 | I97: -225997.86 | K97: 0
A98: Capital Spares | I98: 0
A99: Sport and Recreation Facilities | C99: =SUM(C100:C102) -> 0 | D99: 0 | E99: 0 | F99: 0 | G99: 0 | H99: 0 | I99: 0 | K99: =SUM(K100:K102) -> 0
A100: Indoor Facilities | I100: 0
A101: Outdoor Facilities | I101: =H101-G101 -> 0 | J101: =IF(I101=0,"",I101/H101) -> 
A102: Capital Spares | I102: 0
A103: Heritage assets | C103: =SUM(C104:C108) -> 0 | D103: 0 | E103: 0 | F103: 0 | G103: 0 | H103: 0 | I103: 0 | K103: =SUM(K104:K108) -> 0
A104: Monuments | I104: 0
A105: Historic Buildings | I105: 0
A106: Works of Art | I106: 0
A107: Conservation Areas | I107: 0
A108: Other Heritage | C108: 0 | D108: 0 | E108: 0 | F108: 0 | G108: 0 | H108: 0 | I108: 0 | K108: 0
I109: 0
A110: Investment properties | C110: =+C111+C114 -> 0 | D110: 0 | E110: 0 | F110: 0 | G110: 0 | H110: 0 | I110: 0 | K110: =+K111+K114 -> 0
A111: Revenue Generating | C111: =SUM(C112:C113) -> 0 | D111: 0 | E111: 0 | F111: 0 | G111: 0 | H111: 0 | I111: 0 | K111: =SUM(K112:K113) -> 0
A112: Improved Property | C112: 0 | D112: 0 | E112: 0 | F112: 0 | G112: 0 | H112: 0 | I112: 0 | K112: 0
A113: Unimproved Property | C113: 0 | D113: 0 | E113: 0 | F113: 0 | G113: 0 | H113: 0 | I113: 0 | K113: 0
A114: Non-revenue Generating | C114: =SUM(C115:C116) -> 0 | D114: 0 | E114: 0 | F114: 0 | G114: 0 | H114: 0 | I114: 0 | K114: =SUM(K115:K116) -> 0
A115: Improved Property | I115: 0
A116: Unimproved Property | I116: =H116-G116 -> 0 | J116: =IF(I116=0,"",I116/H116) -> 
A117: Other assets | C117: =+C118+C130 -> 0 | D117: 0 | E117: 0 | F117: 0 | G117: 669204.11 | H117: 0 | I117: -669204.11 | K117: =+K118+K130 -> 0
A118: Operational Buildings | C118: =SUM(C119:C129) -> 0 | D118: 0 | E118: 0 | F118: 0 | G118: 669204.11 | H118: 0 | I118: -669204.11 | K118: =SUM(K119:K129) -> 0
A119: Municipal Offices | C119: 0 | D119: 0 | E119: 0 | F119: 0 | G119: 557650.46 | H119: 0 | I119: -557650.46 | K119: 0
A120: Pay/Enquiry Points | C120: 0 | D120: 0 | E120: 0 | F120: 0 | G120: 63743.82 | H120: 0 | I120: -63743.82 | K120: 0
A121: Building Plan Offices | C121: 0 | D121: 0 | E121: 0 | F121: 0 | G121: 0 | H121: 0 | I121: 0 | K121: 0
A122: Workshops | C122: 0 | D122: 0 | E122: 0 | F122: 0 | G122: 0 | H122: 0 | I122: 0 | K122: 0
A123: Yards | C123: 0 | D123: 0 | E123: 0 | F123: 0 | G123: 0 | H123: 0 | I123: 0 | K123: 0
A124: Stores | C124: 0 | D124: 0 | E124: 0 | F124: 0 | G124: 47809.83 | H124: 0 | I124: -47809.83 | K124: 0
A125: Laboratories | C125: 0 | D125: 0 | E125: 0 | F125: 0 | G125: 0 | H125: 0 | I125: 0 | K125: 0
A126: Training Centres | C126: 0 | D126: 0 | E126: 0 | F126: 0 | G126: 0 | H126: 0 | I126: 0 | K126: 0
A127: Manufacturing Plant | C127: 0 | D127: 0 | E127: 0 | F127: 0 | G127: 0 | H127: 0 | I127: 0 | K127: 0
A128: Depots | C128: 0 | D128: 0 | E128: 0 | F128: 0 | G128: 0 | H128: 0 | I128: 0 | K128: 0
A129: Capital Spares | C129: 0 | D129: 0 | E129: 0 | F129: 0 | G129: 0 | H129: 0 | I129: 0 | K129: 0
A130: Housing | C130: =SUM(C131:C133) -> 0 | D130: 0 | E130: 0 | F130: 0 | G130: 0 | H130: 0 | I130: 0 | K130: =SUM(K131:K133) -> 0
A131: Staff Housing | C131: 0 | D131: 0 | E131: 0 | F131: 0 | G131: 0 | H131: 0 | I131: 0 | K131: 0
A132: Social Housing | C132: 0 | D132: 0 | E132: 0 | F132: 0 | G132: 0 | H132: 0 | I132: 0 | K132: 0
A133: Capital Spares | C133: 0 | D133: 0 | E133: 0 | F133: 0 | G133: 0 | H133: 0 | I133: 0 | K133: 0
A135: Biological or Cultivated Assets | C135: =SUM(C136:C136) -> 0 | D135: 0 | E135: 0 | F135: 0 | G135: 0 | H135: 0 | I135: =H135-G135 -> 0 | K135: =SUM(K136) -> 0
A136: Biological or Cultivated Assets | I136: =H136-G136 -> 0
A138: Intangible Assets | C138: =SUM(C139:C140) -> 99980 | D138: 0 | E138: 0 | F138: 0 | G138: 41368.7 | H138: 0 | I138: =H138-G138 -> -41368.7 | K138: =SUM(K139:K140) -> 0
A139: Servitudes | I139: 0
A140: Licences and Rights | C140: =SUM(C141:C146) -> 99980 | D140: 0 | E140: 0 | F140: 0 | G140: 41368.7 | H140: 0 | I140: -41368.7 | K140: =SUM(K141:K146) -> 0
A141: Water Rights | I141: 0
A142: Effluent Licenses | I142: 0
A143: Solid Waste Licenses | I143: 0
A144: Computer Software and Applications | C144: 99980 | D144: 0 | E144: 0 | F144: 0 | G144: 41368.7 | H144: 0 | I144: -41368.7 | K144: 0
A145: Load Settlement Software Applications | I145: 0
A146: Unspecified | C146: 0 | D146: 0 | E146: 0 | F146: 0 | G146: 0 | H146: 0 | I146: 0 | K146: 0
A148: Computer Equipment | C148: =SUM(C149:C149) -> 1613120.36 | D148: 0 | E148: 0 | F148: 0 | G148: 398642.96 | H148: 0 | I148: =H148-G148 -> -398642.96 | J148: =IF(I148=0,"",I148/H148) ->  | K148: =SUM(K149) -> 0
A149: Computer Equipment | C149: 1613120.36 | D149: 0 | E149: 0 | F149: 0 | G149: 398642.96 | H149: 0 | I149: =H149-G149 -> -398642.96 | J149: =IF(I149=0,"",I149/H149) ->  | K149: 0
A151: Furniture and Office Equipment | C151: =SUM(C152:C152) -> 504522.27 | D151: 1350303 | E151: 1350303 | F151: 0 | G151: 674008.91 | H151: 787682 | I151: =H151-G151 -> 113673.09 | J151: =IF(I151=0,"",I151/H151) -> 0.1443134285 | K151: =SUM(K152) -> 1350303
A152: Furniture and Office Equipment | C152: 504522.27 | D152: 1350303 | E152: 1350303 | F152: 0 | G152: 674008.91 | H152: 787682 | I152: =H152-G152 -> 113673.09 | J152: =IF(I152=0,"",I152/H152) -> 0.1443134285 | K152: 1350303
J153: =IF(I153=0,"",I153/H153) -> 
A154: Machinery and Equipment | C154: =SUM(C155:C155) -> 561735.58 | D154: 2264455 | E154: 2264455 | F154: 0 | G154: 0 | H154: 1320935 | I154: =H154-G154 -> 1320935 | J154: =IF(I154=0,"",I154/H154) -> 1 | K154: =SUM(K155) -> 2264455
A155: Machinery and Equipment | C155: 561735.58 | D155: 2264455 | E155: 2264455 | F155: 0 | G155: 0 | H155: 1320935 | I155: =H155-G155 -> 1320935 | J155: =IF(I155=0,"",I155/H155) -> 1 | K155: 2264455
A157: Transport Assets | C157: =SUM(C158:C158) -> 0 | D157: 0 | E157: 0 | F157: 0 | G157: 0 | H157: 0 | I157: =H157-G157 -> 0 | J157: =IF(I157=0,"",I157/H157) ->  | K157: =SUM(K158) -> 0
A158: Transport Assets | C158: 0 | D158: 0 | E158: 0 | F158: 0 | G158: 0 | H158: 0 | I158: =H158-G158 -> 0 | J158: =IF(I158=0,"",I158/H158) ->  | K158: 0
A160: Land | C160: =SUM(C161:C161) -> 0 | D160: 0 | E160: 0 | F160: 0 | G160: 0 | H160: 0 | I160: =H160-G160 -> 0 | J160: =IF(I160=0,"",I160/H160) ->  | K160: =SUM(K161) -> 0
A161: Land | I161: =H161-G161 -> 0 | J161: =IF(I161=0,"",I161/H161) -> 
A163: Zoo's, Marine and Non-biological Animals | C163: =SUM(C164:C164) -> 0 | D163: 0 | E163: 0 | F163: 0 | G163: 0 | H163: 0 | I163: =H163-G163 -> 0 | J163: =IF(I163=0,"",I163/H163) ->  | K163: =SUM(K164) -> 0
A164: Zoo's, Marine and Non-biological Animals | I164: =H164-G164 -> 0 | J164: =IF(I164=0,"",I164/H164) -> 
J165: =IF(I165=0,"",I165/H165) -> 
A166: Total Depreciation | B166: 1 | C166: =C7+C75+C103+C110+C117+C135+C138+C148+C151+C154+C157+C160+C163 -> 31622576.58 | D166: 40140615 | E166: 40140615 | F166: 0 | G166: 14676968.51 | H166: 23415385 | I166: 8738416.49 | J166: 0.3731912369 | K166: =K7+K75+K103+K110+K117+K135+K138+K148+K151+K154+K157+K160+K163 -> 40140615

Sheet SC13e
A1: =muni& " - "&S71Se& " - "&Head57 -> LIM351 Blouberg - Supporting Table SC13e Monthly Budget Statement - capital expenditure on upgrading of existing assets by asset class - M07 January
A2: =desc -> Description | B2: =head27 -> Ref | C2: =Head1 -> 2020/21 | D2: =Head2 -> Budget Year 2021/22
C3: =Head5 -> Audited Outcome | D3: =Head6 -> Original Budget | E3: =Head7 -> Adjusted Budget | F3: =Head38 -> Monthly actual | G3: =Head39 -> YearTD actual | H3: =Head40 -> YearTD budget | I3: =Head41 -> YTD variance | J3: =Head41 -> YTD variance | K3: =Head8 -> Full Year Forecast
A4: R thousands | B4: 1 | J4: %
A5: Capital expenditure on upgrading of existing assets by Asset Class/Sub-class
A7: Infrastructure | C7: =C8+C13+C17+C27+C38+C45+C53+C63+C69 -> 0 | D7: 0 | E7: 0 | F7: 0 | G7: 0 | H7: 0 | I7: =H7-G7 -> 0 | J7: =IF(I7=0,"",I7/H7) ->  | K7: =K8+K13+K17+K27+K38+K45+K53+K63+K69 -> 0
A8: Roads Infrastructure | C8: =SUM(C9:C12) -> 0 | D8: 0 | E8: 0 | F8: 0 | G8: 0 | H8: 0 | I8: 0 | K8: =SUM(K9:K12) -> 0
A9: Roads | I9: 0
A10: Road Structures | I10: 0
A11: Road Furniture | I11: 0
A12: Capital Spares | I12: 0
A13: Storm water Infrastructure | C13: =SUM(C14:C16) -> 0 | D13: 0 | E13: 0 | F13: 0 | G13: 0 | H13: 0 | I13: 0 | K13: =SUM(K14:K16) -> 0
A14: Drainage Collection | I14: 0
A15: Storm water Conveyance | I15: 0
A16: Attenuation | I16: 0
A17: Electrical Infrastructure | C17: =SUM(C18:C26) -> 0 | D17: 0 | E17: 0 | F17: 0 | G17: 0 | H17: 0 | I17: 0 | K17: =SUM(K18:K26) -> 0
A18: Power Plants | I18: 0
A19: HV Substations | I19: 0
A20: HV Switching Station | I20: 0
A21: HV Transmission Conductors | I21: 0
A22: MV Substations | I22: 0
A23: MV Switching Stations | I23: 0
A24: MV Networks | I24: 0
A25: LV Networks | I25: 0
A26: Capital Spares | I26: 0
A27: Water Supply Infrastructure | C27: =SUM(C28:C37) -> 0 | D27: 0 | E27: 0 | F27: 0 | G27: 0 | H27: 0 | I27: 0 | K27: =SUM(K28:K37) -> 0
A28: Dams and Weirs | I28: 0
A29: Boreholes | I29: 0
A30: Reservoirs | I30: 0
A31: Pump Stations | I31: 0
A32: Water Treatment Works | I32: 0
A33: Bulk Mains | I33: 0
A34: Distribution | I34: 0
A35: Distribution Points | I35: 0
A36: PRV Stations | I36: 0
A37: Capital Spares | I37: 0
A38: Sanitation Infrastructure | C38: =SUM(C39:C44) -> 0 | D38: 0 | E38: 0 | F38: 0 | G38: 0 | H38: 0 | I38: 0 | K38: =SUM(K39:K44) -> 0
A39: Pump Station | I39: 0
A40: Reticulation | I40: 0
A41: Waste Water Treatment Works | I41: 0
A42: Outfall Sewers | I42: 0
A43: Toilet Facilities | I43: 0
A44: Capital Spares | I44: 0
A45: Solid Waste Infrastructure | C45: =SUM(C46:C52) -> 0 | D45: 0 | E45: 0 | F45: 0 | G45: 0 | H45: 0 | I45: 0 | K45: =SUM(K46:K52) -> 0
A46: Landfill Sites | C46: 0 | D46: 0 | E46: 0 | F46: 0 | G46: 0 | H46: 0 | I46: 0 | K46: 0
A47: Waste Transfer Stations | I47: 0
A48: Waste Processing Facilities | I48: 0
A49: Waste Drop-off Points | I49: 0
A50: Waste Separation Facilities | I50: 0
A51: Electricity Generation Facilities | I51: 0
A52: Capital Spares | I52: 0
A53: Rail Infrastructure | C53: =SUM(C54:C62) -> 0 | D53: 0 | E53: 0 | F53: 0 | G53: 0 | H53: 0 | I53: 0 | K53: =SUM(K54:K62) -> 0
A54: Rail Lines | I54: 0
A55: Rail Structures | I55: 0
A56: Rail Furniture | I56: 0
A57: Drainage Collection | I57: 0
A58: Storm water Conveyance | I58: 0
A59: Attenuation | I59: 0
A60: MV Substations | I60: 0
A61: LV Networks | I61: 0
A62: Capital Spares | I62: 0
A63: Coastal Infrastructure | C63: =SUM(C64:C68) -> 0 | D63: 0 | E63: 0 | F63: 0 | G63: 0 | H63: 0 | I63: 0 | K63: =SUM(K64:K68) -> 0
A64: Sand Pumps | I64: 0
A65: Piers | I65: 0
A66: Revetments | I66: 0
A67: Promenades | I67: 0
A68: Capital Spares | I68: 0
A69: Information and Communication Infrastructure | C69: =SUM(C70:C73) -> 0 | D69: 0 | E69: 0 | F69: 0 | G69: 0 | H69: 0 | I69: 0 | K69: =SUM(K70:K73) -> 0
A70: Data Centres | I70: 0
A71: Core Layers | I71: 0
A72: Distribution Layers | I72: 0
A73: Capital Spares | I73: 0
A75: Community Assets | C75: =+C76+C99 -> 0 | D75: 0 | E75: 0 | F75: 0 | G75: 0 | H75: 0 | I75: 0 | K75: =+K76+K99 -> 0
A76: Community Facilities | C76: =SUM(C77:C98) -> 0 | D76: 0 | E76: 0 | F76: 0 | G76: 0 | H76: 0 | I76: 0 | K76: =SUM(K77:K98) -> 0
A77: Halls | I77: 0
A78: Centres | I78: 0
A79: Crèches | I79: 0
A80: Clinics/Care Centres | I80: 0
A81: Fire/Ambulance Stations | I81: 0
A82: Testing Stations | I82: 0
A83: Museums | I83: 0
A84: Galleries | I84: 0
A85: Theatres | I85: 0
A86: Libraries | I86: 0
A87: Cemeteries/Crematoria | I87: 0
A88: Police | I88: 0
A89: Purls | I89: 0
A90: Public Open Space | I90: 0
A91: Nature Reserves | I91: 0
A92: Public Ablution Facilities | I92: 0
A93: Markets | I93: 0
A94: Stalls | I94: 0
A95: Abattoirs | I95: 0
A96: Airports | I96: 0
A97: Taxi Ranks/Bus Terminals | I97: 0
A98: Capital Spares | I98: 0
A99: Sport and Recreation Facilities | C99: =SUM(C100:C102) -> 0 | D99: 0 | E99: 0 | F99: 0 | G99: 0 | H99: 0 | I99: 0 | K99: =SUM(K100:K102) -> 0
A100: Indoor Facilities | I100: 0
A101: Outdoor Facilities | C101: 0 | D101: 0 | E101: 0 | F101: 0 | G101: 0 | H101: 0 | I101: =H101-G101 -> 0 | J101: =IF(I101=0,"",I101/H101) ->  | K101: 0
A102: Capital Spares | I102: 0
A103: Heritage assets | C103: =SUM(C104:C108) -> 0 | D103: 0 | E103: 0 | F103: 0 | G103: 0 | H103: 0 | I103: 0 | K103: =SUM(K104:K108) -> 0
A104: Monuments | I104: 0
A105: Historic Buildings | I105: 0
A106: Works of Art | I106: 0
A107: Conservation Areas | I107: 0
A108: Other Heritage | I108: 0
I109: 0
A110: Investment properties | C110: =+C111+C114 -> 0 | D110: 0 | E110: 0 | F110: 0 | G110: 0 | H110: 0 | I110: 0 | K110: =+K111+K114 -> 0
A111: Revenue Generating | C111: =SUM(C112:C113) -> 0 | D111: 0 | E111: 0 | F111: 0 | G111: 0 | H111: 0 | I111: 0 | K111: =SUM(K112:K113) -> 0
A112: Improved Property | I112: 0
A113: Unimproved Property | I113: 0
A114: Non-revenue Generating | C114: =SUM(C115:C116) -> 0 | D114: 0 | E114: 0 | F114: 0 | G114: 0 | H114: 0 | I114: 0 | K114: =SUM(K115:K116) -> 0
A115: Improved Property | I115: 0
A116: Unimproved Property | I116: =H116-G116 -> 0 | J116: =IF(I116=0,"",I116/H116) -> 
A117: Other assets | C117: =+C118+C130 -> 0 | D117: 0 | E117: 0 | F117: 0 | G117: 0 | H117: 0 | I117: 0 | K117: =+K118+K130 -> 0
A118: Operational Buildings | C118: =SUM(C119:C129) -> 0 | D118: 0 | E118: 0 | F118: 0 | G118: 0 | H118: 0 | I118: 0 | K118: =SUM(K119:K129) -> 0
A119: Municipal Offices | I119: 0
A120: Pay/Enquiry Points | I120: 0
A121: Building Plan Offices | I121: 0
A122: Workshops | I122: 0
A123: Yards | I123: 0
A124: Stores | I124: 0
A125: Laboratories | I125: 0
A126: Training Centres | I126: 0
A127: Manufacturing Plant | I127: 0
A128: Depots | I128: 0
A129: Capital Spares | I129: 0
A130: Housing | C130: =SUM(C131:C133) -> 0 | D130: 0 | E130: 0 | F130: 0 | G130: 0 | H130: 0 | I130: 0 | K130: =SUM(K131:K133) -> 0
A131: Staff Housing | I131: 0
A132: Social Housing | I132: 0
A133: Capital Spares | I133: 0
A135: Biological or Cultivated Assets | C135: =SUM(C136:C136) -> 0 | D135: 0 | E135: 0 | F135: 0 | G135: 0 | H135: 0 | I135: =H135-G135 -> 0 | K135: =SUM(K136) -> 0
A136: Biological or Cultivated Assets | I136: =H136-G136 -> 0
J137: =IF(I137=0,"",I137/H137) -> 
A138: Intangible Assets | C138: =SUM(C139:C140) -> 0 | D138: 0 | E138: 0 | F138: 0 | G138: 0 | H138: 0 | I138: =H138-G138 -> 0 | K138: =SUM(K139:K140) -> 0
A139: Servitudes | I139: 0
A140: Licences and Rights | C140: =SUM(C141:C146) -> 0 | D140: 0 | E140: 0 | F140: 0 | G140: 0 | H140: 0 | I140: 0 | K140: =SUM(K141:K146) -> 0
A141: Water Rights | I141: 0
A142: Effluent Licenses | I142: 0
A143: Solid Waste Licenses | I143: 0
A144: Computer Software and Applications | I144: 0
A145: Load Settlement Software Applications | I145: 0
A146: Unspecified | I146: 0
A148: Computer Equipment | C148: =SUM(C149:C149) -> 0 | D148: 0 | E148: 0 | F148: 0 | G148: 0 | H148: 0 | I148: =H148-G148 -> 0 | J148: =IF(I148=0,"",I148/H148) ->  | K148: =SUM(K149) -> 0
A149: Computer Equipment | I149: =H149-G149 -> 0 | J149: =IF(I149=0,"",I149/H149) -> 
A151: Furniture and Office Equipment | C151: =SUM(C152:C152) -> 0 | D151: 0 | E151: 0 | F151: 0 | G151: 0 | H151: 0 | I151: =H151-G151 -> 0 | J151: =IF(I151=0,"",I151/H151) ->  | K151: =SUM(K152) -> 0
A152: Furniture and Office Equipment | C152: 0 | D152: 0 | E152: 0 | F152: 0 | G152: 0 | H152: 0 | I152: =H152-G152 -> 0 | J152: =IF(I152=0,"",I152/H152) ->  | K152: 0
J153: =IF(I153=0,"",I153/H153) -> 
A154: Machinery and Equipment | C154: =SUM(C155:C155) -> 130220 | D154: 0 | E154: 40000 | F154: 0 | G154: 37409 | H154: 23333.31 | I154: =H154-G154 -> -14075.69 | J154: =IF(I154=0,"",I154/H154) -> -0.6032444604 | K154: =SUM(K155) -> 40000
A155: Machinery and Equipment | C155: 130220 | D155: 0 | E155: 40000 | F155: 0 | G155: 37409 | H155: 23333.31 | I155: =H155-G155 -> -14075.69 | J155: =IF(I155=0,"",I155/H155) -> -0.6032444604 | K155: 40000
A157: Transport Assets | C157: =SUM(C158:C158) -> 0 | D157: 0 | E157: 0 | F157: 0 | G157: 0 | H157: 0 | I157: =H157-G157 -> 0 | J157: =IF(I157=0,"",I157/H157) ->  | K157: =SUM(K158) -> 0
A158: Transport Assets | I158: =H158-G158 -> 0 | J158: =IF(I158=0,"",I158/H158) -> 
A160: Land | C160: =SUM(C161:C161) -> 0 | D160: 0 | E160: 0 | F160: 0 | G160: 0 | H160: 0 | I160: =H160-G160 -> 0 | J160: =IF(I160=0,"",I160/H160) ->  | K160: =SUM(K161) -> 0
A161: Land | I161: =H161-G161 -> 0 | J161: =IF(I161=0,"",I161/H161) -> 
J162: .
A163: Zoo's, Marine and Non-biological Animals | C163: =SUM(C164:C164) -> 0 | D163: 0 | E163: 0 | F163: 0 | G163: 0 | H163: 0 | I163: =H163-G163 -> 0 | J163: =IF(I163=0,"",I163/H163) ->  | K163: =SUM(K164) -> 0
A164: Zoo's, Marine and Non-biological Animals | I164: =H164-G164 -> 0 | J164: =IF(I164=0,"",I164/H164) -> 
J165: =IF(I165=0,"",I165/H165) -> 
A166: Total Capital Expenditure on upgrading of existing assets | B166: 1 | C166: =C7+C75+C103+C110+C117+C135+C138+C148+C151+C154+C157+C160+C163 -> 130220 | D166: 0 | E166: 40000 | F166: 0 | G166: 37409 | H166: 23333.31 | I166: =H166-G166 -> -14075.69 | J166: =IF(I166=0,"",I166/H166) -> -0.6032444604 | K166: =K7+K75+K103+K110+K117+K135+K138+K148+K151+K154+K157+K160+K163 -> 40000
A168: =head27a -> References
A169: 1. Total Capital Expenditure on new assets (SC13a) plus Total Capital Expenditure on renewal of existing assets (SC13b) plus Total Capital Expenditure on upgrading of existing assets (SC13e) must reconcile to total capital expenditure in Table C5
A171: check balance | C171: =C166+SC13a!C166+SC13b!C166-'C5-Capex'!C40 -> 0 | D171: =D166+SC13a!D166+SC13b!D166-'C5-Capex'!D40 -> 0 | E171: =E166+SC13a!E166+SC13b!E166-'C5-Capex'!E40 -> 0 | F171: =F166+SC13a!F166+SC13b!F166-'C5-Capex'!F40 -> 0 | G171: =G166+SC13a!G166+SC13b!G166-'C5-Capex'!G40 -> 0 | H171: =H166+SC13a!H166+SC13b!H166-'C5-Capex'!H40 -> 0 | K171: =K166+SC13a!K166+SC13b!K166-'C5-Capex'!K40 -> 0

Sheet SC71charts
A1: ='Template names'!B102 -> Chart C1 2021/22 Capital Expenditure Monthly Trend: actual v target
A2: Month | B2: ='SC12'!B2 -> 2020/21 | C2: ='SC12'!C3 -> Original Budget | D2: ='SC12'!D3 -> Adjusted Budget | E2: ='SC12'!E3 -> Monthly actual
A3: =LEFT('SC12'!A6,3) -> Jul | B3: ='SC12'!B6 -> 0 | C3: ='SC12'!C6 -> 5678659.57 | D3: ='SC12'!D6 -> 5678669 | E3: ='SC12'!E6 -> 1246407.39
A4: =LEFT('SC12'!A7,3) -> Aug | B4: ='SC12'!B7 -> 2573305.83 | C4: ='SC12'!C7 -> 5678659.57 | D4: ='SC12'!D7 -> 5678669 | E4: ='SC12'!E7 -> 6065436.06
A5: =LEFT('SC12'!A8,3) -> Sep | B5: ='SC12'!B8 -> 2068871.88 | C5: ='SC12'!C8 -> 5678659.57 | D5: ='SC12'!D8 -> 5678669 | E5: ='SC12'!E8 -> 2350230.7
A6: =LEFT('SC12'!A9,3) -> Oct | B6: ='SC12'!B9 -> 1945092.21 | C6: ='SC12'!C9 -> 5678659.57 | D6: ='SC12'!D9 -> 5678669 | E6: ='SC12'!E9 -> 11504020.84
A7: =LEFT('SC12'!A10,3) -> Nov | B7: ='SC12'!B10 -> 3325711.13 | C7: ='SC12'!C10 -> 5678659.57 | D7: ='SC12'!D10 -> 6428669 | E7: ='SC12'!E10 -> 6440467.26
A8: =LEFT('SC12'!A11,3) -> Dec | B8: ='SC12'!B11 -> 17074244.07 | C8: ='SC12'!C11 -> 5678659.57 | D8: ='SC12'!D11 -> 6428669 | E8: ='SC12'!E11 -> 5541507.15
A9: =LEFT('SC12'!A12,3) -> Jan | B9: ='SC12'!B12 -> 77970.3 | C9: ='SC12'!C12 -> 5678659.57 | D9: ='SC12'!D12 -> 6428669 | E9: ='SC12'!E12 -> 682490.49
A10: =LEFT('SC12'!A13,3) -> Feb | B10: ='SC12'!B13 -> 3180554.74 | C10: ='SC12'!C13 -> 5678659.57 | D10: ='SC12'!D13 -> 6428669 | E10: ='SC12'!E13 -> 0
A11: =LEFT('SC12'!A14,3) -> Mar | B11: ='SC12'!B14 -> 4894245.86 | C11: ='SC12'!C14 -> 5678659.57 | D11: ='SC12'!D14 -> 6428669 | E11: ='SC12'!E14 -> 0
A12: =LEFT('SC12'!A15,3) -> Apr | B12: ='SC12'!B15 -> 2830623.61 | C12: ='SC12'!C15 -> 5678659.57 | D12: ='SC12'!D15 -> 6428669 | E12: ='SC12'!E15 -> 0
A13: =LEFT('SC12'!A16,3) -> May | B13: ='SC12'!B16 -> 3164125.91 | C13: ='SC12'!C16 -> 5678659.57 | D13: ='SC12'!D16 -> 6428669 | E13: ='SC12'!E16 -> 0
A14: =LEFT('SC12'!A17,3) -> Jun | B14: ='SC12'!B17 -> 16238614.83 | C14: ='SC12'!C17 -> 5678659.73 | D14: ='SC12'!D17 -> 6428556 | E14: ='SC12'!E17 -> 0
A26: ='Template names'!B103 -> Chart C2 2021/22 Capital Expenditure: YTD actual v YTD target
A27: Month | B27: ='SC12'!F3 -> YearTD actual | C27: ='SC12'!G3 -> YearTD budget
A28: =LEFT('SC12'!A6,3) -> Jul | B28: ='SC12'!F6 -> 1246407.39 | C28: ='SC12'!G6 -> 5678669
A29: =LEFT('SC12'!A7,3) -> Aug | B29: ='SC12'!F7 -> 7311843.45 | C29: ='SC12'!G7 -> 11357338
A30: =LEFT('SC12'!A8,3) -> Sep | B30: ='SC12'!F8 -> 9662074.15 | C30: ='SC12'!G8 -> 17036007
A31: =LEFT('SC12'!A9,3) -> Oct | B31: ='SC12'!F9 -> 21166094.99 | C31: ='SC12'!G9 -> 22714676
A32: =LEFT('SC12'!A10,3) -> Nov | B32: ='SC12'!F10 -> 27606562.25 | C32: ='SC12'!G10 -> 29143345
A33: =LEFT('SC12'!A11,3) -> Dec | B33: ='SC12'!F11 -> 33148069.4 | C33: ='SC12'!G11 -> 35572014
A34: =LEFT('SC12'!A12,3) -> Jan | B34: ='SC12'!F12 -> 33830559.89 | C34: ='SC12'!G12 -> 42000683
A35: =LEFT('SC12'!A13,3) -> Feb | B35: ='SC12'!F13 ->  | C35: ='SC12'!G13 -> 48429352
A36: =LEFT('SC12'!A14,3) -> Mar | B36: ='SC12'!F14 ->  | C36: ='SC12'!G14 -> 54858021
A37: =LEFT('SC12'!A15,3) -> Apr | B37: ='SC12'!F15 ->  | C37: ='SC12'!G15 -> 61286690
A38: =LEFT('SC12'!A16,3) -> May | B38: ='SC12'!F16 ->  | C38: ='SC12'!G16 -> 67715359
A39: =LEFT('SC12'!A17,3) -> Jun | B39: ='SC12'!F17 ->  | C39: ='SC12'!G17 -> 74143915
A51: ='Template names'!B104 -> Chart C3 Aged Consumer Debtors Analysis
B52: ='SC3'!C3 -> 0-30 Days | C52: ='SC3'!D3 -> 31-60 Days | D52: ='SC3'!E3 -> 61-90 Days | E52: ='SC3'!F3 -> 91-120 Days | F52: ='SC3'!G3 -> 121-150 Dys | G52: ='SC3'!H3 -> 151-180 Dys | H52: ='SC3'!I3 -> 181 Dys-1 Yr | I52: ='SC3'!J3 -> Over 1Yr
A53: =Head2 -> Budget Year 2021/22 | B53: ='SC3'!C14 -> 3840827.17 | C53: ='SC3'!D14 -> 1970887.91 | D53: ='SC3'!E14 -> 1997914.69 | E53: ='SC3'!F14 -> 1340263.21 | F53: ='SC3'!G14 -> 3499757.67 | G53: ='SC3'!H14 -> 24285853.65 | H53: ='SC3'!I14 -> 7897068.98 | I53: ='SC3'!J14 -> 136901106.6
A54: =Head1 -> 2020/21 | B54: ='SC3'!C15 -> 0 | C54: ='SC3'!D15 -> 0 | D54: ='SC3'!E15 -> 0 | E54: ='SC3'!F15 -> 0 | F54: ='SC3'!G15 -> 0 | G54: ='SC3'!H15 -> 0 | H54: ='SC3'!I15 -> 0 | I54: ='SC3'!J15 -> 0
A76: ='Template names'!B105 -> Chart C4 Consumer Debtors (total by Debtor Customer Category)
B77: =Head1 -> 2020/21 | C77: =Head2 -> Budget Year 2021/22
A78: ='SC3'!A17 -> Organs of State | B78: =C78*0.97 -> 0 | C78: ='SC3'!K17 -> 0
A79: ='SC3'!A18 -> Commercial | B79: =C79*0.97 -> 0 | C79: ='SC3'!K18 -> 0
A80: ='SC3'!A19 -> Households | B80: =C80*0.97 -> 0 | C80: ='SC3'!K19 -> 0
A81: ='SC3'!A20 -> Other | B81: =C81*0.97 -> 176281669.5 | C81: ='SC3'!K20 -> 181733679.9
A101: ='Template names'!B106 -> Chart C5 Aged Creditors Analysis
B102: ='SC4'!A6 -> Bulk Electricity | C102: ='SC4'!A7 -> Bulk Water | D102: ='SC4'!A8 -> PAYE deductions | E102: ='SC4'!A9 -> VAT (output less input) | F102: ='SC4'!A10 -> Pensions / Retirement deductions | G102: ='SC4'!A11 -> Loan repayments | H102: ='SC4'!A12 -> Trade Creditors | I102: ='SC4'!A13 -> Auditor General | J102: ='SC4'!A14 -> Other
A103: =A54 -> 2020/21 | B103: ='SC4'!L6 -> 0 | C103: ='SC4'!L7 -> 0 | D103: ='SC4'!L8 -> 0 | E103: ='SC4'!L9 -> 0 | F103: ='SC4'!L10 -> 0 | G103: ='SC4'!L11 -> 0 | H103: ='SC4'!L12 -> 0 | I103: ='SC4'!L13 -> 0 | J103: ='SC4'!L14 -> 0
A104: =A53 -> Budget Year 2021/22 | B104: ='SC4'!K6 -> 0 | C104: ='SC4'!K7 -> 0 | D104: ='SC4'!K8 -> 0 | E104: ='SC4'!K9 -> 0 | F104: ='SC4'!K10 -> 0 | G104: ='SC4'!K11 -> 0 | H104: ='SC4'!K12 -> 0 | I104: ='SC4'!K13 -> 0 | J104: ='SC4'!K14 -> 0
